Workbook

Sheet PNB BDD
C2: A sélectionner dans menu déroulant | V2: Légende
B3: Direction commerciale | V3: Réalisations > objectif proraté
B4: Secteur | V4: Réalisations < 50% de objectif proraté
B5: Agence | V5: Taux / durée lié a une convention
B7: =IF(C3="","CEGEE",IF(AND(C5="",C4=""),C3,IF(AND(C5="",C4<>""),C4,IF(C5="","""Sélectionneragence",C5)))) -> CEGEE | E7: PNB sur Activité Nouvelle 2019
B9: Données arrêtées au : | C9: ='Indicateurs Cumulés'!$E$4 -> 2019-04-30
B10: Taux de réalisation attendu : | C10: =MONTH(C9)/12 -> 33% | E10: Réalisations Mensuelles | J10: Réalisations Annuelles | P10: OBJECTIFS | V10: TAUX Réal. Objectif
E11: Volume | F11: Taux | G11: Durée | H11: PNB | J11: Volume | K11: Taux | L11: Durée | M11: PNB | N11: PNB / ETP perf. | P11: Volume | Q11: Taux | R11: Durée | S11: PNB | T11: PNB / ETP Cible | V11: Volume | W11: PNB annuel | X11: Ecart /obj. PNB/ETP
B12: Montants en k€
B14: COLLECTE (yc DAV) - Excédents | E14: =E15+E16+E17+E32 -> 18,755 | H14: =H15+H16+H32 -> 1,632 | J14: =J15+J16+J17+J32 -> 167,791 | M14: =M15+M16+M32 -> 8,513 | N14: =IF(ISERROR(M14/VLOOKUP($B$7,'Indicateurs Cumulés'!$D$3:$MX$391,223,FALSE)),"nc",M14/VLOOKUP($B$7,'Indicateurs Cumulés'!$D$3:$MX$391,223,FALSE)) -> 6.0 | P14: =P15+P16+P32 -> 180,000 | S14: =S15+S16+S32 -> 24,756 | T14: =IF(ISERROR(S14/VLOOKUP($B$7,objectifs!$D$4:$IA$373,232,FALSE)),"nc",S14/VLOOKUP($B$7,objectifs!$D$4:$IA$373,232,FALSE)) -> 16.3 | V14: =IF(ISERROR(J14/P14),0,J14/P14) -> 93% | W14: =IF(ISERROR(M14/S14),0,M14/S14) -> 34% | X14: =IF(ISERROR(N14-(T14/12*MONTH($C$9))),"nc",N14-(T14/12*MONTH($C$9))) -> 0.6
B15: DAV Créditeurs - Variation d'EMJ mensuel | E15: =VLOOKUP($B$7,'Indicateurs mensuels'!$D$3:$ZZ$391,211,FALSE)/12 -> 1,209 | F15: =VLOOKUP($B$7,'Indicateurs mensuels'!$D$3:$KI$391,178,FALSE) -> 1.00% | G15: =VLOOKUP($B$7,'Indicateurs mensuels'!$D$3:$KI$391,179,FALSE) -> 5.37 | H15: =E15*F15*G15 -> 65 | J15: =VLOOKUP($B$7,'Indicateurs Cumulés'!$D$3:$MX$391,220,FALSE)*MONTH($C$9)/12 -> -1,247 | K15: =VLOOKUP($B$7,'Indicateurs Cumulés'!$D$3:$MX$391,186,FALSE) -> 1.00% | L15: =VLOOKUP($B$7,'Indicateurs Cumulés'!$D$3:$MX$391,187,FALSE) -> 5.37 | M15: =J15*K15*L15 -> -67 | N15: =IF(ISERROR(M15/VLOOKUP($B$7,'Indicateurs Cumulés'!$D$3:$MX$391,223,FALSE)),"nc",M15/VLOOKUP($B$7,'Indicateurs Cumulés'!$D$3:$MX$391,223,FALSE)) -> -0.0 | P15: =VLOOKUP($B$7,objectifs!$D$3:$ZZ$391,157,FALSE) -> 130,000 | Q15: =VLOOKUP($B$7,objectifs!$D$3:$ZZ$391,158,FALSE) -> 1.00% | R15: =VLOOKUP($B$7,objectifs!$D$3:$ZZ$391,159,FALSE) -> 5.37 | S15: =P15*Q15*R15 -> 6,981 | T15: =IF(ISERROR(S15/VLOOKUP($B$7,objectifs!$D$4:$IA$373,232,FALSE)),"nc",S15/VLOOKUP($B$7,objectifs!$D$4:$IA$373,232,FALSE)) -> 4.6 | V15: =IF(ISERROR(J15/P15),0,J15/P15) -> -1% | W15: =IF(ISERROR(M15/S15),0,M15/S15) -> -1% | X15: =IF(ISERROR(N15-(T15/12*MONTH($C$9))),"nc",N15-(T15/12*MONTH($C$9))) -> -1.6
B16: Epargne Bilan | E16: =VLOOKUP($B$7,'Indicateurs mensuels'!$D$3:$KI$391,173,FALSE) -> -6,754 | H16: =VLOOKUP($B$7,'Indicateurs mensuels'!$D$3:$KI$391,174,FALSE) -> 1,303 | J16: =VLOOKUP($B$7,'Indicateurs Cumulés'!$D$3:$MX$391,181,FALSE) -> 53,333 | M16: =VLOOKUP($B$7,'Indicateurs Cumulés'!$D$3:$MX$391,182,FALSE) -> 3,497 | N16: =IF(ISERROR(M16/VLOOKUP($B$7,'Indicateurs Cumulés'!$D$3:$MX$391,223,FALSE)),"nc",M16/VLOOKUP($B$7,'Indicateurs Cumulés'!$D$3:$MX$391,223,FALSE)) -> 2.5 | P16: =VLOOKUP($B$7,objectifs!$D$3:$ZZ$391,153,FALSE)+VLOOKUP($B$7,objectifs!$D$3:$ZZ$391,81,FALSE) -> -120,000 | S16: =VLOOKUP($B$7,objectifs!$D$3:$ZZ$391,154,FALSE)+S17 -> 2,792 | T16: =IF(ISERROR(S16/VLOOKUP($B$7,objectifs!$D$4:$IA$373,232,FALSE)),"nc",S16/VLOOKUP($B$7,objectifs!$D$4:$IA$373,232,FALSE)) -> 1.8 | V16: =IF(ISERROR(J16/P16),0,J16/P16) -> -44% | W16: =IF(ISERROR(M16/S16),0,M16/S16) -> 125% | X16: =IF(ISERROR(N16-(T16/12*MONTH($C$9))),"nc",N16-(T16/12*MONTH($C$9))) -> 1.9
B17: Livret A | E17: =VLOOKUP($B$7,'Indicateurs mensuels'!$D$3:$KI$391,101,FALSE) -> 27,338 | F17: =VLOOKUP($B$7,'Indicateurs mensuels'!$D$3:$KI$391,102,FALSE) -> 0.70% | G17: =VLOOKUP($B$7,'Indicateurs mensuels'!$D$3:$KI$391,103,FALSE) -> 5.33 | H17: =E17*F17*G17 -> 1,020 | J17: =VLOOKUP($B$7,'Indicateurs Cumulés'!$D$3:$MX$391,109,FALSE) -> 52,031 | K17: =VLOOKUP($B$7,'Indicateurs Cumulés'!$D$3:$MX$391,110,FALSE) -> 0.70% | L17: =VLOOKUP($B$7,'Indicateurs Cumulés'!$D$3:$MX$391,111,FALSE) -> 5.33 | M17: =J17*K17*L17 -> 1,941 | N17: =IF(ISERROR(M17/VLOOKUP($B$7,'Indicateurs Cumulés'!$D$3:$MX$391,223,FALSE)),"nc",M17/VLOOKUP($B$7,'Indicateurs Cumulés'!$D$3:$MX$391,223,FALSE)) -> 1.4 | P17: =VLOOKUP($B$7,objectifs!$D$3:$ZZ$391,81,FALSE) -> 30,000 | Q17: =VLOOKUP($B$7,objectifs!$D$3:$ZZ$391,82,FALSE) -> 0.70% | R17: =VLOOKUP($B$7,objectifs!$D$3:$ZZ$391,83,FALSE) -> 5.37 | S17: =P17*Q17*R17 -> 1,128 | T17: =IF(ISERROR(S17/VLOOKUP($B$7,objectifs!$D$4:$IA$373,232,FALSE)),"nc",S17/VLOOKUP($B$7,objectifs!$D$4:$IA$373,232,FALSE)) -> 0.7 | V17: =IF(ISERROR(J17/P17),0,J17/P17) -> 173% | W17: =IF(ISERROR(M17/S17),0,M17/S17) -> 172% | X17: 1.1
B18: LDDS | E18: =VLOOKUP($B$7,'Indicateurs mensuels'!$D$3:$KI$391,121,FALSE) -> 3,218 | F18: =VLOOKUP($B$7,'Indicateurs mensuels'!$D$3:$KI$391,122,FALSE) -> 0.20% | G18: =VLOOKUP($B$7,'Indicateurs mensuels'!$D$3:$KI$391,123,FALSE) -> 5.37 | H18: 35 | J18: =VLOOKUP($B$7,'Indicateurs Cumulés'!$D$3:$MX$391,129,FALSE) -> 11,621 | K18: =VLOOKUP($B$7,'Indicateurs Cumulés'!$D$3:$MX$391,130,FALSE) -> 0.20% | L18: =VLOOKUP($B$7,'Indicateurs Cumulés'!$D$3:$MX$391,131,FALSE) -> 5.37 | M18: =VLOOKUP($B$7,'Indicateurs Cumulés'!$D$3:$MX$391,132,FALSE) -> 125 | N18: =IF(ISERROR(M18/VLOOKUP($B$7,'Indicateurs Cumulés'!$D$3:$MX$391,223,FALSE)),"nc",M18/VLOOKUP($B$7,'Indicateurs Cumulés'!$D$3:$MX$391,223,FALSE)) -> 0.1 | P18: =VLOOKUP($B$7,objectifs!$D$3:$ZZ$391,101,FALSE) -> 10,000 | Q18: =VLOOKUP($B$7,objectifs!$D$3:$ZZ$391,102,FALSE) -> 0.20% | R18: =VLOOKUP($B$7,objectifs!$D$3:$ZZ$391,103,FALSE) -> 5.37 | S18: =P18*Q18*R18 -> 107 | T18: =IF(ISERROR(S18/VLOOKUP($B$7,objectifs!$D$4:$IA$373,232,FALSE)),"nc",S18/VLOOKUP($B$7,objectifs!$D$4:$IA$373,232,FALSE)) -> 0.1 | V18: =IF(ISERROR(J18/P18),0,J18/P18) -> 116% | W18: =IF(ISERROR(M18/S18),0,M18/S18) -> 116% | X18: 0.1
B19: LEP | E19: =VLOOKUP($B$7,'Indicateurs mensuels'!$D$3:$KI$391,117,FALSE) -> -57,116 | F19: =VLOOKUP($B$7,'Indicateurs mensuels'!$D$3:$KI$391,118,FALSE) -> 0.20% | G19: =VLOOKUP($B$7,'Indicateurs mensuels'!$D$3:$KI$391,119,FALSE) -> 5.37 | H19: -613 | J19: =VLOOKUP($B$7,'Indicateurs Cumulés'!$D$3:$MX$391,125,FALSE) -> -78,054 | K19: =VLOOKUP($B$7,'Indicateurs Cumulés'!$D$3:$MX$391,126,FALSE) -> 0.20% | L19: =VLOOKUP($B$7,'Indicateurs Cumulés'!$D$3:$MX$391,127,FALSE) -> 5.37 | M19: =VLOOKUP($B$7,'Indicateurs Cumulés'!$D$3:$MX$391,128,FALSE) -> -838 | N19: =IF(ISERROR(M19/VLOOKUP($B$7,'Indicateurs Cumulés'!$D$3:$MX$391,223,FALSE)),"nc",M19/VLOOKUP($B$7,'Indicateurs Cumulés'!$D$3:$MX$391,223,FALSE)) -> -0.6 | P19: =VLOOKUP($B$7,objectifs!$D$3:$ZZ$391,97,FALSE) -> -40,000 | Q19: =VLOOKUP($B$7,objectifs!$D$3:$ZZ$391,98,FALSE) -> 0.20% | R19: =VLOOKUP($B$7,objectifs!$D$3:$ZZ$391,99,FALSE) -> 5.37 | S19: -430 | T19: =IF(ISERROR(S19/VLOOKUP($B$7,objectifs!$D$4:$IA$373,232,FALSE)),"nc",S19/VLOOKUP($B$7,objectifs!$D$4:$IA$373,232,FALSE)) -> -0.3 | V19: 195% | W19: 195% | X19: -0.5
B20: Livret B | E20: =VLOOKUP($B$7,'Indicateurs mensuels'!$D$3:$KI$391,105,FALSE) -> -531 | F20: =VLOOKUP($B$7,'Indicateurs mensuels'!$D$3:$KI$391,106,FALSE) -> 0.79% | G20: =VLOOKUP($B$7,'Indicateurs mensuels'!$D$3:$KI$391,107,FALSE) -> 5.33 | H20: -22 | J20: =VLOOKUP($B$7,'Indicateurs Cumulés'!$D$3:$MX$391,113,FALSE) -> -9,645 | K20: =VLOOKUP($B$7,'Indicateurs Cumulés'!$D$3:$MX$391,114,FALSE) -> 0.79% | L20: =VLOOKUP($B$7,'Indicateurs Cumulés'!$D$3:$MX$391,115,FALSE) -> 5.33 | M20: =VLOOKUP($B$7,'Indicateurs Cumulés'!$D$3:$MX$391,116,FALSE) -> -407 | N20: =IF(ISERROR(M20/VLOOKUP($B$7,'Indicateurs Cumulés'!$D$3:$MX$391,223,FALSE)),"nc",M20/VLOOKUP($B$7,'Indicateurs Cumulés'!$D$3:$MX$391,223,FALSE)) -> -0.3 | P20: =VLOOKUP($B$7,objectifs!$D$3:$ZZ$391,85,FALSE) -> 40,000 | Q20: =VLOOKUP($B$7,objectifs!$D$3:$ZZ$391,86,FALSE) -> 0.70% | R20: =VLOOKUP($B$7,objectifs!$D$3:$ZZ$391,87,FALSE) -> 5.37 | S20: 1,504 | T20: =IF(ISERROR(S20/VLOOKUP($B$7,objectifs!$D$4:$IA$373,232,FALSE)),"nc",S20/VLOOKUP($B$7,objectifs!$D$4:$IA$373,232,FALSE)) -> 1.0 | V20: -24% | W20: -27% | X20: -0.6
B21: Livret Jeune / Livret 10-12 | E21: =VLOOKUP($B$7,'Indicateurs mensuels'!$D$3:$KI$391,125,FALSE) -> -336 | F21: =VLOOKUP($B$7,'Indicateurs mensuels'!$D$3:$KI$391,126,FALSE) -> 0.20% | G21: =VLOOKUP($B$7,'Indicateurs mensuels'!$D$3:$KI$391,127,FALSE) -> 5.37 | H21: -4 | J21: =VLOOKUP($B$7,'Indicateurs Cumulés'!$D$3:$MX$391,133,FALSE) -> -4,968 | K21: =VLOOKUP($B$7,'Indicateurs Cumulés'!$D$3:$MX$391,134,FALSE) -> 0.20% | L21: =VLOOKUP($B$7,'Indicateurs Cumulés'!$D$3:$MX$391,135,FALSE) -> 5.37 | M21: =VLOOKUP($B$7,'Indicateurs Cumulés'!$D$3:$MX$391,136,FALSE) -> -53 | N21: =IF(ISERROR(M21/VLOOKUP($B$7,'Indicateurs Cumulés'!$D$3:$MX$391,223,FALSE)),"nc",M21/VLOOKUP($B$7,'Indicateurs Cumulés'!$D$3:$MX$391,223,FALSE)) -> -0.0 | P21: =VLOOKUP($B$7,objectifs!$D$3:$ZZ$391,105,FALSE) -> 1,000 | Q21: =VLOOKUP($B$7,objectifs!$D$3:$ZZ$391,106,FALSE) -> 0.20% | R21: =VLOOKUP($B$7,objectifs!$D$3:$ZZ$391,107,FALSE) -> 5.37 | S21: 11 | T21: =IF(ISERROR(S21/VLOOKUP($B$7,objectifs!$D$4:$IA$373,232,FALSE)),"nc",S21/VLOOKUP($B$7,objectifs!$D$4:$IA$373,232,FALSE)) -> 0.0 | V21: -497% | W21: -497% | X21: -0.0
B22: Livret Grand prix | E22: =VLOOKUP($B$7,'Indicateurs mensuels'!$D$3:$KI$391,113,FALSE) -> 11,108 | F22: =VLOOKUP($B$7,'Indicateurs mensuels'!$D$3:$KI$391,114,FALSE) -> 0.40% | G22: =VLOOKUP($B$7,'Indicateurs mensuels'!$D$3:$KI$391,115,FALSE) -> 2.67 | H22: 118 | J22: =VLOOKUP($B$7,'Indicateurs Cumulés'!$D$3:$MX$391,121,FALSE) -> 128,586 | K22: =VLOOKUP($B$7,'Indicateurs Cumulés'!$D$3:$MX$391,122,FALSE) -> 0.40% | L22: =VLOOKUP($B$7,'Indicateurs Cumulés'!$D$3:$MX$391,123,FALSE) -> 2.67 | M22: =VLOOKUP($B$7,'Indicateurs Cumulés'!$D$3:$MX$391,124,FALSE) -> 1371 | N22: =IF(ISERROR(M22/VLOOKUP($B$7,'Indicateurs Cumulés'!$D$3:$MX$391,223,FALSE)),"nc",M22/VLOOKUP($B$7,'Indicateurs Cumulés'!$D$3:$MX$391,223,FALSE)) -> 1.0 | P22: =VLOOKUP($B$7,objectifs!$D$3:$ZZ$391,93,FALSE) -> 0 | Q22: =VLOOKUP($B$7,objectifs!$D$3:$ZZ$391,94,FALSE) -> 0.70% | R22: =VLOOKUP($B$7,objectifs!$D$3:$ZZ$391,95,FALSE) -> 5.37 | S22: 0 | T22: =IF(ISERROR(S22/VLOOKUP($B$7,objectifs!$D$4:$IA$373,232,FALSE)),"nc",S22/VLOOKUP($B$7,objectifs!$D$4:$IA$373,232,FALSE)) -> 0.0
B23: Livret Grand Format | E23: =VLOOKUP($B$7,'Indicateurs mensuels'!$D$3:$KI$391,109,FALSE) -> -100 | F23: =VLOOKUP($B$7,'Indicateurs mensuels'!$D$3:$KI$391,110,FALSE) -> 0.90% | G23: =VLOOKUP($B$7,'Indicateurs mensuels'!$D$3:$KI$391,111,FALSE) -> 5.33 | H23: -5 | J23: =VLOOKUP($B$7,'Indicateurs Cumulés'!$D$3:$MX$391,117,FALSE) -> -6,578 | K23: =VLOOKUP($B$7,'Indicateurs Cumulés'!$D$3:$MX$391,118,FALSE) -> 0.90% | L23: =VLOOKUP($B$7,'Indicateurs Cumulés'!$D$3:$MX$391,119,FALSE) -> 5.33 | M23: =VLOOKUP($B$7,'Indicateurs Cumulés'!$D$3:$MX$391,120,FALSE) -> -314 | N23: =IF(ISERROR(M23/VLOOKUP($B$7,'Indicateurs Cumulés'!$D$3:$MX$391,223,FALSE)),"nc",M23/VLOOKUP($B$7,'Indicateurs Cumulés'!$D$3:$MX$391,223,FALSE)) -> -0.2 | P23: 0 | Q23: 0.00% | R23: 0.00 | S23: 0 | T23: =IF(ISERROR(S23/VLOOKUP($B$7,objectifs!$D$4:$IA$373,232,FALSE)),"nc",S23/VLOOKUP($B$7,objectifs!$D$4:$IA$373,232,FALSE)) -> 0.0
B24: Compte Excédent Pro | E24: =VLOOKUP($B$7,'Indicateurs mensuels'!$D$3:$KI$391,222,FALSE) -> 6,164 | F24: =H24/E24/G24 -> 0.60% | G24: =VLOOKUP($B$7,'Indicateurs mensuels'!$D$3:$KI$391,111,FALSE) -> 5.33 | H24: =VLOOKUP($B$7,'Indicateurs mensuels'!$D$3:$KI$391,223,FALSE) -> 199 | J24: =VLOOKUP($B$7,'Indicateurs Cumulés'!$D$3:$MX$391,273,FALSE) -> 21,853 | K24: =M24/J24/L24 -> 0.60% | L24: ='Indicateurs Cumulés'!$JW$3 -> 5.37 | M24: =VLOOKUP($B$7,'Indicateurs Cumulés'!$D$3:$MX$391,280,FALSE) -> 704 | N24: =IF(ISERROR(M24/VLOOKUP($B$7,'Indicateurs Cumulés'!$D$3:$MX$391,223,FALSE)),"nc",M24/VLOOKUP($B$7,'Indicateurs Cumulés'!$D$3:$MX$391,223,FALSE)) -> 0.5 | P24: =VLOOKUP($B$7,objectifs!$D$3:$ZZ$391,89,FALSE) -> 19,000 | Q24: =VLOOKUP($B$7,objectifs!$D$3:$ZZ$391,90,FALSE) -> 0.60% | R24: =VLOOKUP($B$7,objectifs!$D$3:$ZZ$391,91,FALSE) -> 5.37 | S24: 612 | T24: =IF(ISERROR(S24/VLOOKUP($B$7,objectifs!$D$4:$IA$373,232,FALSE)),"nc",S24/VLOOKUP($B$7,objectifs!$D$4:$IA$373,232,FALSE)) -> 0.4 | V24: 115% | W24: 115% | X24: 0.4
B25: PEL | E25: =VLOOKUP($B$7,'Indicateurs mensuels'!$D$3:$KI$391,141,FALSE) -> -3,478 | F25: =VLOOKUP($B$7,'Indicateurs mensuels'!$D$3:$KI$391,142,FALSE) -> -0.41% | G25: =VLOOKUP($B$7,'Indicateurs mensuels'!$D$3:$KI$391,143,FALSE) -> 5.08 | H25: 72 | J25: =VLOOKUP($B$7,'Indicateurs Cumulés'!$D$3:$MX$391,149,FALSE) -> -5,458 | K25: =VLOOKUP($B$7,'Indicateurs Cumulés'!$D$3:$MX$391,150,FALSE) -> 0.00% | L25: =VLOOKUP($B$7,'Indicateurs Cumulés'!$D$3:$MX$391,151,FALSE) -> 8.38 | M25: =VLOOKUP($B$7,'Indicateurs Cumulés'!$D$3:$MX$391,152,FALSE) -> 0 | N25: =IF(ISERROR(M25/VLOOKUP($B$7,'Indicateurs Cumulés'!$D$3:$MX$391,223,FALSE)),"nc",M25/VLOOKUP($B$7,'Indicateurs Cumulés'!$D$3:$MX$391,223,FALSE)) -> 0.0 | P25: =VLOOKUP($B$7,objectifs!$D$3:$ZZ$391,121,FALSE) -> -20,000 | Q25: =VLOOKUP($B$7,objectifs!$D$3:$ZZ$391,122,FALSE) -> 0.00% | R25: =VLOOKUP($B$7,objectifs!$D$3:$ZZ$391,123,FALSE) -> 8.50 | S25: 0 | T25: =IF(ISERROR(S25/VLOOKUP($B$7,objectifs!$D$4:$IA$373,232,FALSE)),"nc",S25/VLOOKUP($B$7,objectifs!$D$4:$IA$373,232,FALSE)) -> 0.0 | V25: 27% | W25: 0% | X25: 0
B26: CEL | E26: =VLOOKUP($B$7,'Indicateurs mensuels'!$D$3:$KI$391,129,FALSE) -> 1,332 | F26: =VLOOKUP($B$7,'Indicateurs mensuels'!$D$3:$KI$391,130,FALSE) -> 0.46% | G26: =VLOOKUP($B$7,'Indicateurs mensuels'!$D$3:$KI$391,131,FALSE) -> 5.33 | H26: 33 | J26: =VLOOKUP($B$7,'Indicateurs Cumulés'!$D$3:$MX$391,137,FALSE) -> -2,090 | K26: =VLOOKUP($B$7,'Indicateurs Cumulés'!$D$3:$MX$391,138,FALSE) -> 0.46% | L26: =VLOOKUP($B$7,'Indicateurs Cumulés'!$D$3:$MX$391,139,FALSE) -> 5.33 | M26: =VLOOKUP($B$7,'Indicateurs Cumulés'!$D$3:$MX$391,140,FALSE) -> -51 | N26: =IF(ISERROR(M26/VLOOKUP($B$7,'Indicateurs Cumulés'!$D$3:$MX$391,223,FALSE)),"nc",M26/VLOOKUP($B$7,'Indicateurs Cumulés'!$D$3:$MX$391,223,FALSE)) -> -0.0 | P26: =VLOOKUP($B$7,objectifs!$D$3:$ZZ$391,109,FALSE) -> 0 | Q26: =VLOOKUP($B$7,objectifs!$D$3:$ZZ$391,110,FALSE) -> 0.30% | R26: =VLOOKUP($B$7,objectifs!$D$3:$ZZ$391,111,FALSE) -> 5.37 | S26: 0 | T26: =IF(ISERROR(S26/VLOOKUP($B$7,objectifs!$D$4:$IA$373,232,FALSE)),"nc",S26/VLOOKUP($B$7,objectifs!$D$4:$IA$373,232,FALSE)) -> 0.0
B27: PEP | E27: =VLOOKUP($B$7,'Indicateurs mensuels'!$D$3:$KI$391,145,FALSE) -> -95 | F27: =VLOOKUP($B$7,'Indicateurs mensuels'!$D$3:$KI$391,146,FALSE) -> -0.37% | G27: =VLOOKUP($B$7,'Indicateurs mensuels'!$D$3:$KI$391,147,FALSE) -> 0.08 | H27: 0 | J27: =VLOOKUP($B$7,'Indicateurs Cumulés'!$D$3:$MX$391,153,FALSE) -> -451 | K27: =VLOOKUP($B$7,'Indicateurs Cumulés'!$D$3:$MX$391,154,FALSE) -> -0.37% | L27: =VLOOKUP($B$7,'Indicateurs Cumulés'!$D$3:$MX$391,155,FALSE) -> 0.08 | M27: =VLOOKUP($B$7,'Indicateurs Cumulés'!$D$3:$MX$391,156,FALSE) -> 0 | N27: =IF(ISERROR(M27/VLOOKUP($B$7,'Indicateurs Cumulés'!$D$3:$MX$391,223,FALSE)),"nc",M27/VLOOKUP($B$7,'Indicateurs Cumulés'!$D$3:$MX$391,223,FALSE)) -> 0.0 | P27: 0 | Q27: 0.00% | R27: 0.00 | S27: 0 | T27: =IF(ISERROR(S27/VLOOKUP($B$7,objectifs!$D$4:$IA$373,232,FALSE)),"nc",S27/VLOOKUP($B$7,objectifs!$D$4:$IA$373,232,FALSE)) -> 0.0
B28: SLR | E28: =VLOOKUP($B$7,'Indicateurs mensuels'!$D$3:$KI$391,133,FALSE) -> -49 | F28: =VLOOKUP($B$7,'Indicateurs mensuels'!$D$3:$KI$391,134,FALSE) -> 0.10% | G28: =VLOOKUP($B$7,'Indicateurs mensuels'!$D$3:$KI$391,135,FALSE) -> 4.21 | H28: -0 | J28: =VLOOKUP($B$7,'Indicateurs Cumulés'!$D$3:$MX$391,141,FALSE) -> -1,555 | K28: =VLOOKUP($B$7,'Indicateurs Cumulés'!$D$3:$MX$391,142,FALSE) -> 0.10% | L28: =VLOOKUP($B$7,'Indicateurs Cumulés'!$D$3:$MX$391,143,FALSE) -> 7.30 | M28: =VLOOKUP($B$7,'Indicateurs Cumulés'!$D$3:$MX$391,144,FALSE) -> -11 | N28: =IF(ISERROR(M28/VLOOKUP($B$7,'Indicateurs Cumulés'!$D$3:$MX$391,223,FALSE)),"nc",M28/VLOOKUP($B$7,'Indicateurs Cumulés'!$D$3:$MX$391,223,FALSE)) -> -0.0 | P28: =VLOOKUP($B$7,objectifs!$D$3:$ZZ$391,117,FALSE) -> 0 | Q28: =VLOOKUP($B$7,objectifs!$D$3:$ZZ$391,118,FALSE) -> 0.10% | R28: =VLOOKUP($B$7,objectifs!$D$3:$ZZ$391,119,FALSE) -> 7.00 | S28: 0 | T28: =IF(ISERROR(S28/VLOOKUP($B$7,objectifs!$D$4:$IA$373,232,FALSE)),"nc",S28/VLOOKUP($B$7,objectifs!$D$4:$IA$373,232,FALSE)) -> 0.0
B29: DAT (Bons, CDN, CAT, TCN, …) | E29: =VLOOKUP($B$7,'Indicateurs mensuels'!$D$3:$KI$391,137,FALSE) -> -4,709 | F29: =VLOOKUP($B$7,'Indicateurs mensuels'!$D$3:$KI$391,138,FALSE) -> 0.20% | G29: =VLOOKUP($B$7,'Indicateurs mensuels'!$D$3:$KI$391,139,FALSE) -> 9.00 | H29: -85 | J29: =VLOOKUP($B$7,'Indicateurs Cumulés'!$D$3:$MX$391,145,FALSE) -> -11,286 | K29: =VLOOKUP($B$7,'Indicateurs Cumulés'!$D$3:$MX$391,146,FALSE) -> 0.20% | L29: =VLOOKUP($B$7,'Indicateurs Cumulés'!$D$3:$MX$391,147,FALSE) -> 9.00 | M29: =VLOOKUP($B$7,'Indicateurs Cumulés'!$D$3:$MX$391,148,FALSE) -> -203 | N29: =IF(ISERROR(M29/VLOOKUP($B$7,'Indicateurs Cumulés'!$D$3:$MX$391,223,FALSE)),"nc",M29/VLOOKUP($B$7,'Indicateurs Cumulés'!$D$3:$MX$391,223,FALSE)) -> -0.1 | P29: =VLOOKUP($B$7,objectifs!$D$3:$ZZ$391,113,FALSE) -> 20,000 | Q29: =VLOOKUP($B$7,objectifs!$D$3:$ZZ$391,114,FALSE) -> 0.20% | R29: =VLOOKUP($B$7,objectifs!$D$3:$ZZ$391,115,FALSE) -> 9.00 | S29: 360 | T29: =IF(ISERROR(S29/VLOOKUP($B$7,objectifs!$D$4:$IA$373,232,FALSE)),"nc",S29/VLOOKUP($B$7,objectifs!$D$4:$IA$373,232,FALSE)) -> 0.2 | V29: -56% | W29: -56% | X29: -0.2
B30: Emprunt CTO | E30: =VLOOKUP($B$7,'Indicateurs mensuels'!$D$3:$KI$391,165,FALSE) -> -900 | F30: =VLOOKUP($B$7,'Indicateurs mensuels'!$D$3:$KI$391,166,FALSE) -> 0.20% | G30: =VLOOKUP($B$7,'Indicateurs mensuels'!$D$3:$KI$391,167,FALSE) -> 8.00 | H30: -14 | J30: =VLOOKUP($B$7,'Indicateurs Cumulés'!$D$3:$MX$391,173,FALSE) -> -96,125 | K30: =VLOOKUP($B$7,'Indicateurs Cumulés'!$D$3:$MX$391,174,FALSE) -> 0.20% | L30: =VLOOKUP($B$7,'Indicateurs Cumulés'!$D$3:$MX$391,175,FALSE) -> 8.00 | M30: =VLOOKUP($B$7,'Indicateurs Cumulés'!$D$3:$MX$391,176,FALSE) -> -1538 | N30: =IF(ISERROR(M30/VLOOKUP($B$7,'Indicateurs Cumulés'!$D$3:$MX$391,223,FALSE)),"nc",M30/VLOOKUP($B$7,'Indicateurs Cumulés'!$D$3:$MX$391,223,FALSE)) -> -1.1 | P30: =VLOOKUP($B$7,objectifs!$D$3:$ZZ$391,145,FALSE) -> -250,000 | Q30: =VLOOKUP($B$7,objectifs!$D$3:$ZZ$391,146,FALSE) -> 0.20% | R30: =VLOOKUP($B$7,objectifs!$D$3:$ZZ$391,147,FALSE) -> 8.00 | S30: -4,000 | T30: =IF(ISERROR(S30/VLOOKUP($B$7,objectifs!$D$4:$IA$373,232,FALSE)),"nc",S30/VLOOKUP($B$7,objectifs!$D$4:$IA$373,232,FALSE)) -> -2.6 | V30: 38% | W30: 38% | X30: -0.2
B31: Parts sociales | E31: =VLOOKUP($B$7,'Indicateurs mensuels'!$D$3:$KI$391,169,FALSE) -> 11,398 | F31: =VLOOKUP($B$7,'Indicateurs mensuels'!$D$3:$KI$391,170,FALSE) -> 1.00% | G31: =VLOOKUP($B$7,'Indicateurs mensuels'!$D$3:$KI$391,171,FALSE) -> 5.00 | H31: 570 | J31: =VLOOKUP($B$7,'Indicateurs Cumulés'!$D$3:$MX$391,177,FALSE) -> 55,452 | K31: =VLOOKUP($B$7,'Indicateurs Cumulés'!$D$3:$MX$391,178,FALSE) -> 1.00% | L31: =VLOOKUP($B$7,'Indicateurs Cumulés'!$D$3:$MX$391,179,FALSE) -> 5.00 | M31: =VLOOKUP($B$7,'Indicateurs Cumulés'!$D$3:$MX$391,180,FALSE) -> 2773 | N31: =IF(ISERROR(M31/VLOOKUP($B$7,'Indicateurs Cumulés'!$D$3:$MX$391,223,FALSE)),"nc",M31/VLOOKUP($B$7,'Indicateurs Cumulés'!$D$3:$MX$391,223,FALSE)) -> 2.0 | P31: =VLOOKUP($B$7,objectifs!$D$3:$ZZ$391,149,FALSE) -> 70,000 | Q31: =VLOOKUP($B$7,objectifs!$D$3:$ZZ$391,150,FALSE) -> 1.00% | R31: =VLOOKUP($B$7,objectifs!$D$3:$ZZ$391,151,FALSE) -> 5.00 | S31: 3,500 | T31: =IF(ISERROR(S31/VLOOKUP($B$7,objectifs!$D$4:$IA$373,232,FALSE)),"nc",S31/VLOOKUP($B$7,objectifs!$D$4:$IA$373,232,FALSE)) -> 2.3 | V31: 79% | W31: 79% | X31: 1.2
B32: Epargne Financière (Ass. vie - OPCVM - Autres val. mob.) | E32: =VLOOKUP($B$7,'Indicateurs mensuels'!$D$3:$KI$391,175,FALSE) -> -3,038 | H32: =VLOOKUP($B$7,'Indicateurs mensuels'!$D$3:$KI$391,176,FALSE) -> 264 | J32: =VLOOKUP($B$7,'Indicateurs Cumulés'!$D$3:$MX$391,183,FALSE) -> 63,673 | M32: =VLOOKUP($B$7,'Indicateurs Cumulés'!$D$3:$MX$391,184,FALSE) -> 5,083 | N32: =IF(ISERROR(M32/VLOOKUP($B$7,'Indicateurs Cumulés'!$D$3:$MX$391,223,FALSE)),"nc",M32/VLOOKUP($B$7,'Indicateurs Cumulés'!$D$3:$MX$391,223,FALSE)) -> 3.6 | P32: =VLOOKUP($B$7,objectifs!$D$3:$ZZ$391,155,FALSE) -> 170,000 | S32: =VLOOKUP($B$7,objectifs!$D$3:$ZZ$391,156,FALSE) -> 14,983 | T32: =IF(ISERROR(S32/VLOOKUP($B$7,objectifs!$D$4:$IA$373,232,FALSE)),"nc",S32/VLOOKUP($B$7,objectifs!$D$4:$IA$373,232,FALSE)) -> 9.9 | V32: 37% | W32: 34% | X32: 0.3
B33: Ass. Vie sur flux (versements) | E33: =VLOOKUP($B$7,'Indicateurs mensuels'!$D$3:$KI$391,153,FALSE)+VLOOKUP($B$7,'Indicateurs mensuels'!$D$3:$ZZ$391,193,FALSE) -> 57,876 | F33: =H33/E33 -> 0.41% | G33: =VLOOKUP($B$7,'Indicateurs mensuels'!$D$3:$KI$391,155,FALSE) -> 1.00 | H33: =(VLOOKUP($B$7,'Indicateurs mensuels'!$D$3:$KI$391,156,FALSE)+VLOOKUP($B$7,'Indicateurs mensuels'!$D$3:$ZZ$391,196,FALSE)) -> 240 | J33: =VLOOKUP($B$7,'Indicateurs Cumulés'!$D$3:$MX$391,161,FALSE)+VLOOKUP($B$7,'Indicateurs Cumulés'!$D$3:$MX$391,201,FALSE) -> 315,019 | K33: =M33/J33 -> 0.38% | L33: =VLOOKUP($B$7,'Indicateurs Cumulés'!$D$3:$MX$391,163,FALSE) -> 1.00 | M33: =(VLOOKUP($B$7,'Indicateurs Cumulés'!$D$3:$MX$391,164,FALSE)+VLOOKUP($B$7,'Indicateurs Cumulés'!$D$3:$MX$391,204,FALSE)) -> 1,188 | N33: =IF(ISERROR(M33/VLOOKUP($B$7,'Indicateurs Cumulés'!$D$3:$MX$391,223,FALSE)),"nc",M33/VLOOKUP($B$7,'Indicateurs Cumulés'!$D$3:$MX$391,223,FALSE)) -> 0.8 | P33: =VLOOKUP($B$7,objectifs!$D$3:$ZZ$391,133,FALSE) -> 1,000,000 | Q33: =VLOOKUP($B$7,objectifs!$D$3:$ZZ$391,134,FALSE) -> 0.40% | R33: =VLOOKUP($B$7,objectifs!$D$3:$ZZ$391,135,FALSE) -> 1.00 | S33: =P33*Q33*R33 -> 4,000 | T33: =IF(ISERROR(S33/VLOOKUP($B$7,objectifs!$D$4:$IA$373,232,FALSE)),"nc",S33/VLOOKUP($B$7,objectifs!$D$4:$IA$373,232,FALSE)) -> 2.6 | V33: 32% | W33: 30% | X33: -0.0
B34: Ass. Vie sur encours (excédents) | E34: =VLOOKUP($B$7,'Indicateurs mensuels'!$D$3:$KI$391,149,FALSE)+VLOOKUP($B$7,'Indicateurs mensuels'!$D$3:$ZZ$391,189,FALSE) -> 1,305 | F34: =VLOOKUP($B$7,'Indicateurs mensuels'!$D$3:$KI$391,150,FALSE) -> 0.45% | G34: =VLOOKUP($B$7,'Indicateurs mensuels'!$D$3:$KI$391,151,FALSE) -> 8.00 | H34: =E34*F34*G34 -> 47 | J34: =VLOOKUP($B$7,'Indicateurs Cumulés'!$D$3:$MX$391,157,FALSE)+VLOOKUP($B$7,'Indicateurs Cumulés'!$D$3:$MX$391,197,FALSE) -> 80,971 | K34: =VLOOKUP($B$7,'Indicateurs Cumulés'!$D$3:$MX$391,158,FALSE) -> 0.45% | L34: =VLOOKUP($B$7,'Indicateurs Cumulés'!$D$3:$MX$391,159,FALSE) -> 8.00 | M34: =J34*K34*L34 -> 2,915 | N34: =IF(ISERROR(M34/VLOOKUP($B$7,'Indicateurs Cumulés'!$D$3:$MX$391,223,FALSE)),"nc",M34/VLOOKUP($B$7,'Indicateurs Cumulés'!$D$3:$MX$391,223,FALSE)) -> 2.1 | P34: =VLOOKUP($B$7,objectifs!$D$3:$ZZ$391,129,FALSE) -> 165,000 | Q34: =VLOOKUP($B$7,objectifs!$D$3:$ZZ$391,130,FALSE) -> 0.45% | R34: =VLOOKUP($B$7,objectifs!$D$3:$ZZ$391,131,FALSE) -> 8.00 | S34: =P34*Q34*R34 -> 5,940 | T34: =IF(ISERROR(S34/VLOOKUP($B$7,objectifs!$D$4:$IA$373,232,FALSE)),"nc",S34/VLOOKUP($B$7,objectifs!$D$4:$IA$373,232,FALSE)) -> 3.9 | V34: 49% | W34: 49% | X34: 0.8
B35: Arbitrage (fonds € vers UC) | E35: =VLOOKUP($B$7,'Indicateurs mensuels'!$D$3:$KI$391,64,FALSE) -> 1,901 | F35: =K35 -> 0.25% | G35: =L35 -> 8.00 | H35: =E35*F35*G35 -> 38 | J35: =VLOOKUP($B$7,'Indicateurs Cumulés'!$D$3:$MX$391,64,FALSE) -> 19,146 | K35: =VLOOKUP($B$7,objectifs!$D$3:$ZZ$391,126,FALSE) -> 0.25% | L35: =VLOOKUP($B$7,objectifs!$D$3:$ZZ$391,127,FALSE) -> 8.00 | M35: =J35*K35*L35 -> 383 | N35: =IF(ISERROR(M35/VLOOKUP($B$7,'Indicateurs Cumulés'!$D$3:$MX$391,223,FALSE)),"nc",M35/VLOOKUP($B$7,'Indicateurs Cumulés'!$D$3:$MX$391,223,FALSE)) -> 0.3 | P35: =VLOOKUP($B$7,objectifs!$D$3:$ZZ$391,125,FALSE) -> 135,000 | Q35: =VLOOKUP($B$7,objectifs!$D$3:$ZZ$391,126,FALSE) -> 0.25% | R35: =VLOOKUP($B$7,objectifs!$D$3:$ZZ$391,127,FALSE) -> 8.00 | S35: =P35*Q35*R35 -> 2,700 | T35: =IF(ISERROR(S35/VLOOKUP($B$7,objectifs!$D$4:$IA$373,232,FALSE)),"nc",S35/VLOOKUP($B$7,objectifs!$D$4:$IA$373,232,FALSE)) -> 1.8 | V35: 14% | W35: 14% | X35: -0.3
B36: OPCVM sur flux (versements) | E36: =VLOOKUP($B$7,'Indicateurs mensuels'!$D$3:$KI$391,161,FALSE)+VLOOKUP($B$7,'Indicateurs mensuels'!$D$3:$KI$391,201,FALSE) -> 1,304 | F36: =VLOOKUP($B$7,'Indicateurs mensuels'!$D$3:$KI$391,162,FALSE) -> 0.40% | G36: =VLOOKUP($B$7,'Indicateurs mensuels'!$D$3:$KI$391,163,FALSE) -> 1.00 | H36: =E36*F36*G36 -> 5 | J36: =VLOOKUP($B$7,'Indicateurs Cumulés'!$D$3:$MX$391,169,FALSE)+VLOOKUP($B$7,'Indicateurs Cumulés'!$D$3:$MX$391,209,FALSE) -> 5,334 | K36: =VLOOKUP($B$7,'Indicateurs Cumulés'!$D$3:$MX$391,170,FALSE) -> 0.40% | L36: =VLOOKUP($B$7,'Indicateurs Cumulés'!$D$3:$MX$391,171,FALSE) -> 1.00 | M36: =VLOOKUP($B$7,'Indicateurs Cumulés'!$D$3:$MX$391,172,FALSE)+VLOOKUP($B$7,'Indicateurs Cumulés'!$D$3:$MX$391,212,FALSE) -> 21 | N36: =IF(ISERROR(M36/VLOOKUP($B$7,'Indicateurs Cumulés'!$D$3:$MX$391,223,FALSE)),"nc",M36/VLOOKUP($B$7,'Indicateurs Cumulés'!$D$3:$MX$391,223,FALSE)) -> 0.0 | P36: =VLOOKUP($B$7,objectifs!$D$3:$ZZ$391,141,FALSE) -> 20,000 | Q36: =VLOOKUP($B$7,objectifs!$D$3:$ZZ$391,142,FALSE) -> 0.40% | R36: =VLOOKUP($B$7,objectifs!$D$3:$ZZ$391,143,FALSE) -> 1.00 | S36: =P36*Q36*R36 -> 80 | T36: =IF(ISERROR(S36/VLOOKUP($B$7,objectifs!$D$4:$IA$373,232,FALSE)),"nc",S36/VLOOKUP($B$7,objectifs!$D$4:$IA$373,232,FALSE)) -> 0.1 | V36: 27% | W36: 27% | X36: -0.0
B37: OPCVM sur encours (excédents) | E37: =VLOOKUP($B$7,'Indicateurs mensuels'!$D$3:$KI$391,157,FALSE)+VLOOKUP($B$7,'Indicateurs mensuels'!$D$3:$KI$391,197,FALSE) -> -6,162 | F37: =H37/E37/G37 -> 0.65% | G37: =VLOOKUP($B$7,'Indicateurs mensuels'!$D$3:$KI$391,159,FALSE) -> 5.00 | H37: =VLOOKUP($B$7,'Indicateurs mensuels'!$D$3:$KI$391,160,FALSE)+VLOOKUP($B$7,'Indicateurs mensuels'!$D$3:$KI$391,200,FALSE) -> -200 | J37: =VLOOKUP($B$7,'Indicateurs Cumulés'!$D$3:$MX$391,165,FALSE)+VLOOKUP($B$7,'Indicateurs Cumulés'!$D$3:$MX$391,205,FALSE) -> -15,944 | K37: =M37/J37/L37 -> 0.65% | L37: =VLOOKUP($B$7,'Indicateurs Cumulés'!$D$3:$MX$391,167,FALSE) -> 5.00 | M37: =VLOOKUP($B$7,'Indicateurs Cumulés'!$D$3:$MX$391,168,FALSE)+VLOOKUP($B$7,'Indicateurs Cumulés'!$D$3:$MX$391,208,FALSE) -> -518 | N37: =IF(ISERROR(M37/VLOOKUP($B$7,'Indicateurs Cumulés'!$D$3:$MX$391,223,FALSE)),"nc",M37/VLOOKUP($B$7,'Indicateurs Cumulés'!$D$3:$MX$391,223,FALSE)) -> -0.4 | P37: =VLOOKUP($B$7,objectifs!$D$3:$ZZ$391,137,FALSE) -> 5,000 | Q37: =VLOOKUP($B$7,objectifs!$D$3:$ZZ$391,138,FALSE) -> 0.65% | R37: =VLOOKUP($B$7,objectifs!$D$3:$ZZ$391,139,FALSE) -> 5.00 | S37: 163 | T37: =IF(ISERROR(S37/VLOOKUP($B$7,objectifs!$D$4:$IA$373,232,FALSE)),"nc",S37/VLOOKUP($B$7,objectifs!$D$4:$IA$373,232,FALSE)) -> 0.1 | V37: -319% | W37: -319% | X37: -0.4
B38: FCP structurés (versements) | E38: =VLOOKUP($B$7,'Indicateurs mensuels'!$D$3:$ZZ$391,66,FALSE) -> 1,564 | F38: =K38 -> 2.80% | G38: =L38 -> 1.00 | H38: =E38*F38*G38 -> 44 | J38: =VLOOKUP($B$7,'Indicateurs Cumulés'!$D$3:$MX$391,66,FALSE) -> 41,481 | K38: =VLOOKUP($B$7,objectifs!$D$3:$ZZ$391,68,FALSE) -> 2.80% | L38: =VLOOKUP($B$7,'Indicateurs Cumulés'!$D$3:$MX$391,163,FALSE) -> 1.00 | M38: =J38*K38*L38 -> 1,161 | N38: =IF(ISERROR(M38/VLOOKUP($B$7,'Indicateurs Cumulés'!$D$3:$MX$391,223,FALSE)),"nc",M38/VLOOKUP($B$7,'Indicateurs Cumulés'!$D$3:$MX$391,223,FALSE)) -> 0.8 | P38: =VLOOKUP($B$7,objectifs!$D$3:$ZZ$391,67,FALSE) -> 75,000 | Q38: =VLOOKUP($B$7,objectifs!$D$3:$ZZ$391,68,FALSE) -> 2.80% | R38: =VLOOKUP($B$7,objectifs!$D$3:$ZZ$391,69,FALSE) -> 1.00 | S38: =P38*Q38*R38 -> 2,100 | T38: =IF(ISERROR(S38/VLOOKUP($B$7,objectifs!$D$4:$IA$373,232,FALSE)),"nc",S38/VLOOKUP($B$7,objectifs!$D$4:$IA$373,232,FALSE)) -> 1.4 | V38: 55% | W38: 55% | X38: 0.4
B39: Autres Valeurs mobilières (excédents) | E39: =VLOOKUP($B$7,'Indicateurs mensuels'!$D$3:$ZZ$391,205,FALSE) -> 1,820 | F39: =VLOOKUP($B$7,'Indicateurs mensuels'!$D$3:$KI$391,206,FALSE) -> 1.00% | G39: =VLOOKUP($B$7,'Indicateurs mensuels'!$D$3:$KI$391,207,FALSE) -> 5.00 | H39: =E39*F39*G39 -> 91 | J39: =VLOOKUP($B$7,'Indicateurs Cumulés'!$D$3:$MX$391,213,FALSE) -> -1,354 | K39: =VLOOKUP($B$7,'Indicateurs Cumulés'!$D$3:$MX$391,214,FALSE) -> 1.00% | L39: =VLOOKUP($B$7,'Indicateurs Cumulés'!$D$3:$MX$391,215,FALSE) -> 5.00 | M39: =J39*K39*L39 -> -68 | N39: =IF(ISERROR(M39/VLOOKUP($B$7,'Indicateurs Cumulés'!$D$3:$MX$391,223,FALSE)),"nc",M39/VLOOKUP($B$7,'Indicateurs Cumulés'!$D$3:$MX$391,223,FALSE)) -> -0.0 | P39: =VLOOKUP($B$7,objectifs!$D$3:$ZZ$391,165,FALSE) -> 0 | Q39: =VLOOKUP($B$7,objectifs!$D$3:$ZZ$391,166,FALSE) -> 1.00% | R39: =VLOOKUP($B$7,objectifs!$D$3:$ZZ$391,167,FALSE) -> 5.00 | S39: =P39*Q39*R39 -> 0 | T39: =IF(ISERROR(S39/VLOOKUP($B$7,objectifs!$D$4:$IA$373,232,FALSE)),"nc",S39/VLOOKUP($B$7,objectifs!$D$4:$IA$373,232,FALSE)) -> 0.0
B41: CREDIT à la CONSOMMATION - Eng. Nets (yc accessoires) | E41: =E42+E43 -> 45,858 | F41: =IF(ISERROR(H41/(E41*G41)),0,H41/(E41*G41)) -> 4.56% | G41: =SUMPRODUCT(G42:G43,E42:E43)/(E42+E43) -> 2.39 | H41: =H42+H43+H44+H45 -> 5,005 | J41: =J42+J43 -> 227,286 | K41: =IF(ISERROR(M41/(J41*L41)),0,M41/(J41*L41)) -> 4.29% | L41: =SUMPRODUCT(L42:L43,J42:J43)/(J42+J43) -> 2.40 | M41: =M42+M43+M44+M45 -> 23,387 | N41: =IF(ISERROR(M41/VLOOKUP($B$7,'Indicateurs Cumulés'!$D$3:$MX$391,223,FALSE)),"nc",M41/VLOOKUP($B$7,'Indicateurs Cumulés'!$D$3:$MX$391,223,FALSE)) -> 16.6 | P41: =P42+P43 -> 710,000 | Q41: =IF(ISERROR(S41/(P41*R41)),0,S41/(P41*R41)) -> 4.32% | R41: =SUMPRODUCT(R42:R43,P42:P43)/(P42+P43) -> 2.42 | S41: =S42+S43+S44+S45 -> 74,348 | T41: =IF(ISERROR(S41/VLOOKUP($B$7,objectifs!$D$4:$IA$373,232,FALSE)),"nc",S41/VLOOKUP($B$7,objectifs!$D$4:$IA$373,232,FALSE)) -> 48.9 | V41: =IF(ISERROR(J41/P41),0,J41/P41) -> 32% | W41: =IF(ISERROR(M41/S41),0,M41/S41) -> 31% | X41: =IF(ISERROR(N41-(T41/12*MONTH($C$9))),"nc",N41-(T41/12*MONTH($C$9))) -> 0.2
B42: Crédit à la Consommation (marge hors accessoires) | E42: =VLOOKUP($B$7,'Indicateurs mensuels'!$D$3:$KI$391,7,FALSE) -> 41,241 | F42: =VLOOKUP($B$7,'Indicateurs mensuels'!$D$3:$KI$391,8,FALSE) -> 3.47% | G42: =VLOOKUP($B$7,'Indicateurs mensuels'!$D$3:$KI$391,9,FALSE) -> 2.48 | H42: =E42*F42*G42 -> 3,556 | J42: =VLOOKUP($B$7,'Indicateurs Cumulés'!$D$3:$MX$391,7,FALSE) -> 210,804 | K42: =VLOOKUP($B$7,'Indicateurs Cumulés'!$D$3:$MX$391,8,FALSE) -> 3.27% | L42: =VLOOKUP($B$7,'Indicateurs Cumulés'!$D$3:$MX$391,9,FALSE) -> 2.46 | M42: =J42*K42*L42 -> 17,004 | N42: =IF(ISERROR(M42/VLOOKUP($B$7,'Indicateurs Cumulés'!$D$3:$MX$391,223,FALSE)),"nc",M42/VLOOKUP($B$7,'Indicateurs Cumulés'!$D$3:$MX$391,223,FALSE)) -> 12.0 | P42: =VLOOKUP($B$7,objectifs!$D$3:$ZZ$391,7,FALSE) -> 650,000 | Q42: =VLOOKUP($B$7,objectifs!$D$3:$ZZ$391,8,FALSE) -> 3.05% | R42: =VLOOKUP($B$7,objectifs!$D$3:$ZZ$391,9,FALSE) -> 2.50 | S42: =P42*Q42*R42 -> 49,563 | T42: =IF(ISERROR(S42/VLOOKUP($B$7,objectifs!$D$4:$IA$373,232,FALSE)),"nc",S42/VLOOKUP($B$7,objectifs!$D$4:$IA$373,232,FALSE)) -> 32.6 | V42: 32% | W42: 34% | X42: 1.2
B43: Crédit Revolving | E43: =VLOOKUP($B$7,'Indicateurs mensuels'!$D$3:$KI$391,3,FALSE) -> 4,617 | F43: =VLOOKUP($B$7,'Indicateurs mensuels'!$D$3:$KI$391,4,FALSE) -> 4.32% | G43: =VLOOKUP($B$7,'Indicateurs mensuels'!$D$3:$KI$391,5,FALSE) -> 1.57 | H43: =E43*F43*G43 -> 313 | J43: =VLOOKUP($B$7,'Indicateurs Cumulés'!$D$3:$MX$391,3,FALSE) -> 16,482 | K43: =VLOOKUP($B$7,'Indicateurs Cumulés'!$D$3:$MX$391,4,FALSE) -> 4.32% | L43: =VLOOKUP($B$7,'Indicateurs Cumulés'!$D$3:$MX$391,5,FALSE) -> 1.57 | M43: =J43*K43*L43 -> 1,118 | N43: =IF(ISERROR(M43/VLOOKUP($B$7,'Indicateurs Cumulés'!$D$3:$MX$391,223,FALSE)),"nc",M43/VLOOKUP($B$7,'Indicateurs Cumulés'!$D$3:$MX$391,223,FALSE)) -> 0.8 | P43: =VLOOKUP($B$7,objectifs!$D$3:$ZZ$391,3,FALSE) -> 60,000 | Q43: =VLOOKUP($B$7,objectifs!$D$3:$ZZ$391,4,FALSE) -> 4.32% | R43: =VLOOKUP($B$7,objectifs!$D$3:$ZZ$391,5,FALSE) -> 1.60 | S43: =P43*Q43*R43 -> 4,147 | T43: =IF(ISERROR(S43/VLOOKUP($B$7,objectifs!$D$4:$IA$373,232,FALSE)),"nc",S43/VLOOKUP($B$7,objectifs!$D$4:$IA$373,232,FALSE)) -> 2.7 | V43: 27% | W43: 27% | X43: -0.1
B44: Frais de dossier | H44: =VLOOKUP($B$7,'Indicateurs mensuels'!$D$3:$KI$391,95,FALSE) -> 211 | M44: =VLOOKUP($B$7,'Indicateurs Cumulés'!$D$3:$MX$391,96,FALSE) -> 822 | N44: =IF(ISERROR(M44/VLOOKUP($B$7,'Indicateurs Cumulés'!$D$3:$MX$391,223,FALSE)),"nc",M44/VLOOKUP($B$7,'Indicateurs Cumulés'!$D$3:$MX$391,223,FALSE)) -> 0.6 | S44: =VLOOKUP($B$7,objectifs!$D$3:$ZZ$391,62,FALSE) -> 3,900 | T44: =IF(ISERROR(S44/VLOOKUP($B$7,objectifs!$D$4:$IA$373,232,FALSE)),"nc",S44/VLOOKUP($B$7,objectifs!$D$4:$IA$373,232,FALSE)) -> 2.6 | W44: 21% | X44: -0.3
B45: Commissions ADE | E45: =VLOOKUP($B$7,'Indicateurs mensuels'!$D$3:$KI$391,216,FALSE) -> 146.0% | F45: =VLOOKUP($B$7,'Indicateurs mensuels'!$D$3:$KI$391,215,FALSE) -> 93.9% | H45: =VLOOKUP($B$7,'Indicateurs mensuels'!$D$3:$ZZ$391,217,FALSE) -> 925 | J45: =VLOOKUP($B$7,'Indicateurs Cumulés'!$D$3:$MX$391,103,FALSE) -> 139.2% | K45: =VLOOKUP($B$7,'Indicateurs Cumulés'!$D$3:$MX$391,102,FALSE) -> 93.1% | M45: =VLOOKUP($B$7,'Indicateurs Cumulés'!$D$3:$MX$391,104,FALSE) -> 4,444 | N45: =IF(ISERROR(M45/VLOOKUP($B$7,'Indicateurs Cumulés'!$D$3:$MX$391,223,FALSE)),"nc",M45/VLOOKUP($B$7,'Indicateurs Cumulés'!$D$3:$MX$391,223,FALSE)) -> 3.1 | S45: =VLOOKUP($B$7,objectifs!$D$3:$ZZ$391,72,FALSE) -> 16,738 | T45: =IF(ISERROR(S45/VLOOKUP($B$7,objectifs!$D$4:$IA$373,232,FALSE)),"nc",S45/VLOOKUP($B$7,objectifs!$D$4:$IA$373,232,FALSE)) -> 11.0 | W45: 27% | X45: -0.5
B47: CREDIT IMMOBILIER - Eng. Nets (yc accessoires) | E47: =E48 -> 122,301 | F47: =IF(ISERROR(H47/(E47*G47)),0,H47/(E47*G47)) -> 0.41% | G47: =G48 -> 7.52 | H47: =SUM(H48:H53) -> 3,753 | J47: =J48 -> 473,761 | K47: =IF(ISERROR(M47/(J47*L47)),0,M47/(J47*L47)) -> 0.32% | L47: =L48 -> 7.41 | M47: =SUM(M48:M53) -> 11,237 | N47: =IF(ISERROR(M47/VLOOKUP($B$7,'Indicateurs Cumulés'!$D$3:$MX$391,223,FALSE)),"nc",M47/VLOOKUP($B$7,'Indicateurs Cumulés'!$D$3:$MX$391,223,FALSE)) -> 8.0 | P47: =P48 -> 1,664,000 | Q47: =IF(ISERROR(S47/(P47*R47)),0,S47/(P47*R47)) -> 0.49% | R47: =R48 -> 7.50 | S47: =SUM(S48:S53) -> 60,661 | T47: =IF(ISERROR(S47/VLOOKUP($B$7,objectifs!$D$4:$IA$373,232,FALSE)),"nc",S47/VLOOKUP($B$7,objectifs!$D$4:$IA$373,232,FALSE)) -> 39.9 | V47: =IF(ISERROR(J47/P47),0,J47/P47) -> 28% | W47: =IF(ISERROR(M47/S47),0,M47/S47) -> 19% | X47: =IF(ISERROR(N47-(T47/12*MONTH($C$9))),"nc",N47-(T47/12*MONTH($C$9))) -> -5.4
B48: Crédit Immobilier (marge hors accessoires) | E48: =VLOOKUP($B$7,'Indicateurs mensuels'!$D$3:$KI$391,11,FALSE) -> 122,301 | F48: =VLOOKUP($B$7,'Indicateurs mensuels'!$D$3:$KI$391,13,FALSE) -> 0.07% | G48: =VLOOKUP($B$7,'Indicateurs mensuels'!$D$3:$KI$391,14,FALSE) -> 7.52 | H48: =E48*F48*G48 -> 603 | J48: =VLOOKUP($B$7,'Indicateurs Cumulés'!$D$3:$MX$391,11,FALSE) -> 473,761 | K48: =VLOOKUP($B$7,'Indicateurs Cumulés'!$D$3:$MX$391,13,FALSE) -> -0.04% | L48: =VLOOKUP($B$7,'Indicateurs Cumulés'!$D$3:$MX$391,14,FALSE) -> 7.41 | M48: =J48*K48*L48 -> -1,350 | N48: =IF(ISERROR(M48/VLOOKUP($B$7,'Indicateurs Cumulés'!$D$3:$MX$391,223,FALSE)),"nc",M48/VLOOKUP($B$7,'Indicateurs Cumulés'!$D$3:$MX$391,223,FALSE)) -> -1.0 | P48: =VLOOKUP($B$7,objectifs!$D$3:$ZZ$391,10,FALSE) -> 1,664,000 | Q48: =VLOOKUP($B$7,objectifs!$D$3:$ZZ$391,12,FALSE) -> 0.20% | R48: =VLOOKUP($B$7,objectifs!$D$3:$ZZ$391,13,FALSE) -> 7.50 | S48: =P48*Q48*R48 -> 24,960 | T48: =IF(ISERROR(S48/VLOOKUP($B$7,objectifs!$D$4:$IA$373,232,FALSE)),"nc",S48/VLOOKUP($B$7,objectifs!$D$4:$IA$373,232,FALSE)) -> 16.4 | V48: 28% | W48: -5% | X48: -6.4
B49: Commissions ADE (coefficient multiplicateur de 1,3 X) | E49: =VLOOKUP($B$7,'Indicateurs mensuels'!$D$3:$KI$391,87,FALSE) -> 135.5% | F49: =VLOOKUP($B$7,'Indicateurs mensuels'!$D$3:$KI$391,86,FALSE) -> 68.6% | H49: =VLOOKUP($B$7,'Indicateurs mensuels'!$D$3:$KI$391,88,FALSE) -> 2,651 | J49: =VLOOKUP($B$7,'Indicateurs Cumulés'!$D$3:$MX$391,100,FALSE) -> 141.0% | K49: =VLOOKUP($B$7,'Indicateurs Cumulés'!$D$3:$MX$391,99,FALSE) -> 70.7% | M49: =VLOOKUP($B$7,'Indicateurs Cumulés'!$D$3:$MX$391,101,FALSE) -> 10,975 | N49: =IF(ISERROR(M49/VLOOKUP($B$7,'Indicateurs Cumulés'!$D$3:$MX$391,223,FALSE)),"nc",M49/VLOOKUP($B$7,'Indicateurs Cumulés'!$D$3:$MX$391,223,FALSE)) -> 7.8 | S49: =VLOOKUP($B$7,objectifs!$D$3:$ZZ$391,71,FALSE) -> 27,130 | T49: =IF(ISERROR(S49/VLOOKUP($B$7,objectifs!$D$4:$IA$373,232,FALSE)),"nc",S49/VLOOKUP($B$7,objectifs!$D$4:$IA$373,232,FALSE)) -> 17.9 | W49: 40% | X49: 1.8
B50: Frais de dossier | H50: =VLOOKUP($B$7,'Indicateurs mensuels'!$D$3:$KI$391,96,FALSE) -> 359 | M50: =VLOOKUP($B$7,'Indicateurs Cumulés'!$D$3:$MX$391,98,FALSE) -> 1,437 | N50: =IF(ISERROR(M50/VLOOKUP($B$7,'Indicateurs Cumulés'!$D$3:$MX$391,223,FALSE)),"nc",M50/VLOOKUP($B$7,'Indicateurs Cumulés'!$D$3:$MX$391,223,FALSE)) -> 1.0 | S50: =VLOOKUP($B$7,objectifs!$D$3:$ZZ$391,63,FALSE) -> 4,992 | T50: =IF(ISERROR(S50/VLOOKUP($B$7,objectifs!$D$4:$IA$373,232,FALSE)),"nc",S50/VLOOKUP($B$7,objectifs!$D$4:$IA$373,232,FALSE)) -> 3.3 | W50: 29% | X50: =IF(ISERROR(N50-(T50/12*MONTH($C$9))),"nc",N50-(T50/12*MONTH($C$9))) -> -0.1
B51: Commissions SACCEF | H51: =VLOOKUP($B$7,'Indicateurs mensuels'!$D$3:$KI$391,30,FALSE) -> 213 | M51: =VLOOKUP($B$7,'Indicateurs Cumulés'!$D$3:$MX$391,30,FALSE) -> 849 | N51: =IF(ISERROR(M51/VLOOKUP($B$7,'Indicateurs Cumulés'!$D$3:$MX$391,223,FALSE)),"nc",M51/VLOOKUP($B$7,'Indicateurs Cumulés'!$D$3:$MX$391,223,FALSE)) -> 0.6 | S51: =VLOOKUP($B$7,objectifs!$D$3:$ZZ$391,74,FALSE) -> 3,578
B52: Bonus clients devenus BPe / JBPe via le crédit immobilier | E52: =VLOOKUP($B$7,'Indicateurs Cumulés'!$D$3:$MX$391,84,FALSE)-VLOOKUP($B$7,'Indicateurs Cumulés M-1'!$D$3:$MX$390,84,FALSE) -> 252 | F52: =K52 -> 1,000 € | G52: =L52 -> 1.00 | H52: =E52*F52*G52/1000 -> 252 | J52: =VLOOKUP($B$7,'Indicateurs Cumulés'!$D$3:$MX$391,84,FALSE) -> 661 | K52: =IF(ISERROR(M52/(J52*L52)*1000),0,M52/(J52*L52)*1000) -> 1,000 € | L52: 1.00 | M52: =VLOOKUP($B$7,'Indicateurs Cumulés'!$D$3:$MX$391,85,FALSE) -> 661 | N52: =IF(ISERROR(M52/VLOOKUP($B$7,'Indicateurs Cumulés'!$D$3:$MX$391,223,FALSE)),"nc",M52/VLOOKUP($B$7,'Indicateurs Cumulés'!$D$3:$MX$391,223,FALSE)) -> 0.5
B53: Commissions apporteurs d'affaires | H53: =VLOOKUP($B$7,'Indicateurs mensuels'!$D$3:$KI$391,70,FALSE) -> -326 | M53: =VLOOKUP($B$7,'Indicateurs Cumulés'!$D$3:$MX$391,70,FALSE) -> -1,336 | N53: =IF(ISERROR(M53/VLOOKUP($B$7,'Indicateurs Cumulés'!$D$3:$MX$391,223,FALSE)),"nc",M53/VLOOKUP($B$7,'Indicateurs Cumulés'!$D$3:$MX$391,223,FALSE)) -> -0.9
B55: CREDIT MLT PRO - Eng. Nets (yc accessoires) | E55: =E56+E57 -> 21,964 | F55: =IF(ISERROR(H55/(E55*G55)),0,H55/(E55*G55)) -> 0.75% | G55: =SUMPRODUCT(G56:G57,E56:E57)/(E56+E57) -> 4.24 | H55: =H56+H57+H58+H59 -> 694 | J55: =J56+J57 -> 96,180 | K55: =IF(ISERROR(M55/(J55*L55)),0,M55/(J55*L55)) -> 0.58% | L55: =SUMPRODUCT(L56:L57,J56:J57)/(J56+J57) -> 4.41 | M55: =M56+M57+M58+M59 -> 2,478 | N55: =IF(ISERROR(M55/VLOOKUP($B$7,'Indicateurs Cumulés'!$D$3:$MX$391,223,FALSE)),"nc",M55/VLOOKUP($B$7,'Indicateurs Cumulés'!$D$3:$MX$391,223,FALSE)) -> 1.8 | P55: =P56+P57 -> 250,000 | Q55: =IF(ISERROR(S55/(P55*R55)),0,S55/(P55*R55)) -> 0.70% | R55: =SUMPRODUCT(R56:R57,P56:P57)/(P56+P57) -> 4.39 | S55: =S56+S57+S58+S59 -> 7,646 | T55: =IF(ISERROR(S55/VLOOKUP($B$7,objectifs!$D$4:$IA$373,232,FALSE)),"nc",S55/VLOOKUP($B$7,objectifs!$D$4:$IA$373,232,FALSE)) -> 5.0 | V55: =IF(ISERROR(J55/P55),0,J55/P55) -> 38% | W55: =IF(ISERROR(M55/S55),0,M55/S55) -> 32% | X55: =IF(ISERROR(N55-(T55/12*MONTH($C$9))),"nc",N55-(T55/12*MONTH($C$9))) -> 0.1
B56: Crédit MLT (marge hors accessoires) | E56: =VLOOKUP($B$7,'Indicateurs mensuels'!$D$3:$KI$391,22,FALSE) -> 20,922 | F56: =VLOOKUP($B$7,'Indicateurs mensuels'!$D$3:$KI$391,23,FALSE) -> 0.54% | G56: =VLOOKUP($B$7,'Indicateurs mensuels'!$D$3:$KI$391,24,FALSE) -> 4.34 | H56: =E56*F56*G56 -> 493 | J56: =VLOOKUP($B$7,'Indicateurs Cumulés'!$D$3:$MX$391,22,FALSE) -> 92,388 | K56: =VLOOKUP($B$7,'Indicateurs Cumulés'!$D$3:$MX$391,23,FALSE) -> 0.42% | L56: =VLOOKUP($B$7,'Indicateurs Cumulés'!$D$3:$MX$391,24,FALSE) -> 4.50 | M56: =J56*K56*L56 -> 1,731 | N56: =IF(ISERROR(M56/VLOOKUP($B$7,'Indicateurs Cumulés'!$D$3:$MX$391,223,FALSE)),"nc",M56/VLOOKUP($B$7,'Indicateurs Cumulés'!$D$3:$MX$391,223,FALSE)) -> 1.2 | P56: =VLOOKUP($B$7,objectifs!$D$3:$ZZ$391,20,FALSE) -> 238,000 | Q56: =VLOOKUP($B$7,objectifs!$D$3:$ZZ$391,21,FALSE) -> 0.40% | R56: =VLOOKUP($B$7,objectifs!$D$3:$ZZ$391,22,FALSE) -> 4.50 | S56: =P56*Q56*R56 -> 4,284 | T56: =IF(ISERROR(S56/VLOOKUP($B$7,objectifs!$D$4:$IA$373,232,FALSE)),"nc",S56/VLOOKUP($B$7,objectifs!$D$4:$IA$373,232,FALSE)) -> 2.8 | V56: 39% | W56: 40% | X56: 0.3
B57: Crédit Bail Mobilier | E57: =VLOOKUP($B$7,'Indicateurs mensuels'!$D$3:$GI$391,185,FALSE) -> 1,042 | F57: =VLOOKUP($B$7,'Indicateurs mensuels'!$D$3:$GI$391,186,FALSE) -> 1.09% | G57: =VLOOKUP($B$7,'Indicateurs mensuels'!$D$3:$GI$391,187,FALSE) -> 2.27 | H57: =E57*F57*G57 -> 26 | J57: =VLOOKUP($B$7,'Indicateurs Cumulés'!$D$3:$MX$391,193,FALSE) -> 3,792 | K57: =VLOOKUP($B$7,'Indicateurs Cumulés'!$D$3:$MX$391,194,FALSE) -> 0.90% | L57: =VLOOKUP($B$7,'Indicateurs Cumulés'!$D$3:$MX$391,195,FALSE) -> 2.31 | M57: =J57*K57*L57 -> 79 | N57: =IF(ISERROR(M57/VLOOKUP($B$7,'Indicateurs Cumulés'!$D$3:$MX$391,223,FALSE)),"nc",M57/VLOOKUP($B$7,'Indicateurs Cumulés'!$D$3:$MX$391,223,FALSE)) -> 0.1 | P57: =VLOOKUP($B$7,objectifs!$D$3:$ZZ$391,14,FALSE) -> 12,000 | Q57: =VLOOKUP($B$7,objectifs!$D$3:$ZZ$391,15,FALSE) -> 0.40% | R57: =VLOOKUP($B$7,objectifs!$D$3:$ZZ$391,16,FALSE) -> 2.30 | S57: =P57*Q57*R57 -> 110 | T57: =IF(ISERROR(S57/VLOOKUP($B$7,objectifs!$D$4:$IA$373,232,FALSE)),"nc",S57/VLOOKUP($B$7,objectifs!$D$4:$IA$373,232,FALSE)) -> 0.1 | V57: 32% | W57: 72% | X57: 0.0
B58: Frais de dossier (yc CBM) | H58: =VLOOKUP($B$7,'Indicateurs mensuels'!$D$3:$KI$391,92,FALSE)+VLOOKUP($B$7,'Indicateurs mensuels'!$D$3:$KI$391,97,FALSE) -> 67 | M58: =VLOOKUP($B$7,'Indicateurs Cumulés'!$D$3:$MX$391,92,FALSE)+VLOOKUP($B$7,'Indicateurs Cumulés'!$D$3:$MX$391,94,FALSE) -> 278 | N58: =IF(ISERROR(M58/VLOOKUP($B$7,'Indicateurs Cumulés'!$D$3:$MX$391,223,FALSE)),"nc",M58/VLOOKUP($B$7,'Indicateurs Cumulés'!$D$3:$MX$391,223,FALSE)) -> 0.2 | S58: =VLOOKUP($B$7,objectifs!$D$3:$ZZ$391,66,FALSE) -> 750 | T58: =IF(ISERROR(S58/VLOOKUP($B$7,objectifs!$D$4:$IA$373,232,FALSE)),"nc",S58/VLOOKUP($B$7,objectifs!$D$4:$IA$373,232,FALSE)) -> 0.5 | W58: 37% | X58: 0.0
B59: Commissions ADE | E59: =VLOOKUP($B$7,'Indicateurs mensuels'!$D$3:$KI$391,219,FALSE) -> 105.5% | F59: =VLOOKUP($B$7,'Indicateurs mensuels'!$D$3:$KI$391,218,FALSE) -> 82.6% | H59: =VLOOKUP($B$7,'Indicateurs mensuels'!$D$3:$ZZ$391,220,FALSE) -> 108 | J59: =VLOOKUP($B$7,'Indicateurs Cumulés'!$D$3:$MX$391,107,FALSE) -> 107.4% | K59: =VLOOKUP($B$7,'Indicateurs Cumulés'!$D$3:$MX$391,106,FALSE) -> 66.4% | M59: =VLOOKUP($B$7,'Indicateurs Cumulés'!$D$3:$MX$391,108,FALSE) -> 390 | N59: =IF(ISERROR(M59/VLOOKUP($B$7,'Indicateurs Cumulés'!$D$3:$MX$391,223,FALSE)),"nc",M59/VLOOKUP($B$7,'Indicateurs Cumulés'!$D$3:$MX$391,223,FALSE)) -> 0.3 | S59: =VLOOKUP($B$7,objectifs!$D$3:$ZZ$391,75,FALSE) -> 2,501 | T59: =IF(ISERROR(S59/VLOOKUP($B$7,objectifs!$D$4:$IA$373,232,FALSE)),"nc",S59/VLOOKUP($B$7,objectifs!$D$4:$IA$373,232,FALSE)) -> 1.6 | W59: 16% | X59: -0.3
B61: BANCA - Ventes nettes | H61: =H62+H68+H75+H76+H77+H78+H82 -> 1,424 | M61: =M62+M68+M75+M76+M77+M78+M82 -> 6,880 | N61: =IF(ISERROR(M61/VLOOKUP($B$7,'Indicateurs Cumulés'!$D$3:$MX$391,223,FALSE)),"nc",M61/VLOOKUP($B$7,'Indicateurs Cumulés'!$D$3:$MX$391,223,FALSE)) -> 4.9 | P61: =P62+P68+P78+P77 -> 59,265 | Q61: =IF(ISERROR(S61/(P61*R61)*1000),0,S61/(P61*R61)*1000) -> 114 € | R61: 5.00 | S61: =S62+S68+S78+S77 -> 33,763 | T61: =IF(ISERROR(S61/VLOOKUP($B$7,objectifs!$D$4:$IA$373,232,FALSE)),"nc",S61/VLOOKUP($B$7,objectifs!$D$4:$IA$373,232,FALSE)) -> 22.2 | V61: =IF(ISERROR(J61/P61),0,J61/P61) -> 0% | W61: =IF(ISERROR(M61/S61),0,M61/S61) -> 20% | X61: =IF(ISERROR(N61-(T61/12*MONTH($C$9))),"nc",N61-(T61/12*MONTH($C$9))) -> -2.5
B62: Forfaits - Tarification | E62: =SUM(E63:E67) -> 108 | H62: =SUM(H63:H67) -> 315 | J62: =SUM(J63:J67) -> 116 | M62: =SUM(M63:M67) -> 1,297 | N62: =IF(ISERROR(M62/VLOOKUP($B$7,'Indicateurs Cumulés'!$D$3:$MX$391,223,FALSE)),"nc",M62/VLOOKUP($B$7,'Indicateurs Cumulés'!$D$3:$MX$391,223,FALSE)) -> 0.9 | P62: =VLOOKUP($B$7,objectifs!$D$3:$ZZ$391,181,FALSE)*95% -> 21,280 | Q62: =objectifs!$GB$3 -> 137 € | R62: =objectifs!$GC$3 -> 5.00 | S62: =P62*Q62*R62/1000 -> 14,602 | T62: =IF(ISERROR(S62/VLOOKUP($B$7,objectifs!$D$4:$IA$373,232,FALSE)),"nc",S62/VLOOKUP($B$7,objectifs!$D$4:$IA$373,232,FALSE)) -> 9.6 | V62: 1% | W62: 9% | X62: -2.3
B63: Bouquet liberté HDG | E63: =J63-VLOOKUP($B$7,'Indicateurs Cumulés M-1'!$D$3:$MX$390,308,FALSE) -> 1,461 | F63: =K63 -> 140 € | G63: =L63 -> 5.00 | H63: =E63*F63*G63/1000 -> 1,019 | J63: =VLOOKUP($B$7,'Indicateurs Cumulés'!$D$3:$MX$391,308,FALSE) -> 7,125 | K63: ='Indicateurs Cumulés'!$KY$3 -> 140 € | L63: ='Indicateurs Cumulés'!$KZ$3 -> 5.00 | M63: =J63*K63*L63/1000 -> 4,970 | N63: =IF(ISERROR(M63/VLOOKUP($B$7,'Indicateurs Cumulés'!$D$3:$MX$391,223,FALSE)),"nc",M63/VLOOKUP($B$7,'Indicateurs Cumulés'!$D$3:$MX$391,223,FALSE)) -> 3.5
B64: Bouquet liberté Autres | E64: =J64-VLOOKUP($B$7,'Indicateurs Cumulés M-1'!$D$3:$MX$390,235,FALSE) -> -714 | F64: =K64 -> 87 € | G64: 5.00 | H64: =E64*F64*G64/1000 -> -311 | J64: =VLOOKUP($B$7,'Indicateurs Cumulés'!$D$3:$MX$391,235,FALSE) -> -3,431 | K64: ='Indicateurs Cumulés'!$ID$3 -> 87 € | L64: ='Indicateurs Cumulés'!$IT$3 -> 5.00 | M64: =J64*K64*L64/1000 -> -1,495 | N64: =IF(ISERROR(M64/VLOOKUP($B$7,'Indicateurs Cumulés'!$D$3:$MX$391,223,FALSE)),"nc",M64/VLOOKUP($B$7,'Indicateurs Cumulés'!$D$3:$MX$391,223,FALSE)) -> -1.1
B65: Futéo / SOL 16-17 | E65: =J65-VLOOKUP($B$7,'Indicateurs Cumulés M-1'!$D$3:$MX$390,236,FALSE) -> -62 | F65: 12 € | G65: 5.00 | H65: -4 | J65: =VLOOKUP($B$7,'Indicateurs Cumulés'!$D$3:$MX$391,236,FALSE) -> -414 | K65: ='Indicateurs Cumulés'!$IE$3 -> 12 € | L65: ='Indicateurs Cumulés'!$IU$3 -> 5.00 | M65: -25 | N65: =IF(ISERROR(M65/VLOOKUP($B$7,'Indicateurs Cumulés'!$D$3:$MX$391,223,FALSE)),"nc",M65/VLOOKUP($B$7,'Indicateurs Cumulés'!$D$3:$MX$391,223,FALSE)) -> -0.0
B66: Satellis Essentiel / Essentiel + | E66: =J66-VLOOKUP($B$7,'Indicateurs Cumulés M-1'!$D$3:$MX$390,237,FALSE) -> -509 | F66: 125 € | G66: 5.00 | H66: -318 | J66: =VLOOKUP($B$7,'Indicateurs Cumulés'!$D$3:$MX$391,237,FALSE) -> -2,744 | K66: ='Indicateurs Cumulés'!$IF$3 -> 125 € | L66: ='Indicateurs Cumulés'!$IV$3 -> 5.00 | M66: -1,712 | N66: =IF(ISERROR(M66/VLOOKUP($B$7,'Indicateurs Cumulés'!$D$3:$MX$391,223,FALSE)),"nc",M66/VLOOKUP($B$7,'Indicateurs Cumulés'!$D$3:$MX$391,223,FALSE)) -> -1.2
B67: Satellis Intégral | E67: =J67-VLOOKUP($B$7,'Indicateurs Cumulés M-1'!$D$3:$MX$390,238,FALSE) -> -68 | F67: 210 € | G67: 5.00 | H67: -71 | J67: =VLOOKUP($B$7,'Indicateurs Cumulés'!$D$3:$MX$391,238,FALSE) -> -420 | K67: ='Indicateurs Cumulés'!$IG$3 -> 210 € | L67: ='Indicateurs Cumulés'!$IW$3 -> 5.00 | M67: -441 | N67: =IF(ISERROR(M67/VLOOKUP($B$7,'Indicateurs Cumulés'!$D$3:$MX$391,223,FALSE)),"nc",M67/VLOOKUP($B$7,'Indicateurs Cumulés'!$D$3:$MX$391,223,FALSE)) -> -0.3
B68: Cartes - Tarification | E68: =SUM(E69:E74) -> 113 | H68: =SUM(H69:H74) -> 689 | J68: =SUM(J69:J74) -> -2,093 | M68: =SUM(M69:M74) -> 2,815 | N68: =IF(ISERROR(M68/VLOOKUP($B$7,'Indicateurs Cumulés'!$D$3:$MX$391,223,FALSE)),"nc",M68/VLOOKUP($B$7,'Indicateurs Cumulés'!$D$3:$MX$391,223,FALSE)) -> 2.0 | P68: =VLOOKUP($B$7,objectifs!$D$3:$ZZ$391,183,FALSE)*95% -> 11,400 | Q68: =objectifs!$GD$3 -> 289 € | R68: =objectifs!$GE$3 -> 5.00 | S68: =P68*Q68*R68/1000 -> 16,484 | T68: =IF(ISERROR(S68/VLOOKUP($B$7,objectifs!$D$4:$IA$373,232,FALSE)),"nc",S68/VLOOKUP($B$7,objectifs!$D$4:$IA$373,232,FALSE)) -> 10.9 | V68: -18% | W68: 17% | X68: =IF(ISERROR(N68-(T68/12*MONTH($C$9))),"nc",N68-(T68/12*MONTH($C$9))) -> -1.6
B69: Carte Infinite | E69: =J69-VLOOKUP($B$7,'Indicateurs Cumulés M-1'!$D$3:$MX$390,239,FALSE) -> 9 | F69: =K69 -> 315 € | G69: =L69 -> 5.00 | H69: =E69*F69*G69/1000 -> 14 | J69: =VLOOKUP($B$7,'Indicateurs Cumulés'!$D$3:$MX$391,239,FALSE) -> 47 | K69: ='Indicateurs Cumulés'!$IH$3 -> 315 € | L69: ='Indicateurs Cumulés'!$IX$3 -> 5.00 | M69: =J69*K69*L69/1000 -> 74 | N69: =IF(ISERROR(M69/VLOOKUP($B$7,'Indicateurs Cumulés'!$D$3:$MX$391,223,FALSE)),"nc",M69/VLOOKUP($B$7,'Indicateurs Cumulés'!$D$3:$MX$391,223,FALSE)) -> 0.1
B70: Carte Platinum (yc izicarte) | E70: =J70-VLOOKUP($B$7,'Indicateurs Cumulés M-1'!$D$3:$MX$390,240,FALSE) -> 61 | F70: =K70 -> 200 € | G70: 5.00 | H70: =E70*F70*G70/1000 -> 61 | J70: =VLOOKUP($B$7,'Indicateurs Cumulés'!$D$3:$MX$391,240,FALSE) -> 268 | K70: ='Indicateurs Cumulés'!$II$3 -> 200 € | L70: ='Indicateurs Cumulés'!$IY$3 -> 5.00 | M70: =J70*K70*L70/1000 -> 268 | N70: =IF(ISERROR(M70/VLOOKUP($B$7,'Indicateurs Cumulés'!$D$3:$MX$391,223,FALSE)),"nc",M70/VLOOKUP($B$7,'Indicateurs Cumulés'!$D$3:$MX$391,223,FALSE)) -> 0.2
B71: Carte visa premier (yc izicarte) | E71: =J71-VLOOKUP($B$7,'Indicateurs Cumulés M-1'!$D$3:$MX$390,241,FALSE) -> 1,391 | F71: 130 € | G71: 5.00 | H71: 904 | J71: =VLOOKUP($B$7,'Indicateurs Cumulés'!$D$3:$MX$391,241,FALSE) -> 6,810 | K71: ='Indicateurs Cumulés'!$IJ$3 -> 130 € | L71: ='Indicateurs Cumulés'!$IZ$3 -> 5.00 | M71: 4,427 | N71: =IF(ISERROR(M71/VLOOKUP($B$7,'Indicateurs Cumulés'!$D$3:$MX$391,223,FALSE)),"nc",M71/VLOOKUP($B$7,'Indicateurs Cumulés'!$D$3:$MX$391,223,FALSE)) -> 3.1
B72: Carte visa classique (yc izicarte) | E72: =J72-VLOOKUP($B$7,'Indicateurs Cumulés M-1'!$D$3:$MX$390,242,FALSE) -> -1,315 | F72: 43 € | G72: 5.00 | H72: -283 | J72: =VLOOKUP($B$7,'Indicateurs Cumulés'!$D$3:$MX$391,242,FALSE) -> -8,183 | K72: ='Indicateurs Cumulés'!$IK$3 -> 43 € | L72: ='Indicateurs Cumulés'!$JA$3 -> 5.00 | M72: -1,759 | N72: =IF(ISERROR(M72/VLOOKUP($B$7,'Indicateurs Cumulés'!$D$3:$MX$391,223,FALSE)),"nc",M72/VLOOKUP($B$7,'Indicateurs Cumulés'!$D$3:$MX$391,223,FALSE)) -> -1.2
B73: Carte Sensea | E73: =J73-VLOOKUP($B$7,'Indicateurs Cumulés M-1'!$D$3:$MX$390,82,FALSE) -> -39 | F73: 43 € | G73: 5.00 | H73: -8 | J73: =VLOOKUP($B$7,'Indicateurs Cumulés'!$D$3:$MX$391,82,FALSE) -> -865 | K73: ='Indicateurs Cumulés'!$CG$3 -> 43 € | L73: ='Indicateurs Cumulés'!$CH$3 -> 5.00 | M73: -184 | N73: =IF(ISERROR(M73/VLOOKUP($B$7,'Indicateurs Cumulés'!$D$3:$MX$391,223,FALSE)),"nc",M73/VLOOKUP($B$7,'Indicateurs Cumulés'!$D$3:$MX$391,223,FALSE)) -> -0.1
B74: Autres Cartes | E74: =J74-VLOOKUP($B$7,'Indicateurs Cumulés M-1'!$D$3:$MX$390,243,FALSE) -> 6 | F74: 12 € | G74: 5.00 | H74: 0 | J74: =VLOOKUP($B$7,'Indicateurs Cumulés'!$D$3:$MX$391,243,FALSE) -> -170 | K74: ='Indicateurs Cumulés'!$IL$3 -> 12 € | L74: ='Indicateurs Cumulés'!$JB$3 -> 5.00 | M74: -10 | N74: =IF(ISERROR(M74/VLOOKUP($B$7,'Indicateurs Cumulés'!$D$3:$MX$391,223,FALSE)),"nc",M74/VLOOKUP($B$7,'Indicateurs Cumulés'!$D$3:$MX$391,223,FALSE)) -> -0.0
B75: Booster Cartes débit différé | E75: =J75-VLOOKUP($B$7,'Indicateurs Cumulés M-1'!$D$3:$MX$390,305,FALSE) -> 910 | F75: =K75 -> 40 € | G75: 5.00 | H75: =E75*F75*G75/1000 -> 182 | J75: =VLOOKUP($B$7,'Indicateurs Cumulés'!$D$3:$MX$391,305,FALSE) -> 2,662 | K75: =IF(ISERROR(M75/(J75*L75)*1000),0,M75/(J75*L75)*1000) -> 40 € | L75: =objectifs!$GE$3 -> 5.00 | M75: =VLOOKUP($B$7,'Indicateurs Cumulés'!$D$3:$MX$391,306,FALSE) -> 532 | N75: =IF(ISERROR(M75/VLOOKUP($B$7,'Indicateurs Cumulés'!$D$3:$MX$391,223,FALSE)),"nc",M75/VLOOKUP($B$7,'Indicateurs Cumulés'!$D$3:$MX$391,223,FALSE)) -> 0.4
B76: Bonus Mobilité bancaire | E76: =VLOOKUP($B$7,'Indicateurs mensuels'!$D$3:$GI$391,68,FALSE) -> 398 | F76: =K76 -> 200 € | G76: =L76 -> 1.00 | H76: =E76*F76*G76/1000 -> 80 | J76: =(VLOOKUP($B$7,'Indicateurs Cumulés'!$D$3:$MX$391,80,FALSE)) -> 1,850 | K76: =IF(ISERROR(M76/(J76*L76)*1000),0,M76/(J76*L76)*1000) -> 200 € | L76: 1.00 | M76: =VLOOKUP($B$7,'Indicateurs Cumulés'!$D$3:$JB$391,81,FALSE) -> 370 | N76: =IF(ISERROR(M76/VLOOKUP($B$7,'Indicateurs Cumulés'!$D$3:$MX$391,223,FALSE)),"nc",M76/VLOOKUP($B$7,'Indicateurs Cumulés'!$D$3:$MX$391,223,FALSE)) -> 0.3
B77: Options complémentaires sur Bouquet Liberté | E77: =J77-VLOOKUP($B$7,'Indicateurs Cumulés M-1'!$D$3:$MX$390,190,FALSE) -> 117 | F77: =K77 -> 15 € | G77: =L77 -> 5.00 | H77: =E77*F77*G77/1000 -> 9 | J77: =VLOOKUP($B$7,'Indicateurs Cumulés'!$D$3:$MX$391,190,FALSE) -> 229 | K77: =IF(ISERROR(M77/(J77*L77)*1000),0,M77/(J77*L77)*1000) -> 15 € | L77: ='Indicateurs Cumulés'!$IT$3 -> 5.00 | M77: =VLOOKUP($B$7,'Indicateurs Cumulés'!$D$3:$MX$391,191,FALSE) -> 17 | N77: =IF(ISERROR(M77/VLOOKUP($B$7,'Indicateurs Cumulés'!$D$3:$MX$391,223,FALSE)),"nc",M77/VLOOKUP($B$7,'Indicateurs Cumulés'!$D$3:$MX$391,223,FALSE)) -> 0.0 | P77: =VLOOKUP($B$7,objectifs!$D$3:$ZZ$391,163,FALSE) -> 1,600 | Q77: =objectifs!$FJ$3 -> 15 € | R77: =objectifs!$FK$3 -> 5.00 | S77: =P77*Q77*R77/1000 -> 120 | T77: =IF(ISERROR(S77/VLOOKUP($B$7,objectifs!$D$4:$IA$373,232,FALSE)),"nc",S77/VLOOKUP($B$7,objectifs!$D$4:$IA$373,232,FALSE)) -> 0.1 | V77: =IF(ISERROR(J77/P77),0,J77/P77) -> 14% | W77: =IF(ISERROR(M77/S77),0,M77/S77) -> 14% | X77: -0.0
B78: IARD & Prévoyance - Commissions | E78: =J78-(VLOOKUP($B$7,'Indicateurs Cumulés M-1'!$D$3:$MX$390,228,FALSE) +VLOOKUP($B$7,'Indicateurs Cumulés M-1'!$D$3:$MX$390,229,FALSE) +VLOOKUP($B$7,'Indicateurs Cumulés M-1'!$D$3:$MX$390,230,FALSE) +VLOOKUP($B$7,'Indicateurs Cumulés M-1'!$D$3:$MX$390,231,FALSE) +VLOOKUP($B$7,'Indicateurs Cumulés M-1'!$D$3:$MX$390,232,FALSE) +VLOOKUP($B$7,'Indicateurs Cumulés M-1'!$D$3:$MX$390,233,FALSE) +VLOOKUP($B$7,'Indicateurs Cumulés M-1'!$D$3:$MX$390,234,FALSE) +VLOOKUP($B$7,'Indicateurs Cumulés M-1'!$D$3:$MX$390,266,FALSE) +VLOOKUP($B$7,'Indicateurs Cumulés M-1'!$D$3:$MX$390,310,FALSE)) -> 808 | F78: =IF(ISERROR(H78/(E78*G78)*1000),0,H78/(E78*G78)*1000) -> 24 € | G78: 5.00 | H78: =M78- (VLOOKUP($B$7,'Indicateurs Cumulés M-1'!$D$3:$JB$390,244,FALSE)+VLOOKUP($B$7,'Indicateurs Cumulés M-1'!$D$3:$JB$390,245,FALSE)+VLOOKUP($B$7,'Indicateurs Cumulés M-1'!$D$3:$JB$390,246,FALSE)+VLOOKUP($B$7,'Indicateurs Cumulés M-1'!$D$3:$JB$390,247,FALSE)+VLOOKUP($B$7,'Indicateurs Cumulés M-1'!$D$3:$JB$390,248,FALSE)+VLOOKUP($B$7,'Indicateurs Cumulés M-1'!$D$3:$JB$390,249,FALSE)+VLOOKUP($B$7,'Indicateurs Cumulés M-1'!$D$3:$JB$390,250,FALSE)+VLOOKUP($B$7,'Indicateurs Cumulés M-1'!$D$3:$MX$390,267,FALSE)+VLOOKUP($B$7,'Indicateurs Cumulés M-1'!$D$3:$MX$390,311,FALSE)) -> 97 | J78: =(VLOOKUP($B$7,'Indicateurs Cumulés'!$D$3:$MX$391,228,FALSE) +VLOOKUP($B$7,'Indicateurs Cumulés'!$D$3:$MX$391,229,FALSE) +VLOOKUP($B$7,'Indicateurs Cumulés'!$D$3:$MX$391,230,FALSE) +VLOOKUP($B$7,'Indicateurs Cumulés'!$D$3:$MX$391,231,FALSE) +VLOOKUP($B$7,'Indicateurs Cumulés'!$D$3:$MX$391,232,FALSE) +VLOOKUP($B$7,'Indicateurs Cumulés'!$D$3:$MX$391,233,FALSE) +VLOOKUP($B$7,'Indicateurs Cumulés'!$D$3:$MX$391,234,FALSE) +VLOOKUP($B$7,'Indicateurs Cumulés'!$D$3:$MX$391,266,FALSE) +VLOOKUP($B$7,'Indicateurs Cumulés'!$D$3:$MX$391,310,FALSE)) -> 10,495 | K78: 20 € | L78: =objectifs!$GG$3 -> 5.00 | M78: =(VLOOKUP($B$7,'Indicateurs Cumulés'!$D$3:$JB$391,244,FALSE)+VLOOKUP($B$7,'Indicateurs Cumulés'!$D$3:$JB$391,245,FALSE)+VLOOKUP($B$7,'Indicateurs Cumulés'!$D$3:$JB$391,246,FALSE)+VLOOKUP($B$7,'Indicateurs Cumulés'!$D$3:$JB$391,247,FALSE)+VLOOKUP($B$7,'Indicateurs Cumulés'!$D$3:$JB$391,248,FALSE)+VLOOKUP($B$7,'Indicateurs Cumulés'!$D$3:$JB$391,249,FALSE)+VLOOKUP($B$7,'Indicateurs Cumulés'!$D$3:$JB$391,250,FALSE)+VLOOKUP($B$7,'Indicateurs Cumulés'!$D$3:$MX$391,267,FALSE)+VLOOKUP($B$7,'Indicateurs Cumulés'!$D$3:$MX$391,311,FALSE)) -> 1,037 | N78: =IF(ISERROR(M78/VLOOKUP($B$7,'Indicateurs Cumulés'!$D$3:$MX$391,223,FALSE)),"nc",M78/VLOOKUP($B$7,'Indicateurs Cumulés'!$D$3:$MX$391,223,FALSE)) -> 0.7 | P78: =VLOOKUP($B$7,objectifs!$D$3:$ZZ$391,185,FALSE)*95% -> 24,985 | Q78: =objectifs!$GF$3 -> 20 € | R78: =objectifs!$GG$3 -> 5.00 | S78: =P78*Q78*R78/1000 -> 2,558 | T78: =IF(ISERROR(S78/VLOOKUP($B$7,objectifs!$D$4:$IA$373,232,FALSE)),"nc",S78/VLOOKUP($B$7,objectifs!$D$4:$IA$373,232,FALSE)) -> 1.7 | V78: 42% | W78: 41% | X78: 0.2
B79: dont AUTO | E79: =J79-VLOOKUP($B$7,'Indicateurs Cumulés M-1'!$D$3:$MX$390,228,FALSE) -> 347 | F79: =K79 -> 43 € | G79: 2.75 | H79: =E79*F79*G79/1000 -> 41 | J79: =VLOOKUP($B$7,'Indicateurs Cumulés'!$D$3:$MX$391,228,FALSE) -> 2,674 | K79: 43 € | L79: =objectifs!$HR$3 -> 2.75 | M79: =VLOOKUP($B$7,'Indicateurs Cumulés'!$D$3:$JB$391,244,FALSE) -> 315 | N79: =IF(ISERROR(M79/VLOOKUP($B$7,'Indicateurs Cumulés'!$D$3:$MX$391,223,FALSE)),"nc",M79/VLOOKUP($B$7,'Indicateurs Cumulés'!$D$3:$MX$391,223,FALSE)) -> 0.2 | P79: =VLOOKUP($B$7,objectifs!$D$3:$ZZ$391,222,FALSE) -> 6,400 | Q79: =objectifs!$HQ$3 -> 43 € | R79: =objectifs!$HR$3 -> 2.75 | S79: =P79*Q79*R79/1000 -> 754 | T79: =IF(ISERROR(S79/VLOOKUP($B$7,objectifs!$D$4:$IA$373,232,FALSE)),"nc",S79/VLOOKUP($B$7,objectifs!$D$4:$IA$373,232,FALSE)) -> 0.5 | V79: 42% | W79: 42% | X79: 0.1
B80: dont MRH | E80: =J80-VLOOKUP($B$7,'Indicateurs Cumulés M-1'!$D$3:$MX$390,229,FALSE) -> -80 | F80: 25 € | G80: 3.96 | H80: =E80*F80*G80/1000 -> -8 | J80: =VLOOKUP($B$7,'Indicateurs Cumulés'!$D$3:$MX$391,229,FALSE) -> 1,382 | K80: 25 € | L80: =objectifs!$HT$3 -> 3.96 | M80: =VLOOKUP($B$7,'Indicateurs Cumulés'!$D$3:$JB$391,245,FALSE) -> 137 | N80: =IF(ISERROR(M80/VLOOKUP($B$7,'Indicateurs Cumulés'!$D$3:$MX$391,223,FALSE)),"nc",M80/VLOOKUP($B$7,'Indicateurs Cumulés'!$D$3:$MX$391,223,FALSE)) -> 0.1 | P80: =VLOOKUP($B$7,objectifs!$D$3:$ZZ$391,224,FALSE) -> 4,600 | Q80: =objectifs!$HS$3 -> 25 € | R80: =objectifs!$HT$3 -> 3.96 | S80: =P80*Q80*R80/1000 -> 456 | T80: =IF(ISERROR(S80/VLOOKUP($B$7,objectifs!$D$4:$IA$373,232,FALSE)),"nc",S80/VLOOKUP($B$7,objectifs!$D$4:$IA$373,232,FALSE)) -> 0.3 | V80: 30% | W80: 30% | X80: -0.0
B81: dont Sécur Famille | E81: =J81-VLOOKUP($B$7,'Indicateurs Cumulés M-1'!$D$3:$MX$390,234,FALSE) -> 457 | F81: 19 € | G81: 6.00 | H81: =M81-VLOOKUP($B$7,'Indicateurs Cumulés M-1'!$D$3:$JB$390,250,FALSE) -> 53 | J81: =VLOOKUP($B$7,'Indicateurs Cumulés'!$D$3:$MX$391,234,FALSE) -> 3,408 | K81: =+objectifs!$IB$3 -> 19 € | L81: =+objectifs!$IC$3 -> 6.00 | M81: =VLOOKUP($B$7,'Indicateurs Cumulés'!$D$3:$JB$391,250,FALSE) -> 393 | N81: =IF(ISERROR(M81/VLOOKUP($B$7,'Indicateurs Cumulés'!$D$3:$MX$391,223,FALSE)),"nc",M81/VLOOKUP($B$7,'Indicateurs Cumulés'!$D$3:$MX$391,223,FALSE)) -> 0.3 | P81: =VLOOKUP($B$7,objectifs!$D$3:$ZZ$391,233,FALSE) -> 10,000 | Q81: =+objectifs!$IB$3 -> 19 € | R81: =+objectifs!$IC$3 -> 6.00 | S81: =P81*Q81*R81/1000 -> 1,152 | T81: =IF(ISERROR(S81/VLOOKUP($B$7,objectifs!$D$4:$IA$373,232,FALSE)),"nc",S81/VLOOKUP($B$7,objectifs!$D$4:$IA$373,232,FALSE)) -> 0.8 | V81: 34% | W81: 34% | X81: 0.0
B82: Booster AUTO & MRH | E82: =E79+E80 -> 267 | F82: =K82 -> 40 € | G82: 5.00 | H82: =E82*F82*G82/1000 -> 53 | J82: =J79+J80 -> 4,056 | K82: 40 € | L82: =objectifs!$GE$3 -> 5.00 | M82: =VLOOKUP($B$7,'Indicateurs Cumulés'!$D$3:$MX$391,68,FALSE)+VLOOKUP($B$7,'Indicateurs Cumulés'!$D$3:$MX$391,69,FALSE) -> 811 | N82: =IF(ISERROR(M82/VLOOKUP($B$7,'Indicateurs Cumulés'!$D$3:$MX$391,223,FALSE)),"nc",M82/VLOOKUP($B$7,'Indicateurs Cumulés'!$D$3:$MX$391,223,FALSE)) -> 0.6
B84: BANCA PRO - Ventes nettes | E84: =SUM(E85:E91) -> 161 | H84: =SUM(H85:H91) -> 719 | J84: =SUM(J85:J90) -> 1,299 | M84: =SUM(M85:M91) -> 1,598 | N84: =IF(ISERROR(M84/VLOOKUP($B$7,'Indicateurs Cumulés'!$D$3:$MX$391,223,FALSE)),"nc",M84/VLOOKUP($B$7,'Indicateurs Cumulés'!$D$3:$MX$391,223,FALSE)) -> 1.1 | P84: =SUM(P85:P91) -> 4,570 | S84: =SUM(S85:S91) -> 4,913 | T84: =IF(ISERROR(S84/VLOOKUP($B$7,objectifs!$D$4:$IA$373,232,FALSE)),"nc",S84/VLOOKUP($B$7,objectifs!$D$4:$IA$373,232,FALSE)) -> 3.2 | V84: =IF(ISERROR(J84/P84),0,J84/P84) -> 28% | W84: =IF(ISERROR(M84/S84),0,M84/S84) -> 33% | X84: =IF(ISERROR(N84-(T84/12*MONTH($C$9))),"nc",N84-(T84/12*MONTH($C$9))) -> 0.1
B85: Forfaits PRO - Tarification | E85: =J85-(VLOOKUP($B$7,'Indicateurs Cumulés M-1'!$D$3:$MX$390,284,FALSE)+VLOOKUP($B$7,'Indicateurs Cumulés M-1'!$D$3:$MX$390,286,FALSE)) -> 71 | F85: =K85 -> 255 € | G85: =L85 -> 5.00 | H85: =E85*F85*G85/1000 -> 91 | J85: =VLOOKUP($B$7,'Indicateurs Cumulés'!$D$3:$MX$391,284,FALSE)+VLOOKUP($B$7,'Indicateurs Cumulés'!$D$3:$MX$391,286,FALSE) -> 583 | K85: =IF(ISERROR(M85/(J85*L85)*1000),0,M85/(J85*L85)*1000) -> 255 € | L85: =objectifs!$HD$3 -> 5.00 | M85: =(VLOOKUP($B$7,'Indicateurs Cumulés'!$D$3:$MX$391,290,FALSE)+VLOOKUP($B$7,'Indicateurs Cumulés'!$D$3:$MX$391,292,FALSE)) -> 743 | N85: =IF(ISERROR(M85/VLOOKUP($B$7,'Indicateurs Cumulés'!$D$3:$MX$391,223,FALSE)),"nc",M85/VLOOKUP($B$7,'Indicateurs Cumulés'!$D$3:$MX$391,223,FALSE)) -> 0.5 | P85: =VLOOKUP($B$7,objectifs!$D$3:$ZZ$391,203,FALSE)+VLOOKUP($B$7,objectifs!$D$3:$ZZ$391,205,FALSE) -> 1,500 | Q85: =IF(ISERROR(S85/(P85*R85)*1000),0,S85/(P85*R85)*1000) -> 204 € | R85: =objectifs!$HD$3 -> 5.00 | S85: =VLOOKUP($B$7,objectifs!$D$3:$ZZ$391,209,FALSE)+VLOOKUP($B$7,objectifs!$D$3:$ZZ$391,211,FALSE) -> 1,529 | T85: =IF(ISERROR(S85/VLOOKUP($B$7,objectifs!$D$4:$IA$373,232,FALSE)),"nc",S85/VLOOKUP($B$7,objectifs!$D$4:$IA$373,232,FALSE)) -> 1.0 | V85: 39% | W85: 49% | X85: 0.2
B86: Cartes PRO - Tarification | E86: =J86-(VLOOKUP($B$7,'Indicateurs Cumulés M-1'!$D$3:$MX$390,287,FALSE)+VLOOKUP($B$7,'Indicateurs Cumulés M-1'!$D$3:$MX$390,288,FALSE)+VLOOKUP($B$7,'Indicateurs Cumulés M-1'!$D$3:$MX$390,285,FALSE)) -> 51 | F86: 95 € | G86: 5.00 | H86: =E86*F86*G86/1000 -> 24 | J86: =VLOOKUP($B$7,'Indicateurs Cumulés'!$D$3:$MX$391,287,FALSE)+VLOOKUP($B$7,'Indicateurs Cumulés'!$D$3:$MX$391,288,FALSE)+VLOOKUP($B$7,'Indicateurs Cumulés'!$D$3:$MX$391,285,FALSE) -> 405 | K86: =IF(ISERROR(M86/(J86*L86)*1000),0,M86/(J86*L86)*1000) -> 95 € | L86: =objectifs!$HE$3 -> 5.00 | M86: =(VLOOKUP($B$7,'Indicateurs Cumulés'!$D$3:$MX$391,293,FALSE)+VLOOKUP($B$7,'Indicateurs Cumulés'!$D$3:$MX$391,291,FALSE)+VLOOKUP($B$7,'Indicateurs Cumulés'!$D$3:$MX$391,294,FALSE)) -> 193 | N86: =IF(ISERROR(M86/VLOOKUP($B$7,'Indicateurs Cumulés'!$D$3:$MX$391,223,FALSE)),"nc",M86/VLOOKUP($B$7,'Indicateurs Cumulés'!$D$3:$MX$391,223,FALSE)) -> 0.1 | P86: =VLOOKUP($B$7,objectifs!$D$3:$ZZ$391,204,FALSE)+VLOOKUP($B$7,objectifs!$D$3:$ZZ$391,206,FALSE)+VLOOKUP($B$7,objectifs!$D$3:$ZZ$391,207,FALSE) -> 1,000 | Q86: =IF(ISERROR(S86/(P86*R86)*1000),0,S86/(P86*R86)*1000) -> 150 € | R86: =objectifs!$HE$3 -> 5.00 | S86: =VLOOKUP($B$7,objectifs!$D$3:$ZZ$391,210,FALSE)+VLOOKUP($B$7,objectifs!$D$3:$ZZ$391,212,FALSE)+VLOOKUP($B$7,objectifs!$D$3:$ZZ$391,213,FALSE) -> 748 | T86: =IF(ISERROR(S86/VLOOKUP($B$7,objectifs!$D$4:$IA$373,232,FALSE)),"nc",S86/VLOOKUP($B$7,objectifs!$D$4:$IA$373,232,FALSE)) -> 0.5 | V86: 41% | W86: 26% | X86: -0.0
B87: AUTO PRO (ventes brutes) - Commissions | E87: =J87-VLOOKUP($B$7,'Indicateurs Cumulés M-1'!$D$3:$MX$390,74,FALSE) -> 17 | F87: 100 € | G87: 2.75 | H87: =E87*F87*G87/1000 -> 5 | J87: =VLOOKUP($B$7,'Indicateurs Cumulés'!$D$3:$MX$391,74,FALSE) -> 54 | K87: =IF(ISERROR(M87/(J87*L87)*1000),0,M87/(J87*L87)*1000) -> 100 € | L87: =objectifs!$HX$3 -> 2.75 | M87: =VLOOKUP($B$7,'Indicateurs Cumulés'!$D$3:$MX$391,75,FALSE) -> 15 | N87: =IF(ISERROR(M87/VLOOKUP($B$7,'Indicateurs Cumulés'!$D$3:$MX$391,223,FALSE)),"nc",M87/VLOOKUP($B$7,'Indicateurs Cumulés'!$D$3:$MX$391,223,FALSE)) -> 0.0 | P87: =VLOOKUP($B$7,objectifs!$D$3:$ZZ$391,226,FALSE) -> 340 | Q87: =IF(ISERROR(S87/(P87*R87)*1000),0,S87/(P87*R87)*1000) -> 100 € | R87: =objectifs!$HX$3 -> 2.75 | S87: =VLOOKUP($B$7,objectifs!$D$3:$ZZ$391,229,FALSE) -> 94 | T87: =IF(ISERROR(S87/VLOOKUP($B$7,objectifs!$D$4:$IA$373,232,FALSE)),"nc",S87/VLOOKUP($B$7,objectifs!$D$4:$IA$373,232,FALSE)) -> 0.1 | V87: 16% | W87: 16% | X87: -0.0
B88: Multirisque PRO (ventes brutes) - Commissions | E88: =J88-VLOOKUP($B$7,'Indicateurs Cumulés M-1'!$D$3:$MX$390,76,FALSE) -> -9 | F88: 30 € | G88: 3.96 | H88: -1 | J88: =VLOOKUP($B$7,'Indicateurs Cumulés'!$D$3:$MX$391,76,FALSE) -> 58 | K88: 30 € | L88: =objectifs!$HY$3 -> 3.96 | M88: =VLOOKUP($B$7,'Indicateurs Cumulés'!$D$3:$MX$391,77,FALSE) -> 7 | N88: =IF(ISERROR(M88/VLOOKUP($B$7,'Indicateurs Cumulés'!$D$3:$MX$391,223,FALSE)),"nc",M88/VLOOKUP($B$7,'Indicateurs Cumulés'!$D$3:$MX$391,223,FALSE)) -> 0.0 | P88: =VLOOKUP($B$7,objectifs!$D$3:$ZZ$391,227,FALSE) -> 510 | Q88: 30 € | R88: =objectifs!$HY$3 -> 3.96 | S88: =VLOOKUP($B$7,objectifs!$D$3:$ZZ$391,230,FALSE) -> 61 | T88: =IF(ISERROR(S88/VLOOKUP($B$7,objectifs!$D$4:$IA$373,232,FALSE)),"nc",S88/VLOOKUP($B$7,objectifs!$D$4:$IA$373,232,FALSE)) -> 0.0 | V88: 11% | W88: 11% | X88: -0.0
B89: PAP - Commissions | E89: =J89-VLOOKUP($B$7,'Indicateurs Cumulés M-1'!$D$3:$MX$390,289,FALSE) -> 31 | F89: 18 € | G89: 5.00 | H89: 3 | J89: =VLOOKUP($B$7,'Indicateurs Cumulés'!$D$3:$MX$391,289,FALSE) -> 141 | K89: 18 € | L89: =objectifs!$HI$3 -> 5.00 | M89: =VLOOKUP($B$7,'Indicateurs Cumulés'!$D$3:$MX$391,295,FALSE) -> 12 | N89: =IF(ISERROR(M89/VLOOKUP($B$7,'Indicateurs Cumulés'!$D$3:$MX$391,223,FALSE)),"nc",M89/VLOOKUP($B$7,'Indicateurs Cumulés'!$D$3:$MX$391,223,FALSE)) -> 0.0 | P89: =VLOOKUP($B$7,objectifs!$D$3:$ZZ$391,208,FALSE) -> 480 | Q89: 18 € | R89: =objectifs!$HI$3 -> 5.00 | S89: =VLOOKUP($B$7,objectifs!$D$3:$ZZ$391,214,FALSE) -> 42 | T89: =IF(ISERROR(S89/VLOOKUP($B$7,objectifs!$D$4:$IA$373,232,FALSE)),"nc",S89/VLOOKUP($B$7,objectifs!$D$4:$IA$373,232,FALSE)) -> 0.0 | V89: 29% | W89: 29% | X89: -0.0
B90: Contrats monétiques actifs - Commissions | E90: =J90-VLOOKUP($B$7,'Indicateurs Cumulés M-1'!$D$3:$MX$390,78,FALSE) -> 0 | F90: 100 € | G90: 5.00 | H90: 0 | J90: =VLOOKUP($B$7,'Indicateurs Cumulés'!$D$3:$MX$391,78,FALSE) -> 58 | K90: =IF(ISERROR(M90/(J90*L90)*1000),0,M90/(J90*L90)*1000) -> 100 € | L90: =objectifs!$HZ$3 -> 5.00 | M90: =VLOOKUP($B$7,'Indicateurs Cumulés'!$D$3:$MX$391,79,FALSE) -> 29 | N90: =IF(ISERROR(M90/VLOOKUP($B$7,'Indicateurs Cumulés'!$D$3:$MX$391,223,FALSE)),"nc",M90/VLOOKUP($B$7,'Indicateurs Cumulés'!$D$3:$MX$391,223,FALSE)) -> 0.0 | P90: =VLOOKUP($B$7,objectifs!$D$3:$ZZ$391,228,FALSE) -> 740 | Q90: =IF(ISERROR(S90/(P90*R90)*1000),0,S90/(P90*R90)*1000) -> 100 € | R90: =objectifs!$HZ$3 -> 5.00 | S90: =VLOOKUP($B$7,objectifs!$D$3:$ZZ$391,231,FALSE) -> 370 | T90: =IF(ISERROR(S90/VLOOKUP($B$7,objectifs!$D$4:$IA$373,232,FALSE)),"nc",S90/VLOOKUP($B$7,objectifs!$D$4:$IA$373,232,FALSE)) -> 0.2 | V90: 8% | W90: 8% | X90: -0.1
B91: Commisions de mouvement | H91: =M91 -> 598 | M91: =VLOOKUP($B$7,'Indicateurs Cumulés'!$D$3:$MX$391,297,FALSE) -> 598 | N91: =IF(ISERROR(M91/VLOOKUP($B$7,'Indicateurs Cumulés'!$D$3:$MX$391,223,FALSE)),"nc",M91/VLOOKUP($B$7,'Indicateurs Cumulés'!$D$3:$MX$391,223,FALSE)) -> 0.4 | S91: =VLOOKUP($B$7,objectifs!$D$3:$ZZ$391,216,FALSE) -> 2,069 | T91: =IF(ISERROR(S91/VLOOKUP($B$7,objectifs!$D$4:$IA$373,232,FALSE)),"nc",S91/VLOOKUP($B$7,objectifs!$D$4:$IA$373,232,FALSE)) -> 1.4 | V91: 0% | W91: 29% | X91: -0.0
B93: BANCA PRO Relation privée - Ventes nettes | E93: =SUM(E94:E96) -> -6 | H93: =SUM(H94:H96) -> 15 | J93: =SUM(J94:J96) -> 49 | M93: =SUM(M94:M96) -> -135 | N93: =IF(ISERROR(M93/VLOOKUP($B$7,'Indicateurs Cumulés'!$D$3:$MX$391,223,FALSE)),"nc",M93/VLOOKUP($B$7,'Indicateurs Cumulés'!$D$3:$MX$391,223,FALSE)) -> -0.1 | P93: =SUM(P94:P96) -> 3,035 | Q93: =IF(ISERROR(S93/(P93*R93)*1000),0,S93/(P93*R93)*1000) -> 117 € | R93: =IF(ISERROR(SUMPRODUCT(R94:R96,P94:P96)/SUMPRODUCT(P94:P96)),0,SUMPRODUCT(R94:R96,P94:P96)/SUMPRODUCT(P94:P96)) -> 5.00 | S93: =SUM(S94:S96) -> 1,771 | T93: =IF(ISERROR(S93/VLOOKUP($B$7,objectifs!$D$4:$IA$373,232,FALSE)),"nc",S93/VLOOKUP($B$7,objectifs!$D$4:$IA$373,232,FALSE)) -> 1.2 | V93: =IF(ISERROR(J93/P93),0,J93/P93) -> 2% | W93: =IF(ISERROR(M93/S93),0,M93/S93) -> -8% | X93: =IF(ISERROR(N93-(T93/12*MONTH($C$9))),"nc",N93-(T93/12*MONTH($C$9))) -> -0.5
B94: Forfaits - Tarification | E94: =J94-VLOOKUP($B$7,'Indicateurs Cumulés M-1'!$D$3:$MX$390,314,FALSE) -> 1 | F94: =K94 -> 137 € | G94: 5.00 | H94: =E94*F94*G94/1000 -> 1 | J94: =VLOOKUP($B$7,'Indicateurs Cumulés'!$D$3:$MX$391,314,FALSE) -> -22 | K94: =objectifs!$GB$3 -> 137 € | L94: =objectifs!$GC$3 -> 5.00 | M94: =VLOOKUP($B$7,'Indicateurs Cumulés'!$D$3:$MX$391,315,FALSE) -> -15 | N94: =IF(ISERROR(M94/VLOOKUP($B$7,'Indicateurs Cumulés'!$D$3:$MX$391,223,FALSE)),"nc",M94/VLOOKUP($B$7,'Indicateurs Cumulés'!$D$3:$MX$391,223,FALSE)) -> -0.0 | P94: =VLOOKUP($B$7,objectifs!$D$3:$ZZ$391,181,FALSE)*5% -> 1,120 | Q94: =objectifs!$GB$3 -> 137 € | R94: =objectifs!$GC$3 -> 5.00 | S94: =P94*Q94*R94/1000 -> 769 | T94: =IF(ISERROR(S94/VLOOKUP($B$7,objectifs!$D$4:$IA$373,232,FALSE)),"nc",S94/VLOOKUP($B$7,objectifs!$D$4:$IA$373,232,FALSE)) -> 0.5 | V94: -2% | W94: -2% | X94: -0.2
B95: Cartes - Tarification | E95: =J95-VLOOKUP($B$7,'Indicateurs Cumulés M-1'!$D$3:$MX$390,316,FALSE) -> 11 | F95: 289 € | G95: 5.00 | H95: =E95*F95*G95/1000 -> 16 | J95: =VLOOKUP($B$7,'Indicateurs Cumulés'!$D$3:$MX$391,316,FALSE) -> -95 | K95: =objectifs!$GD$3 -> 289 € | L95: =objectifs!$GE$3 -> 5.00 | M95: =VLOOKUP($B$7,'Indicateurs Cumulés'!$D$3:$MX$391,317,FALSE) -> -137 | N95: =IF(ISERROR(M95/VLOOKUP($B$7,'Indicateurs Cumulés'!$D$3:$MX$391,223,FALSE)),"nc",M95/VLOOKUP($B$7,'Indicateurs Cumulés'!$D$3:$MX$391,223,FALSE)) -> -0.1 | P95: =VLOOKUP($B$7,objectifs!$D$3:$ZZ$391,183,FALSE)*5% -> 600 | Q95: =objectifs!$GD$3 -> 289 € | R95: =objectifs!$GE$3 -> 5.00 | S95: =P95*Q95*R95/1000 -> 868 | T95: =IF(ISERROR(S95/VLOOKUP($B$7,objectifs!$D$4:$IA$373,232,FALSE)),"nc",S95/VLOOKUP($B$7,objectifs!$D$4:$IA$373,232,FALSE)) -> 0.6 | V95: -16% | W95: -16% | X95: -0.3
B96: IARD & Prévoyance - Commissions | E96: =J96-VLOOKUP($B$7,'Indicateurs Cumulés M-1'!$D$3:$MX$390,318,FALSE) -> -18 | F96: 20 € | G96: 5.00 | H96: -2 | J96: =VLOOKUP($B$7,'Indicateurs Cumulés'!$D$3:$MX$391,318,FALSE) -> 166 | K96: =objectifs!$GF$3 -> 20 € | L96: =objectifs!$GG$3 -> 5.00 | M96: =VLOOKUP($B$7,'Indicateurs Cumulés'!$D$3:$MX$391,319,FALSE) -> 17 | N96: =IF(ISERROR(M96/VLOOKUP($B$7,'Indicateurs Cumulés'!$D$3:$MX$391,223,FALSE)),"nc",M96/VLOOKUP($B$7,'Indicateurs Cumulés'!$D$3:$MX$391,223,FALSE)) -> 0.0 | P96: =VLOOKUP($B$7,objectifs!$D$3:$ZZ$391,185,FALSE)*5% -> 1,315 | Q96: =objectifs!$GF$3 -> 20 € | R96: =objectifs!$GG$3 -> 5.00 | S96: =P96*Q96*R96/1000 -> 135 | T96: =IF(ISERROR(S96/VLOOKUP($B$7,objectifs!$D$4:$IA$373,232,FALSE)),"nc",S96/VLOOKUP($B$7,objectifs!$D$4:$IA$373,232,FALSE)) -> 0.1 | V96: 13% | W96: 13% | X96: -0.0
B98: AUTRES | H98: =H99+H103 -> -430 | M98: =M99+M103 -> -1,850 | N98: =IF(ISERROR(M98/VLOOKUP($B$7,'Indicateurs Cumulés'!$D$3:$MX$391,223,FALSE)),"nc",M98/VLOOKUP($B$7,'Indicateurs Cumulés'!$D$3:$MX$391,223,FALSE)) -> -1.3 | S98: =S99+S103 -> -3,348 | T98: =IF(ISERROR(S98/VLOOKUP($B$7,objectifs!$D$4:$IA$373,232,FALSE)),"nc",S98/VLOOKUP($B$7,objectifs!$D$4:$IA$373,232,FALSE)) -> -2.2 | W98: =IF(ISERROR(M98/S98),0,M98/S98) -> 55% | X98: =IF(ISERROR(N98-(T98/12*MONTH($C$9))),"nc",N98-(T98/12*MONTH($C$9))) -> -0.6
B99: Remises commerciales | H99: =M99-VLOOKUP($B$7,'Indicateurs Cumulés M-1'!$D$3:$MX$390,217,FALSE) -> -486 | M99: =VLOOKUP($B$7,'Indicateurs Cumulés'!$D$3:$MX$391,217,FALSE) -> -2,216 | N99: =IF(ISERROR(M99/VLOOKUP($B$7,'Indicateurs Cumulés'!$D$3:$MX$391,223,FALSE)),"nc",M99/VLOOKUP($B$7,'Indicateurs Cumulés'!$D$3:$MX$391,223,FALSE)) -> -1.6 | S99: =VLOOKUP($B$7,objectifs!$D$3:$ZZ$391,172,FALSE) -> -5,200 | T99: =IF(ISERROR(S99/VLOOKUP($B$7,objectifs!$D$4:$IA$373,232,FALSE)),"nc",S99/VLOOKUP($B$7,objectifs!$D$4:$IA$373,232,FALSE)) -> -3.4 | W99: 43% | X99: -0.4
B100: dont hors MAD | N100: =IF(ISERROR(M100/VLOOKUP($B$7,'Indicateurs Cumulés'!$D$3:$MX$391,223,FALSE)),"nc",M100/VLOOKUP($B$7,'Indicateurs Cumulés'!$D$3:$MX$391,223,FALSE)) -> 0.0 | S100: -2,800 | T100: =IF(ISERROR(S100/VLOOKUP($B$7,objectifs!$D$4:$IA$373,232,FALSE)),"nc",S100/VLOOKUP($B$7,objectifs!$D$4:$IA$373,232,FALSE)) -> -1.8 | W100: 0% | X100: 0.6
B101: dont MAD | N101: =IF(ISERROR(M101/VLOOKUP($B$7,'Indicateurs Cumulés'!$D$3:$MX$391,223,FALSE)),"nc",M101/VLOOKUP($B$7,'Indicateurs Cumulés'!$D$3:$MX$391,223,FALSE)) -> 0.0 | S101: -1,700 | T101: =IF(ISERROR(S101/VLOOKUP($B$7,objectifs!$D$4:$IA$373,232,FALSE)),"nc",S101/VLOOKUP($B$7,objectifs!$D$4:$IA$373,232,FALSE)) -> -1.1 | W101: 0% | X101: 0.4
B102: dont PRO | H102: =M102 -> 0 | M102: =VLOOKUP($B$7,'Indicateurs Cumulés'!$D$3:$MX$391,73,FALSE) -> 0 | N102: =IF(ISERROR(M102/VLOOKUP($B$7,'Indicateurs Cumulés'!$D$3:$MX$391,223,FALSE)),"nc",M102/VLOOKUP($B$7,'Indicateurs Cumulés'!$D$3:$MX$391,223,FALSE)) -> 0.0 | S102: -700 | T102: =IF(ISERROR(S102/VLOOKUP($B$7,objectifs!$D$4:$IA$373,232,FALSE)),"nc",S102/VLOOKUP($B$7,objectifs!$D$4:$IA$373,232,FALSE)) -> -0.5 | W102: 0% | X102: 0.2
B103: Commissions immobilières | H103: =M103-(VLOOKUP($B$7,'Indicateurs Cumulés M-1'!$D$3:$MX$390,221,FALSE)*'Indicateurs Cumulés M-1'!$HP$3 +VLOOKUP($B$7,'Indicateurs Cumulés M-1'!$D$3:$MX$390,307,FALSE)*'Indicateurs Cumulés M-1'!$KX$3 +VLOOKUP($B$7,'Indicateurs Cumulés M-1'!$D$3:$MX$390,262,FALSE)*'Indicateurs Cumulés M-1'!$JE$3) -> 56 | M103: =VLOOKUP($B$7,'Indicateurs Cumulés'!$D$3:$MX$391,221,FALSE)*'Indicateurs Cumulés'!$HP$3 +VLOOKUP($B$7,'Indicateurs Cumulés'!$D$3:$MX$391,307,FALSE)*'Indicateurs Cumulés'!$KX$3 +VLOOKUP($B$7,'Indicateurs Cumulés'!$D$3:$MX$391,262,FALSE)*'Indicateurs Cumulés'!$JE$3 -> 366 | N103: =IF(ISERROR(M103/VLOOKUP($B$7,'Indicateurs Cumulés'!$D$3:$MX$391,223,FALSE)),"nc",M103/VLOOKUP($B$7,'Indicateurs Cumulés'!$D$3:$MX$391,223,FALSE)) -> 0.3 | S103: =VLOOKUP($B$7,objectifs!$D$3:$ZZ$391,176,FALSE) -> 1,852 | T103: =IF(ISERROR(S103/VLOOKUP($B$7,objectifs!$D$4:$IA$373,232,FALSE)),"nc",S103/VLOOKUP($B$7,objectifs!$D$4:$IA$373,232,FALSE)) -> 1.2 | W103: 20% | X103: -0.1
B105: PNB BDD sur Activité Nouvelle | H105: =H14+H41+H47+H61+H98+H55+H84+H93 -> 12,812 | M105: =M14+M41+M47+M61+M98+M55+M84+M93 -> 52,107 | N105: =IF(ISERROR(M105/VLOOKUP($B$7,'Indicateurs Cumulés'!$D$3:$MX$391,223,FALSE)),"nc",M105/VLOOKUP($B$7,'Indicateurs Cumulés'!$D$3:$MX$391,223,FALSE)) -> 36.9 | S105: =S14+S41+S47+S61+S98+S55+S84+S93 -> 204,509 | T105: =IF(ISERROR(S105/VLOOKUP($B$7,objectifs!$D$4:$IA$373,232,FALSE)),"nc",S105/VLOOKUP($B$7,objectifs!$D$4:$IA$373,232,FALSE)) -> 134.6 | W105: =IF(ISERROR(M105/S105),0,M105/S105) -> 25.5% | X105: =IF(ISERROR(N105-(T105/12*MONTH($C$9))),"nc",N105-(T105/12*MONTH($C$9))) -> -8.0
B107: BONUS DIGITAL | E107: Volume | F107: Montant | G107: Durée | H107: PNB | J107: Volume | K107: Montant | L107: Durée | M107: PNB | N107: PNB / ETP perf. | P107: Volume | Q107: Montant | R107: Durée | S107: PNB | T107: PNB / ETP Cible | V107: Volume | W107: PNB annuel | X107: Ecart /obj. PNB/ETP
B108: Evolution stock clients actifs BAD (1 connexion / mois sur 3 mois) | E108: =VLOOKUP($B$7,'Indicateurs mensuels'!$D$3:$KI$391,230,FALSE) -> 15,093 | F108: 15 € | G108: 5.00 | H108: =VLOOKUP($B$7,'Indicateurs mensuels'!$D$3:$KI$391,236,FALSE) -> 1,132 | J108: =VLOOKUP($B$7,'Indicateurs Cumulés'!$D$3:$MX$391,327,FALSE) -> 30,824 | K108: 15 € | L108: 5.00 | M108: =VLOOKUP($B$7,'Indicateurs Cumulés'!$D$3:$MX$391,333,FALSE) -> 2,312 | N108: =IF(ISERROR(M108/VLOOKUP($B$7,'Indicateurs Cumulés'!$D$3:$MX$391,223,FALSE)),"nc",M108/VLOOKUP($B$7,'Indicateurs Cumulés'!$D$3:$MX$391,223,FALSE)) -> 1.6
B109: Nombre de SED finalisées (en brut) | E109: =VLOOKUP($B$7,'Indicateurs mensuels'!$D$3:$KI$391,231,FALSE) -> 4,511 | F109: 10 € | G109: 1.00 | H109: =VLOOKUP($B$7,'Indicateurs mensuels'!$D$3:$KI$391,237,FALSE) -> 45 | J109: =VLOOKUP($B$7,'Indicateurs Cumulés'!$D$3:$MX$391,328,FALSE) -> 18,499 | K109: 10 € | L109: 1.00 | M109: =VLOOKUP($B$7,'Indicateurs Cumulés'!$D$3:$MX$391,334,FALSE) -> 185 | N109: =IF(ISERROR(M109/VLOOKUP($B$7,'Indicateurs Cumulés'!$D$3:$MX$391,223,FALSE)),"nc",M109/VLOOKUP($B$7,'Indicateurs Cumulés'!$D$3:$MX$391,223,FALSE)) -> 0.1
B110: Nombre de SAG finalisées (périmètre SAG hors OPC en brut) | E110: =VLOOKUP($B$7,'Indicateurs mensuels'!$D$3:$KI$391,232,FALSE) -> 30,972 | F110: 3 € | G110: 1.00 | H110: =VLOOKUP($B$7,'Indicateurs mensuels'!$D$3:$KI$391,238,FALSE) -> 93 | J110: =VLOOKUP($B$7,'Indicateurs Cumulés'!$D$3:$MX$391,329,FALSE) -> 147,695 | K110: 3 € | L110: 1.00 | M110: =VLOOKUP($B$7,'Indicateurs Cumulés'!$D$3:$MX$391,335,FALSE) -> 443 | N110: =IF(ISERROR(M110/VLOOKUP($B$7,'Indicateurs Cumulés'!$D$3:$MX$391,223,FALSE)),"nc",M110/VLOOKUP($B$7,'Indicateurs Cumulés'!$D$3:$MX$391,223,FALSE)) -> 0.3
B111: Evolution stock de clients équipés E-documents | E111: =VLOOKUP($B$7,'Indicateurs mensuels'!$D$3:$KI$391,233,FALSE) -> 4,423 | F111: 10 € | G111: 5.00 | H111: =VLOOKUP($B$7,'Indicateurs mensuels'!$D$3:$KI$391,239,FALSE) -> 221 | J111: =VLOOKUP($B$7,'Indicateurs Cumulés'!$D$3:$MX$391,330,FALSE) -> 2,025 | K111: 10 € | L111: 5.00 | M111: =VLOOKUP($B$7,'Indicateurs Cumulés'!$D$3:$MX$391,336,FALSE) -> 101 | N111: =IF(ISERROR(M111/VLOOKUP($B$7,'Indicateurs Cumulés'!$D$3:$MX$391,223,FALSE)),"nc",M111/VLOOKUP($B$7,'Indicateurs Cumulés'!$D$3:$MX$391,223,FALSE)) -> 0.1
B112: Evolution stock de clients avec Opt-in-mail et tél. | E112: =VLOOKUP($B$7,'Indicateurs mensuels'!$D$3:$KI$391,234,FALSE) -> 3,052 | F112: 5 € | G112: 3.00 | H112: =VLOOKUP($B$7,'Indicateurs mensuels'!$D$3:$KI$391,240,FALSE) -> 46 | J112: =VLOOKUP($B$7,'Indicateurs Cumulés'!$D$3:$MX$391,331,FALSE) -> 2,997 | K112: 5 € | L112: 3.00 | M112: =VLOOKUP($B$7,'Indicateurs Cumulés'!$D$3:$MX$391,337,FALSE) -> 45 | N112: =IF(ISERROR(M112/VLOOKUP($B$7,'Indicateurs Cumulés'!$D$3:$MX$391,223,FALSE)),"nc",M112/VLOOKUP($B$7,'Indicateurs Cumulés'!$D$3:$MX$391,223,FALSE)) -> 0.0
B113: Evolution stock de clients équipés Sécurpass | E113: =VLOOKUP($B$7,'Indicateurs mensuels'!$D$3:$KI$391,235,FALSE) -> 806 | F113: 1 € | G113: 5.00 | H113: =VLOOKUP($B$7,'Indicateurs mensuels'!$D$3:$KI$391,241,FALSE) -> 4 | J113: =VLOOKUP($B$7,'Indicateurs Cumulés'!$D$3:$MX$391,332,FALSE) -> 3,225 | K113: 1 € | L113: 5.00 | M113: =VLOOKUP($B$7,'Indicateurs Cumulés'!$D$3:$MX$391,338,FALSE) -> 16 | N113: =IF(ISERROR(M113/VLOOKUP($B$7,'Indicateurs Cumulés'!$D$3:$MX$391,223,FALSE)),"nc",M113/VLOOKUP($B$7,'Indicateurs Cumulés'!$D$3:$MX$391,223,FALSE)) -> 0.0
B115: PNB sur Bonus digital | H115: =SUM(H108:H114) -> 1,541 | M115: =SUM(M108:M114) -> 3,102 | N115: =IF(ISERROR(M115/VLOOKUP($B$7,'Indicateurs Cumulés'!$D$3:$MX$391,223,FALSE)),"nc",M115/VLOOKUP($B$7,'Indicateurs Cumulés'!$D$3:$MX$391,223,FALSE)) -> 2.2
B117: PNB Part variable | H117: =H115+H105 -> 14,353 | M117: =+M105+M115 -> 55,210 | N117: =IF(ISERROR(M117/VLOOKUP($B$7,'Indicateurs Cumulés'!$D$3:$MX$391,223,FALSE)),"nc",M117/VLOOKUP($B$7,'Indicateurs Cumulés'!$D$3:$MX$391,223,FALSE)) -> 39.1 | S117: =+S105+S115 -> 204,509 | T117: =IF(ISERROR(S117/VLOOKUP($B$7,objectifs!$D$4:$IA$373,232,FALSE)),"nc",S117/VLOOKUP($B$7,objectifs!$D$4:$IA$373,232,FALSE)) -> 134.6 | W117: =IF(ISERROR(M117/S117),0,M117/S117) -> 27.0% | X117: =IF(ISERROR(N117-(T117/12*MONTH($C$9))),"nc",N117-(T117/12*MONTH($C$9))) -> -5.8
B120: COLLECTE PRO (yc DAV) - Excédents | E120: =SUM(E121:E124) -> 4,662 | H120: =SUM(H121:H124) -> 193 | J120: =SUM(J121:J124) -> 25,972 | M120: =SUM(M121:M124) -> 945 | N120: =IF(ISERROR(M120/VLOOKUP($B$7,'Indicateurs Cumulés'!$D$3:$MX$391,223,FALSE)),"nc",M120/VLOOKUP($B$7,'Indicateurs Cumulés'!$D$3:$MX$391,223,FALSE)) -> 0.7 | P120: =SUM(P121:P124) -> 40,000 | S120: =SUM(S121:S124) -> 1,601 | T120: =IF(ISERROR(S120/VLOOKUP($B$7,objectifs!$D$4:$IA$373,232,FALSE)),"nc",S120/VLOOKUP($B$7,objectifs!$D$4:$IA$373,232,FALSE)) -> 1.1 | V120: =IF(ISERROR(J120/P120),0,J120/P120) -> 65% | W120: =IF(ISERROR(M120/S120),0,M120/S120) -> 59% | X120: =IF(ISERROR(N120-(T120/12*MONTH($C$9))),"nc",N120-(T120/12*MONTH($C$9))) -> 0.3
B121: DAV Créditeurs PRO - Variation d'EMJ mensuel | E121: =VLOOKUP($B$7,'Indicateurs mensuels'!$D$3:$KI$391,221,FALSE)/12 -> 226 | F121: =K121 -> 1.00% | G121: 5.37 | H121: =E121*F121*G121 -> 12 | J121: =VLOOKUP($B$7,'Indicateurs Cumulés'!$D$3:$MX$391,275,FALSE)*MONTH($C$9)/12 -> -175 | K121: =VLOOKUP($B$7,'Indicateurs Cumulés'!$D$3:$MX$391,186,FALSE) -> 1.00% | L121: =VLOOKUP($B$7,'Indicateurs Cumulés'!$D$3:$MX$391,187,FALSE) -> 5.37 | M121: =J121*K121*L121 -> -9 | N121: =IF(ISERROR(M121/VLOOKUP($B$7,'Indicateurs Cumulés'!$D$3:$MX$391,223,FALSE)),"nc",M121/VLOOKUP($B$7,'Indicateurs Cumulés'!$D$3:$MX$391,223,FALSE)) -> -0.0 | P121: =VLOOKUP($B$7,objectifs!$D$3:$ZZ$391,194,FALSE) -> 15,000 | Q121: =VLOOKUP($B$7,objectifs!$D$3:$ZZ$391,158,FALSE) -> 1.00% | R121: =VLOOKUP($B$7,objectifs!$D$3:$ZZ$391,159,FALSE) -> 5.37 | S121: =P121*Q121*R121 -> 806 | T121: =IF(ISERROR(S121/VLOOKUP($B$7,objectifs!$D$4:$IA$373,232,FALSE)),"nc",S121/VLOOKUP($B$7,objectifs!$D$4:$IA$373,232,FALSE)) -> 0.5 | V121: -1% | W121: -1% | X121: -0.2
B122: Compte Excédent Pro | E122: =VLOOKUP($B$7,'Indicateurs mensuels'!$D$3:$KI$391,222,FALSE) -> 6,164 | F122: 0.60% | G122: 5.37 | H122: =E122*F122*G122 -> 199 | J122: =VLOOKUP($B$7,'Indicateurs Cumulés'!$D$3:$MX$391,273,FALSE) -> 21,853 | K122: ='Indicateurs Cumulés'!$JP$3 -> 0.60% | L122: ='Indicateurs Cumulés'!$JW$3 -> 5.37 | M122: =J122*K122*L122 -> 704 | N122: =IF(ISERROR(M122/VLOOKUP($B$7,'Indicateurs Cumulés'!$D$3:$MX$391,223,FALSE)),"nc",M122/VLOOKUP($B$7,'Indicateurs Cumulés'!$D$3:$MX$391,223,FALSE)) -> 0.5 | P122: =VLOOKUP($B$7,objectifs!$D$3:$ZZ$391,192,FALSE) -> 25,000 | Q122: =VLOOKUP($B$7,objectifs!$D$3:$ZZ$391,90,FALSE) -> 0.60% | R122: =VLOOKUP($B$7,objectifs!$D$3:$ZZ$391,91,FALSE) -> 5.37 | S122: =P122*Q122*R122 -> 806 | T122: =IF(ISERROR(S122/VLOOKUP($B$7,objectifs!$D$4:$IA$373,232,FALSE)),"nc",S122/VLOOKUP($B$7,objectifs!$D$4:$IA$373,232,FALSE)) -> 0.5 | V122: 87% | W122: 87% | X122: 0.3
B123: Assurance Vie | E123: =VLOOKUP($B$7,'Indicateurs mensuels'!$D$3:$KI$391,71,FALSE) -> -637 | F123: 0.45% | G123: 8.00 | H123: =E123*F123*G123 -> -23 | J123: =VLOOKUP($B$7,'Indicateurs Cumulés'!$D$3:$MX$391,272,FALSE) -> 825 | K123: ='Indicateurs Cumulés'!$JO$3 -> 0.45% | L123: ='Indicateurs Cumulés'!$JV$3 -> 8.00 | M123: =J123*K123*L123 -> 30 | N123: =IF(ISERROR(M123/VLOOKUP($B$7,'Indicateurs Cumulés'!$D$3:$MX$391,223,FALSE)),"nc",M123/VLOOKUP($B$7,'Indicateurs Cumulés'!$D$3:$MX$391,223,FALSE)) -> 0.0 | P123: =VLOOKUP($B$7,objectifs!$D$3:$ZZ$391,191,FALSE) -> 6,000 | Q123: =VLOOKUP($B$7,objectifs!$D$3:$ZZ$391,130,FALSE) -> 0.45% | R123: =VLOOKUP($B$7,objectifs!$D$3:$ZZ$391,131,FALSE) -> 8.00 | S123: =P123*Q123*R123 -> 216 | T123: =IF(ISERROR(S123/VLOOKUP($B$7,objectifs!$D$4:$IA$373,232,FALSE)),"nc",S123/VLOOKUP($B$7,objectifs!$D$4:$IA$373,232,FALSE)) -> 0.1 | V123: 14% | W123: 14% | X123: -0.0
B124: Autres | E124: =VLOOKUP($B$7,'Indicateurs mensuels'!$D$3:$HW$391,224,FALSE)+VLOOKUP($B$7,'Indicateurs mensuels'!$D$3:$HW$391,225,FALSE) +VLOOKUP($B$7,'Indicateurs mensuels'!$D$3:$HW$391,226,FALSE)+VLOOKUP($B$7,'Indicateurs mensuels'!$D$3:$HW$391,227,FALSE) -> -1,091 | F124: =H124/E124/G124 -> -0.05% | G124: =L124 -> 9.00 | H124: =VLOOKUP($B$7,'Indicateurs mensuels'!$D$3:$HW$391,228,FALSE) -> 5 | J124: =VLOOKUP($B$7,'Indicateurs Cumulés'!$D$3:$MX$391,268,FALSE)+VLOOKUP($B$7,'Indicateurs Cumulés'!$D$3:$MX$391,270,FALSE) +VLOOKUP($B$7,'Indicateurs Cumulés'!$D$3:$MX$391,274,FALSE)+VLOOKUP($B$7,'Indicateurs Cumulés'!$D$3:$MX$391,303,FALSE) -> 3,469 | K124: =M124/J124/L124 -> 0.71% | L124: ='Indicateurs Cumulés'!$JS$3 -> 9.00 | M124: =VLOOKUP($B$7,'Indicateurs Cumulés'!$D$3:$MX$391,276,FALSE)+VLOOKUP($B$7,'Indicateurs Cumulés'!$D$3:$MX$391,277,FALSE) +VLOOKUP($B$7,'Indicateurs Cumulés'!$D$3:$MX$391,281,FALSE)+VLOOKUP($B$7,'Indicateurs Cumulés'!$D$3:$MX$391,304,FALSE) -> 221 | N124: =IF(ISERROR(M124/VLOOKUP($B$7,'Indicateurs Cumulés'!$D$3:$MX$391,223,FALSE)),"nc",M124/VLOOKUP($B$7,'Indicateurs Cumulés'!$D$3:$MX$391,223,FALSE)) -> 0.2 | P124: =VLOOKUP($B$7,objectifs!$D$3:$ZZ$391,193,FALSE) -> -6,000 | Q124: =VLOOKUP($B$7,objectifs!$D$3:$ZZ$391,86,FALSE) -> 0.70% | R124: =VLOOKUP($B$7,objectifs!$D$3:$ZZ$391,87,FALSE) -> 5.37 | S124: =P124*Q124*R124 -> -226 | T124: =IF(ISERROR(S124/VLOOKUP($B$7,objectifs!$D$4:$IA$373,232,FALSE)),"nc",S124/VLOOKUP($B$7,objectifs!$D$4:$IA$373,232,FALSE)) -> -0.1 | V124: -58% | W124: -98% | X124: 0.2
B126: CREDIT à la CONSOMMATION PRO - Eng. Nets (yc accessoires) | E126: =E127 -> 2,642 | F126: =IF(ISERROR(H126/(E126*G126)),0,H126/(E126*G126)) -> 4.00% | G126: =G127 -> 2.65 | H126: =H127+H128+H129 -> 280 | J126: =J127 -> 13,391 | K126: =IF(ISERROR(M126/(J126*L126)),0,M126/(J126*L126)) -> 3.84% | L126: =L127 -> 2.67 | M126: =M127+M128+M129 -> 1,373 | N126: =IF(ISERROR(M126/VLOOKUP($B$7,'Indicateurs Cumulés'!$D$3:$MX$391,223,FALSE)),"nc",M126/VLOOKUP($B$7,'Indicateurs Cumulés'!$D$3:$MX$391,223,FALSE)) -> 1.0 | P126: =P127 -> 45,000 | Q126: =IF(ISERROR(S126/(P126*R126)),0,S126/(P126*R126)) -> 4.32% | R126: =R127 -> 2.50 | S126: =S127+S128+S129 -> 4,860 | T126: =IF(ISERROR(S126/VLOOKUP($B$7,objectifs!$D$4:$IA$373,232,FALSE)),"nc",S126/VLOOKUP($B$7,objectifs!$D$4:$IA$373,232,FALSE)) -> 3.2 | V126: =IF(ISERROR(J126/P126),0,J126/P126) -> 30% | W126: =IF(ISERROR(M126/S126),0,M126/S126) -> 28% | X126: =IF(ISERROR(N126-(T126/12*MONTH($C$9))),"nc",N126-(T126/12*MONTH($C$9))) -> -0.1
B127: Crédit à la Consommation (marge hors accessoires) | E127: =VLOOKUP($B$7,'Indicateurs mensuels'!$D$3:$KI$391,16,FALSE) -> 2,642 | F127: =VLOOKUP($B$7,'Indicateurs mensuels'!$D$3:$KI$391,17,FALSE) -> 2.93% | G127: =VLOOKUP($B$7,'Indicateurs mensuels'!$D$3:$KI$391,18,FALSE) -> 2.65 | H127: =E127*F127*G127 -> 205 | J127: =VLOOKUP($B$7,'Indicateurs Cumulés'!$D$3:$MX$391,16,FALSE) -> 13,391 | K127: =VLOOKUP($B$7,'Indicateurs Cumulés'!$D$3:$MX$391,17,FALSE) -> 2.87% | L127: =VLOOKUP($B$7,'Indicateurs Cumulés'!$D$3:$MX$391,18,FALSE) -> 2.67 | M127: =J127*K127*L127 -> 1,025 | N127: =IF(ISERROR(M127/VLOOKUP($B$7,'Indicateurs Cumulés'!$D$3:$MX$391,223,FALSE)),"nc",M127/VLOOKUP($B$7,'Indicateurs Cumulés'!$D$3:$MX$391,223,FALSE)) -> 0.7 | P127: =VLOOKUP($B$7,objectifs!$D$3:$ZZ$391,7,FALSE)*objectifs!$J$375/objectifs!$J$373 -> 45,000 | Q127: =VLOOKUP($B$7,objectifs!$D$3:$ZZ$391,8,FALSE) -> 3.05% | R127: =VLOOKUP($B$7,objectifs!$D$3:$ZZ$391,9,FALSE) -> 2.50 | S127: =P127*Q127*R127 -> 3,431 | T127: =IF(ISERROR(S127/VLOOKUP($B$7,objectifs!$D$4:$IA$373,232,FALSE)),"nc",S127/VLOOKUP($B$7,objectifs!$D$4:$IA$373,232,FALSE)) -> 2.3 | V127: 30% | W127: 30% | X127: -0.0
B128: Frais de dossier | H128: =VLOOKUP($B$7,'Indicateurs mensuels'!$D$3:$ZZ$391,94,FALSE) -> 13 | M128: =VLOOKUP($B$7,'Indicateurs Cumulés'!$D$3:$MX$391,95,FALSE) -> 47 | N128: =IF(ISERROR(M128/VLOOKUP($B$7,'Indicateurs Cumulés'!$D$3:$MX$391,223,FALSE)),"nc",M128/VLOOKUP($B$7,'Indicateurs Cumulés'!$D$3:$MX$391,223,FALSE)) -> 0.0 | S128: =VLOOKUP($B$7,objectifs!$D$3:$ZZ$391,62,FALSE)*objectifs!$J$375/objectifs!$J$373 -> 270 | T128: =IF(ISERROR(S128/VLOOKUP($B$7,objectifs!$D$4:$IA$373,232,FALSE)),"nc",S128/VLOOKUP($B$7,objectifs!$D$4:$IA$373,232,FALSE)) -> 0.2 | W128: 17% | X128: -0.0
B129: Commissions ADE | E129: =VLOOKUP($B$7,'Indicateurs mensuels'!$D$3:$KI$391,90,FALSE) -> 157.5% | F129: =VLOOKUP($B$7,'Indicateurs mensuels'!$D$3:$KI$391,89,FALSE) -> 91.9% | H129: =VLOOKUP($B$7,'Indicateurs mensuels'!$D$3:$ZZ$391,91,FALSE) -> 61 | J129: =VLOOKUP($B$7,'Indicateurs Cumulés'!$D$3:$MX$391,87,FALSE) -> 144.5% | K129: =VLOOKUP($B$7,'Indicateurs Cumulés'!$D$3:$MX$391,86,FALSE) -> 94.4% | M129: =+VLOOKUP($B$7,'Indicateurs Cumulés'!$D$3:$MX$391,88,FALSE) -> 301 | N129: =IF(ISERROR(M129/VLOOKUP($B$7,'Indicateurs Cumulés'!$D$3:$MX$391,223,FALSE)),"nc",M129/VLOOKUP($B$7,'Indicateurs Cumulés'!$D$3:$MX$391,223,FALSE)) -> 0.2 | S129: =VLOOKUP($B$7,objectifs!$D$3:$ZZ$391,72,FALSE)*objectifs!$J$375/objectifs!$J$373 -> 1,159 | T129: =IF(ISERROR(S129/VLOOKUP($B$7,objectifs!$D$4:$IA$373,232,FALSE)),"nc",S129/VLOOKUP($B$7,objectifs!$D$4:$IA$373,232,FALSE)) -> 0.8 | W129: 26% | X129: -0.0
B131: CREDIT IMMOBILIER PRO - Eng. Nets (yc accessoires) | E131: =E132 -> 10,831 | F131: =IF(ISERROR(H131/(E131*G131)),0,H131/(E131*G131)) -> 0.35% | G131: =G132 -> 7.12 | H131: =H132+H133+H134+H135 -> 271 | J131: =J132 -> 38,808 | K131: =IF(ISERROR(M131/(J131*L131)),0,M131/(J131*L131)) -> 0.24% | L131: =L132 -> 7.02 | M131: =M132+M133+M134+M135 -> 657 | N131: =IF(ISERROR(M131/VLOOKUP($B$7,'Indicateurs Cumulés'!$D$3:$MX$391,223,FALSE)),"nc",M131/VLOOKUP($B$7,'Indicateurs Cumulés'!$D$3:$MX$391,223,FALSE)) -> 0.5 | P131: =P132 -> 120,000 | Q131: =IF(ISERROR(S131/(P131*R131)),0,S131/(P131*R131)) -> 0.49% | R131: =R132 -> 7.50 | S131: =S132+S133+S134+S135 -> 4,375 | T131: =IF(ISERROR(S131/VLOOKUP($B$7,objectifs!$D$4:$IA$373,232,FALSE)),"nc",S131/VLOOKUP($B$7,objectifs!$D$4:$IA$373,232,FALSE)) -> 2.9 | V131: =IF(ISERROR(J131/P131),0,J131/P131) -> 32% | W131: =IF(ISERROR(M131/S131),0,M131/S131) -> 15% | X131: =IF(ISERROR(N131-(T131/12*MONTH($C$9))),"nc",N131-(T131/12*MONTH($C$9))) -> -0.5
B132: Crédit Immobilier (marge hors accessoires) | E132: =VLOOKUP($B$7,'Indicateurs mensuels'!$D$3:$KI$391,19,FALSE) -> 10,831 | F132: =VLOOKUP($B$7,'Indicateurs mensuels'!$D$3:$KI$391,20,FALSE) -> 0.00% | G132: =VLOOKUP($B$7,'Indicateurs mensuels'!$D$3:$KI$391,21,FALSE) -> 7.12 | H132: =E132*F132*G132 -> 4 | J132: =VLOOKUP($B$7,'Indicateurs Cumulés'!$D$3:$MX$391,19,FALSE) -> 38,808 | K132: =VLOOKUP($B$7,'Indicateurs Cumulés'!$D$3:$MX$391,20,FALSE) -> -0.09% | L132: =VLOOKUP($B$7,'Indicateurs Cumulés'!$D$3:$MX$391,21,FALSE) -> 7.02 | M132: =J132*K132*L132 -> -258 | N132: =IF(ISERROR(M132/VLOOKUP($B$7,'Indicateurs Cumulés'!$D$3:$MX$391,223,FALSE)),"nc",M132/VLOOKUP($B$7,'Indicateurs Cumulés'!$D$3:$MX$391,223,FALSE)) -> -0.2 | P132: =VLOOKUP($B$7,objectifs!$D$3:$ZZ$391,10,FALSE)*objectifs!$M$375/objectifs!$M$373 -> 120,000 | Q132: =VLOOKUP($B$7,objectifs!$D$3:$ZZ$391,12,FALSE) -> 0.20% | R132: =VLOOKUP($B$7,objectifs!$D$3:$ZZ$391,13,FALSE) -> 7.50 | S132: =P132*Q132*R132 -> 1,800 | T132: =IF(ISERROR(S132/VLOOKUP($B$7,objectifs!$D$4:$IA$373,232,FALSE)),"nc",S132/VLOOKUP($B$7,objectifs!$D$4:$IA$373,232,FALSE)) -> 1.2 | V132: 32% | W132: -14% | X132: -0.6
B133: Frais de dossier | H133: =VLOOKUP($B$7,'Indicateurs mensuels'!$D$3:$ZZ$391,93,FALSE) -> 31 | M133: =+VLOOKUP($B$7,'Indicateurs Cumulés'!$D$3:$MX$391,97,FALSE) -> 109 | N133: =IF(ISERROR(M133/VLOOKUP($B$7,'Indicateurs Cumulés'!$D$3:$MX$391,223,FALSE)),"nc",M133/VLOOKUP($B$7,'Indicateurs Cumulés'!$D$3:$MX$391,223,FALSE)) -> 0.1 | S133: =VLOOKUP($B$7,objectifs!$D$3:$ZZ$391,63,FALSE)*objectifs!$M$375/objectifs!$M$373 -> 360 | T133: =IF(ISERROR(S133/VLOOKUP($B$7,objectifs!$D$4:$IA$373,232,FALSE)),"nc",S133/VLOOKUP($B$7,objectifs!$D$4:$IA$373,232,FALSE)) -> 0.2 | W133: 30% | X133: -0.0
B134: Commissions ADE (coefficient multiplicateur de 1,3 X) | E134: =VLOOKUP($B$7,'Indicateurs mensuels'!$D$3:$KI$391,84,FALSE) -> 144.7% | F134: =VLOOKUP($B$7,'Indicateurs mensuels'!$D$3:$KI$391,83,FALSE) -> 61.9% | H134: =VLOOKUP($B$7,'Indicateurs mensuels'!$D$3:$ZZ$391,85,FALSE) -> 223 | J134: =VLOOKUP($B$7,'Indicateurs Cumulés'!$D$3:$MX$391,90,FALSE) -> 131.4% | K134: =VLOOKUP($B$7,'Indicateurs Cumulés'!$D$3:$MX$391,89,FALSE) -> 67.1% | M134: =+VLOOKUP($B$7,'Indicateurs Cumulés'!$D$3:$MX$391,91,FALSE) -> 752 | N134: =IF(ISERROR(M134/VLOOKUP($B$7,'Indicateurs Cumulés'!$D$3:$MX$391,223,FALSE)),"nc",M134/VLOOKUP($B$7,'Indicateurs Cumulés'!$D$3:$MX$391,223,FALSE)) -> 0.5 | S134: =VLOOKUP($B$7,objectifs!$D$3:$ZZ$391,71,FALSE)*objectifs!$M$375/objectifs!$M$373 -> 1,956 | T134: =IF(ISERROR(S134/VLOOKUP($B$7,objectifs!$D$4:$IA$373,232,FALSE)),"nc",S134/VLOOKUP($B$7,objectifs!$D$4:$IA$373,232,FALSE)) -> 1.3 | W134: 38% | X134: 0.1
B135: Commissions SACCEF | H135: =VLOOKUP($B$7,'Indicateurs mensuels'!$D$3:$ZZ$391,98,FALSE) -> 13 | M135: =+VLOOKUP($B$7,'Indicateurs Cumulés'!$D$3:$MX$391,93,FALSE) -> 54 | N135: =IF(ISERROR(M135/VLOOKUP($B$7,'Indicateurs Cumulés'!$D$3:$MX$391,223,FALSE)),"nc",M135/VLOOKUP($B$7,'Indicateurs Cumulés'!$D$3:$MX$391,223,FALSE)) -> 0.0 | S135: =VLOOKUP($B$7,objectifs!$D$3:$ZZ$391,74,FALSE)*objectifs!$M$375/objectifs!$M$373 -> 258 | T135: =IF(ISERROR(S135/VLOOKUP($B$7,objectifs!$D$4:$IA$373,232,FALSE)),"nc",S135/VLOOKUP($B$7,objectifs!$D$4:$IA$373,232,FALSE)) -> 0.2 | W135: 21% | X135: -0.0
B137: CREDIT MLT PRO - Eng. Nets (yc accessoires) | E137: =E138+E139 -> 21,964 | F137: =IF(ISERROR(H137/(E137*G137)),0,H137/(E137*G137)) -> 0.75% | G137: =SUMPRODUCT(G138:G139,E138:E139)/(E138+E139) -> 4.24 | H137: =H138+H139+H140+H141 -> 694 | J137: =J138+J139 -> 96,180 | K137: =IF(ISERROR(M137/(J137*L137)),0,M137/(J137*L137)) -> 0.58% | L137: =SUMPRODUCT(L138:L139,J138:J139)/(J138+J139) -> 4.41 | M137: =M138+M139+M140+M141 -> 2,478 | N137: =IF(ISERROR(M137/VLOOKUP($B$7,'Indicateurs Cumulés'!$D$3:$MX$391,223,FALSE)),"nc",M137/VLOOKUP($B$7,'Indicateurs Cumulés'!$D$3:$MX$391,223,FALSE)) -> 1.8 | P137: =P138+P139 -> 250,000 | Q137: =IF(ISERROR(S137/(P137*R137)),0,S137/(P137*R137)) -> 0.70% | R137: =SUMPRODUCT(R138:R139,P138:P139)/(P138+P139) -> 4.39 | S137: =S138+S139+S140+S141 -> 7,646 | T137: =IF(ISERROR(S137/VLOOKUP($B$7,objectifs!$D$4:$IA$373,232,FALSE)),"nc",S137/VLOOKUP($B$7,objectifs!$D$4:$IA$373,232,FALSE)) -> 5.0 | V137: =IF(ISERROR(J137/P137),0,J137/P137) -> 38% | W137: =IF(ISERROR(M137/S137),0,M137/S137) -> 32% | X137: =IF(ISERROR(N137-(T137/12*MONTH($C$9))),"nc",N137-(T137/12*MONTH($C$9))) -> 0.1
B138: Crédit MLT (marge hors accessoires) | E138: =VLOOKUP($B$7,'Indicateurs mensuels'!$D$3:$KI$391,22,FALSE) -> 20,922 | F138: =VLOOKUP($B$7,'Indicateurs mensuels'!$D$3:$KI$391,23,FALSE) -> 0.54% | G138: =VLOOKUP($B$7,'Indicateurs mensuels'!$D$3:$KI$391,24,FALSE) -> 4.34 | H138: =E138*F138*G138 -> 493 | J138: =VLOOKUP($B$7,'Indicateurs Cumulés'!$D$3:$MX$391,22,FALSE) -> 92,388 | K138: =VLOOKUP($B$7,'Indicateurs Cumulés'!$D$3:$MX$391,23,FALSE) -> 0.42% | L138: =VLOOKUP($B$7,'Indicateurs Cumulés'!$D$3:$MX$391,24,FALSE) -> 4.50 | M138: =J138*K138*L138 -> 1,731 | N138: =IF(ISERROR(M138/VLOOKUP($B$7,'Indicateurs Cumulés'!$D$3:$MX$391,223,FALSE)),"nc",M138/VLOOKUP($B$7,'Indicateurs Cumulés'!$D$3:$MX$391,223,FALSE)) -> 1.2 | P138: =VLOOKUP($B$7,objectifs!$D$3:$ZZ$391,20,FALSE) -> 238,000 | Q138: =VLOOKUP($B$7,objectifs!$D$3:$ZZ$391,21,FALSE) -> 0.40% | R138: =VLOOKUP($B$7,objectifs!$D$3:$ZZ$391,22,FALSE) -> 4.50 | S138: =P138*Q138*R138 -> 4,284 | T138: =IF(ISERROR(S138/VLOOKUP($B$7,objectifs!$D$4:$IA$373,232,FALSE)),"nc",S138/VLOOKUP($B$7,objectifs!$D$4:$IA$373,232,FALSE)) -> 2.8 | V138: 39% | W138: 40% | X138: 0.3
B139: Crédit Bail Mobilier | E139: =VLOOKUP($B$7,'Indicateurs mensuels'!$D$3:$GI$391,185,FALSE) -> 1,042 | F139: =VLOOKUP($B$7,'Indicateurs mensuels'!$D$3:$GI$391,186,FALSE) -> 1.09% | G139: =VLOOKUP($B$7,'Indicateurs mensuels'!$D$3:$GI$391,187,FALSE) -> 2.27 | H139: =E139*F139*G139 -> 26 | J139: =VLOOKUP($B$7,'Indicateurs Cumulés'!$D$3:$MX$391,193,FALSE) -> 3,792 | K139: =VLOOKUP($B$7,'Indicateurs Cumulés'!$D$3:$MX$391,194,FALSE) -> 0.90% | L139: =VLOOKUP($B$7,'Indicateurs Cumulés'!$D$3:$MX$391,195,FALSE) -> 2.31 | M139: =J139*K139*L139 -> 79 | N139: =IF(ISERROR(M139/VLOOKUP($B$7,'Indicateurs Cumulés'!$D$3:$MX$391,223,FALSE)),"nc",M139/VLOOKUP($B$7,'Indicateurs Cumulés'!$D$3:$MX$391,223,FALSE)) -> 0.1 | P139: =VLOOKUP($B$7,objectifs!$D$3:$ZZ$391,14,FALSE) -> 12,000 | Q139: =VLOOKUP($B$7,objectifs!$D$3:$ZZ$391,15,FALSE) -> 0.40% | R139: =VLOOKUP($B$7,objectifs!$D$3:$ZZ$391,16,FALSE) -> 2.30 | S139: =P139*Q139*R139 -> 110.40 | T139: =IF(ISERROR(S139/VLOOKUP($B$7,objectifs!$D$4:$IA$373,232,FALSE)),"nc",S139/VLOOKUP($B$7,objectifs!$D$4:$IA$373,232,FALSE)) -> 0.1 | V139: 32% | W139: 72% | X139: 0.0
B140: Frais de dossier (yc CBM) | H140: =VLOOKUP($B$7,'Indicateurs mensuels'!$D$3:$KI$391,92,FALSE)+VLOOKUP($B$7,'Indicateurs mensuels'!$D$3:$KI$391,97,FALSE) -> 67 | M140: =VLOOKUP($B$7,'Indicateurs Cumulés'!$D$3:$MX$391,92,FALSE)+VLOOKUP($B$7,'Indicateurs Cumulés'!$D$3:$MX$391,94,FALSE) -> 278 | N140: =IF(ISERROR(M140/VLOOKUP($B$7,'Indicateurs Cumulés'!$D$3:$MX$391,223,FALSE)),"nc",M140/VLOOKUP($B$7,'Indicateurs Cumulés'!$D$3:$MX$391,223,FALSE)) -> 0.2 | S140: =VLOOKUP($B$7,objectifs!$D$3:$ZZ$391,66,FALSE) -> 750 | T140: =IF(ISERROR(S140/VLOOKUP($B$7,objectifs!$D$4:$IA$373,232,FALSE)),"nc",S140/VLOOKUP($B$7,objectifs!$D$4:$IA$373,232,FALSE)) -> 0.5 | W140: 37% | X140: 0.0
B141: Commissions ADE | E141: =VLOOKUP($B$7,'Indicateurs mensuels'!$D$3:$KI$391,219,FALSE) -> 105.5% | F141: =VLOOKUP($B$7,'Indicateurs mensuels'!$D$3:$KI$391,218,FALSE) -> 82.6% | H141: =VLOOKUP($B$7,'Indicateurs mensuels'!$D$3:$ZZ$391,220,FALSE) -> 108 | J141: =VLOOKUP($B$7,'Indicateurs Cumulés'!$D$3:$MX$391,107,FALSE) -> 107.4% | K141: =VLOOKUP($B$7,'Indicateurs Cumulés'!$D$3:$MX$391,106,FALSE) -> 66.4% | M141: =VLOOKUP($B$7,'Indicateurs Cumulés'!$D$3:$MX$391,108,FALSE) -> 390 | N141: =IF(ISERROR(M141/VLOOKUP($B$7,'Indicateurs Cumulés'!$D$3:$MX$391,223,FALSE)),"nc",M141/VLOOKUP($B$7,'Indicateurs Cumulés'!$D$3:$MX$391,223,FALSE)) -> 0.3 | S141: =VLOOKUP($B$7,objectifs!$D$3:$ZZ$391,75,FALSE) -> 2,501 | T141: =IF(ISERROR(S141/VLOOKUP($B$7,objectifs!$D$4:$IA$373,232,FALSE)),"nc",S141/VLOOKUP($B$7,objectifs!$D$4:$IA$373,232,FALSE)) -> 1.6 | W141: 16% | X141: -0.3
B143: BANCA PRO - Ventes nettes | E143: =SUM(E144:E150) -> 161 | H143: =SUM(H144:H150) -> 719 | J143: =SUM(J144:J150) -> 1,299 | M143: =SUM(M144:M150) -> 1,598 | N143: =IF(ISERROR(M143/VLOOKUP($B$7,'Indicateurs Cumulés'!$D$3:$MX$391,223,FALSE)),"nc",M143/VLOOKUP($B$7,'Indicateurs Cumulés'!$D$3:$MX$391,223,FALSE)) -> 1.1 | P143: =SUM(P144:P150) -> 4,570 | S143: =SUM(S144:S150) -> 4,913 | T143: =IF(ISERROR(S143/VLOOKUP($B$7,objectifs!$D$4:$IA$373,232,FALSE)),"nc",S143/VLOOKUP($B$7,objectifs!$D$4:$IA$373,232,FALSE)) -> 3.2 | V143: =IF(ISERROR(J143/P143),0,J143/P143) -> 28% | W143: =IF(ISERROR(M143/S143),0,M143/S143) -> 33% | X143: =IF(ISERROR(N143-(T143/12*MONTH($C$9))),"nc",N143-(T143/12*MONTH($C$9))) -> 0.1
B144: Forfaits PRO - Tarification | E144: =J144-(VLOOKUP($B$7,'Indicateurs Cumulés M-1'!$D$3:$MX$390,284,FALSE)+VLOOKUP($B$7,'Indicateurs Cumulés M-1'!$D$3:$MX$390,286,FALSE)) -> 71 | F144: =K144 -> 255 € | G144: 5.00 | H144: =E144*F144*G144/1000 -> 91 | J144: =VLOOKUP($B$7,'Indicateurs Cumulés'!$D$3:$MX$391,284,FALSE)+VLOOKUP($B$7,'Indicateurs Cumulés'!$D$3:$MX$391,286,FALSE) -> 583 | K144: =IF(ISERROR(M144/(J144*L144)*1000),0,M144/(J144*L144)*1000) -> 255 € | L144: =objectifs!$HD$3 -> 5.00 | M144: =(VLOOKUP($B$7,'Indicateurs Cumulés'!$D$3:$MX$391,290,FALSE)+VLOOKUP($B$7,'Indicateurs Cumulés'!$D$3:$MX$391,292,FALSE)) -> 743 | N144: =IF(ISERROR(M144/VLOOKUP($B$7,'Indicateurs Cumulés'!$D$3:$MX$391,223,FALSE)),"nc",M144/VLOOKUP($B$7,'Indicateurs Cumulés'!$D$3:$MX$391,223,FALSE)) -> 0.5 | P144: =VLOOKUP($B$7,objectifs!$D$3:$ZZ$391,203,FALSE)+VLOOKUP($B$7,objectifs!$D$3:$ZZ$391,205,FALSE) -> 1,500 | Q144: =IF(ISERROR(S144/(P144*R144)*1000),0,S144/(P144*R144)*1000) -> 204 € | R144: =objectifs!$HD$3 -> 5.00 | S144: =VLOOKUP($B$7,objectifs!$D$3:$ZZ$391,209,FALSE)+VLOOKUP($B$7,objectifs!$D$3:$ZZ$391,211,FALSE) -> 1,529 | T144: =IF(ISERROR(S144/VLOOKUP($B$7,objectifs!$D$4:$IA$373,232,FALSE)),"nc",S144/VLOOKUP($B$7,objectifs!$D$4:$IA$373,232,FALSE)) -> 1.0 | V144: 39% | W144: 49% | X144: 0.2
B145: Cartes PRO - Tarification | E145: =J145-(VLOOKUP($B$7,'Indicateurs Cumulés M-1'!$D$3:$MX$390,287,FALSE)+VLOOKUP($B$7,'Indicateurs Cumulés M-1'!$D$3:$MX$390,288,FALSE)+VLOOKUP($B$7,'Indicateurs Cumulés M-1'!$D$3:$MX$390,285,FALSE)) -> 51 | F145: 95 € | G145: 5.00 | H145: =E145*F145*G145/1000 -> 24 | J145: =VLOOKUP($B$7,'Indicateurs Cumulés'!$D$3:$MX$391,287,FALSE)+VLOOKUP($B$7,'Indicateurs Cumulés'!$D$3:$MX$391,288,FALSE)+VLOOKUP($B$7,'Indicateurs Cumulés'!$D$3:$MX$391,285,FALSE) -> 405 | K145: =IF(ISERROR(M145/(J145*L145)*1000),0,M145/(J145*L145)*1000) -> 95 € | L145: =objectifs!$HE$3 -> 5.00 | M145: =(VLOOKUP($B$7,'Indicateurs Cumulés'!$D$3:$MX$391,293,FALSE)+VLOOKUP($B$7,'Indicateurs Cumulés'!$D$3:$MX$391,291,FALSE)+VLOOKUP($B$7,'Indicateurs Cumulés'!$D$3:$MX$391,294,FALSE)) -> 193 | N145: =IF(ISERROR(M145/VLOOKUP($B$7,'Indicateurs Cumulés'!$D$3:$MX$391,223,FALSE)),"nc",M145/VLOOKUP($B$7,'Indicateurs Cumulés'!$D$3:$MX$391,223,FALSE)) -> 0.1 | P145: =VLOOKUP($B$7,objectifs!$D$3:$ZZ$391,204,FALSE)+VLOOKUP($B$7,objectifs!$D$3:$ZZ$391,206,FALSE)+VLOOKUP($B$7,objectifs!$D$3:$ZZ$391,207,FALSE) -> 1,000 | Q145: =IF(ISERROR(S145/(P145*R145)*1000),0,S145/(P145*R145)*1000) -> 150 € | R145: =objectifs!$HE$3 -> 5.00 | S145: =VLOOKUP($B$7,objectifs!$D$3:$ZZ$391,210,FALSE)+VLOOKUP($B$7,objectifs!$D$3:$ZZ$391,212,FALSE)+VLOOKUP($B$7,objectifs!$D$3:$ZZ$391,213,FALSE) -> 748 | T145: =IF(ISERROR(S145/VLOOKUP($B$7,objectifs!$D$4:$IA$373,232,FALSE)),"nc",S145/VLOOKUP($B$7,objectifs!$D$4:$IA$373,232,FALSE)) -> 0.5 | V145: 41% | W145: 26% | X145: -0.0
B146: AUTO PRO (ventes brutes) - Commissions | E146: =J146-VLOOKUP($B$7,'Indicateurs Cumulés M-1'!$D$3:$MX$390,74,FALSE) -> 17 | F146: 100 € | G146: 2.75 | H146: 5 | J146: =VLOOKUP($B$7,'Indicateurs Cumulés'!$D$3:$MX$391,74,FALSE) -> 54 | K146: =IF(ISERROR(M146/(J146*L146)*1000),0,M146/(J146*L146)*1000) -> 100 € | L146: =objectifs!$HX$3 -> 2.75 | M146: =VLOOKUP($B$7,'Indicateurs Cumulés'!$D$3:$MX$391,75,FALSE) -> 15 | N146: =IF(ISERROR(M146/VLOOKUP($B$7,'Indicateurs Cumulés'!$D$3:$MX$391,223,FALSE)),"nc",M146/VLOOKUP($B$7,'Indicateurs Cumulés'!$D$3:$MX$391,223,FALSE)) -> 0.0 | P146: =VLOOKUP($B$7,objectifs!$D$3:$ZZ$391,226,FALSE) -> 340 | Q146: =IF(ISERROR(S146/(P146*R146)*1000),0,S146/(P146*R146)*1000) -> 100 € | R146: =objectifs!$HX$3 -> 2.75 | S146: =VLOOKUP($B$7,objectifs!$D$3:$ZZ$391,229,FALSE) -> 94 | T146: =IF(ISERROR(S146/VLOOKUP($B$7,objectifs!$D$4:$IA$373,232,FALSE)),"nc",S146/VLOOKUP($B$7,objectifs!$D$4:$IA$373,232,FALSE)) -> 0.1 | V146: 16% | W146: 16% | X146: -0.0
B147: Multirisque PRO (ventes brutes) - Commissions | E147: =J147-VLOOKUP($B$7,'Indicateurs Cumulés M-1'!$D$3:$MX$390,76,FALSE) -> -9 | F147: 30 € | G147: 3.96 | H147: -1 | J147: =VLOOKUP($B$7,'Indicateurs Cumulés'!$D$3:$MX$391,76,FALSE) -> 58 | K147: 30 € | L147: =objectifs!$HY$3 -> 3.96 | M147: =VLOOKUP($B$7,'Indicateurs Cumulés'!$D$3:$MX$391,77,FALSE) -> 7 | N147: =IF(ISERROR(M147/VLOOKUP($B$7,'Indicateurs Cumulés'!$D$3:$MX$391,223,FALSE)),"nc",M147/VLOOKUP($B$7,'Indicateurs Cumulés'!$D$3:$MX$391,223,FALSE)) -> 0.0 | P147: =VLOOKUP($B$7,objectifs!$D$3:$ZZ$391,227,FALSE) -> 510 | Q147: 30 € | R147: =objectifs!$HY$3 -> 3.96 | S147: =VLOOKUP($B$7,objectifs!$D$3:$ZZ$391,230,FALSE) -> 61 | T147: =IF(ISERROR(S147/VLOOKUP($B$7,objectifs!$D$4:$IA$373,232,FALSE)),"nc",S147/VLOOKUP($B$7,objectifs!$D$4:$IA$373,232,FALSE)) -> 0.0 | V147: 11% | W147: 11% | X147: -0.0
B148: PAP - Commissions | E148: =J148-VLOOKUP($B$7,'Indicateurs Cumulés M-1'!$D$3:$MX$390,289,FALSE) -> 31 | F148: 18 € | G148: 5.00 | H148: 3 | J148: =VLOOKUP($B$7,'Indicateurs Cumulés'!$D$3:$MX$391,289,FALSE) -> 141 | K148: 18 € | L148: =objectifs!$HI$3 -> 5.00 | M148: =VLOOKUP($B$7,'Indicateurs Cumulés'!$D$3:$MX$391,295,FALSE) -> 12 | N148: =IF(ISERROR(M148/VLOOKUP($B$7,'Indicateurs Cumulés'!$D$3:$MX$391,223,FALSE)),"nc",M148/VLOOKUP($B$7,'Indicateurs Cumulés'!$D$3:$MX$391,223,FALSE)) -> 0.0 | P148: =VLOOKUP($B$7,objectifs!$D$3:$ZZ$391,208,FALSE) -> 480 | Q148: 18 € | R148: =objectifs!$HI$3 -> 5.00 | S148: =VLOOKUP($B$7,objectifs!$D$3:$ZZ$391,214,FALSE) -> 42 | T148: =IF(ISERROR(S148/VLOOKUP($B$7,objectifs!$D$4:$IA$373,232,FALSE)),"nc",S148/VLOOKUP($B$7,objectifs!$D$4:$IA$373,232,FALSE)) -> 0.0 | V148: 29% | W148: 29% | X148: -0.0
B149: Contrats monétiques actifs - Commissions | E149: =J149-VLOOKUP($B$7,'Indicateurs Cumulés M-1'!$D$3:$MX$390,78,FALSE) -> 0 | F149: 100 € | G149: 5.00 | H149: 0 | J149: =VLOOKUP($B$7,'Indicateurs Cumulés'!$D$3:$MX$391,78,FALSE) -> 58 | K149: =IF(ISERROR(M149/(J149*L149)*1000),0,M149/(J149*L149)*1000) -> 100 € | L149: =objectifs!$HZ$3 -> 5.00 | M149: =VLOOKUP($B$7,'Indicateurs Cumulés'!$D$3:$MX$391,79,FALSE) -> 29 | N149: =IF(ISERROR(M149/VLOOKUP($B$7,'Indicateurs Cumulés'!$D$3:$MX$391,223,FALSE)),"nc",M149/VLOOKUP($B$7,'Indicateurs Cumulés'!$D$3:$MX$391,223,FALSE)) -> 0.0 | P149: =VLOOKUP($B$7,objectifs!$D$3:$ZZ$391,228,FALSE) -> 740 | Q149: =IF(ISERROR(S149/(P149*R149)*1000),0,S149/(P149*R149)*1000) -> 100 € | R149: =objectifs!$HZ$3 -> 5.00 | S149: =VLOOKUP($B$7,objectifs!$D$3:$ZZ$391,231,FALSE) -> 370 | T149: =IF(ISERROR(S149/VLOOKUP($B$7,objectifs!$D$4:$IA$373,232,FALSE)),"nc",S149/VLOOKUP($B$7,objectifs!$D$4:$IA$373,232,FALSE)) -> 0.2 | V149: 8% | W149: 8% | X149: -0.1
B150: Commisions de mouvement | H150: =M150 -> 598 | M150: =VLOOKUP($B$7,'Indicateurs Cumulés'!$D$3:$MX$391,297,FALSE) -> 598 | N150: =IF(ISERROR(M150/VLOOKUP($B$7,'Indicateurs Cumulés'!$D$3:$MX$391,223,FALSE)),"nc",M150/VLOOKUP($B$7,'Indicateurs Cumulés'!$D$3:$MX$391,223,FALSE)) -> 0.4 | S150: =VLOOKUP($B$7,objectifs!$D$3:$ZZ$391,216,FALSE) -> 2,069 | T150: =IF(ISERROR(S150/VLOOKUP($B$7,objectifs!$D$4:$IA$373,232,FALSE)),"nc",S150/VLOOKUP($B$7,objectifs!$D$4:$IA$373,232,FALSE)) -> 1.4 | V150: 0% | W150: 29% | X150: -0.0
B152: BANCA PRO Relation privée - Ventes nettes | E152: =SUM(E153:E155) -> -6 | H152: =SUM(H153:H155) -> 15 | J152: =SUM(J153:J155) -> 49 | M152: =SUM(M153:M155) -> -135 | N152: =IF(ISERROR(M152/VLOOKUP($B$7,'Indicateurs Cumulés'!$D$3:$MX$391,223,FALSE)),"nc",M152/VLOOKUP($B$7,'Indicateurs Cumulés'!$D$3:$MX$391,223,FALSE)) -> -0.1 | P152: =SUM(P153:P155) -> 3,035 | Q152: =IF(ISERROR(S152/(P152*R152)*1000),0,S152/(P152*R152)*1000) -> 117 € | R152: =IF(ISERROR(SUMPRODUCT(R153:R155,P153:P155)/SUMPRODUCT(P153:P155)),0,SUMPRODUCT(R153:R155,P153:P155)/SUMPRODUCT(P153:P155)) -> 5.00 | S152: =SUM(S153:S155) -> 1,771 | T152: =IF(ISERROR(S152/VLOOKUP($B$7,objectifs!$D$4:$IA$373,232,FALSE)),"nc",S152/VLOOKUP($B$7,objectifs!$D$4:$IA$373,232,FALSE)) -> 1.2 | V152: =IF(ISERROR(J152/P152),0,J152/P152) -> 2% | W152: =IF(ISERROR(M152/S152),0,M152/S152) -> -8% | X152: =IF(ISERROR(N152-(T152/12*MONTH($C$9))),"nc",N152-(T152/12*MONTH($C$9))) -> -0.5
B153: Forfaits - Tarification | E153: =J153-VLOOKUP($B$7,'Indicateurs Cumulés M-1'!$D$3:$MX$390,314,FALSE) -> 1 | F153: =K153 -> 137 € | G153: 5.00 | H153: =E153*F153*G153/1000 -> 1 | J153: =VLOOKUP($B$7,'Indicateurs Cumulés'!$D$3:$MX$391,314,FALSE) -> -22 | K153: =IF(ISERROR(M153/(J153*L153)*1000),0,M153/(J153*L153)*1000) -> 137 € | L153: =objectifs!$GC$3 -> 5.00 | M153: =VLOOKUP($B$7,'Indicateurs Cumulés'!$D$3:$MX$391,315,FALSE) -> -15 | N153: =IF(ISERROR(M153/VLOOKUP($B$7,'Indicateurs Cumulés'!$D$3:$MX$391,223,FALSE)),"nc",M153/VLOOKUP($B$7,'Indicateurs Cumulés'!$D$3:$MX$391,223,FALSE)) -> -0.0 | P153: =VLOOKUP($B$7,objectifs!$D$3:$ZZ$391,181,FALSE)*5% -> 1,120 | Q153: =objectifs!$GB$3 -> 137 € | R153: =objectifs!$GC$3 -> 5.00 | S153: =P153*Q153*R153/1000 -> 769 | T153: =IF(ISERROR(S153/VLOOKUP($B$7,objectifs!$D$4:$IA$373,232,FALSE)),"nc",S153/VLOOKUP($B$7,objectifs!$D$4:$IA$373,232,FALSE)) -> 0.5 | V153: -2% | W153: -2% | X153: -0.2
B154: Cartes - Tarification | E154: =J154-VLOOKUP($B$7,'Indicateurs Cumulés M-1'!$D$3:$MX$390,316,FALSE) -> 11 | F154: 289 € | G154: 5.00 | H154: =E154*F154*G154/1000 -> 16 | J154: =VLOOKUP($B$7,'Indicateurs Cumulés'!$D$3:$MX$391,316,FALSE) -> -95 | K154: 289 € | L154: =objectifs!$GE$3 -> 5.00 | M154: =VLOOKUP($B$7,'Indicateurs Cumulés'!$D$3:$MX$391,317,FALSE) -> -137 | N154: =IF(ISERROR(M154/VLOOKUP($B$7,'Indicateurs Cumulés'!$D$3:$MX$391,223,FALSE)),"nc",M154/VLOOKUP($B$7,'Indicateurs Cumulés'!$D$3:$MX$391,223,FALSE)) -> -0.1 | P154: =VLOOKUP($B$7,objectifs!$D$3:$ZZ$391,183,FALSE)*5% -> 600 | Q154: =objectifs!$GD$3 -> 289 € | R154: =objectifs!$GE$3 -> 5.00 | S154: =P154*Q154*R154/1000 -> 868 | T154: =IF(ISERROR(S154/VLOOKUP($B$7,objectifs!$D$4:$IA$373,232,FALSE)),"nc",S154/VLOOKUP($B$7,objectifs!$D$4:$IA$373,232,FALSE)) -> 0.6 | V154: -16% | W154: -16% | X154: -0.3
B155: IARD & Prévoyance - Commissions | E155: =J155-VLOOKUP($B$7,'Indicateurs Cumulés M-1'!$D$3:$MX$390,318,FALSE) -> -18 | F155: 20 € | G155: 5.00 | H155: -2 | J155: =VLOOKUP($B$7,'Indicateurs Cumulés'!$D$3:$MX$391,318,FALSE) -> 166 | K155: 20 € | L155: =objectifs!$GG$3 -> 5.00 | M155: =VLOOKUP($B$7,'Indicateurs Cumulés'!$D$3:$MX$391,319,FALSE) -> 17 | N155: =IF(ISERROR(M155/VLOOKUP($B$7,'Indicateurs Cumulés'!$D$3:$MX$391,223,FALSE)),"nc",M155/VLOOKUP($B$7,'Indicateurs Cumulés'!$D$3:$MX$391,223,FALSE)) -> 0.0 | P155: =VLOOKUP($B$7,objectifs!$D$3:$ZZ$391,185,FALSE)*5% -> 1,315 | Q155: =objectifs!$GF$3 -> 20 € | R155: =objectifs!$GG$3 -> 5.00 | S155: =P155*Q155*R155/1000 -> 135 | T155: =IF(ISERROR(S155/VLOOKUP($B$7,objectifs!$D$4:$IA$373,232,FALSE)),"nc",S155/VLOOKUP($B$7,objectifs!$D$4:$IA$373,232,FALSE)) -> 0.1 | V155: 13% | W155: 13% | X155: -0.0
B157: AUTRES | H157: =M157 -> 0 | M157: =VLOOKUP($B$7,'Indicateurs Cumulés'!$D$3:$MX$391,73,FALSE) -> 0 | N157: =IF(ISERROR(M157/VLOOKUP($B$7,'Indicateurs Cumulés'!$D$3:$MX$391,223,FALSE)),"nc",M157/VLOOKUP($B$7,'Indicateurs Cumulés'!$D$3:$MX$391,223,FALSE)) -> 0.0 | S157: =VLOOKUP($B$7,objectifs!$D$3:$ZZ$391,172,FALSE)*objectifs!$FS$375/objectifs!$FS$373 -> -700 | T157: =IF(ISERROR(S157/VLOOKUP($B$7,objectifs!$D$4:$IA$373,232,FALSE)),"nc",S157/VLOOKUP($B$7,objectifs!$D$4:$IA$373,232,FALSE)) -> -0.5 | W157: =IF(ISERROR(M157/S157),0,M157/S157) -> 0% | X157: =IF(ISERROR(N157-(T157/12*MONTH($C$9))),"nc",N157-(T157/12*MONTH($C$9))) -> 0.2
B159: ZOOM PNB PRO* sur Activité Nouvelle | H159: =H152+H120+H126+H131+H137+H143+H157 -> 2,172 | M159: =M152+M120+M126+M131+M137+M143+M157 -> 6,916 | N159: =IF(ISERROR(M159/VLOOKUP($B$7,'Indicateurs Cumulés'!$D$3:$MX$391,223,FALSE)),"nc",M159/VLOOKUP($B$7,'Indicateurs Cumulés'!$D$3:$MX$391,223,FALSE)) -> 4.9 | S159: =S152+S120+S126+S131+S137+S143+S157 -> 24,465 | T159: =IF(ISERROR(S159/VLOOKUP($B$7,objectifs!$D$4:$IA$373,232,FALSE)),"nc",S159/VLOOKUP($B$7,objectifs!$D$4:$IA$373,232,FALSE)) -> 16.1 | W159: =IF(ISERROR(M159/S159),0,M159/S159) -> 28.3% | X159: =IF(ISERROR(N159-(T159/12*MONTH($C$9))),"nc",N159-(T159/12*MONTH($C$9))) -> -0.5
B160: * y compris relation privée du pro

Sheet Lexique
B4: INDICATEURS
A5: Structure
B6: •Mise en place d’une synthèse BDD et d’un zoom Pro (yc relation privée du pro)
B7: •Application des taux réels sur la majorité des lignes de produits Collecte | C7: Les marges de certains produits sont adaptées au niveau local (marges figées) pour être en phase avec la politique commerciale de la CEGEE.
B8: •Ajout de l’indicateur PNB/ETP sur chaque ligne
B9: •Intégration d’un suivi bancarisation « relation privée » du Pro dans la synthèse BDD
A11: ETP
B12: •Le PNB par ETP sur objectifs est déterminé à partir des ETP cible. | C12: Déterminé lors de la fixation des objectifs, il ne change pas
B13: •Le PNB par ETP sur réalisations est calculé à partir de la moyenne des ETP performance. | C13: Mis a jour mensuellement en moyennant les ETP depuis le début d'année
A15: Collecte
B16: •Taux de marge figé à 0,20% sur les produits LEP, LDD, LJ, DAT, Emprunt Ecureuil
B17: •Taux du LGP | C17: Les taux boostés bénéficient d'un mode de calcul adapté a la politique commerciale de la CEGEE
B18: •Ajout des versements FCP structurés (objectif : 75 M€ de versements et 2,1 M€ de PNB)
B19: •Mise en place d'un cap / floor a 150% de l'objectif sur les comptes créditeurs en cas de forte variation
A21: Crédits
B22: •Commissions ADE | C22: Ajout d'un coefficient multiplicateur de 1,3 X sur le montant généré
B23: •Ajout d’un bonus de 1000€ pour chaque client devenu Bpe / JBPe via un crédit immobilier
B24: •Intégration des commissions apporteurs d’affaires venant en déduction du PNB crédit
A26: Bancarisation
B27: •Ajout d’un Booster Cartes à débit différé (40€ par carte à débit différé sur 5 ans) | C27: Sur chaque vente nette de carte à débit différé yc cartes PRO
B28: •Ajout d’un Bonus Mobilité bancaire | C28: 200€ pour chaque client sur la base de la mobilité réglementaire brute
B29: •Ajout d’un Booster sur IARD Auto et MRH (40€ par vente sur 5 ans) | C29: Bonus s'appliquant sur chaque vente nette Auto ou MRH
B30: •Mise en place d’un suivi sur options sur Bouquet Liberté (comptabilisé a partir de la 3e option) | C30: 15€ supplémentaires comptabilisés à compter de la 3e option sur un BL. Pas de pénalité pour les BL ayant moins de 2 options
A32: Autres
B33: •Mise a jour du taux sur commissions immobilières à 4%
B34: •Mise a jour du taux sur remises commerciales à 4%
A36: Bonus digital
B37: •Mise en place d'un floor à 0 sur le PNB lorsque les réalisations sont négatives | C37: Floor mis en place sur les données agrégées pour les secteurs et Dirco

Sheet Liste agences mai 2019
A1: CEGEE | B1: AUBE_HAUTE_MARNE | C1: BAS_RHIN | D1: HAUT_RHIN | E1: MARNE_ARDENNES | F1: MEURTHE_ET_MOSELLE_MEUSE | G1: MOSELLE | H1: VOSGES | I1: AGENCE_PERSONNEL | J1: MESANGE | K1: MBL | L1: BANQUE_DIRIGEANT
A2: AUBE_HAUTE_MARNE | B2: Territoire_TROYES | C2: Territoire_CHAUMONT
A3: BAS_RHIN | B3: Territoire_STRASBOURG | C3: Territoire_HAGUENAU | D3: Territoire_SELESTAT
A4: HAUT_RHIN | B4: Territoire_COLMAR | C4: Territoire_MULHOUSE
A5: MARNE_ARDENNES | B5: Territoire_CHARLEVILLE_MEZIERES | C5: Territoire_CHALONS_EN_CHAMPAGNE | D5: Territoire_REIMS
A6: MEURTHE_ET_MOSELLE_MEUSE | B6: Territoire_PONT_A_MOUSSON | C6: Territoire_NANCY | D6: Territoire_VERDUN
A7: MOSELLE | B7: Territoire_MOSELLE_EST | C7: Territoire_METZ | D7: Territoire_MOSELLE_NORD
A8: VOSGES | B8: Territoire_EPINAL | C8: Territoire_SAINT_DIE
A9: Territoire_TROYES | B9: TROYES GAMBETTA | C9: TROYES 1ER MAI | D9: TROYES BROSSOLETTE | E9: TROYES ZOLA | F9: TROYES CHARTREUX | G9: SAINT ANDRE LES VERGERS | H9: SAINT JULIEN LES VILLAS | I9: SAINTE SAVINE | J9: NOGENT SUR SEINE | K9: ROMILLY SUR SEINE | L9: LA CHAPELLE ST LUC | M9: BRIENNE LE CHATEAU | N9: BAR SUR AUBE | O9: BAR SUR SEINE | P9: ARCIS SUR AUBE | Q9: AIX EN OTHE
A10: Territoire_CHAUMONT | B10: CHATEAUVILLAIN | C10: CHAUMONT HOTEL DE VILLE | D10: CHAUMONT REPUBLIQUE | E10: LANGRES | F10: JOINVILLE | G10: SAINT DIZIER CENTRE | H10: SAINT DIZIER EUROPE | I10: WASSY | J10: NOGENT EN BASSIGNY | K10: CHALINDREY | L10: BOURBONNE LES BAINS
A11: Territoire_STRASBOURG | B11: ECKBOLSHEIM | C11: OBERHAUSBERGEN | D11: STRASBOURG CRONENBOURG | E11: STRASBOURG KOENIGSHOFFEN | F11: STRASBOURG MONTAGNE VERTE | G11: BISCHHEIM | H11: SCHILTIGHEIM CENTRE | I11: SCHILTIGHEIM KLEBER | J11: STRASBOURG ROBERTSAU | K11: ESPACE MESANGE | L11: STRASBOURG ANVERS | M11: STRASBOURG FRANCS BOURGEOIS | N11: STRASBOURG GARE | O11: STRASBOURG HALLES (yc Mésange) | P11: STRASBOURG VOSGES | Q11: STRASBOURG AUSTERLITZ | R11: STRASBOURG DANUBE | S11: STRASBOURG ESPLANADE | T11: STRASBOURG MEINAU | U11: STRASBOURG NEUDORF | V11: STRASBOURG STOCKFELD | W11: LA WANTZENAU | X11: MUNDOLSHEIM | Y11: REICHSTETT | Z11: VENDENHEIM
A12: Territoire_HAGUENAU | B12: BISCHWILLER | C12: DRUSENHEIM | D12: HAGUENAU HOUBLON | E12: HAGUENAU MUSAU | F12: HERRLISHEIM | G12: SCHWEIGHOUSE SUR MODER | H12: SOUFFLENHEIM | I12: BOUXWILLER | J12: GUNDERSHOFFEN | K12: HOCHFELDEN | L12: INGWILLER | M12: NIEDERBRONN LES BAINS | N12: PFAFFENHOFFEN | O12: REICHSHOFFEN | P12: WINGEN SUR MODER | Q12: BRUMATH | R12: HOERDT | S12: WEITBRUCH | T12: WISSEMBOURG | U12: WOERTH | V12: SELTZ | W12: SOULTZ SOUS FORETS | X12: DIEMERINGEN | Y12: MARMOUTIER | Z12: SARRE UNION | AA12: SAVERNE | AB12: BETSCHDORF | AC12: LAUTERBOURG | AD12: TRUCHTERSHEIM
A13: Territoire_SELESTAT | B13: CHATENOIS | C13: MARCKOLSHEIM | D13: SELESTAT CENTRE | E13: SELESTAT OUEST | F13: VILLE | G13: BARR | H13: BENFELD | I13: ERSTEIN | J13: OBERNAI | K13: ROSHEIM | L13: MARLENHEIM | M13: MOLSHEIM | N13: MUTZIG | O13: SCHIRMECK | P13: WASSELONNE | Q13: FEGERSHEIM | R13: ILLKIRCH CENTRE | S13: ILLKIRCH NORD | T13: LINGOLSHEIM | U13: OSTWALD
A14: Territoire_COLMAR | B14: COLMAR MARAICHERS | C14: COLMAR REPUBLIQUE | D14: COLMAR VAUBAN | E14: HORBOURG WIHR | F14: MUNTZENHEIM | G14: NEUF BRISACH | H14: RIBEAUVILLE | I14: COLMAR SAINT JOSEPH | J14: COLMAR SAINTE MARIE | K14: INGERSHEIM | L14: KAYSERSBERG | M14: LAPOUTROIE | N14: LIEPVRE | O14: MUNSTER | P14: ORBEY | Q14: SAINTE MARIE AUX MINES | R14: WINTZENHEIM | S14: ENSISHEIM | T14: GUEBWILLER | U14: PULVERSHEIM | V14: ROUFFACH | W14: SOULTZ | X14: SOULTZMATT
A15: Territoire_MULHOUSE | B15: BRUNSTATT | C15: MULHOUSE DORNACH | D15: MULHOUSE REUNION | E15: MULHOUSE ROOSEVELT | F15: ALTKIRCH | G15: FERRETTE | H15: HUNINGUE | I15: SAINT LOUIS | J15: SIERENTZ | K15: ILLZACH | L15: PFASTATT | M15: RIEDISHEIM | N15: RIXHEIM | O15: WITTENHEIM | P15: CERNAY | Q15: DANNEMARIE | R15: MASEVAUX | S15: SAINT AMARIN | T15: SEPPOIS LE BAS | U15: THANN | V15: WITTELSHEIM
A16: Territoire_CHARLEVILLE_MEZIERES | B16: CHARLEVILLE MOHON | C16: CHARLEVILLE MEZIERES | D16: VILLERS SEMEUSE CORA | E16: CARIGNAN | F16: MOUZON | G16: SEDAN | H16: VRIGNE AUX BOIS | I16: VOUZIERS | J16: RETHEL | K16: GIVET | L16: ROCROI | M16: REVIN | N16: CHARLEVILLE JEAN JAURES | O16: CHARLEVILLE NEVERS
A17: Territoire_CHALONS_EN_CHAMPAGNE | B17: CHALONS VIVIERS | C17: FAGNIERES LECLERC | D17: CHALONS ROOSEVELT | E17: MOURMELON SUIPPES | F17: SARRY | G17: MONTMIRAIL | H17: VERTUS | I17: SEZANNE | J17: SAINTE MENEHOULD | K17: VITRY LE FRANCOIS
A18: Territoire_REIMS | B18: REIMS HOTEL DE VILLE | C18: REIMS SAINT MARCEAUX | D18: REIMS EUROPE | E18: REIMS JEAN JAURES | F18: REIMS SAINTE ANNE | G18: REIMS CHATILLONS | H18: REIMS SAINT REMI | I18: REIMS CENTRE VILLE | J18: REIMS HIPPODROME | K18: FISMES | L18: TINQUEUX | M18: REIMS SAINT THOMAS | N18: BETHENY | O18: VERZY | P18: PIERRY LECLERC | Q18: DORMANS | R18: AY CHAMPAGNE | S18: DAMERY | T18: EPERNAY
A19: Territoire_PONT_A_MOUSSON | B19: DIEULOUARD | C19: FROUARD | D19: PAGNY SUR MOSELLE | E19: POMPEY | F19: PONT A MOUSSON BREUIL | G19: PONT A MOUSSON CENTRALE | H19: LUDRES | I19: CHALIGNY NEUVES MAISONS | J19: TOUL REPUBLIQUE | K19: VEZELISE | L19: CHAMPIGNEULLES | M19: LAXOU LA SAPINIERE | N19: LAXOU ARISTIDE BRIAND | O19: NANCY PLATEAU DE HAYE | P19: NANCY TROIS MAISONS | Q19: VILLERS GENERAL LECLERC | R19: BRIEY | S19: JARNY | T19: JOEUF | U19: PIENNES
A20: Territoire_NANCY | B20: NANCY JEAN JAURES | C20: NANCY PLACE DOMBASLE | D20: NANCY POINT CENTRAL | E20: NANCY SAINT SEBASTIEN | F20: ESSEY LES NANCY | G20: SAINT MAX | H20: TOMBLAINE | I20: DOMBASLE SUR MEURTHE | J20: JARVILLE LA MALGRANGE | K20: NANCY ARTEM | L20: SAINT NICOLAS DE PORT | M20: VANDOEUVRE LES NANCY | N20: BACCARAT | O20: BAYON | P20: BLAINVILLE | Q20: BLAMONT | R20: LUNEVILLE CARNOT | S20: LUNEVILLE CHATEAU
A21: Territoire_VERDUN | B21: ETAIN | C21: VERDUN CENTRALE | D21: VERDUN MAZEL | E21: COMMERCY | F21: SAINT MIHIEL | G21: VAUCOULEURS | H21: BAR LE DUC | I21: LIGNY EN BARROIS | J21: REVIGNY SUR ORNAIN | K21: MONTMEDY | L21: STENAY | M21: LONGUYON | N21: LONGWY BAS | O21: LONGWY HAUT | P21: VILLERUPT
A22: Territoire_MOSELLE_EST | B22: BEHREN LES FORBACH | C22: FORBACH CENTRALE | D22: STIRING WENDEL | E22: BITCHE | F22: GROSBLIEDERSTROFF | G22: NEUNKIRCH | H22: SARREGUEMINES | I22: CHATEAU SALINS | J22: DIEUZE | K22: FAULQUEMONT | L22: MORHANGE | M22: CREUTZWALD | N22: MERLEBACH | O22: HOMBOURG HAUT | P22: PUTTELANGE AUX LACS | Q22: SAINT AVOLD | R22: VALMONT | S22: PHALSBOURG | T22: SARREBOURG
A23: Territoire_METZ | B23: BOULAY | C23: METZ SARRE | D23: SAINT JULIEN LES METZ | E23: METZ SAINT LOUIS | F23: METZ SAINT MAXIMIN | G23: REMILLY | H23: ARS SUR MOSELLE | I23: MARLY | J23: MONTIGNY LES METZ | K23: MOULINS LES METZ | L23: METZ CATHEDRALE | M23: METZ POMPIDOU | N23: METZ MOZART | O23: METZ PLAPPEVILLE | P23: METZ REPUBLIQUE | Q23: METZ SAINT LIVIER | R23: WOIPPY | S23: CLOUANGE | T23: MAIZIERES LES METZ | U23: MARANGE SILVANGE | V23: ROMBAS | W23: SAINTE MARIE AUX CHENES
A24: Territoire_MOSELLE_NORD | B24: BOUSSE | C24: BOUZONVILLE | D24: GUENANGE | E24: HAGONDANGE | F24: METZERVISSE | G24: CATTENOM | H24: HETTANGE GRANDE | I24: SIERCK LES BAINS | J24: YUTZ | K24: AUDUN LE TICHE | L24: FONTOY | M24: HAYANGE | N24: NILVANGE | O24: FAMECK | P24: FLORANGE | Q24: TERVILLE | R24: UCKANGE | S24: THIONVILLE CENTRALE | T24: THIONVILLE COTE DES ROSES | U24: THIONVILLE LA MILLIAIRE
A25: Territoire_EPINAL | B25: CHANTRAINE | C25: EPINAL ARISTIDE BRIAND | D25: EPINAL LEOPOLD BOURG | E25: EPINAL AVRINSART | F25: GOLBEY | G25: CHARMES | H25: MIRECOURT | I25: NOMEXY | J25: THAON LES VOSGES | K25: DOCELLES | L25: ELOYES | M25: LE VAL D AJOL | N25: REMIREMONT | O25: XERTIGNY | P25: CHATENOIS VOSGES | Q25: DARNEY | R25: NEUFCHATEAU | S25: VITTEL
A26: Territoire_SAINT_DIE | B26: FRAIZE | C26: SAINT DIE | D26: SAINT DIE CATHEDRALE | E26: MOYENMOUTIER | F26: RAMBERVILLERS | G26: RAON L ETAPE | H26: SENONES | I26: BRUYERES | J26: CORNIMONT LA BRESSE | K26: GERARDMER | L26: GRANGES AUMONTZEY | M26: LE THILLOT | N26: VAGNEY

Sheet Indicateurs Cumulés
C1: 1 | D1: 2 | E1: 3 | F1: 4 | G1: 5 | H1: 6 | I1: 7 | J1: 8 | K1: 9 | L1: 10 | M1: 11 | N1: 12 | O1: 13 | P1: 14 | Q1: 15 | R1: 16 | S1: 17 | T1: 18 | U1: 19 | V1: 20 | W1: 21 | X1: 22 | Y1: 23 | Z1: 24 | AA1: 25 | AB1: 26 | AC1: 27 | AD1: 28 | AE1: 29 | AF1: 30 | AG1: 31 | AH1: 32 | AI1: 33 | AJ1: 34 | AK1: 35 | AL1: 36 | AM1: 37 | AN1: 38 | AO1: 39 | AP1: 40 | AQ1: 41 | AR1: 42 | AS1: 43 | AT1: 44 | AU1: 45 | AV1: 46 | AW1: 47 | AX1: 48 | AY1: 49 | AZ1: 50 | BA1: 51 | BB1: 52 | BC1: 53 | BD1: 54 | BE1: 55 | BF1: 56 | BG1: 57 | BH1: 58 | BI1: 59 | BJ1: 60 | BK1: 61 | BL1: 62 | BM1: 63 | BN1: 64 | BO1: 65 | BP1: 66 | BQ1: 67 | BR1: 68 | BS1: 69 | BT1: 70 | BU1: 71 | BV1: 72 | BW1: 73 | BX1: 74 | BY1: 75 | BZ1: 76 | CA1: 77 | CB1: 78 | CC1: 79 | CD1: 80 | CE1: 81 | CF1: 82 | CG1: 83 | CH1: 84 | CI1: 85 | CJ1: 86 | CK1: 87 | CL1: 88 | CM1: 89 | CN1: 90 | CO1: 91 | CP1: 92 | CQ1: 93 | CR1: 94 | CS1: 95 | CT1: 96 | CU1: 97 | CV1: 98 | CW1: 99 | CX1: 100 | CY1: 101 | CZ1: 102 | DA1: 103 | DB1: 104 | DC1: 105 | DD1: 106 | DE1: 107 | DF1: 108 | DG1: 109 | DH1: 110 | DI1: 111 | DJ1: 112 | DK1: 113 | DL1: 114 | DM1: 115 | DN1: 116 | DO1: 117 | DP1: 118 | DQ1: 119 | DR1: 120 | DS1: 121 | DT1: 122 | DU1: 123 | DV1: 124 | DW1: 125 | DX1: 126 | DY1: 127 | DZ1: 128 | EA1: 129 | EB1: 130 | EC1: 131 | ED1: 132 | EE1: 133 | EF1: 134 | EG1: 135 | EH1: 136 | EI1: 137 | EJ1: 138 | EK1: 139 | EL1: 140 | EM1: 141 | EN1: 142 | EO1: 143 | EP1: 144 | EQ1: 145 | ER1: 146 | ES1: 147 | ET1: 148 | EU1: 149 | EV1: 150 | EW1: 151 | EX1: 152 | EY1: 153 | EZ1: 154 | FA1: 155 | FB1: 156 | FC1: 157 | FD1: 158 | FE1: 159 | FF1: 160 | FG1: 161 | FH1: 162 | FI1: 163 | FJ1: 164 | FK1: 165 | FL1: 166 | FM1: 167 | FN1: 168 | FO1: 169 | FP1: 170 | FQ1: 171 | FR1: 172 | FS1: 173 | FT1: 174 | FU1: 175 | FV1: 176 | FW1: 177 | FX1: 178 | FY1: 179 | FZ1: 180 | GA1: 181 | GB1: 182 | GC1: 183 | GD1: 184 | GE1: 185 | GF1: 186 | GG1: 187 | GH1: 188 | GI1: 189 | GJ1: 190 | GK1: 191 | GL1: 192 | GM1: 193 | GN1: 194 | GO1: 195 | GP1: 196 | GQ1: 197 | GR1: 198 | GS1: 199 | GT1: 200 | GU1: 201 | GV1: 202 | GW1: 203 | GX1: 204 | GY1: 205 | GZ1: 206 | HA1: 207 | HB1: 208 | HC1: 209 | HD1: 210 | HE1: 211 | HF1: 212 | HG1: 213 | HH1: 214 | HI1: 215 | HJ1: 216 | HK1: 217 | HL1: 218 | HM1: 219 | HN1: 220 | HO1: 221 | HP1: 222 | HQ1: 223 | HR1: 224 | HS1: 225 | HT1: 226 | HU1: 227 | HV1: 228 | HW1: 229 | HX1: 230 | HY1: 231 | HZ1: 232 | IA1: 233 | IB1: 234 | IC1: 235 | ID1: 236 | IE1: 237 | IF1: 238 | IG1: 239 | IH1: 240 | II1: 241 | IJ1: 242 | IK1: 243 | IL1: 244 | IM1: 245 | IN1: 246 | IO1: 247 | IP1: 248 | IQ1: 249 | IR1: 250 | IS1: 251 | IT1: 252 | IU1: 253 | IV1: 254 | IW1: 255 | IX1: 256 | IY1: 257 | IZ1: 258 | JA1: 259 | JB1: 260 | JC1: 261 | JD1: 262 | JE1: 263 | JF1: 264 | JG1: 265 | JH1: 266 | JI1: 267 | JJ1: 268 | JK1: 269 | JL1: 270 | JM1: 271 | JN1: 272 | JO1: 273 | JP1: 274 | JQ1: 275 | JR1: 276 | JS1: 277 | JT1: 278 | JU1: 279 | JV1: 280 | JW1: 281 | JX1: 282 | JY1: 283 | JZ1: 284 | KA1: 285 | KB1: 286 | KC1: 287 | KD1: 288 | KE1: 289 | KF1: 290 | KG1: 291 | KH1: 292 | KI1: 293 | KJ1: 294 | KK1: 295 | KL1: 296 | KM1: 297 | KN1: 298 | KO1: 299 | KP1: 300 | KQ1: 301 | KR1: 302 | KS1: 303 | KT1: 304 | KU1: 305 | KV1: 306 | KW1: 307 | KX1: 308 | KY1: 309 | KZ1: 310 | LA1: 311 | LB1: 312 | LC1: 313 | LD1: 314 | LE1: 315 | LF1: 316 | LG1: 317 | LH1: 318 | LI1: 319 | LJ1: 320 | LK1: 321 | LL1: 322 | LM1: 323 | LN1: 324 | LO1: 325 | LP1: 326 | LQ1: 327 | LR1: 328 | LS1: 329 | LT1: 330 | LU1: 331 | LV1: 332 | LW1: 333 | LX1: 334 | LY1: 335 | LZ1: 336 | MA1: 337 | MB1: 338 | MC1: 339
A2: Id_UC | B2: Id_groupe | C2: Id_Agence | D2: Lib_Agence | E2: DATE Financements Revolving | F2: Fin Revolving | G2: Tx marg Revolving | H2: DVMA Revolving | I2: DATE CRED | J2: volumes conso BDD | K2: Tx marg conso BDD | L2: DVMA Conso BDD | M2: DVMA IF Conso BDD | N2: volumes immo BDD | O2: Durée initiale Immo BDD | P2: Tx marg immo BDD | Q2: DVMA Immo BDD | R2: DVMA IF Immo BDD | S2: volumes conso PRO | T2: Tx marg conso PRO | U2: DVMA Conso PRO | V2: volumes immo PRO | W2: Tx marg immo PRO | X2: DVMA Immo PRO | Y2: volumes Equip | Z2: Tx marg Equip | AA2: DVMA EQUIP | AB2: FDD Immo BDD | AC2: FDD conso BDD | AD2: FDD Equip PRO | AE2: ADE Immo BDD | AF2: ADE Conso BDD | AG2: CAUTION Immo BDD | AH2: DATE ASSVIE | AI2: Flux IT | AJ2: com IT | AK2: Tx com IT | AL2: Flux N3D | AM2: dont Flux N3D UC | AN2: % flux N3D en UC | AO2: com N3D | AP2: Tx com N3D | AQ2: Flux N+ et NP | AR2: dont Flux N+ et NP UC | AS2: %Flux N+ et NP en UC | AT2: com N+ et NP | AU2: Tx com N+ et NP | AV2: Flux Autres Ecu Vie | AW2: dont Flux Autres Ecu Vie UC | AX2: % Flux Autres Ecu Vie UC | AY2: com Autres Ecu Vie | AZ2: Tx com Autres Ecu Vie | BA2: Flux total ECUVIE | BB2: dont total ECUVIE en UC | BC2: % total ECUVIE en UC | BD2: com total ECUVIE | BE2: TX com total ECUVIE | BF2: DVMA | BG2: zoom PNB Crédit CONSO PRO | BH2: zoom PNB Crédit IMMO PRO | BI2: PNB Crédit CONSO (yc revolving) | BJ2: PNB Crédit IMMO | BK2: PNB Crédit MLT | BL2: TCA IMMO BDD | BM2: TCI IMMO BDD | BN2: Id Ecureuil Vie | BO2: Arbitrage fonds € vers UC Volume | BP2: Arbitrage fonds € vers UC PNB | BQ2: FCP structurés (versements) | BR2: FCP structurés PNB | BS2: Booster IARD Auto | BT2: Booster IARD MRH | BU2: Comm apporteurs d'affaires BDD | BV2: Remises commerciales dont Hors MAD | BW2: Remises commerciales dont MAD | BX2: Remises commerciales dont PRO | BY2: Auto PRO Volume | BZ2: Auto PRO PNB | CA2: MRH PRO Volume | CB2: MRH PRO PNB | CC2: Contrats monétiques actif PRO | CD2: Contrats monétiques actif PRO PNB | CE2: Contrats Mobilité bancaire | CF2: Bonus Mobilité bancaire | CG2: Carte Senséa | CH2: PNB cartes Senséa | CI2: Bonus Bancarisation Crédit Immo | CJ2: Bonus Bancarisation PNB Crédit Immo | CK2: taux de pénétration DES PRET CONSO PRO | CL2: QUOTITE ASSUREE CONSO PRO | CM2: PNB CNP CONSO PRO | CN2: QUOTITE ASSUREE IMMO PRO | CO2: PNB CNP IMMO PRO | CP2: PNB CNP IMMO PRO | CQ2: FDD EQUIP MARCHE BDD | CR2: CAUTION IMMO PRO | CS2: FDD CB Marché PRO | CT2: FDD CONSO MARCHE PRO | CU2: FDD CONSO MARCHE BDD | CV2: FDD IMMO MARCHE PRO | CW2: FDD IMMO MARCHE BDD | CX2: taux de pénétration DES PRET IMMO | CY2: QUOTITE ASSUREE IMMO | CZ2: PNB CNP IMMO BDD | DA2: taux de pénétration DES PRET CONSO BDD | DB2: QUOTITE ASSUREE CONSO BDD | DC2: PNB CNP CONSO BDD | DD2: Taux de conso de l'enveloppe dérogatoire CNP IMMO | DE2: taux de pénétration DES PRET MLT agences | DF2: QUOTITE ASSUREE MLT agences | DG2: PNB CNP MLT agences | DH2: Volumes LA BDD | DI2: Tx marg LA BDD | DJ2: DVMA LA BDD | DK2: PNB LA BDD | DL2: Volumes LB BDD | DM2: Tx marg LB BDD | DN2: DVMA LB BDD | DO2: PNB LB BDD | DP2: Volumes LGF BDD | DQ2: Tx marg LGF BDD | DR2: DVMA LGF BDD | DS2: PNB LGF BDD | DT2: Volumes LGP BDD | DU2: Tx marg LGP BDD | DV2: DVMA LGP BDD | DW2: PNB LGP BDD | DX2: Volumes LEP BDD | DY2: Tx marg LEP BDD | DZ2: DVMA LEP BDD | EA2: PNB LEP BDD | EB2: Volumes LDD BDD | EC2: Tx marg LDD BDD | ED2: DVMA LDD BDD | EE2: PNB LDD BDD | EF2: Volumes LJ (yc 10-12) BDD | EG2: Tx marg LJ (yc 10-12) BDD | EH2: DVMA LJ (yc 10-12) BDD | EI2: PNB LJ (yc 10-12) BDD | EJ2: Volumes CEL BDD | EK2: Tx marg CEL BDD | EL2: DVMA CEL BDD | EM2: PNB CEL BDD | EN2: Volumes SLR BDD | EO2: Tx marg SLR BDD | EP2: DVMA SLR BDD | EQ2: PNB SLR BDD | ER2: Volumes DAT BDD | ES2: Tx marg DAT BDD | ET2: DVMA DAT BDD | EU2: PNB DAT BDD | EV2: Volumes PEL BDD | EW2: Tx marg PEL BDD | EX2: DVMA PEL BDD | EY2: PNB PEL BDD | EZ2: Volumes PEP BDD | FA2: Tx marg PEP BDD | FB2: DVMA PEP BDD | FC2: PNB PEP BDD | FD2: Volumes Ass Vie encours BDD | FE2: Tx marg Ass Vie encours BDD | FF2: DVMA Ass Vie encours BDD | FG2: PNB Ass Vie encours BDD | FH2: Volumes Ass Vie flux BDD | FI2: Tx marg Ass Vie flux BDD | FJ2: DVMA Ass Vie flux BDD | FK2: PNB Ass Vie flux BDD | FL2: Volumes OPCVM encours BDD | FM2: Tx marg OPCVM encours BDD | FN2: DVMA OPCVM encours BDD | FO2: PNBOPCVM encours BDD | FP2: Volumes OPCVM flux BDD | FQ2: Tx marg OPCVM flux BDD | FR2: DVMA OPCVM flux BDD | FS2: PNB OPCVM flux BDD | FT2: Volumes Emprunt BDD | FU2: Tx marg Emprunt BDD | FV2: DVMA Emprunt BDD | FW2: PNB Emprunt BDD | FX2: Volumes PS BDD | FY2: Tx marg PS BDD | FZ2: DVMA PS BDD | GA2: PNB PS BDD | GB2: Volumes Epargne Bilan BDD | GC2: PNB Epargne Bilan BDD | GD2: Volumes Epargne Financière BDD | GE2: PNB Epargne Financière BDD | GF2: Volumes CDD créditeurs BDD hors plafond | GG2: Tx marg CDD créditeurs BDD | GH2: DVMA CDD créditeurs BDD | GI2: PNB CDD créditeurs BDD | GJ2: Volumes CDD créditeurs PRO hors plafond | GK2: Options complémentaires BL > 2e | GL2: PNB option | GN2: Volumes Crédit Bail BDD | GO2: Tx marg Crédit Bail BDD | GP2: DVMA Crédit Bail BDD | GQ2: PNB Crédit Bail BDD | GR2: Volumes Ass Vie BP1818 encours | GS2: Tx marg Ass Vie BP1818 encours | GT2: DVMA Ass Vie BP1818 encours | GU2: PNB Ass Vie BP1818 encours | GV2: Volumes Ass Vie BP1818 flux | GW2: Tx marg Ass Vie BP1818 flux | GX2: DVMA Ass Vie BP1818 flux | GY2: PNB Ass Vie BP1818 flux | GZ2: Volumes OPCVM BP1818 encours | HA2: Tx marg OPCVM BP1818 encours | HB2: DVMA OPCVM BP1818 encours | HC2: PNB OPCVM BP1818 encours | HD2: Volumes OPCVM BP1818 flux | HE2: Tx marg OPCVM BP1818 flux | HF2: DVMA OPCVM BP1818 flux | HG2: PNB OPCVM BP1818 flux | HH2: Volumes Autres Val MOB | HI2: Tx marg Autres Val MOB | HJ2: DVMA Autres Val MOB | HK2: PNB Autres Val MOB | HL2: Volumes Remises | HM2: Volumes Facturé | HN2: PNB TOTAL (tous produits hors banca pro) | HO2: Volumes CDD créditeurs BDD plafond (+150% et -50%) | HP2: I selection Volumes (taux pour calcul PNB) | HR2: ETP Performance | HS2: PNB ADE Autres | HT2: Marge CONSO yc access. | HU2: Marge IMMO yc access. | HV2: Marge MLT yc access. | HW2: Auto Part | HX2: MRH Part | HY2: Santé Part | HZ2: GAV Part | IA2: PJ-GU Part | IB2: ESO Part | IC2: GF Part | ID2: Bouquet liberté Autres | IE2: Futéo / SOL 16-17 / Jeune / Autonomie | IF2: Satellis Essentiel / Essentiel + | IG2: Satellis Intégral | IH2: Carte Infinite | II2: Carte Platinum (yc izicarte) | IJ2: Carte visa premier (yc izicarte) | IK2: Carte visa classique (yc izicarte) | IL2: Autres Cartes | IM2: Auto | IN2: MRH | IO2: Santé | IP2: GAV | IQ2: PJ GU | IR2: ESO | IS2: GF | IT2: Bouquet liberté Autres | IU2: Futéo / SOL 16-17 / Jeune / Autonomie | IV2: Satellis Essentiel / Essentiel + | IW2: Satellis Intégral | IX2: Carte Infinite | IY2: Carte Platinum (yc izicarte) | IZ2: Carte visa premier (yc izicarte) | JA2: Carte visa classique (yc izicarte) | JB2: Autres Cartes | JC2: PNB BANCA PART | JD2: PNB PRO Crédit MLT | JE2: SCPI Volumes (taux pour calcul PNB) | JF2: Ventes nettes BANCA | JG2: DVMA | JH2: tarif | JI2: Assistance Vie | JJ2: Assistance Vie | JK2: Volumes DAT PRO | JL2: Tx marg DAT PRO | JM2: Volumes PS PRO | JN2: Volumes Ass Vie flux PRO | JO2: Volumes Ass Vie encours PRO | JP2: Volumes CE PRO | JQ2: Volumes Autre Epargne PRO | JR2: Volumes CDD créditeurs PRO plafond (+150% et -50%) | JS2: PNB DAT PRO | JT2: PNB PS PRO | JU2: PNB Ass Vie flux PRO | JV2: PNB Ass Vie encours PRO | JW2: PNB CE PRO | JX2: PNB Autre Epargne PRO | JY2: PNB CDD créditeurs PRO plafond (+150% et -50%) | JZ2: PNB PRO Collecte yc DAV | KA2: Ventes nettes Libre Convergence Labelis | KB2: Business Platinum | KC2: Auto entrepreneur | KD2: Business | KE2: Business Gold | KF2: PAP | KG2: PNB Libre Convergence | KH2: Business Platinum | KI2: Auto entrepreneur | KJ2: Business | KK2: Business Gold | KL2: PAP | KM2: PNB PRO Banca | KN2: com mouv | KO2: Ventes nettes PV agences | KP2: Ventes nettes PV pros | KQ2: Evol. PROS ACTIFS | KR2: DVMA IARD | KS2: Ventes nettes PRO | KT2: Volumes PEL PRO | KU2: PNB PEL PRO | KV2: CARTE dd ventes nettes | KW2: PNB CARTE débit dif bonus de 40€ x 5 ans par carte nette | KX2: CFF Volumes (taux de 1,00% pour calcul PNB) | KY2: Bouquet liberté HDG | KZ2: Bouquet liberté HDG | LA2: Prévoyance du locataire | LB2: Prévoyance du locataire | LC2: PNB TOTAL | LD2: PNB PRO | LE2: Forfaits Part PRO | LF2: PNB Forfaits Part PRO | LG2: Cartes Part PRO | LH2: PNB Cartes Part PRO | LI2: IARD Part PRO | LJ2: PNB IARD Part PRO | LK2: PNB TOTAL (Hors booster) | LL2: PNB TOTAL (Hors booster) / ETP | LM2: PNB TOTAL COLLECTE | LN2: PNB TOTAL CREDITS | LO2: PNB TOTAL AUTRES | LP2: PNB BANCA part du PRO | LQ2: PNB TOTAL / ETP | LR2: Evolution stock clients actifs BAD (1 connexion / mois sur 3 mois) | LS2: Nombre de SED finalisées (en brut) | LT2: Nombre de SAG finalisées (périmètre SAG hors OPC en brut) | LU2: Evolution stock de clients équipés E-documents | LV2: Evolution stock de clients avec Opt-in-mail et tél. | LW2: Evolution stock de clients équipés Sécurpass | LX2: Evolution stock clients actifs BAD (1 connexion / mois sur 3 mois) PNB | LY2: Nombre de SED finalisées (en brut) PNB | LZ2: Nombre de SAG finalisées (périmètre SAG hors OPC en brut) PNB | MA2: Evolution stock de clients équipés E-documents PNB | MB2: Evolution stock de clients avec Opt-in-mail et tél. PNB | MC2: Evolution stock de clients équipés Sécurpass PNB | MD2: PV Bernard L.
E3: 2019-04-30 | BO3: =objectifs!DY373 -> 0.25% | BP3: =objectifs!DZ373 -> 8.00 | BQ3: 2.80% | BR3: 1.00 | BS3: 40 € | BT3: =BS3 -> 40 € | BY3: 100 € | BZ3: 2.75 | CA3: 30 € | CB3: 3.96 | CC3: 100 € | CD3: 5.00 | CF3: 200 € | CG3: 43 € | CH3: 5.00 | CJ3: 1,000 € | CP3: =CZ3 -> 1.30 | CZ3: 1.30 | EX3: =objectifs!DV373 -> 8.50 | GK3: =objectifs!FJ3 -> 15 € | GL3: =objectifs!FK3 -> 5.00 | HP3: =objectifs!FU373 -> 4.00% | HW3: 43 € | HX3: 25 € | HY3: 65 € | HZ3: 15 € | IA3: 3 € | IB3: 14 € | IC3: 19 € | ID3: 87 € | IE3: 12 € | IF3: 125 € | IG3: 210 € | IH3: 315 € | II3: 200 € | IJ3: 130 € | IK3: 43 € | IL3: 12 € | IM3: 2.75 | IN3: 3.96 | IO3: 3.94 | IP3: 5.37 | IQ3: 6.19 | IR3: 7.00 | IS3: 6.00 | IT3: 5.00 | IU3: 5.00 | IV3: 5.00 | IW3: 5.00 | IX3: 5.00 | IY3: 5.00 | IZ3: 5.00 | JA3: 5.00 | JB3: 5.00 | JE3: =objectifs!FU373 -> 4.00% | JI3: 45 € | JJ3: 9.50 | JK3: 0.20% | JM3: 1.00% | JO3: 0.45% | JP3: =JQ3 -> 0.60% | JQ3: 0.60% | JR3: 1.00% | JS3: 9.00 | JT3: 5.00 | JV3: 8.00 | JW3: 5.37 | JX3: 5.37 | JY3: 5.37 | KA3: =objectifs!GX3 -> 288 € | KB3: =objectifs!GY3 -> 195 € | KC3: =objectifs!GZ3 -> 120 € | KD3: =objectifs!HA3 -> 47 € | KE3: =objectifs!HB3 -> 130 € | KF3: =objectifs!HC3 -> 18 € | KG3: =objectifs!HD3 -> 5.00 | KH3: =objectifs!HE3 -> 5.00 | KI3: =objectifs!HF3 -> 5.00 | KJ3: =objectifs!HG3 -> 5.00 | KK3: =objectifs!HH3 -> 5.00 | KL3: =objectifs!HI3 -> 5.00 | KT3: =EW374 -> 0.00% | KU3: =JS3 -> 9.00 | KW3: 40 € | KX3: 1.00% | KY3: 140 € | KZ3: 5.00 | LA3: 20 € | LB3: 4.50 | LE3: 137 € | LF3: 5.00 | LG3: 289 € | LH3: 5.00 | LI3: 20 € | LJ3: 5.00 | LR3: 5.00 | LS3: 1.00 | LT3: 1.00 | LU3: 5.00 | LV3: 3.00 | LW3: 5.00 | LX3: 15 € | LY3: 10 € | LZ3: 3 € | MA3: 10 € | MB3: 5 € | MC3: 1 €
A4: 105006 | B4: 200262 | C4: 6 | D4: STRASBOURG NEUDORF | E4: =$E$3 -> 2019-04-30 | F4: 66 | G4: 4.32% | H4: 1.57 | I4: 2019-04-30 | J4: 713 | K4: 3.53% | L4: 2.38 | M4: 4.07 | N4: 886 | O4: 0 | P4: -0.09% | Q4: 8.41 | R4: 12.69 | S4: -2 | T4: 8.03% | U4: -5.33 | V4: 130 | W4: 0.18% | X4: 8.85 | Y4: 50 | Z4: 1.17% | AA4: 2.38 | AB4: 3.1 | AC4: 8.0 | AD4: 0.4 | AE4: 28.1 | AF4: 12.8 | AG4: 1.9 | AH4: 201904 | AI4: 3.00 | AJ4: 0.07 | AK4: =IF(ISERROR(AJ4/AI4),0,AJ4/AI4) -> 2.40% | AL4: 156.44 | AM4: 24.64 | AN4: =IF(ISERROR(AM4/AL4),0,AM4/AL4) -> 16% | AO4: 1.63 | AP4: =IF(ISERROR(AO4/AL4),0,AO4/AL4) -> 1.04% | AQ4: 946.18 | AR4: 93.80 | AS4: =IF(ISERROR(AR4/AQ4),0,AR4/AQ4) -> 9.9% | AT4: 5.77 | AU4: =IF(ISERROR(AT4/AQ4),0,AT4/AQ4) -> 0.61% | AV4: 42.63 | AW4: 0.88 | AX4: =IF(ISERROR(AW4/AV4),0,AW4/AV4) -> 2.07% | AY4: 0.48 | AZ4: =IF(ISERROR(AY4/AV4),0,AY4/AV4) -> 1.13% | BA4: 1,148.25 | BB4: 119.32 | BC4: =IF(ISERROR(BB4/BA4),0,BB4/BA4) -> 10.4% | BD4: 7.95 | BE4: =IF(ISERROR(BD4/BA4),0,BD4/BA4) -> 0.69% | BG4: =(S4*T4*U4)+CT4+CM4 -> 1 | BH4: =(V4*W4*X4)+CP4+CR4+CV4 -> 5 | BI4: =(F4*G4*H4)+(J4*K4*L4)+CU4+DC4 -> 81 | BJ4: =(N4*P4*Q4)+AB4+AG4+CZ4+CJ4 -> 23 | BK4: =(Y4*Z4*AA4)+CS4+DG4+GQ4+AD4 -> 2 | BL4: 1.65% | BM4: -0.04% | BN4: 6 | BO4: 145 | BP4: =BO4*$BO$3*$BP$3 -> 3 | BQ4: 98 | BR4: =BQ4*$BQ$3*$BR$3 -> 3 | BS4: =HW4*$BS$3*$IT$3/1000 -> 1 | BT4: =HX4*$BT$3*$IT$3/1000 -> -2 | BU4: -3 | BX4: 0 | BY4: 0 | BZ4: =BY4*$BY$3*$BZ$3/1000 -> 0 | CA4: 0 | CB4: =CA4*$CA$3*$CB$3/1000 -> 0 | CC4: -2 | CD4: =CC4*$CC$3*$CD$3/1000 -> -1 | CE4: 6 | CF4: =+CE4*$CF$3/1000 -> 1.2 | CG4: 7 | CH4: =(CG4*$CG$3*$CH$3)/1000 -> 1 | CI4: 0 | CJ4: =CI4*$CJ$3/1000 -> 0 | CK4: 100.00% | CL4: 200.00% | CM4: 0 | CN4: 100.00% | CO4: 0 | CP4: 2 | CQ4: =AD4 -> 0.4 | CR4: 0 | CS4: 0.00 | CT4: 0 | CU4: 2 | CV4: 0 | CW4: =+AB4 -> 3 | CX4: 100.00% | CY4: 123.60% | CZ4: 25 | DA4: 95.70% | DB4: 128.58% | DC4: 14 | DE4: 100.00% | DF4: 100.00% | DG4: 0 | DH4: 160 | DI4: =DI$374 -> 0.70% | DJ4: 5.33 | DK4: =DH4*DI4*DJ4 -> 6 | DL4: -267 | DM4: =DM$374 -> 0.79% | DN4: 5.33 | DO4: =DL4*DM4*DN4 -> -11 | DP4: -39 | DQ4: =DQ$374 -> 0.90% | DR4: 5.33 | DS4: =DP4*DQ4*DR4 -> -2 | DT4: 127 | DU4: =DU$374 -> 0.40% | DV4: 2.67 | DW4: =DT4*DU4*DV4 -> 1 | DX4: -208 | DY4: =DY$374 -> 0.20% | DZ4: 5.37 | EA4: =DX4*DY4*DZ4 -> -2 | EB4: 144 | EC4: =EC$374 -> 0.20% | ED4: 5.37 | EE4: =EB4*EC4*ED4 -> 2 | EF4: -30 | EG4: =EG$374 -> 0.20% | EH4: 5.37 | EI4: =EF4*EG4*EH4 -> -0 | EJ4: 38 | EK4: =EK$374 -> 0.46% | EL4: 5.33 | EM4: =EJ4*EK4*EL4 -> 1 | EN4: 1 | EO4: =EO$374 -> 0.10% | EP4: 8.75 | EQ4: =EN4*EO4*EP4 -> 0 | ER4: 11 | ES4: =ES$374 -> 0.20% | ET4: 9.00 | EU4: =ER4*ES4*ET4 -> 0 | EV4: -133 | EW4: =EW374 -> 0.00% | EX4: 8.59 | EY4: =EV4*EW4*EX4 -> 0 | EZ4: 0 | FA4: =FA$374 -> -0.37% | FB4: 0.08 | FC4: =EZ4*FA4*FB4 -> 0 | FD4: 247 | FE4: =FE$374 -> 0.45% | FF4: 8.00 | FG4: =FD4*FE4*FF4 -> 9 | FH4: 1,358 | FI4: =BE4 -> 0.69% | FJ4: =FJ$374 -> 1.00 | FK4: =FH4*FI4*FJ4 -> 9 | FL4: -15 | FM4: =FM$374 -> 0.65% | FN4: 5.00 | FO4: =FL4*FM4*FN4 -> -0 | FP4: 6 | FQ4: =FQ$374 -> 0.40% | FR4: 1.00 | FS4: =FP4*FQ4*FR4 -> 0 | FT4: -453 | FU4: =FU$374 -> 0.20% | FV4: 8.00 | FW4: =FT4*FU4*FV4 -> -7 | FX4: 70 | FY4: =FY$374 -> 1.00% | FZ4: 5.00 | GA4: =FX4*FY4*FZ4 -> 3 | GB4: =DH4+DL4+DP4+DT4+DX4+EB4+EF4+EJ4+ER4+EV4+EZ4+FT4+FX4+EN4+JP4 -> -127 | GC4: =DK4+DO4+DS4+DW4+EA4+EE4+EI4+EM4+EU4+EY4+FC4+FW4+GA4+EQ4+JW4 -> 5 | GD4: =FD4+FL4+GR4+GZ4+HH4 -> 209 | GE4: =FG4+FK4+FO4+FS4+GU4+GY4+HC4+HG4+HK4+BP4+BR4 -> 22 | GF4: 35 | GG4: =GG$374 -> 1.00% | GH4: 5.37 | GI4: =GF4*GG4*GH4 -> 2 | GJ4: 182 | GK4: 0 | GL4: =GK4*$GK$3*$GL$3/1000 -> 0 | GN4: 0 | GO4: 0.00% | GP4: 0 | GQ4: =GN4*GO4*GP4 -> 0 | GR4: 0 | GS4: =GS$374 -> 0.45% | GT4: 8.00 | GU4: =GR4*GS4*GT4 -> 0 | GV4: 0 | GW4: =FI4 -> 0.69% | GX4: =GX$374 -> 1.00 | GY4: =GV4*GW4*GX4 -> 0 | GZ4: 0 | HA4: =HA$374 -> 0.65% | HB4: 5.00 | HC4: =GZ4*HA4*HB4 -> 0 | HD4: 0 | HE4: =FQ4 -> 0.40% | HF4: =HF$374 -> 1.00 | HG4: =HD4*HE4*HF4 -> 0 | HH4: -22 | HI4: =HI$374 -> 1.00% | HJ4: 5.00 | HK4: =HH4*HI4*HJ4 -> -1 | HL4: -11 | HM4: 233 | HO4: =IF(ISERROR(IF(VLOOKUP($C4,'Indicateurs Cumulés'!$C$3:$HN$560,186,FALSE)/(VLOOKUP($C4,objectifs!$C$3:$ZZ$559,158,FALSE))>=1.5,(VLOOKUP($C4,objectifs!$C$3:$ZZ$559,158,FALSE))*1.5,IF(VLOOKUP($C4,'Indicateurs Cumulés'!$C$3:$HN$560,186,FALSE)/(VLOOKUP($C4,objectifs!$C$3:$ZZ$559,158,FALSE))<=-0.5,(VLOOKUP($C4,objectifs!$C$3:$ZZ$559,158,FALSE))*-0.5,VLOOKUP($C4,'Indicateurs Cumulés'!$C$3:$HN$560,186,FALSE)))),VLOOKUP($C4,'Indicateurs Cumulés'!$C$3:$HN$560,186,FALSE),IF(VLOOKUP($C4,'Indicateurs Cumulés'!$C$3:$HN$560,186,FALSE)/(VLOOKUP($C4,objectifs!$C$3:$ZZ$559,158,FALSE))>=1.5,(VLOOKUP($C4,objectifs!$C$3:$ZZ$559,158,FALSE))*1.5,IF(VLOOKUP($C4,'Indicateurs Cumulés'!$C$3:$HN$560,186,FALSE)/(VLOOKUP($C4,objectifs!$C$3:$ZZ$559,158,FALSE))<=-0.5,(VLOOKUP($C4,objectifs!$C$3:$ZZ$559,158,FALSE))*-0.5,VLOOKUP($C4,'Indicateurs Cumulés'!$C$3:$HN$560,186,FALSE)))) -> 35 | HP4: 0 | HR4: 7.1 | HT4: =IF(ISERROR((J4*K4*L4+F4*G4*H4+CU4+DC4)/((F4*L4+J4*L4))),0,(J4*K4*L4+F4*G4*H4+CU4+DC4)/((F4*L4+J4*L4))) -> 4.34% | HU4: =IF(ISERROR((N4*P4*Q4+CW4+CZ4+AG4)/(N4*Q4)),0,(N4*P4*Q4+CW4+CZ4+AG4)/(N4*Q4)) -> 0.31% | HV4: =IF(ISERROR((Y4*Z4*AA4+GN4*GO4*GP4+CQ4)/((Y4*AA4+GN4*GP4))),0,(Y4*Z4*AA4+GN4*GO4*GP4+CQ4+DG4)/((Y4*AA4+GN4*GP4))) -> 1.59% | HW4: 6 | HX4: -8 | HY4: -2 | HZ4: 14 | IA4: 25 | IB4: 5 | IC4: 4 | ID4: 17 | IE4: 0 | IF4: -36 | IG4: -2 | IH4: 2 | II4: -1 | IJ4: 1 | IK4: -38 | IL4: 2 | IM4: =HW4*IM$3*HW$3/1000 -> 1 | IN4: =HX4*IN$3*HX$3/1000 -> -1 | IO4: -1 | IP4: 1 | IQ4: 1 | IR4: =IB4*IR$3*IB$3/1000 -> 0 | IS4: 0 | IT4: 7 | IU4: 0 | IV4: -22 | IW4: -2 | IX4: 3 | IY4: -1 | IZ4: 1 | JA4: -8 | JB4: 0 | JC4: =SUM(IM4:JB4)+BS4+BT4+GL4+JJ4+KW4+KZ4+LB4+CF4+CH4 -> -15 | JD4: =BG4+BH4+BK4 -> 8 | JE4: 0 | JF4: =SUM(HW4:IL4)+JI4+GK4+KY4+LA4 -> -9 | JG4: =IF(ISERROR((HW4*$IM$3+HX4*$IN$3+HY4*$IO$3+HZ4*$IP$3+IA4*$IQ$3+IB4*$IR$3+IC4*$IS$3+ID4*$IT$3+IE4*$IU$3+IF4*$IV$3+IG4*$IW$3+IH4*$IX$3+II4*$IY$3+IJ4*$IZ$3+IK4*$JA$3+IL4*$JB$3+JI4*$JJ$3+GK4*$GL$3+KY4*$KZ$3+LA4*$LB$3)/JF4),0,(HW4*$IM$3+HX4*$IN$3+HY4*$IO$3+HZ4*$IP$3+IA4*$IQ$3+IB4*$IR$3+IC4*$IS$3+ID4*$IT$3+IE4*$IU$3+IF4*$IV$3+IG4*$IW$3+IH4*$IX$3+II4*$IY$3+IJ4*$IZ$3+IK4*$JA$3+IL4*$JB$3+JI4*$JJ$3+GK4*$GL$3+KY4*$KZ$3+LA4*$LB$3)/JF4) -> -0.10 | JH4: =IF(ISERROR(JC4/(JF4*JG4)*1000),0,JC4/(JF4*JG4)*1000) -> -17,606.43 | JI4: 0 | JJ4: =JI4*JI$3*JJ$3/1000 -> 0 | JK4: 0 | JL4: =$ES$374 -> 0.20% | JM4: 0 | JO4: 12 | JP4: 451 | JQ4: 126 | JR4: =IF(ISERROR(IF(VLOOKUP($C4,'Indicateurs Cumulés'!$C$3:$HN$560,190,FALSE)/(VLOOKUP($C4,objectifs!$C$3:$ZZ$559,162,FALSE))>=1.5,(VLOOKUP($C4,objectifs!$C$3:$ZZ$559,162,FALSE))*1.5,IF(VLOOKUP($C4,'Indicateurs Cumulés'!$C$3:$HN$560,190,FALSE)/(VLOOKUP($C4,objectifs!$C$3:$ZZ$559,162,FALSE))<=-0.5,(VLOOKUP($C4,objectifs!$C$3:$ZZ$559,162,FALSE))*-0.5,VLOOKUP($C4,'Indicateurs Cumulés'!$C$3:$HN$560,190,FALSE)))),VLOOKUP($C4,'Indicateurs Cumulés'!$C$3:$HN$560,190,FALSE),IF(VLOOKUP($C4,'Indicateurs Cumulés'!$C$3:$HN$560,190,FALSE)/(VLOOKUP($C4,objectifs!$C$3:$ZZ$559,162,FALSE))>=1.5,(VLOOKUP($C4,objectifs!$C$3:$ZZ$559,162,FALSE))*1.5,IF(VLOOKUP($C4,'Indicateurs Cumulés'!$C$3:$HN$560,190,FALSE)/(VLOOKUP($C4,objectifs!$C$3:$ZZ$559,162,FALSE))<=-0.5,(VLOOKUP($C4,objectifs!$C$3:$ZZ$559,162,FALSE))*-0.5,VLOOKUP($C4,'Indicateurs Cumulés'!$C$3:$HN$560,190,FALSE)))) -> 164 | JS4: =JK4*$JK$3*$JS$3 -> 0 | JT4: =JM4*$JM$3*$JT$3 -> 0 | JV4: =JO4*$JO$3*$JV$3 -> 0 | JW4: =JP4*$JP$3*$JW$3 -> 15 | JX4: =JQ4*$JQ$3*$JX$3 -> 4 | JY4: =JR4*$JR$3*$JY$3*MONTH(E4)/12 -> 3 | JZ4: =JS4+JT4+JU4+JV4+JW4+JX4+JY4+KU4 -> 22 | KA4: 4 | KB4: 0 | KC4: -1 | KD4: 3 | KE4: 0 | KF4: 0 | KG4: =KA4*KG$3*KA$3/1000 -> 6 | KH4: =KB4*KH$3*KB$3/1000 -> 0 | KI4: -1 | KJ4: 1 | KK4: 0 | KL4: 0 | KM4: =SUM(KG4:KL4)+KN4+BZ4+CB4+CD4 -> 8 | KN4: 3 | KR4: =IF(ISERROR((HW4*$IM$3+HX4*$IN$3+HY4*$IO$3+HZ4*$IP$3+IA4*$IQ$3+IB4*$IR$3+IC4*$IS$3)/(SUM(HW4:IC4))),$KR$374,(HW4*$IM$3+HX4*$IN$3+HY4*$IO$3+HZ4*$IP$3+IA4*$IQ$3+IB4*$IR$3+IC4*$IS$3)/(SUM(HW4:IC4))) -> 6.04 | KS4: =SUM(KA4:KF4) -> 6 | KT4: -15 | KU4: =KT4*$KT$3*$KU$3 -> 0 | KV4: 7 | KW4: =KV4*$KW$3*$IZ$3/1000 -> 1 | KX4: 0 | KY4: =IH4+II4+IJ4 -> 2 | KZ4: =KY4*$KY$3*$KZ$3/1000 -> 1 | LA4: 0 | LB4: =LA4*$LA$3*$LB$3/1000 -> 0 | LC4: =(F4*G4*H4+J4*K4*L4+N4*P4*Q4+Y4*Z4*AA4+AB4+AD4+AG4+CS4+CU4+CZ4+DC4+DG4+GQ4+BU4+CJ4)*1+(GC4+GE4+(HO4*GG4*GH4)*(MONTH(E4))/12)*1+(HL4+HP4*$HP$3+JE4*$JE$3+KX4*$KX$3)*1+(SUM(IM4:JB4)+JJ4+GL4+KW4+KZ4+LB4+SUM(KG4:KL4)+BS4+BT4+BZ4+CB4+CD4+CF4+KN4+LF4+LH4+LJ4+CH4)*1 -> 115 | LD4: =(S4*T4*U4+V4*W4*X4+Y4*Z4*AA4+AD4+CS4+CT4+CV4+CM4+CP4+CR4+DG4+GQ4)+(SUM(JS4:JY4)+KU4)+(SUM(KG4:KL4)+KN4+BZ4+CB4+CD4)+(LF4+LH4+LJ4)+BX4 -> 39 | LE4: 1 | LF4: =LE4*$LE$3*$LF$3/1000 -> 1 | LG4: 1 | LH4: =LG4*$LG$3*$LH$3/1000 -> 1 | LI4: -4 | LJ4: =LI4*$LI$3*$LJ$3/1000 -> -0 | LK4: =LC4-KW4-BS4-BT4-CF4-CJ4 -> 113 | LL4: =IF(HR4=0,0,LK4/HR4) -> 16.0 | LM4: =(GC4+GE4)+(HO4*GG4*GH4*MONTH(E4)/12) -> 28 | LN4: =BJ4+BI4+BK4 -> 106 | LO4: =(HP4*$HP$3)+(KX4*$KX$3)+(JE4*$JE$3)+HL4 -> -11 | LP4: =LF4+LH4+LJ4 -> 2 | LQ4: =IF(HR4=0,0,LC4/HR4) -> 16.27 | LR4: 161 | LS4: 121 | LT4: 564 | LU4: 1 | LV4: 36 | LW4: 30 | LX4: =IF(LR4<0,0,LR4*$LR$3*$LX$3/1000) -> 12.1 | LY4: =IF(LS4<0,0,LS4*$LS$3*$LY$3/1000) -> 1.2 | LZ4: =IF(LT4<0,0,LT4*$LT$3*$LZ$3/1000) -> 1.7 | MA4: =IF(LU4<0,0,LU4*$LU$3*$MA$3/1000) -> 0.1 | MB4: =IF(LV4<0,0,LV4*$LV$3*$MB$3/1000) -> 0.5 | MC4: =IF(LW4<0,0,LW4*$LW$3*$MC$3/1000) -> 0.2 | MD4: =+LC4+SUM(LX4:MC4) -> 131
A5: 105101 | B5: 200262 | C5: 7 | D5: ILLKIRCH CENTRE | E5: =$E$3 -> 2019-04-30 | F5: 77 | G5: 4.32% | H5: 1.57 | I5: 2019-04-30 | J5: 962 | K5: 3.29% | L5: 2.41 | M5: 4.09 | N5: 3,953 | O5: 0 | P5: -0.15% | Q5: 6.09 | R5: 9.03 | S5: 147 | T5: 2.79% | U5: 2.35 | V5: 571 | W5: -0.22% | X5: 8.29 | Y5: 45 | Z5: 1.13% | AA5: 2.38 | AB5: 8.3 | AC5: 10.2 | AD5: 0.3 | AE5: 97.1 | AF5: 16.4 | AG5: 3.8 | AH5: 201904 | AI5: 20.00 | AJ5: 0.11 | AK5: =IF(ISERROR(AJ5/AI5),0,AJ5/AI5) -> 0.54% | AL5: 417.34 | AM5: 79.48 | AN5: 19% | AO5: 2.90 | AP5: 0.69% | AQ5: 1,501.33 | AR5: 268.44 | AS5: 17.9% | AT5: 4.20 | AU5: 0.28% | AV5: 58.73 | AW5: 7.00 | AX5: 11.92% | AY5: 1.15 | AZ5: 1.96% | BA5: 1,997.40 | BB5: 354.92 | BC5: 17.8% | BD5: 8.36 | BE5: 0.42% | BG5: 12 | BH5: =(V5*W5*X5)+CP5+CR5+CV5 -> -7 | BI5: 107 | BJ5: 47 | BK5: 2 | BL5: 1.43% | BM5: 0.00% | BN5: 7 | BO5: 112 | BP5: =BO5*$BO$3*$BP$3 -> 2 | BQ5: 338 | BR5: =BQ5*$BQ$3*$BR$3 -> 9 | BS5: =HW5*$BS$3*$IT$3/1000 -> 4 | BT5: =HX5*$BT$3*$IT$3/1000 -> 3 | BU5: -6 | BX5: 0 | BY5: 0 | BZ5: =BY5*$BY$3*$BZ$3/1000 -> 0 | CA5: 0 | CB5: =CA5*$CA$3*$CB$3/1000 -> 0 | CC5: -1 | CD5: =CC5*$CC$3*$CD$3/1000 -> -1 | CE5: 14 | CF5: =+CE5*$CF$3/1000 -> 2.8 | CG5: 0 | CH5: =(CG5*$CG$3*$CH$3)/1000 -> 0 | CI5: 5 | CJ5: =CI5*$CJ$3/1000 -> 5 | CK5: 72.71% | CL5: 135.25% | CM5: 2 | CN5: 0.00% | CO5: 2 | CP5: 1 | CQ5: 0.3 | CR5: 1 | CS5: 0.00 | CT5: 0 | CU5: 4 | CV5: 1 | CW5: =+AB5 -> 8 | CX5: 48.72% | CY5: 145.70% | CZ5: 65 | DA5: 93.14% | DB5: 156.11% | DC5: 22 | DE5: 100.00% | DF5: 100.00% | DG5: 0 | DH5: -258 | DI5: 0.70% | DJ5: 5.33 | DK5: =DH5*DI5*DJ5 -> -10 | DL5: 147 | DM5: 0.79% | DN5: 5.33 | DO5: =DL5*DM5*DN5 -> 6 | DP5: 0 | DQ5: 0.90% | DR5: 5.33 | DS5: =DP5*DQ5*DR5 -> 0 | DT5: 532 | DU5: 0.40% | DV5: 2.67 | DW5: =DT5*DU5*DV5 -> 6 | DX5: -255 | DY5: 0.20% | DZ5: 5.37 | EA5: =DX5*DY5*DZ5 -> -3 | EB5: -20 | EC5: 0.20% | ED5: 5.37 | EE5: =EB5*EC5*ED5 -> -0 | EF5: -32 | EG5: 0.20% | EH5: 5.37 | EI5: =EF5*EG5*EH5 -> -0 | EJ5: -46 | EK5: 0.46% | EL5: 5.33 | EM5: =EJ5*EK5*EL5 -> -1 | EN5: -13 | EO5: 0.10% | EP5: 6.03 | EQ5: =EN5*EO5*EP5 -> -0 | ER5: -153 | ES5: 0.20% | ET5: 9.00 | EU5: =ER5*ES5*ET5 -> -3 | EV5: -164 | EW5: =EW375 -> 0.00% | EX5: 7.52 | EY5: =EV5*EW5*EX5 -> 0 | EZ5: 0 | FA5: -0.37% | FB5: 0.08 | FC5: =EZ5*FA5*FB5 -> 0 | FD5: 1,015 | FE5: 0.45% | FF5: 8.00 | FG5: =FD5*FE5*FF5 -> 37 | FH5: 2,235 | FI5: 0.42% | FJ5: 1.00 | FK5: =FH5*FI5*FJ5 -> 9 | FL5: -137 | FM5: 0.65% | FN5: 5.00 | FO5: =FL5*FM5*FN5 -> -4 | FP5: 26 | FQ5: 0.40% | FR5: 1.00 | FS5: =FP5*FQ5*FR5 -> 0 | FT5: -441 | FU5: 0.20% | FV5: 8.00 | FW5: =FT5*FU5*FV5 -> -7 | FX5: 199 | FY5: 1.00% | FZ5: 5.00 | GA5: =FX5*FY5*FZ5 -> 10 | GB5: -442 | GC5: -0 | GD5: =FD5+FL5+GR5+GZ5+HH5 -> 1,388 | GE5: 73 | GF5: -840 | GG5: 1.00% | GH5: 5.37 | GI5: =GF5*GG5*GH5 -> -45 | GJ5: -269 | GK5: 0 | GL5: =GK5*$GK$3*$GL$3/1000 -> 0 | GN5: 0 | GO5: 0.00% | GP5: 0 | GQ5: =GN5*GO5*GP5 -> 0 | GR5: 600 | GS5: 0.45% | GT5: 8.00 | GU5: =GR5*GS5*GT5 -> 22 | GV5: 600 | GW5: =FI5 -> 0.42% | GX5: 1.00 | GY5: =GV5*GW5*GX5 -> 3 | GZ5: 0 | HA5: 0.65% | HB5: 5.00 | HC5: =GZ5*HA5*HB5 -> 0 | HD5: 0 | HE5: =FQ5 -> 0.40% | HF5: 1.00 | HG5: 0 | HH5: -89 | HI5: 1.00% | HJ5: 5.00 | HK5: -4 | HL5: -18 | HM5: 203 | HO5: =IF(ISERROR(IF(VLOOKUP($C5,'Indicateurs Cumulés'!$C$3:$HN$560,186,FALSE)/(VLOOKUP($C5,objectifs!$C$3:$ZZ$559,158,FALSE))>=1.5,(VLOOKUP($C5,objectifs!$C$3:$ZZ$559,158,FALSE))*1.5,IF(VLOOKUP($C5,'Indicateurs Cumulés'!$C$3:$HN$560,186,FALSE)/(VLOOKUP($C5,objectifs!$C$3:$ZZ$559,158,FALSE))<=-0.5,(VLOOKUP($C5,objectifs!$C$3:$ZZ$559,158,FALSE))*-0.5,VLOOKUP($C5,'Indicateurs Cumulés'!$C$3:$HN$560,186,FALSE)))),VLOOKUP($C5,'Indicateurs Cumulés'!$C$3:$HN$560,186,FALSE),IF(VLOOKUP($C5,'Indicateurs Cumulés'!$C$3:$HN$560,186,FALSE)/(VLOOKUP($C5,objectifs!$C$3:$ZZ$559,158,FALSE))>=1.5,(VLOOKUP($C5,objectifs!$C$3:$ZZ$559,158,FALSE))*1.5,IF(VLOOKUP($C5,'Indicateurs Cumulés'!$C$3:$HN$560,186,FALSE)/(VLOOKUP($C5,objectifs!$C$3:$ZZ$559,158,FALSE))<=-0.5,(VLOOKUP($C5,objectifs!$C$3:$ZZ$559,158,FALSE))*-0.5,VLOOKUP($C5,'Indicateurs Cumulés'!$C$3:$HN$560,186,FALSE)))) -> -362 | HP5: 0 | HR5: 7.4 | HT5: 4.29% | HU5: 0.17% | HV5: 1.54% | HW5: 22 | HX5: 14 | HY5: -5 | HZ5: 8 | IA5: -6 | IB5: 12 | IC5: 7 | ID5: -2 | IE5: 1 | IF5: -29 | IG5: -8 | IH5: 5 | II5: 1 | IJ5: 4 | IK5: -45 | IL5: -5 | IM5: =HW5*IM$3*HW$3/1000 -> 3 | IN5: =HX5*IN$3*HX$3/1000 -> 1 | IO5: =HY5*IO$3*HY$3/1000 -> -1 | IP5: =HZ5*IP$3*HZ$3/1000 -> 1 | IQ5: =IA5*IQ$3*IA$3/1000 -> -0 | IR5: =IB5*IR$3*IB$3/1000 -> 1 | IS5: =IC5*IS$3*IC$3/1000 -> 1 | IT5: =ID5*IT$3*ID$3/1000 -> -1 | IU5: =IE5*IU$3*IE$3/1000 -> 0 | IV5: =IF5*IV$3*IF$3/1000 -> -18 | IW5: =IG5*IW$3*IG$3/1000 -> -8 | IX5: =IH5*IX$3*IH$3/1000 -> 8 | IY5: =II5*IY$3*II$3/1000 -> 1 | IZ5: =IJ5*IZ$3*IJ$3/1000 -> 3 | JA5: =IK5*JA$3*IK$3/1000 -> -10 | JB5: =IL5*JB$3*IL$3/1000 -> -0 | JC5: 1 | JD5: 6 | JE5: 0 | JF5: =SUM(HW5:IL5)+JI5+GK5+KY5+LA5 -> -16 | JG5: =IF(ISERROR((HW5*$IM$3+HX5*$IN$3+HY5*$IO$3+HZ5*$IP$3+IA5*$IQ$3+IB5*$IR$3+IC5*$IS$3+ID5*$IT$3+IE5*$IU$3+IF5*$IV$3+IG5*$IW$3+IH5*$IX$3+II5*$IY$3+IJ5*$IZ$3+IK5*$JA$3+IL5*$JB$3+JI5*$JJ$3+GK5*$GL$3+KY5*$KZ$3+LA5*$LB$3)/JF5),0,(HW5*$IM$3+HX5*$IN$3+HY5*$IO$3+HZ5*$IP$3+IA5*$IQ$3+IB5*$IR$3+IC5*$IS$3+ID5*$IT$3+IE5*$IU$3+IF5*$IV$3+IG5*$IW$3+IH5*$IX$3+II5*$IY$3+IJ5*$IZ$3+IK5*$JA$3+IL5*$JB$3+JI5*$JJ$3+GK5*$GL$3+KY5*$KZ$3+LA5*$LB$3)/JF5) -> 7.00 | JH5: =IF(ISERROR(JC5/(JF5*JG5)*1000),0,JC5/(JF5*JG5)*1000) -> -5.25 | JI5: 0 | JJ5: =JI5*JI$3*JJ$3/1000 -> 0 | JK5: -16 | JL5: =$ES$374 -> 0.20% | JM5: 15 | JO5: 10 | JP5: 62 | JQ5: -3 | JR5: =IF(ISERROR(IF(VLOOKUP($C5,'Indicateurs Cumulés'!$C$3:$HN$560,190,FALSE)/(VLOOKUP($C5,objectifs!$C$3:$ZZ$559,162,FALSE))>=1.5,(VLOOKUP($C5,objectifs!$C$3:$ZZ$559,162,FALSE))*1.5,IF(VLOOKUP($C5,'Indicateurs Cumulés'!$C$3:$HN$560,190,FALSE)/(VLOOKUP($C5,objectifs!$C$3:$ZZ$559,162,FALSE))<=-0.5,(VLOOKUP($C5,objectifs!$C$3:$ZZ$559,162,FALSE))*-0.5,VLOOKUP($C5,'Indicateurs Cumulés'!$C$3:$HN$560,190,FALSE)))),VLOOKUP($C5,'Indicateurs Cumulés'!$C$3:$HN$560,190,FALSE),IF(VLOOKUP($C5,'Indicateurs Cumulés'!$C$3:$HN$560,190,FALSE)/(VLOOKUP($C5,objectifs!$C$3:$ZZ$559,162,FALSE))>=1.5,(VLOOKUP($C5,objectifs!$C$3:$ZZ$559,162,FALSE))*1.5,IF(VLOOKUP($C5,'Indicateurs Cumulés'!$C$3:$HN$560,190,FALSE)/(VLOOKUP($C5,objectifs!$C$3:$ZZ$559,162,FALSE))<=-0.5,(VLOOKUP($C5,objectifs!$C$3:$ZZ$559,162,FALSE))*-0.5,VLOOKUP($C5,'Indicateurs Cumulés'!$C$3:$HN$560,190,FALSE)))) -> -52 | JS5: =JK5*$JK$3*$JS$3 -> -0 | JT5: =JM5*$JM$3*$JT$3 -> 1 | JV5: =JO5*$JO$3*$JV$3 -> 0 | JW5: =JP5*$JP$3*$JW$3 -> 2 | JX5: =JQ5*$JQ$3*$JX$3 -> -0 | JY5: =JR5*$JR$3*$JY$3*MONTH(E5)/12 -> -1 | JZ5: =JS5+JT5+JU5+JV5+JW5+JX5+JY5+KU5 -> 2 | KA5: 4 | KB5: 1 | KC5: 0 | KD5: 0 | KE5: 0 | KF5: 1 | KG5: =KA5*KG$3*KA$3/1000 -> 6 | KH5: =KB5*KH$3*KB$3/1000 -> 1 | KI5: =KC5*KI$3*KC$3/1000 -> 0 | KJ5: =KD5*KJ$3*KD$3/1000 -> 0 | KK5: =KE5*KK$3*KE$3/1000 -> 0 | KL5: =KF5*KL$3*KF$3/1000 -> 0 | KM5: =SUM(KG5:KL5)+KN5+BZ5+CB5+CD5 -> 11 | KN5: 4 | KR5: 4.39 | KS5: =SUM(KA5:KF5) -> 6 | KT5: -5 | KU5: =KT5*$KT$3*$KU$3 -> 0 | KV5: 21 | KW5: =KV5*$KW$3*$IZ$3/1000 -> 4 | KX5: 0 | KY5: =IH5+II5+IJ5 -> 10 | KZ5: =KY5*$KY$3*$KZ$3/1000 -> 7 | LA5: 0 | LB5: =LA5*$LA$3*$LB$3/1000 -> 0 | LC5: =(F5*G5*H5+J5*K5*L5+N5*P5*Q5+Y5*Z5*AA5+AB5+AD5+AG5+CS5+CU5+CZ5+DC5+DG5+GQ5+BU5+CJ5)*1+(GC5+GE5+(HO5*GG5*GH5)*(MONTH(E5))/12)*1+(HL5+HP5*$HP$3+JE5*$JE$3+KX5*$KX$3)*1+(SUM(IM5:JB5)+JJ5+GL5+KW5+KZ5+LB5+SUM(KG5:KL5)+BS5+BT5+BZ5+CB5+CD5+CF5+KN5+LF5+LH5+LJ5+CH5)*1 -> 221 | LD5: 30 | LE5: 4 | LF5: =LE5*$LE$3*$LF$3/1000 -> 3 | LG5: 6 | LH5: =LG5*$LG$3*$LH$3/1000 -> 9 | LI5: -3 | LJ5: =LI5*$LI$3*$LJ$3/1000 -> -0 | LK5: =LC5-KW5-BS5-BT5-CF5-CJ5 -> 201 | LL5: 27.4 | LM5: 66 | LN5: 156 | LO5: -18 | LP5: =LF5+LH5+LJ5 -> 11 | LQ5: 30.02 | LR5: 166 | LS5: 63 | LT5: 606 | LU5: 24 | LV5: 30 | LW5: 7 | LX5: =IF(LR5<0,0,LR5*$LR$3*$LX$3/1000) -> 12.5 | LY5: =IF(LS5<0,0,LS5*$LS$3*$LY$3/1000) -> 0.6 | LZ5: =IF(LT5<0,0,LT5*$LT$3*$LZ$3/1000) -> 1.8 | MA5: =IF(LU5<0,0,LU5*$LU$3*$MA$3/1000) -> 1.2 | MB5: =IF(LV5<0,0,LV5*$LV$3*$MB$3/1000) -> 0.5 | MC5: =IF(LW5<0,0,LW5*$LW$3*$MC$3/1000) -> 0.0 | MD5: =+LC5+SUM(LX5:MC5) -> 237
A6: 105101 | B6: 200262 | C6: 8 | D6: FEGERSHEIM | E6: 2019-04-30 | F6: 31 | G6: 4.32% | H6: 1.57 | I6: 2019-04-30 | J6: 440 | K6: 1.36% | L6: 3.14 | M6: 4.49 | N6: 1,504 | O6: 0 | P6: -0.13% | Q6: 6.52 | R6: 10.17 | S6: 122 | T6: 2.33% | U6: 2.63 | V6: 91 | W6: -0.36% | X6: 7.56 | Y6: 5 | Z6: 1.27% | AA6: 1.48 | AB6: 6.0 | AC6: 10.7 | AD6: 0.2 | AE6: 60.5 | AF6: 22.0 | AG6: 3.0 | AH6: 201904 | AI6: 0 | AJ6: 0 | AK6: 0.00% | AL6: 218.33 | AM6: 50.08 | AN6: 23% | AO6: 1.58 | AP6: 0.72% | AQ6: 308.60 | AR6: 73.83 | AS6: 23.9% | AT6: 0.38 | AU6: 0.12% | AV6: 21.41 | AW6: 1.58 | AX6: 7.36% | AY6: 0.40 | AZ6: 1.85% | BA6: 549.94 | BB6: 125.48 | BC6: 22.8% | BD6: 2.39 | BE6: 0.43% | BG6: 10 | BH6: -2 | BI6: 30 | BJ6: 44 | BK6: 6 | BL6: 1.55% | BM6: 0.00% | BN6: 8 | BO6: 57 | BP6: 1 | BQ6: 128 | BR6: 4 | BS6: 0 | BT6: 1 | BU6: 0 | BX6: 0 | BY6: 0 | BZ6: 0 | CA6: 1 | CB6: 0 | CC6: -6 | CD6: -3 | CE6: 2 | CF6: 0.4 | CG6: -1 | CH6: -0 | CI6: 0 | CJ6: 0 | CK6: 100.00% | CL6: 83.61% | CM6: 2 | CN6: 0.00% | CO6: 2 | CP6: 0 | CQ6: 0.2 | CR6: 0 | CS6: 1.65 | CT6: 1 | CU6: 3 | CV6: 0 | CW6: 6 | CX6: 93.98% | CY6: 167.39% | CZ6: 48 | DA6: 100.37% | DB6: 96.31% | DC6: 6 | DE6: 75.00% | DF6: 100.00% | DG6: 0 | DH6: 200 | DI6: 0.70% | DJ6: 5.33 | DK6: 7 | DL6: -77 | DM6: 0.79% | DN6: 5.33 | DO6: -3 | DP6: -50 | DQ6: 0.90% | DR6: 5.33 | DS6: -2 | DT6: 942 | DU6: 0.40% | DV6: 2.67 | DW6: 10 | DX6: -128 | DY6: 0.20% | DZ6: 5.37 | EA6: -1 | EB6: 80 | EC6: 0.20% | ED6: 5.37 | EE6: 1 | EF6: -28 | EG6: 0.20% | EH6: 5.37 | EI6: -0 | EJ6: -25 | EK6: 0.46% | EL6: 5.33 | EM6: -1 | EN6: 0 | EO6: 0.10% | EP6: 7.69 | EQ6: 0 | ER6: -127 | ES6: 0.20% | ET6: 9.00 | EU6: -2 | EV6: 271 | EW6: 0.00% | EX6: 8.59 | EY6: 0 | EZ6: -1 | FA6: -0.37% | FB6: 0.08 | FC6: 0 | FD6: -17 | FE6: 0.45% | FF6: 8.00 | FG6: -1 | FH6: 569 | FI6: 0.43% | FJ6: 1.00 | FK6: 2 | FL6: -11 | FM6: 0.65% | FN6: 5.00 | FO6: -0 | FP6: 2 | FQ6: 0.40% | FR6: 1.00 | FS6: 0 | FT6: -309 | FU6: 0.20% | FV6: 8.00 | FW6: -5 | FX6: 245 | FY6: 1.00% | FZ6: 5.00 | GA6: 12 | GB6: 1,090 | GC6: 19 | GD6: -63 | GE6: 4 | GF6: -269 | GG6: 1.00% | GH6: 5.37 | GI6: -14 | GJ6: 40 | GK6: 0 | GL6: 0 | GN6: 176 | GO6: 1.10% | GP6: 2.06 | GQ6: 4 | GR6: 36 | GS6: 0.45% | GT6: 8.00 | GU6: 1 | GV6: 100 | GW6: 0.43% | GX6: 1.00 | GY6: 0 | GZ6: 0 | HA6: 0.65% | HB6: 5.00 | HC6: 0 | HD6: 0 | HE6: 0.40% | HF6: 1.00 | HG6: 0 | HH6: -71 | HI6: 1.00% | HJ6: 5.00 | HK6: -4 | HL6: -7 | HM6: 102 | HO6: =IF(ISERROR(IF(VLOOKUP($C6,'Indicateurs Cumulés'!$C$3:$HN$560,186,FALSE)/(VLOOKUP($C6,objectifs!$C$3:$ZZ$559,158,FALSE))>=1.5,(VLOOKUP($C6,objectifs!$C$3:$ZZ$559,158,FALSE))*1.5,IF(VLOOKUP($C6,'Indicateurs Cumulés'!$C$3:$HN$560,186,FALSE)/(VLOOKUP($C6,objectifs!$C$3:$ZZ$559,158,FALSE))<=-0.5,(VLOOKUP($C6,objectifs!$C$3:$ZZ$559,158,FALSE))*-0.5,VLOOKUP($C6,'Indicateurs Cumulés'!$C$3:$HN$560,186,FALSE)))),VLOOKUP($C6,'Indicateurs Cumulés'!$C$3:$HN$560,186,FALSE),IF(VLOOKUP($C6,'Indicateurs Cumulés'!$C$3:$HN$560,186,FALSE)/(VLOOKUP($C6,objectifs!$C$3:$ZZ$559,158,FALSE))>=1.5,(VLOOKUP($C6,objectifs!$C$3:$ZZ$559,158,FALSE))*1.5,IF(VLOOKUP($C6,'Indicateurs Cumulés'!$C$3:$HN$560,186,FALSE)/(VLOOKUP($C6,objectifs!$C$3:$ZZ$559,158,FALSE))<=-0.5,(VLOOKUP($C6,objectifs!$C$3:$ZZ$559,158,FALSE))*-0.5,VLOOKUP($C6,'Indicateurs Cumulés'!$C$3:$HN$560,186,FALSE)))) -> -196 | HP6: 0 | HR6: 3.2 | HT6: 2.04% | HU6: 0.45% | HV6: 1.16% | HW6: 2 | HX6: 4 | HY6: 0 | HZ6: 6 | IA6: -5 | IB6: 0 | IC6: 14 | ID6: -51 | IE6: -1 | IF6: -3 | IG6: 0 | IH6: 1 | II6: -2 | IJ6: 46 | IK6: -60 | IL6: 0 | IM6: 0 | IN6: 0 | IO6: 0 | IP6: 0 | IQ6: -0 | IR6: 0 | IS6: 2 | IT6: -22 | IU6: -0 | IV6: -2 | IW6: 0 | IX6: 2 | IY6: -2 | IZ6: 30 | JA6: -13 | JB6: 0 | JC6: 31 | JD6: 15 | JE6: 0 | JF6: -3 | JG6: 4.63 | JH6: -2,212.00 | JI6: 0 | JJ6: 0 | JK6: -83 | JL6: 0.20% | JM6: 8 | JO6: 16 | JP6: 95 | JQ6: -48 | JR6: =IF(ISERROR(IF(VLOOKUP($C6,'Indicateurs Cumulés'!$C$3:$HN$560,190,FALSE)/(VLOOKUP($C6,objectifs!$C$3:$ZZ$559,162,FALSE))>=1.5,(VLOOKUP($C6,objectifs!$C$3:$ZZ$559,162,FALSE))*1.5,IF(VLOOKUP($C6,'Indicateurs Cumulés'!$C$3:$HN$560,190,FALSE)/(VLOOKUP($C6,objectifs!$C$3:$ZZ$559,162,FALSE))<=-0.5,(VLOOKUP($C6,objectifs!$C$3:$ZZ$559,162,FALSE))*-0.5,VLOOKUP($C6,'Indicateurs Cumulés'!$C$3:$HN$560,190,FALSE)))),VLOOKUP($C6,'Indicateurs Cumulés'!$C$3:$HN$560,190,FALSE),IF(VLOOKUP($C6,'Indicateurs Cumulés'!$C$3:$HN$560,190,FALSE)/(VLOOKUP($C6,objectifs!$C$3:$ZZ$559,162,FALSE))>=1.5,(VLOOKUP($C6,objectifs!$C$3:$ZZ$559,162,FALSE))*1.5,IF(VLOOKUP($C6,'Indicateurs Cumulés'!$C$3:$HN$560,190,FALSE)/(VLOOKUP($C6,objectifs!$C$3:$ZZ$559,162,FALSE))<=-0.5,(VLOOKUP($C6,objectifs!$C$3:$ZZ$559,162,FALSE))*-0.5,VLOOKUP($C6,'Indicateurs Cumulés'!$C$3:$HN$560,190,FALSE)))) -> 40 | JS6: -1 | JT6: 0 | JV6: 1 | JW6: 3 | JX6: -2 | JY6: 1 | JZ6: 2 | KA6: -1 | KB6: 0 | KC6: 0 | KD6: -1 | KE6: 0 | KF6: 0 | KG6: -1 | KH6: 0 | KI6: 0 | KJ6: -0 | KK6: 0 | KL6: 0 | KM6: -2 | KN6: 2 | KR6: 5.08 | KS6: -2 | KT6: -33 | KU6: 0 | KV6: 14 | KW6: 3 | KX6: 0 | KY6: 45 | KZ6: 31 | LA6: 1 | LB6: 0 | LC6: 121 | LD6: 14 | LE6: 1 | LF6: 1 | LG6: 0 | LH6: 0 | LI6: -6 | LJ6: -1 | LK6: 116 | LL6: 35.9 | LM6: 19 | LN6: 80 | LO6: -7 | LP6: 0 | LQ6: 37.24 | LR6: 90 | LS6: 4 | LT6: 335 | LU6: -9 | LV6: -28 | LW6: 1 | LX6: 6.8 | LY6: 0.0 | LZ6: 1.0 | MA6: 0.0 | MB6: 0.0 | MC6: 0.0 | MD6: 128
A7: 105006 | B7: 200262 | C7: 10 | D7: STRASBOURG MEINAU | E7: 2019-04-30 | F7: 54 | G7: 4.32% | H7: 1.57 | I7: 2019-04-30 | J7: 412 | K7: 3.47% | L7: 2.77 | M7: 4.59 | N7: 1,950 | O7: 0 | P7: -0.22% | Q7: 8.06 | R7: 12.47 | S7: 0 | T7: 0.00% | U7: 0 | V7: 108 | W7: -0.16% | X7: 6.10 | Y7: 0 | Z7: 0.00% | AA7: 0 | AB7: 5.5 | AC7: 3.3 | AD7: 0 | AE7: 51.6 | AF7: 7.4 | AG7: 3.4 | AH7: 201904 | AI7: 4.50 | AJ7: 0.11 | AK7: 2.40% | AL7: 68.46 | AM7: 7.61 | AN7: 11% | AO7: 1.14 | AP7: 1.67% | AQ7: 275.51 | AR7: 10.73 | AS7: 3.9% | AT7: 1.33 | AU7: 0.48% | AV7: 18.78 | AW7: 1.24 | AX7: 6.62% | AY7: 0.37 | AZ7: 1.96% | BA7: 367.24 | BB7: 19.58 | BC7: 5.3% | BD7: 2.95 | BE7: 0.80% | BG7: 0 | BH7: 2 | BI7: 56 | BJ7: 7 | BK7: 0 | BL7: 1.67% | BM7: 0.00% | BN7: 10 | BO7: 13 | BP7: 0 | BQ7: 45 | BR7: 1 | BS7: -1 | BT7: -0 | BU7: -2 | BX7: 0 | BY7: 0 | BZ7: 0 | CA7: 0 | CB7: 0 | CC7: 1 | CD7: 1 | CE7: 2 | CF7: 0.4 | CG7: -7 | CH7: -1 | CI7: 3 | CJ7: 3 | CK7: 0.00% | CL7: 0.00% | CM7: 0 | CN7: 100.00% | CO7: 0 | CP7: 2 | CQ7: 0 | CR7: 0 | CS7: 0.00 | CT7: 0 | CU7: 2 | CV7: 1 | CW7: 5 | CX7: 51.17% | CY7: 125.41% | CZ7: 29 | DA7: 91.48% | DB7: 156.12% | DC7: 11 | DE7: 0.00% | DF7: 0.00% | DG7: 0 | DH7: -85 | DI7: 0.70% | DJ7: 5.33 | DK7: -3 | DL7: 95 | DM7: 0.79% | DN7: 5.33 | DO7: 4 | DP7: -10 | DQ7: 0.90% | DR7: 5.33 | DS7: -0 | DT7: -1 | DU7: 0.40% | DV7: 2.67 | DW7: -0 | DX7: -107 | DY7: 0.20% | DZ7: 5.37 | EA7: -1 | EB7: 35 | EC7: 0.20% | ED7: 5.37 | EE7: 0 | EF7: -32 | EG7: 0.20% | EH7: 5.37 | EI7: -0 | EJ7: -3 | EK7: 0.46% | EL7: 5.33 | EM7: -0 | EN7: 0 | EO7: 0.10% | EP7: 8.19 | EQ7: 0 | ER7: 71 | ES7: 0.20% | ET7: 9.00 | EU7: 1 | EV7: -66 | EW7: 0.00% | EX7: 8.59 | EY7: 0 | EZ7: 0 | FA7: -0.37% | FB7: 0.08 | FC7: 0 | FD7: -81 | FE7: 0.45% | FF7: 8.00 | FG7: -3 | FH7: 371 | FI7: 0.80% | FJ7: 1.00 | FK7: 3 | FL7: -69 | FM7: 0.65% | FN7: 5.00 | FO7: -2 | FP7: 3 | FQ7: 0.40% | FR7: 1.00 | FS7: 0 | FT7: -241 | FU7: 0.20% | FV7: 8.00 | FW7: -4 | FX7: 40 | FY7: 1.00% | FZ7: 5.00 | GA7: 2 | GB7: -309 | GC7: -2 | GD7: -164 | GE7: -1 | GF7: -242 | GG7: 1.00% | GH7: 5.37 | GI7: -13 | GJ7: -17 | GK7: 0 | GL7: 0 | GN7: 0 | GO7: 0.00% | GP7: 0 | GQ7: 0 | GR7: -2 | GS7: 0.45% | GT7: 8.00 | GU7: -0 | GV7: 0 | GW7: 0.80% | GX7: 1.00 | GY7: 0 | GZ7: 0 | HA7: 0.65% | HB7: 5.00 | HC7: 0 | HD7: 0 | HE7: 0.40% | HF7: 1.00 | HG7: 0 | HH7: -12 | HI7: 1.00% | HJ7: 5.00 | HK7: -1 | HL7: -6 | HM7: 128 | HO7: =IF(ISERROR(IF(VLOOKUP($C7,'Indicateurs Cumulés'!$C$3:$HN$560,186,FALSE)/(VLOOKUP($C7,objectifs!$C$3:$ZZ$559,158,FALSE))>=1.5,(VLOOKUP($C7,objectifs!$C$3:$ZZ$559,158,FALSE))*1.5,IF(VLOOKUP($C7,'Indicateurs Cumulés'!$C$3:$HN$560,186,FALSE)/(VLOOKUP($C7,objectifs!$C$3:$ZZ$559,158,FALSE))<=-0.5,(VLOOKUP($C7,objectifs!$C$3:$ZZ$559,158,FALSE))*-0.5,VLOOKUP($C7,'Indicateurs Cumulés'!$C$3:$HN$560,186,FALSE)))),VLOOKUP($C7,'Indicateurs Cumulés'!$C$3:$HN$560,186,FALSE),IF(VLOOKUP($C7,'Indicateurs Cumulés'!$C$3:$HN$560,186,FALSE)/(VLOOKUP($C7,objectifs!$C$3:$ZZ$559,158,FALSE))>=1.5,(VLOOKUP($C7,objectifs!$C$3:$ZZ$559,158,FALSE))*1.5,IF(VLOOKUP($C7,'Indicateurs Cumulés'!$C$3:$HN$560,186,FALSE)/(VLOOKUP($C7,objectifs!$C$3:$ZZ$559,158,FALSE))<=-0.5,(VLOOKUP($C7,objectifs!$C$3:$ZZ$559,158,FALSE))*-0.5,VLOOKUP($C7,'Indicateurs Cumulés'!$C$3:$HN$560,186,FALSE)))) -> -172 | HP7: 0 | HR7: 4.0 | HT7: 4.31% | HU7: 0.02% | HV7: 0.00% | HW7: -5 | HX7: -1 | HY7: 1 | HZ7: 1 | IA7: 11 | IB7: 1 | IC7: 10 | ID7: -8 | IE7: 3 | IF7: -9 | IG7: -1 | IH7: 3 | II7: -1 | IJ7: 4 | IK7: -15 | IL7: -2 | IM7: -1 | IN7: -0 | IO7: 0 | IP7: 0 | IQ7: 0 | IR7: 0 | IS7: 1 | IT7: -3 | IU7: 0 | IV7: -6 | IW7: -1 | IX7: 5 | IY7: -1 | IZ7: 3 | JA7: -3 | JB7: -0 | JC7: -4 | JD7: 2 | JE7: 0 | JF7: -1 | JG7: -31.19 | JH7: -117.96 | JI7: 0 | JJ7: 0 | JK7: -0 | JL7: 0.20% | JM7: 0 | JO7: 0 | JP7: -4 | JQ7: -102 | JR7: =IF(ISERROR(IF(VLOOKUP($C7,'Indicateurs Cumulés'!$C$3:$HN$560,190,FALSE)/(VLOOKUP($C7,objectifs!$C$3:$ZZ$559,162,FALSE))>=1.5,(VLOOKUP($C7,objectifs!$C$3:$ZZ$559,162,FALSE))*1.5,IF(VLOOKUP($C7,'Indicateurs Cumulés'!$C$3:$HN$560,190,FALSE)/(VLOOKUP($C7,objectifs!$C$3:$ZZ$559,162,FALSE))<=-0.5,(VLOOKUP($C7,objectifs!$C$3:$ZZ$559,162,FALSE))*-0.5,VLOOKUP($C7,'Indicateurs Cumulés'!$C$3:$HN$560,190,FALSE)))),VLOOKUP($C7,'Indicateurs Cumulés'!$C$3:$HN$560,190,FALSE),IF(VLOOKUP($C7,'Indicateurs Cumulés'!$C$3:$HN$560,190,FALSE)/(VLOOKUP($C7,objectifs!$C$3:$ZZ$559,162,FALSE))>=1.5,(VLOOKUP($C7,objectifs!$C$3:$ZZ$559,162,FALSE))*1.5,IF(VLOOKUP($C7,'Indicateurs Cumulés'!$C$3:$HN$560,190,FALSE)/(VLOOKUP($C7,objectifs!$C$3:$ZZ$559,162,FALSE))<=-0.5,(VLOOKUP($C7,objectifs!$C$3:$ZZ$559,162,FALSE))*-0.5,VLOOKUP($C7,'Indicateurs Cumulés'!$C$3:$HN$560,190,FALSE)))) -> -17 | JS7: -0 | JT7: 0 | JV7: 0 | JW7: -0 | JX7: -3 | JY7: -0 | JZ7: -4 | KA7: -2 | KB7: 0 | KC7: 0 | KD7: -1 | KE7: 0 | KF7: 0 | KG7: -3 | KH7: 0 | KI7: 0 | KJ7: -0 | KK7: 0 | KL7: 0 | KM7: -2 | KN7: 1 | KR7: 7.04 | KS7: -3 | KT7: 27 | KU7: 0 | KV7: 1 | KW7: 0 | KX7: 0 | KY7: 6 | KZ7: 4 | LA7: 1 | LB7: 0 | LC7: 41 | LD7: -5 | LE7: 0 | LF7: 0 | LG7: -1 | LH7: -1 | LI7: 0 | LJ7: 0 | LK7: 39 | LL7: 9.8 | LM7: -6 | LN7: 62 | LO7: -6 | LP7: -1 | LQ7: 10.36 | LR7: 100 | LS7: 55 | LT7: 323 | LU7: 11 | LV7: -9 | LW7: 16 | LX7: 7.5 | LY7: 0.6 | LZ7: 1.0 | MA7: 0.6 | MB7: 0.0 | MC7: 0.1 | MD7: 51
A8: 105006 | B8: 200262 | C8: 12 | D8: STRASBOURG STOCKFELD | E8: 2019-04-30 | F8: 43 | G8: 4.32% | H8: 1.57 | I8: 2019-04-30 | J8: 182 | K8: 4.54% | L8: 2.30 | M8: 3.95 | N8: 205 | O8: 0 | P8: -0.08% | Q8: 8.80 | R8: 13.22 | S8: 0 | T8: 0.00% | U8: 0 | V8: 0 | W8: 0.00% | X8: 0 | Y8: 0 | Z8: 0.00% | AA8: 0 | AB8: 0.5 | AC8: 1.5 | AD8: 0 | AE8: 7.1 | AF8: 2.9 | AG8: 0.4 | AH8: 201904 | AI8: 0 | AJ8: 0 | AK8: 0.00% | AL8: 97.47 | AM8: 40.56 | AN8: 42% | AO8: 1.56 | AP8: 1.60% | AQ8: 114.81 | AR8: 1.32 | AS8: 1.1% | AT8: 0.05 | AU8: 0.05% | AV8: 20.21 | AW8: 0.63 | AX8: 3.11% | AY8: 0.22 | AZ8: 1.08% | BA8: 232.50 | BB8: 42.51 | BC8: 18.3% | BD8: 1.83 | BE8: 0.79% | BG8: 0 | BH8: 0 | BI8: 26 | BJ8: 8 | BK8: 0 | BL8: 1.82% | BN8: 12 | BO8: 30 | BP8: 1 | BQ8: 55 | BR8: 2 | BS8: -0 | BT8: -1 | BU8: -2 | BX8: 0 | BY8: 0 | BZ8: 0 | CA8: 0 | CB8: 0 | CC8: 0 | CD8: 0 | CE8: 1 | CF8: 0.2 | CG8: 1 | CH8: 0 | CI8: 1 | CJ8: 1 | CK8: 0.00% | CL8: 0.00% | CM8: 0 | CN8: 0.00% | CO8: 0 | CP8: 0 | CQ8: 0 | CR8: 0 | CS8: 0.00 | CT8: 0 | CU8: 1 | CV8: 0 | CW8: 0 | CX8: 100.00% | CY8: 200.00% | CZ8: 7 | DA8: 85.42% | DB8: 123.20% | DC8: 3 | DE8: 0.00% | DF8: 0.00% | DG8: 0 | DH8: 101 | DI8: 0.70% | DJ8: 5.33 | DK8: 4 | DL8: 104 | DM8: 0.79% | DN8: 5.33 | DO8: 4 | DP8: 6 | DQ8: 0.90% | DR8: 5.33 | DS8: 0 | DT8: -5 | DU8: 0.40% | DV8: 2.67 | DW8: -0 | DX8: -70 | DY8: 0.20% | DZ8: 5.37 | EA8: -1 | EB8: 43 | EC8: 0.20% | ED8: 5.37 | EE8: 0 | EF8: -11 | EG8: 0.20% | EH8: 5.37 | EI8: -0 | EJ8: 28 | EK8: 0.46% | EL8: 5.33 | EM8: 1 | EN8: 6 | EO8: 0.10% | EP8: 7.11 | EQ8: 0 | ER8: -5 | ES8: 0.20% | ET8: 9.00 | EU8: -0 | EV8: -198 | EW8: 0.00% | EX8: 8.50 | EY8: 0 | EZ8: 0 | FA8: -0.37% | FB8: 0.08 | FC8: 0 | FD8: -61 | FE8: 0.45% | FF8: 8.00 | FG8: -2 | FH8: 208 | FI8: 0.79% | FJ8: 1.00 | FK8: 2 | FL8: -32 | FM8: 0.65% | FN8: 5.00 | FO8: -1 | FP8: 1 | FQ8: 0.40% | FR8: 1.00 | FS8: 0 | FT8: -181 | FU8: 0.20% | FV8: 8.00 | FW8: -3 | FX8: 37 | FY8: 1.00% | FZ8: 5.00 | GA8: 2 | GB8: -175 | GC8: 7 | GD8: -94 | GE8: 1 | GF8: -148 | GG8: 1.00% | GH8: 5.37 | GI8: -8 | GJ8: 21 | GK8: 0 | GL8: 0 | GN8: 0 | GO8: 0.00% | GP8: 0 | GQ8: 0 | GR8: 0 | GS8: 0.45% | GT8: 8.00 | GU8: 0 | GV8: 0 | GW8: 0.79% | GX8: 1.00 | GY8: 0 | GZ8: 0 | HA8: 0.65% | HB8: 5.00 | HC8: 0 | HD8: 0 | HE8: 0.40% | HF8: 1.00 | HG8: 0 | HH8: -0 | HI8: 1.00% | HJ8: 5.00 | HK8: -0 | HL8: -4 | HM8: 112 | HO8: =IF(ISERROR(IF(VLOOKUP($C8,'Indicateurs Cumulés'!$C$3:$HN$560,186,FALSE)/(VLOOKUP($C8,objectifs!$C$3:$ZZ$559,158,FALSE))>=1.5,(VLOOKUP($C8,objectifs!$C$3:$ZZ$559,158,FALSE))*1.5,IF(VLOOKUP($C8,'Indicateurs Cumulés'!$C$3:$HN$560,186,FALSE)/(VLOOKUP($C8,objectifs!$C$3:$ZZ$559,158,FALSE))<=-0.5,(VLOOKUP($C8,objectifs!$C$3:$ZZ$559,158,FALSE))*-0.5,VLOOKUP($C8,'Indicateurs Cumulés'!$C$3:$HN$560,186,FALSE)))),VLOOKUP($C8,'Indicateurs Cumulés'!$C$3:$HN$560,186,FALSE),IF(VLOOKUP($C8,'Indicateurs Cumulés'!$C$3:$HN$560,186,FALSE)/(VLOOKUP($C8,objectifs!$C$3:$ZZ$559,158,FALSE))>=1.5,(VLOOKUP($C8,objectifs!$C$3:$ZZ$559,158,FALSE))*1.5,IF(VLOOKUP($C8,'Indicateurs Cumulés'!$C$3:$HN$560,186,FALSE)/(VLOOKUP($C8,objectifs!$C$3:$ZZ$559,158,FALSE))<=-0.5,(VLOOKUP($C8,objectifs!$C$3:$ZZ$559,158,FALSE))*-0.5,VLOOKUP($C8,'Indicateurs Cumulés'!$C$3:$HN$560,186,FALSE)))) -> -108 | HP8: 0 | HR8: 2.6 | HT8: 5.01% | HU8: 0.38% | HV8: 0.00% | HW8: -1 | HX8: -7 | HY8: 0 | HZ8: 1 | IA8: -4 | IB8: 3 | IC8: -4 | ID8: -3 | IE8: 5 | IF8: -1 | IG8: 0 | IH8: 0 | II8: -2 | IJ8: -5 | IK8: -13 | IL8: -2 | IM8: -0 | IN8: -1 | IO8: 0 | IP8: 0 | IQ8: -0 | IR8: 0 | IS8: -0 | IT8: -1 | IU8: 0 | IV8: -1 | IW8: 0 | IX8: 0 | IY8: -2 | IZ8: -3 | JA8: -3 | JB8: -0 | JC8: -19 | JD8: 0 | JE8: 0 | JF8: -41 | JG8: 4.81 | JH8: 94.91 | JI8: 0 | JJ8: 0 | JK8: 0 | JL8: 0.20% | JM8: -0 | JO8: 0 | JP8: -30 | JQ8: -34 | JR8: =IF(ISERROR(IF(VLOOKUP($C8,'Indicateurs Cumulés'!$C$3:$HN$560,190,FALSE)/(VLOOKUP($C8,objectifs!$C$3:$ZZ$559,162,FALSE))>=1.5,(VLOOKUP($C8,objectifs!$C$3:$ZZ$559,162,FALSE))*1.5,IF(VLOOKUP($C8,'Indicateurs Cumulés'!$C$3:$HN$560,190,FALSE)/(VLOOKUP($C8,objectifs!$C$3:$ZZ$559,162,FALSE))<=-0.5,(VLOOKUP($C8,objectifs!$C$3:$ZZ$559,162,FALSE))*-0.5,VLOOKUP($C8,'Indicateurs Cumulés'!$C$3:$HN$560,190,FALSE)))),VLOOKUP($C8,'Indicateurs Cumulés'!$C$3:$HN$560,190,FALSE),IF(VLOOKUP($C8,'Indicateurs Cumulés'!$C$3:$HN$560,190,FALSE)/(VLOOKUP($C8,objectifs!$C$3:$ZZ$559,162,FALSE))>=1.5,(VLOOKUP($C8,objectifs!$C$3:$ZZ$559,162,FALSE))*1.5,IF(VLOOKUP($C8,'Indicateurs Cumulés'!$C$3:$HN$560,190,FALSE)/(VLOOKUP($C8,objectifs!$C$3:$ZZ$559,162,FALSE))<=-0.5,(VLOOKUP($C8,objectifs!$C$3:$ZZ$559,162,FALSE))*-0.5,VLOOKUP($C8,'Indicateurs Cumulés'!$C$3:$HN$560,190,FALSE)))) -> 21 | JS8: 0 | JT8: -0 | JV8: 0 | JW8: -1 | JX8: -1 | JY8: 0 | JZ8: -2 | KA8: 0 | KB8: 0 | KC8: 0 | KD8: 0 | KE8: 0 | KF8: 0 | KG8: 0 | KH8: 0 | KI8: 0 | KJ8: 0 | KK8: 0 | KL8: 0 | KM8: 1 | KN8: 1 | KR8: 4.41 | KS8: 0 | KT8: -8 | KU8: 0 | KV8: -9 | KW8: -2 | KX8: 0 | KY8: -7 | KZ8: -5 | LA8: -1 | LB8: -0 | LC8: 9 | LD8: -7 | LE8: -2 | LF8: -1 | LG8: -3 | LH8: -4 | LI8: -4 | LJ8: -0 | LK8: 11 | LL8: 4.2 | LM8: 5 | LN8: 34 | LO8: -4 | LP8: -6 | LQ8: 3.32 | LR8: 59 | LS8: 20 | LT8: 290 | LU8: -3 | LV8: -19 | LW8: 4 | LX8: 4.4 | LY8: 0.2 | LZ8: 0.9 | MA8: 0.0 | MB8: 0.0 | MC8: 0.0 | MD8: 14
A9: 105101 | B9: 200262 | C9: 13 | D9: ILLKIRCH NORD | E9: 2019-04-30 | F9: 25 | G9: 4.32% | H9: 1.57 | I9: 2019-04-30 | J9: 237 | K9: 3.63% | L9: 2.07 | M9: 3.60 | N9: 2,374 | O9: 0 | P9: -0.15% | Q9: 7.16 | R9: 11.25 | S9: 0 | T9: 0.00% | U9: 0 | V9: 0 | W9: 0.00% | X9: 0 | Y9: 0 | Z9: 0.00% | AA9: 0 | AB9: 5.5 | AC9: 2.3 | AD9: 0 | AE9: 61.3 | AF9: 5.9 | AG9: 5.3 | AH9: 201904 | AI9: 0 | AJ9: 0 | AK9: 0.00% | AL9: 75.91 | AM9: 23.85 | AN9: 31% | AO9: 0.78 | AP9: 1.03% | AQ9: 212.44 | AR9: 38.45 | AS9: 18.1% | AT9: 0.50 | AU9: 0.24% | AV9: 31.25 | AW9: 2.40 | AX9: 7.68% | AY9: 0.52 | AZ9: 1.66% | BA9: 319.60 | BB9: 64.70 | BC9: 20.2% | BD9: 1.80 | BE9: 0.56% | BG9: 0 | BH9: 0 | BI9: 26 | BJ9: 27 | BK9: 0 | BL9: 1.51% | BM9: 0.00% | BN9: 13 | BO9: 9 | BP9: 0 | BQ9: 59 | BR9: 2 | BS9: 2 | BT9: 2 | BU9: -5 | BX9: 0 | BY9: 0 | BZ9: 0 | CA9: -1 | CB9: -0 | CC9: 0 | CD9: 0 | CE9: 6 | CF9: 1.2 | CG9: -2 | CH9: -0 | CI9: 4 | CJ9: 4 | CK9: 0.00% | CL9: 0.00% | CM9: 0 | CN9: 0.00% | CO9: 0 | CP9: 0 | CQ9: 0 | CR9: 0 | CS9: 0.00 | CT9: 0 | CU9: 2 | CV9: 0 | CW9: 6 | CX9: 37.97% | CY9: 163.62% | CZ9: 37 | DA9: 97.89% | DB9: 163.22% | DC9: 5 | DE9: 0.00% | DF9: 0.00% | DG9: 0 | DH9: 138 | DI9: 0.70% | DJ9: 5.33 | DK9: 5 | DL9: -119 | DM9: 0.79% | DN9: 5.33 | DO9: -5 | DP9: 17 | DQ9: 0.90% | DR9: 5.33 | DS9: 1 | DT9: 121 | DU9: 0.40% | DV9: 2.67 | DW9: 1 | DX9: -95 | DY9: 0.20% | DZ9: 5.37 | EA9: -1 | EB9: 24 | EC9: 0.20% | ED9: 5.37 | EE9: 0 | EF9: -7 | EG9: 0.20% | EH9: 5.37 | EI9: -0 | EJ9: -47 | EK9: 0.46% | EL9: 5.33 | EM9: -1 | EN9: -2 | EO9: 0.10% | EP9: 6.54 | EQ9: -0 | ER9: -1 | ES9: 0.20% | ET9: 9.00 | EU9: -0 | EV9: -32 | EW9: 0.00% | EX9: 8.59 | EY9: 0 | EZ9: 0 | FA9: -0.37% | FB9: 0.08 | FC9: 0 | FD9: -103 | FE9: 0.45% | FF9: 8.00 | FG9: -4 | FH9: 332 | FI9: 0.56% | FJ9: 1.00 | FK9: 2 | FL9: 2 | FM9: 0.65% | FN9: 5.00 | FO9: 0 | FP9: 3 | FQ9: 0.40% | FR9: 1.00 | FS9: 0 | FT9: -57 | FU9: 0.20% | FV9: 8.00 | FW9: -1 | FX9: 63 | FY9: 1.00% | FZ9: 5.00 | GA9: 3 | GB9: 24 | GC9: 3 | GD9: 6 | GE9: 5 | GF9: -341 | GG9: 1.00% | GH9: 5.37 | GI9: -18 | GJ9: -1 | GK9: 0 | GL9: 0 | GN9: 0 | GO9: 0.00% | GP9: 0 | GQ9: 0 | GR9: 99 | GS9: 0.45% | GT9: 8.00 | GU9: 4 | GV9: 100 | GW9: 0.56% | GX9: 1.00 | GY9: 1 | GZ9: 0 | HA9: 0.65% | HB9: 5.00 | HC9: 0 | HD9: 0 | HE9: 0.40% | HF9: 1.00 | HG9: 0 | HH9: 8 | HI9: 1.00% | HJ9: 5.00 | HK9: 0 | HL9: -5 | HM9: 62 | HO9: =IF(ISERROR(IF(VLOOKUP($C9,'Indicateurs Cumulés'!$C$3:$HN$560,186,FALSE)/(VLOOKUP($C9,objectifs!$C$3:$ZZ$559,158,FALSE))>=1.5,(VLOOKUP($C9,objectifs!$C$3:$ZZ$559,158,FALSE))*1.5,IF(VLOOKUP($C9,'Indicateurs Cumulés'!$C$3:$HN$560,186,FALSE)/(VLOOKUP($C9,objectifs!$C$3:$ZZ$559,158,FALSE))<=-0.5,(VLOOKUP($C9,objectifs!$C$3:$ZZ$559,158,FALSE))*-0.5,VLOOKUP($C9,'Indicateurs Cumulés'!$C$3:$HN$560,186,FALSE)))),VLOOKUP($C9,'Indicateurs Cumulés'!$C$3:$HN$560,186,FALSE),IF(VLOOKUP($C9,'Indicateurs Cumulés'!$C$3:$HN$560,186,FALSE)/(VLOOKUP($C9,objectifs!$C$3:$ZZ$559,158,FALSE))>=1.5,(VLOOKUP($C9,objectifs!$C$3:$ZZ$559,158,FALSE))*1.5,IF(VLOOKUP($C9,'Indicateurs Cumulés'!$C$3:$HN$560,186,FALSE)/(VLOOKUP($C9,objectifs!$C$3:$ZZ$559,158,FALSE))<=-0.5,(VLOOKUP($C9,objectifs!$C$3:$ZZ$559,158,FALSE))*-0.5,VLOOKUP($C9,'Indicateurs Cumulés'!$C$3:$HN$560,186,FALSE)))) -> -107 | HP9: 0 | HR9: 2.0 | HT9: 4.87% | HU9: 0.13% | HV9: 0.00% | HW9: 12 | HX9: 12 | HY9: 2 | HZ9: -2 | IA9: -6 | IB9: 0 | IC9: 0 | ID9: 5 | IE9: 0 | IF9: -3 | IG9: -2 | IH9: 1 | II9: -1 | IJ9: 1 | IK9: -5 | IL9: 0 | IM9: 1 | IN9: 1 | IO9: 1 | IP9: -0 | IQ9: -0 | IR9: 0 | IS9: 0 | IT9: 2 | IU9: 0 | IV9: -2 | IW9: -2 | IX9: 2 | IY9: -1 | IZ9: 1 | JA9: -1 | JB9: 0 | JC9: 8 | JD9: 0 | JE9: 0 | JF9: 16 | JG9: 1.88 | JH9: 271.47 | JI9: 0 | JJ9: 0 | JK9: -1 | JL9: 0.20% | JM9: 0 | JO9: 0 | JP9: 22 | JQ9: 12 | JR9: =IF(ISERROR(IF(VLOOKUP($C9,'Indicateurs Cumulés'!$C$3:$HN$560,190,FALSE)/(VLOOKUP($C9,objectifs!$C$3:$ZZ$559,162,FALSE))>=1.5,(VLOOKUP($C9,objectifs!$C$3:$ZZ$559,162,FALSE))*1.5,IF(VLOOKUP($C9,'Indicateurs Cumulés'!$C$3:$HN$560,190,FALSE)/(VLOOKUP($C9,objectifs!$C$3:$ZZ$559,162,FALSE))<=-0.5,(VLOOKUP($C9,objectifs!$C$3:$ZZ$559,162,FALSE))*-0.5,VLOOKUP($C9,'Indicateurs Cumulés'!$C$3:$HN$560,190,FALSE)))),VLOOKUP($C9,'Indicateurs Cumulés'!$C$3:$HN$560,190,FALSE),IF(VLOOKUP($C9,'Indicateurs Cumulés'!$C$3:$HN$560,190,FALSE)/(VLOOKUP($C9,objectifs!$C$3:$ZZ$559,162,FALSE))>=1.5,(VLOOKUP($C9,objectifs!$C$3:$ZZ$559,162,FALSE))*1.5,IF(VLOOKUP($C9,'Indicateurs Cumulés'!$C$3:$HN$560,190,FALSE)/(VLOOKUP($C9,objectifs!$C$3:$ZZ$559,162,FALSE))<=-0.5,(VLOOKUP($C9,objectifs!$C$3:$ZZ$559,162,FALSE))*-0.5,VLOOKUP($C9,'Indicateurs Cumulés'!$C$3:$HN$560,190,FALSE)))) -> -1 | JS9: -0 | JT9: 0 | JV9: 0 | JW9: 1 | JX9: 0 | JY9: -0 | JZ9: 1 | KA9: 2 | KB9: 0 | KC9: 1 | KD9: 2 | KE9: 0 | KF9: 0 | KG9: 3 | KH9: 0 | KI9: 1 | KJ9: 0 | KK9: 0 | KL9: 0 | KM9: 4 | KN9: 0 | KR9: 2.25 | KS9: 5 | KT9: 2 | KU9: 0 | KV9: 3 | KW9: 1 | KX9: 0 | KY9: 1 | KZ9: 1 | LA9: 1 | LB9: 0 | LC9: 60 | LD9: 4 | LE9: -1 | LF9: -1 | LG9: -1 | LH9: -1 | LI9: 6 | LJ9: 1 | LK9: 49 | LL9: 24.7 | LM9: 6 | LN9: 53 | LO9: -5 | LP9: -2 | LQ9: 30.03 | LR9: 57 | LS9: 56 | LT9: 184 | LU9: 13 | LV9: 77 | LW9: 5 | LX9: 4.3 | LY9: 0.6 | LZ9: 0.6 | MA9: 0.7 | MB9: 1.2 | MC9: 0.0 | MD9: 67
A10: 105101 | B10: 200262 | C10: 14 | D10: OSTWALD | E10: 2019-04-30 | F10: 29 | G10: 4.32% | H10: 1.57 | I10: 2019-04-30 | J10: 280 | K10: 3.41% | L10: 2.62 | M10: 4.37 | N10: 767 | O10: 0 | P10: 0.07% | Q10: 6.60 | R10: 10.11 | S10: 10 | T10: 2.18% | U10: 0.96 | V10: 0 | W10: 0.00% | X10: 0 | Y10: 490 | Z10: -0.16% | AA10: 4.38 | AB10: 2.4 | AC10: 2.0 | AD10: 0.5 | AE10: 20.2 | AF10: 4.9 | AG10: 1.2 | AH10: 201904 | AI10: 0 | AJ10: 0 | AK10: 0.00% | AL10: 97.48 | AM10: 31.20 | AN10: 32% | AO10: 0.60 | AP10: 0.61% | AQ10: 222.36 | AR10: 38.91 | AS10: 17.5% | AT10: 0.03 | AU10: 0.01% | AV10: 36.78 | AW10: 0.71 | AX10: 1.94% | AY10: 0.22 | AZ10: 0.59% | BA10: 356.62 | BB10: 70.83 | BC10: 19.9% | BD10: 0.85 | BE10: 0.24% | BG10: 0 | BH10: 0 | BI10: 33 | BJ10: 27 | BK10: -3 | BL10: 1.60% | BM10: 0.00% | BN10: 14 | BO10: 53 | BP10: 1 | BQ10: 39 | BR10: 1 | BS10: 2 | BT10: 2 | BU10: -3 | BX10: 0 | BY10: 0 | BZ10: 0 | CA10: 0 | CB10: 0 | CC10: -8 | CD10: -4 | CE10: 4 | CF10: 0.8 | CG10: -2 | CH10: -0 | CI10: 0 | CJ10: 0 | CK10: 100.00% | CL10: 100.00% | CM10: 0 | CN10: 0.00% | CO10: 0 | CP10: 0 | CQ10: 0.5 | CR10: 0 | CS10: 0.00 | CT10: 0 | CU10: 1 | CV10: 0 | CW10: 2 | CX10: 81.14% | CY10: 161.15% | CZ10: 20 | DA10: 86.33% | DB10: 129.50% | DC10: 5 | DE10: 0.00% | DF10: 0.00% | DG10: 0 | DH10: 191 | DI10: 0.70% | DJ10: 5.33 | DK10: 7 | DL10: 9 | DM10: 0.79% | DN10: 5.33 | DO10: 0 | DP10: -46 | DQ10: 0.90% | DR10: 5.33 | DS10: -2 | DT10: 140 | DU10: 0.40% | DV10: 2.67 | DW10: 1 | DX10: -123 | DY10: 0.20% | DZ10: 5.37 | EA10: -1 | EB10: 43 | EC10: 0.20% | ED10: 5.37 | EE10: 0 | EF10: -3 | EG10: 0.20% | EH10: 5.37 | EI10: -0 | EJ10: -5 | EK10: 0.46% | EL10: 5.33 | EM10: -0 | EN10: 1 | EO10: 0.10% | EP10: 5.33 | EQ10: 0 | ER10: 196 | ES10: 0.20% | ET10: 9.00 | EU10: 4 | EV10: -54 | EW10: 0.00% | EX10: 8.50 | EY10: 0 | EZ10: 0 | FA10: -0.37% | FB10: 0.08 | FC10: 0 | FD10: 193 | FE10: 0.45% | FF10: 8.00 | FG10: 7 | FH10: 278 | FI10: 0.24% | FJ10: 1.00 | FK10: 1 | FL10: -10 | FM10: 0.65% | FN10: 5.00 | FO10: -0 | FP10: 5 | FQ10: 0.40% | FR10: 1.00 | FS10: 0 | FT10: -112 | FU10: 0.20% | FV10: 8.00 | FW10: -2 | FX10: 39 | FY10: 1.00% | FZ10: 5.00 | GA10: 2 | GB10: 239 | GC10: 8 | GD10: 180 | GE10: 9 | GF10: -79 | GG10: 1.00% | GH10: 5.37 | GI10: -4 | GJ10: -205 | GK10: 0 | GL10: 0 | GN10: 0 | GO10: 0.00% | GP10: 0 | GQ10: 0 | GR10: 0 | GS10: 0.45% | GT10: 8.00 | GU10: 0 | GV10: 0 | GW10: 0.24% | GX10: 1.00 | GY10: 0 | GZ10: 0 | HA10: 0.65% | HB10: 5.00 | HC10: 0 | HD10: 0 | HE10: 0.40% | HF10: 1.00 | HG10: 0 | HH10: -2 | HI10: 1.00% | HJ10: 5.00 | HK10: -0 | HL10: -6 | HM10: 61 | HO10: =IF(ISERROR(IF(VLOOKUP($C10,'Indicateurs Cumulés'!$C$3:$HN$560,186,FALSE)/(VLOOKUP($C10,objectifs!$C$3:$ZZ$559,158,FALSE))>=1.5,(VLOOKUP($C10,objectifs!$C$3:$ZZ$559,158,FALSE))*1.5,IF(VLOOKUP($C10,'Indicateurs Cumulés'!$C$3:$HN$560,186,FALSE)/(VLOOKUP($C10,objectifs!$C$3:$ZZ$559,158,FALSE))<=-0.5,(VLOOKUP($C10,objectifs!$C$3:$ZZ$559,158,FALSE))*-0.5,VLOOKUP($C10,'Indicateurs Cumulés'!$C$3:$HN$560,186,FALSE)))),VLOOKUP($C10,'Indicateurs Cumulés'!$C$3:$HN$560,186,FALSE),IF(VLOOKUP($C10,'Indicateurs Cumulés'!$C$3:$HN$560,186,FALSE)/(VLOOKUP($C10,objectifs!$C$3:$ZZ$559,158,FALSE))>=1.5,(VLOOKUP($C10,objectifs!$C$3:$ZZ$559,158,FALSE))*1.5,IF(VLOOKUP($C10,'Indicateurs Cumulés'!$C$3:$HN$560,186,FALSE)/(VLOOKUP($C10,objectifs!$C$3:$ZZ$559,158,FALSE))<=-0.5,(VLOOKUP($C10,objectifs!$C$3:$ZZ$559,158,FALSE))*-0.5,VLOOKUP($C10,'Indicateurs Cumulés'!$C$3:$HN$560,186,FALSE)))) -> -79 | HP10: 0 | HR10: 2.0 | HT10: 4.06% | HU10: 0.53% | HV10: -0.14% | HW10: 10 | HX10: 10 | HY10: 0 | HZ10: -1 | IA10: -2 | IB10: 1 | IC10: 3 | ID10: 10 | IE10: -1 | IF10: -5 | IG10: -6 | IH10: 0 | II10: 1 | IJ10: 1 | IK10: -2 | IL10: 1 | IM10: 1 | IN10: 1 | IO10: 0 | IP10: -0 | IQ10: -0 | IR10: 0 | IS10: 0 | IT10: 4 | IU10: -0 | IV10: -3 | IW10: -6 | IX10: 0 | IY10: 1 | IZ10: 1 | JA10: -0 | JB10: 0 | JC10: 5 | JD10: -3 | JE10: 0 | JF10: 22 | JG10: 3.61 | JH10: 63.24 | JI10: 0 | JJ10: 0 | JK10: 0 | JL10: 0.20% | JM10: 0 | JO10: -0 | JP10: -37 | JQ10: -27 | JR10: =IF(ISERROR(IF(VLOOKUP($C10,'Indicateurs Cumulés'!$C$3:$HN$560,190,FALSE)/(VLOOKUP($C10,objectifs!$C$3:$ZZ$559,162,FALSE))>=1.5,(VLOOKUP($C10,objectifs!$C$3:$ZZ$559,162,FALSE))*1.5,IF(VLOOKUP($C10,'Indicateurs Cumulés'!$C$3:$HN$560,190,FALSE)/(VLOOKUP($C10,objectifs!$C$3:$ZZ$559,162,FALSE))<=-0.5,(VLOOKUP($C10,objectifs!$C$3:$ZZ$559,162,FALSE))*-0.5,VLOOKUP($C10,'Indicateurs Cumulés'!$C$3:$HN$560,190,FALSE)))),VLOOKUP($C10,'Indicateurs Cumulés'!$C$3:$HN$560,190,FALSE),IF(VLOOKUP($C10,'Indicateurs Cumulés'!$C$3:$HN$560,190,FALSE)/(VLOOKUP($C10,objectifs!$C$3:$ZZ$559,162,FALSE))>=1.5,(VLOOKUP($C10,objectifs!$C$3:$ZZ$559,162,FALSE))*1.5,IF(VLOOKUP($C10,'Indicateurs Cumulés'!$C$3:$HN$560,190,FALSE)/(VLOOKUP($C10,objectifs!$C$3:$ZZ$559,162,FALSE))<=-0.5,(VLOOKUP($C10,objectifs!$C$3:$ZZ$559,162,FALSE))*-0.5,VLOOKUP($C10,'Indicateurs Cumulés'!$C$3:$HN$560,190,FALSE)))) -> -17 | JS10: 0 | JT10: 0 | JV10: -0 | JW10: -1 | JX10: -1 | JY10: -0 | JZ10: -2 | KA10: 0 | KB10: 0 | KC10: 1 | KD10: -1 | KE10: 2 | KF10: 0 | KG10: 0 | KH10: 0 | KI10: 1 | KJ10: -0 | KK10: 1 | KL10: 0 | KM10: -2 | KN10: 1 | KR10: 3.54 | KS10: 2 | KT10: 10 | KU10: 0 | KV10: 3 | KW10: 1 | KX10: 0 | KY10: 2 | KZ10: 1 | LA10: 0 | LB10: 0 | LC10: 69 | LD10: -5 | LE10: 0 | LF10: 0 | LG10: 1 | LH10: 1 | LI10: 1 | LJ10: 0 | LK10: 63 | LL10: 32.5 | LM10: 16 | LN10: 57 | LO10: -6 | LP10: 2 | LQ10: 35.22 | LR10: 56 | LS10: 27 | LT10: 237 | LU10: -12 | LV10: 6 | LW10: 5 | LX10: 4.2 | LY10: 0.3 | LZ10: 0.7 | MA10: 0.0 | MB10: 0.1 | MC10: 0.0 | MD10: 74
A11: 105101 | B11: 200262 | C11: 15 | D11: LINGOLSHEIM | E11: 2019-04-30 | F11: 46 | G11: 4.32% | H11: 1.57 | I11: 2019-04-30 | J11: 514 | K11: 3.54% | L11: 2.40 | M11: 4.08 | N11: 544 | O11: 0 | P11: -0.02% | Q11: 6.12 | R11: 10.49 | S11: 0 | T11: 0.00% | U11: 0 | V11: 180 | W11: 0.03% | X11: 6.10 | Y11: 69 | Z11: 0.93% | AA11: 2.38 | AB11: 2.8 | AC11: 5.7 | AD11: 0.7 | AE11: 10.1 | AF11: 9.2 | AG11: 0.9 | AH11: 201904 | AI11: 0 | AJ11: 0 | AK11: 0.00% | AL11: 161.08 | AM11: 56.35 | AN11: 35% | AO11: 1.12 | AP11: 0.70% | AQ11: 665.55 | AR11: 75.82 | AS11: 11.4% | AT11: 0.27 | AU11: 0.04% | AV11: 53.08 | AW11: 0.51 | AX11: 0.97% | AY11: 1.12 | AZ11: 2.11% | BA11: 879.71 | BB11: 132.68 | BC11: 15.1% | BD11: 2.51 | BE11: 0.29% | BG11: 0 | BH11: 2 | BI11: 58 | BJ11: 9 | BK11: 2 | BL11: 1.32% | BM11: 0.00% | BN11: 15 | BO11: 64 | BP11: 1 | BQ11: 82 | BR11: 2 | BS11: 1 | BT11: 0 | BU11: -1 | BX11: 0 | BY11: 0 | BZ11: 0 | CA11: 0 | CB11: 0 | CC11: 5 | CD11: 3 | CE11: 5 | CF11: 1.0 | CG11: -10 | CH11: -2 | CI11: 0 | CJ11: 0 | CK11: 0.00% | CL11: 0.00% | CM11: 0 | CN11: 0.00% | CO11: 0 | CP11: 0 | CQ11: 0.7 | CR11: 0 | CS11: 0.00 | CT11: 0 | CU11: 2 | CV11: 1 | CW11: 3 | CX11: 53.32% | CY11: 100.00% | CZ11: 6 | DA11: 94.43% | DB11: 112.83% | DC11: 9 | DE11: 12.62% | DF11: 100.00% | DG11: 0 | DH11: 211 | DI11: 0.70% | DJ11: 5.33 | DK11: 8 | DL11: -47 | DM11: 0.79% | DN11: 5.33 | DO11: -2 | DP11: -34 | DQ11: 0.90% | DR11: 5.33 | DS11: -2 | DT11: 595 | DU11: 0.40% | DV11: 2.67 | DW11: 6 | DX11: -176 | DY11: 0.20% | DZ11: 5.37 | EA11: -2 | EB11: -40 | EC11: 0.20% | ED11: 5.37 | EE11: -0 | EF11: -23 | EG11: 0.20% | EH11: 5.37 | EI11: -0 | EJ11: -9 | EK11: 0.46% | EL11: 5.33 | EM11: -0 | EN11: -1 | EO11: 0.10% | EP11: 5.33 | EQ11: -0 | ER11: -32 | ES11: 0.20% | ET11: 9.00 | EU11: -1 | EV11: -138 | EW11: 0.00% | EX11: 8.50 | EY11: 0 | EZ11: 0 | FA11: -0.37% | FB11: 0.08 | FC11: 0 | FD11: 433 | FE11: 0.45% | FF11: 8.00 | FG11: 16 | FH11: 864 | FI11: 0.29% | FJ11: 1.00 | FK11: 2 | FL11: -2 | FM11: 0.65% | FN11: 5.00 | FO11: -0 | FP11: 19 | FQ11: 0.40% | FR11: 1.00 | FS11: 0 | FT11: -166 | FU11: 0.20% | FV11: 8.00 | FW11: -3 | FX11: 57 | FY11: 1.00% | FZ11: 5.00 | GA11: 3 | GB11: 50 | GC11: 3 | GD11: 430 | GE11: 22 | GF11: -285 | GG11: 1.00% | GH11: 5.37 | GI11: -15 | GJ11: -136 | GK11: 0 | GL11: 0 | GN11: 0 | GO11: 0.00% | GP11: 0 | GQ11: 0 | GR11: -6 | GS11: 0.45% | GT11: 8.00 | GU11: -0 | GV11: 0 | GW11: 0.29% | GX11: 1.00 | GY11: 0 | GZ11: 0 | HA11: 0.65% | HB11: 5.00 | HC11: 0 | HD11: 0 | HE11: 0.40% | HF11: 1.00 | HG11: 0 | HH11: 5 | HI11: 1.00% | HJ11: 5.00 | HK11: 0 | HL11: -5 | HM11: 116 | HO11: =IF(ISERROR(IF(VLOOKUP($C11,'Indicateurs Cumulés'!$C$3:$HN$560,186,FALSE)/(VLOOKUP($C11,objectifs!$C$3:$ZZ$559,158,FALSE))>=1.5,(VLOOKUP($C11,objectifs!$C$3:$ZZ$559,158,FALSE))*1.5,IF(VLOOKUP($C11,'Indicateurs Cumulés'!$C$3:$HN$560,186,FALSE)/(VLOOKUP($C11,objectifs!$C$3:$ZZ$559,158,FALSE))<=-0.5,(VLOOKUP($C11,objectifs!$C$3:$ZZ$559,158,FALSE))*-0.5,VLOOKUP($C11,'Indicateurs Cumulés'!$C$3:$HN$560,186,FALSE)))),VLOOKUP($C11,'Indicateurs Cumulés'!$C$3:$HN$560,186,FALSE),IF(VLOOKUP($C11,'Indicateurs Cumulés'!$C$3:$HN$560,186,FALSE)/(VLOOKUP($C11,objectifs!$C$3:$ZZ$559,158,FALSE))>=1.5,(VLOOKUP($C11,objectifs!$C$3:$ZZ$559,158,FALSE))*1.5,IF(VLOOKUP($C11,'Indicateurs Cumulés'!$C$3:$HN$560,186,FALSE)/(VLOOKUP($C11,objectifs!$C$3:$ZZ$559,158,FALSE))<=-0.5,(VLOOKUP($C11,objectifs!$C$3:$ZZ$559,158,FALSE))*-0.5,VLOOKUP($C11,'Indicateurs Cumulés'!$C$3:$HN$560,186,FALSE)))) -> -190 | HP11: 0 | HR11: 3.9 | HT11: 4.29% | HU11: 0.28% | HV11: 1.43% | HW11: 7 | HX11: 1 | HY11: 1 | HZ11: 1 | IA11: 3 | IB11: 2 | IC11: 9 | ID11: 1 | IE11: -1 | IF11: -10 | IG11: -1 | IH11: 2 | II11: 0 | IJ11: 2 | IK11: -16 | IL11: -2 | IM11: 1 | IN11: 0 | IO11: 0 | IP11: 0 | IQ11: 0 | IR11: 0 | IS11: 1 | IT11: 0 | IU11: -0 | IV11: -6 | IW11: -1 | IX11: 3 | IY11: 0 | IZ11: 1 | JA11: -3 | JB11: -0 | JC11: 3 | JD11: 4 | JE11: 0 | JF11: 4 | JG11: 4.65 | JH11: 144.57 | JI11: 0 | JJ11: 0 | JK11: -2 | JL11: 0.20% | JM11: 0 | JO11: 2 | JP11: -146 | JQ11: -53 | JR11: =IF(ISERROR(IF(VLOOKUP($C11,'Indicateurs Cumulés'!$C$3:$HN$560,190,FALSE)/(VLOOKUP($C11,objectifs!$C$3:$ZZ$559,162,FALSE))>=1.5,(VLOOKUP($C11,objectifs!$C$3:$ZZ$559,162,FALSE))*1.5,IF(VLOOKUP($C11,'Indicateurs Cumulés'!$C$3:$HN$560,190,FALSE)/(VLOOKUP($C11,objectifs!$C$3:$ZZ$559,162,FALSE))<=-0.5,(VLOOKUP($C11,objectifs!$C$3:$ZZ$559,162,FALSE))*-0.5,VLOOKUP($C11,'Indicateurs Cumulés'!$C$3:$HN$560,190,FALSE)))),VLOOKUP($C11,'Indicateurs Cumulés'!$C$3:$HN$560,190,FALSE),IF(VLOOKUP($C11,'Indicateurs Cumulés'!$C$3:$HN$560,190,FALSE)/(VLOOKUP($C11,objectifs!$C$3:$ZZ$559,162,FALSE))>=1.5,(VLOOKUP($C11,objectifs!$C$3:$ZZ$559,162,FALSE))*1.5,IF(VLOOKUP($C11,'Indicateurs Cumulés'!$C$3:$HN$560,190,FALSE)/(VLOOKUP($C11,objectifs!$C$3:$ZZ$559,162,FALSE))<=-0.5,(VLOOKUP($C11,objectifs!$C$3:$ZZ$559,162,FALSE))*-0.5,VLOOKUP($C11,'Indicateurs Cumulés'!$C$3:$HN$560,190,FALSE)))) -> -34 | JS11: -0 | JT11: 0 | JV11: 0 | JW11: -5 | JX11: -2 | JY11: -1 | JZ11: -7 | KA11: -1 | KB11: 0 | KC11: 0 | KD11: -1 | KE11: 0 | KF11: 0 | KG11: -1 | KH11: 0 | KI11: 0 | KJ11: -0 | KK11: 0 | KL11: 0 | KM11: 4 | KN11: 3 | KR11: 4.96 | KS11: -2 | KT11: 4 | KU11: 0 | KV11: 14 | KW11: 3 | KX11: 0 | KY11: 4 | KZ11: 3 | LA11: 1 | LB11: 0 | LC11: 87 | LD11: -2 | LE11: 0 | LF11: 0 | LG11: -2 | LH11: -3 | LI11: -3 | LJ11: -0 | LK11: 82 | LL11: 21.1 | LM11: 21 | LN11: 69 | LO11: -5 | LP11: -3 | LQ11: 22.52 | LR11: 96 | LS11: 76 | LT11: 406 | LU11: 8 | LV11: 8 | LW11: 14 | LX11: 7.2 | LY11: 0.8 | LZ11: 1.2 | MA11: 0.4 | MB11: 0.1 | MC11: 0.1 | MD11: 97
A12: 105006 | B12: 200262 | C12: 19 | D12: STRASBOURG ANVERS | E12: 2019-04-30 | F12: 38 | G12: 4.32% | H12: 1.57 | I12: 2019-04-30 | J12: 443 | K12: 3.21% | L12: 2.62 | M12: 4.41 | N12: 2,483 | O12: 0 | P12: -0.06% | Q12: 8.18 | R12: 12.55 | S12: 32 | T12: 2.62% | U12: 1.28 | V12: 621 | W12: -0.16% | X12: 8.11 | Y12: 251 | Z12: 1.60% | AA12: 2.95 | AB12: 7.4 | AC12: 9.1 | AD12: 2.6 | AE12: 98.5 | AF12: 4.1 | AG12: 5.1 | AH12: 201904 | AI12: 25.00 | AJ12: 0.60 | AK12: 2.40% | AL12: 203.80 | AM12: 13.35 | AN12: 7% | AO12: 1.93 | AP12: 0.95% | AQ12: 601.19 | AR12: 13.83 | AS12: 2.3% | AT12: 0.98 | AU12: 0.16% | AV12: 63.39 | AW12: 1.99 | AX12: 3.13% | AY12: 0.84 | AZ12: 1.32% | BA12: 893.38 | BB12: 29.16 | BC12: 3.3% | BD12: 4.35 | BE12: 0.49% | BG12: 2 | BH12: 12 | BI12: 46 | BJ12: 85 | BK12: 22 | BL12: 1.64% | BM12: 0.00% | BN12: 19 | BO12: 189 | BP12: 4 | BQ12: 113 | BR12: 3 | BS12: 0 | BT12: -2 | BU12: -9 | BX12: 0 | BY12: 1 | BZ12: 0 | CA12: -1 | CB12: -0 | CC12: 1 | CD12: 1 | CE12: 8 | CF12: 1.6 | CG12: 4 | CH12: 1 | CI12: 2 | CJ12: 2 | CK12: 100.00% | CL12: 212.50% | CM12: 1 | CN12: 130.22% | CO12: 1 | CP12: 16 | CQ12: 2.6 | CR12: 1 | CS12: 0.00 | CT12: 0 | CU12: 2 | CV12: 3 | CW12: 7 | CX12: 80.15% | CY12: 153.39% | CZ12: 82 | DA12: 26.58% | DB12: 238.14% | DC12: 4 | DE12: 100.00% | DF12: 100.00% | DG12: 7 | DH12: 57 | DI12: 0.70% | DJ12: 5.33 | DK12: 2 | DL12: -193 | DM12: 0.79% | DN12: 5.33 | DO12: -8 | DP12: -61 | DQ12: 0.90% | DR12: 5.33 | DS12: -3 | DT12: 1,865 | DU12: 0.40% | DV12: 2.67 | DW12: 20 | DX12: -149 | DY12: 0.20% | DZ12: 5.37 | EA12: -2 | EB12: -15 | EC12: 0.20% | ED12: 5.37 | EE12: -0 | EF12: -18 | EG12: 0.20% | EH12: 5.37 | EI12: -0 | EJ12: -16 | EK12: 0.46% | EL12: 5.33 | EM12: -0 | EN12: -18 | EO12: 0.10% | EP12: 8.70 | EQ12: -0 | ER12: -198 | ES12: 0.20% | ET12: 9.00 | EU12: -4 | EV12: -119 | EW12: 0.00% | EX12: 8.59 | EY12: 0 | EZ12: 0 | FA12: -0.37% | FB12: 0.08 | FC12: 0 | FD12: -686 | FE12: 0.45% | FF12: 8.00 | FG12: -25 | FH12: 787 | FI12: 0.49% | FJ12: 1.00 | FK12: 4 | FL12: -62 | FM12: 0.65% | FN12: 5.00 | FO12: -2 | FP12: 56 | FQ12: 0.40% | FR12: 1.00 | FS12: 0 | FT12: -424 | FU12: 0.20% | FV12: 8.00 | FW12: -7 | FX12: 269 | FY12: 1.00% | FZ12: 5.00 | GA12: 13 | GB12: 1,618 | GC12: 32 | GD12: -752 | GE12: -16 | GF12: -739 | GG12: 1.00% | GH12: 5.37 | GI12: -40 | GJ12: -626 | GK12: 0 | GL12: 0 | GN12: 0 | GO12: 0.00% | GP12: 0 | GQ12: 0 | GR12: -15 | GS12: 0.45% | GT12: 8.00 | GU12: -1 | GV12: 0 | GW12: 0.49% | GX12: 1.00 | GY12: 0 | GZ12: 0 | HA12: 0.65% | HB12: 5.00 | HC12: 0 | HD12: 0 | HE12: 0.40% | HF12: 1.00 | HG12: 0 | HH12: 11 | HI12: 1.00% | HJ12: 5.00 | HK12: 1 | HL12: -11 | HM12: 172 | HO12: =IF(ISERROR(IF(VLOOKUP($C12,'Indicateurs Cumulés'!$C$3:$HN$560,186,FALSE)/(VLOOKUP($C12,objectifs!$C$3:$ZZ$559,158,FALSE))>=1.5,(VLOOKUP($C12,objectifs!$C$3:$ZZ$559,158,FALSE))*1.5,IF(VLOOKUP($C12,'Indicateurs Cumulés'!$C$3:$HN$560,186,FALSE)/(VLOOKUP($C12,objectifs!$C$3:$ZZ$559,158,FALSE))<=-0.5,(VLOOKUP($C12,objectifs!$C$3:$ZZ$559,158,FALSE))*-0.5,VLOOKUP($C12,'Indicateurs Cumulés'!$C$3:$HN$560,186,FALSE)))),VLOOKUP($C12,'Indicateurs Cumulés'!$C$3:$HN$560,186,FALSE),IF(VLOOKUP($C12,'Indicateurs Cumulés'!$C$3:$HN$560,186,FALSE)/(VLOOKUP($C12,objectifs!$C$3:$ZZ$559,158,FALSE))>=1.5,(VLOOKUP($C12,objectifs!$C$3:$ZZ$559,158,FALSE))*1.5,IF(VLOOKUP($C12,'Indicateurs Cumulés'!$C$3:$HN$560,186,FALSE)/(VLOOKUP($C12,objectifs!$C$3:$ZZ$559,158,FALSE))<=-0.5,(VLOOKUP($C12,objectifs!$C$3:$ZZ$559,158,FALSE))*-0.5,VLOOKUP($C12,'Indicateurs Cumulés'!$C$3:$HN$560,186,FALSE)))) -> -307 | HP12: 0 | HR12: 3.9 | HT12: 3.68% | HU12: 0.41% | HV12: 2.93% | HW12: 2 | HX12: -8 | HY12: 2 | HZ12: 8 | IA12: 12 | IB12: 1 | IC12: 8 | ID12: 2 | IE12: -2 | IF12: -5 | IG12: -1 | IH12: -1 | II12: 0 | IJ12: -1 | IK12: -21 | IL12: 2 | IM12: 0 | IN12: -1 | IO12: 1 | IP12: 1 | IQ12: 0 | IR12: 0 | IS12: 1 | IT12: 1 | IU12: -0 | IV12: -3 | IW12: -1 | IX12: -2 | IY12: 0 | IZ12: -1 | JA12: -5 | JB12: 0 | JC12: -8 | JD12: 36 | JE12: 0 | JF12: -4 | JG12: -2.24 | JH12: -862.32 | JI12: 0 | JJ12: 0 | JK12: -32 | JL12: 0.20% | JM12: 1 | JO12: 2 | JP12: 638 | JQ12: 223 | JR12: =IF(ISERROR(IF(VLOOKUP($C12,'Indicateurs Cumulés'!$C$3:$HN$560,190,FALSE)/(VLOOKUP($C12,objectifs!$C$3:$ZZ$559,162,FALSE))>=1.5,(VLOOKUP($C12,objectifs!$C$3:$ZZ$559,162,FALSE))*1.5,IF(VLOOKUP($C12,'Indicateurs Cumulés'!$C$3:$HN$560,190,FALSE)/(VLOOKUP($C12,objectifs!$C$3:$ZZ$559,162,FALSE))<=-0.5,(VLOOKUP($C12,objectifs!$C$3:$ZZ$559,162,FALSE))*-0.5,VLOOKUP($C12,'Indicateurs Cumulés'!$C$3:$HN$560,190,FALSE)))),VLOOKUP($C12,'Indicateurs Cumulés'!$C$3:$HN$560,190,FALSE),IF(VLOOKUP($C12,'Indicateurs Cumulés'!$C$3:$HN$560,190,FALSE)/(VLOOKUP($C12,objectifs!$C$3:$ZZ$559,162,FALSE))>=1.5,(VLOOKUP($C12,objectifs!$C$3:$ZZ$559,162,FALSE))*1.5,IF(VLOOKUP($C12,'Indicateurs Cumulés'!$C$3:$HN$560,190,FALSE)/(VLOOKUP($C12,objectifs!$C$3:$ZZ$559,162,FALSE))<=-0.5,(VLOOKUP($C12,objectifs!$C$3:$ZZ$559,162,FALSE))*-0.5,VLOOKUP($C12,'Indicateurs Cumulés'!$C$3:$HN$560,190,FALSE)))) -> -47 | JS12: -1 | JT12: 0 | JV12: 0 | JW12: 21 | JX12: 7 | JY12: -1 | JZ12: 26 | KA12: 1 | KB12: 2 | KC12: -1 | KD12: 0 | KE12: -1 | KF12: 0 | KG12: 1 | KH12: 2 | KI12: -1 | KJ12: 0 | KK12: -1 | KL12: 0 | KM12: 8 | KN12: 5 | KR12: 6.16 | KS12: 1 | KT12: 2 | KU12: 0 | KV12: 3 | KW12: 1 | KX12: 0 | KY12: -2 | KZ12: -1 | LA12: 0 | LB12: 0 | LC12: 141 | LD12: 67 | LE12: 0 | LF12: 0 | LG12: -2 | LH12: -3 | LI12: -1 | LJ12: -0 | LK12: 138 | LL12: 35.2 | LM12: 11 | LN12: 153 | LO12: -11 | LP12: -3 | LQ12: 35.99 | LR12: 119 | LS12: 43 | LT12: 334 | LU12: -3 | LV12: 49 | LW12: 3 | LX12: 8.9 | LY12: 0.4 | LZ12: 1.0 | MA12: 0.0 | MB12: 0.7 | MC12: 0.0 | MD12: 152
A13: 105006 | B13: 200262 | C13: 20 | D13: STRASBOURG ROBERTSAU | E13: 2019-04-30 | F13: 47 | G13: 4.32% | H13: 1.57 | I13: 2019-04-30 | J13: 898 | K13: 3.30% | L13: 2.40 | M13: 4.08 | N13: 3,166 | O13: 0 | P13: -0.06% | Q13: 6.83 | R13: 10.65 | S13: -29 | T13: 2.85% | U13: 2.01 | V13: 776 | W13: 0.05% | X13: 8.85 | Y13: 103 | Z13: 0.74% | AA13: 2.26 | AB13: 7.7 | AC13: 9.4 | AD13: 0.2 | AE13: 67.7 | AF13: 14.8 | AG13: 5.8 | AH13: 201904 | AI13: 0 | AJ13: 0 | AK13: 0.00% | AL13: 111.49 | AM13: 19.95 | AN13: 18% | AO13: 1.38 | AP13: 1.24% | AQ13: 1,087.39 | AR13: 257.59 | AS13: 23.7% | AT13: 1.81 | AU13: 0.17% | AV13: 34.38 | AW13: 6.49 | AX13: 18.87% | AY13: 0.47 | AZ13: 1.37% | BA13: 1,233.26 | BB13: 284.02 | BC13: 23.0% | BD13: 3.67 | BE13: 0.30% | BG13: -2 | BH13: 24 | BI13: 97 | BJ13: 65 | BK13: 2 | BL13: 1.53% | BM13: 0.00% | BN13: 20 | BO13: 105 | BP13: 2 | BQ13: 86 | BR13: 2 | BS13: 1 | BT13: -3 | BU13: -1 | BX13: 0 | BY13: 0 | BZ13: 0 | CA13: 1 | CB13: 0 | CC13: 2 | CD13: 1 | CE13: 7 | CF13: 1.4 | CG13: 3 | CH13: 1 | CI13: 0 | CJ13: 0 | CK13: 100.00% | CL13: 100.00% | CM13: -0 | CN13: 159.12% | CO13: -0 | CP13: 18 | CQ13: 0.2 | CR13: 2 | CS13: 0.00 | CT13: 0 | CU13: 3 | CV13: 1 | CW13: 8 | CX13: 66.65% | CY13: 138.49% | CZ13: 65 | DA13: 97.58% | DB13: 138.28% | DC13: 20 | DE13: 100.00% | DF13: 100.00% | DG13: 0 | DH13: 49 | DI13: 0.70% | DJ13: 5.33 | DK13: 2 | DL13: -743 | DM13: 0.79% | DN13: 5.33 | DO13: -31 | DP13: 25 | DQ13: 0.90% | DR13: 5.33 | DS13: 1 | DT13: 189 | DU13: 0.40% | DV13: 2.67 | DW13: 2 | DX13: -180 | DY13: 0.20% | DZ13: 5.37 | EA13: -2 | EB13: 43 | EC13: 0.20% | ED13: 5.37 | EE13: 0 | EF13: -27 | EG13: 0.20% | EH13: 5.37 | EI13: -0 | EJ13: -43 | EK13: 0.46% | EL13: 5.33 | EM13: -1 | EN13: -7 | EO13: 0.10% | EP13: 9.07 | EQ13: -0 | ER13: -87 | ES13: 0.20% | ET13: 9.00 | EU13: -2 | EV13: -65 | EW13: 0.00% | EX13: 8.59 | EY13: 0 | EZ13: 0 | FA13: -0.37% | FB13: 0.08 | FC13: 0 | FD13: 516 | FE13: 0.45% | FF13: 8.00 | FG13: 19 | FH13: 1,235 | FI13: 0.30% | FJ13: 1.00 | FK13: 4 | FL13: -73 | FM13: 0.65% | FN13: 5.00 | FO13: -2 | FP13: 7 | FQ13: 0.40% | FR13: 1.00 | FS13: 0 | FT13: -391 | FU13: 0.20% | FV13: 8.00 | FW13: -6 | FX13: 154 | FY13: 1.00% | FZ13: 5.00 | GA13: 8 | GB13: -742 | GC13: -18 | GD13: 366 | GE13: 21 | GF13: -283 | GG13: 1.00% | GH13: 5.37 | GI13: -15 | GJ13: -228 | GK13: 0 | GL13: 0 | GN13: 0 | GO13: 0.00% | GP13: 0 | GQ13: 0 | GR13: 0 | GS13: 0.45% | GT13: 8.00 | GU13: 0 | GV13: 0 | GW13: 0.30% | GX13: 1.00 | GY13: 0 | GZ13: 0 | HA13: 0.65% | HB13: 5.00 | HC13: 0 | HD13: 0 | HE13: 0.40% | HF13: 1.00 | HG13: 0 | HH13: -77 | HI13: 1.00% | HJ13: 5.00 | HK13: -4 | HL13: -14 | HM13: 161 | HO13: =IF(ISERROR(IF(VLOOKUP($C13,'Indicateurs Cumulés'!$C$3:$HN$560,186,FALSE)/(VLOOKUP($C13,objectifs!$C$3:$ZZ$559,158,FALSE))>=1.5,(VLOOKUP($C13,objectifs!$C$3:$ZZ$559,158,FALSE))*1.5,IF(VLOOKUP($C13,'Indicateurs Cumulés'!$C$3:$HN$560,186,FALSE)/(VLOOKUP($C13,objectifs!$C$3:$ZZ$559,158,FALSE))<=-0.5,(VLOOKUP($C13,objectifs!$C$3:$ZZ$559,158,FALSE))*-0.5,VLOOKUP($C13,'Indicateurs Cumulés'!$C$3:$HN$560,186,FALSE)))),VLOOKUP($C13,'Indicateurs Cumulés'!$C$3:$HN$560,186,FALSE),IF(VLOOKUP($C13,'Indicateurs Cumulés'!$C$3:$HN$560,186,FALSE)/(VLOOKUP($C13,objectifs!$C$3:$ZZ$559,158,FALSE))>=1.5,(VLOOKUP($C13,objectifs!$C$3:$ZZ$559,158,FALSE))*1.5,IF(VLOOKUP($C13,'Indicateurs Cumulés'!$C$3:$HN$560,186,FALSE)/(VLOOKUP($C13,objectifs!$C$3:$ZZ$559,158,FALSE))<=-0.5,(VLOOKUP($C13,objectifs!$C$3:$ZZ$559,158,FALSE))*-0.5,VLOOKUP($C13,'Indicateurs Cumulés'!$C$3:$HN$560,186,FALSE)))) -> -283 | HP13: 0 | HR13: 6.4 | HT13: 4.26% | HU13: 0.30% | HV13: 0.93% | HW13: 5 | HX13: -13 | HY13: -4 | HZ13: -8 | IA13: 4 | IB13: 3 | IC13: 5 | ID13: -9 | IE13: 0 | IF13: -5 | IG13: -2 | IH13: 0 | II13: 1 | IJ13: 21 | IK13: -27 | IL13: -4 | IM13: 1 | IN13: -1 | IO13: -1 | IP13: -1 | IQ13: 0 | IR13: 0 | IS13: 1 | IT13: -4 | IU13: 0 | IV13: -3 | IW13: -2 | IX13: 0 | IY13: 1 | IZ13: 14 | JA13: -6 | JB13: -0 | JC13: 15 | JD13: 24 | JE13: 0 | JF13: -11 | JG13: 3.24 | JH13: -420.84 | JI13: 0 | JJ13: 0 | JK13: 0 | JL13: 0.20% | JM13: 6 | JO13: 169 | JP13: 340 | JQ13: 67 | JR13: =IF(ISERROR(IF(VLOOKUP($C13,'Indicateurs Cumulés'!$C$3:$HN$560,190,FALSE)/(VLOOKUP($C13,objectifs!$C$3:$ZZ$559,162,FALSE))>=1.5,(VLOOKUP($C13,objectifs!$C$3:$ZZ$559,162,FALSE))*1.5,IF(VLOOKUP($C13,'Indicateurs Cumulés'!$C$3:$HN$560,190,FALSE)/(VLOOKUP($C13,objectifs!$C$3:$ZZ$559,162,FALSE))<=-0.5,(VLOOKUP($C13,objectifs!$C$3:$ZZ$559,162,FALSE))*-0.5,VLOOKUP($C13,'Indicateurs Cumulés'!$C$3:$HN$560,190,FALSE)))),VLOOKUP($C13,'Indicateurs Cumulés'!$C$3:$HN$560,190,FALSE),IF(VLOOKUP($C13,'Indicateurs Cumulés'!$C$3:$HN$560,190,FALSE)/(VLOOKUP($C13,objectifs!$C$3:$ZZ$559,162,FALSE))>=1.5,(VLOOKUP($C13,objectifs!$C$3:$ZZ$559,162,FALSE))*1.5,IF(VLOOKUP($C13,'Indicateurs Cumulés'!$C$3:$HN$560,190,FALSE)/(VLOOKUP($C13,objectifs!$C$3:$ZZ$559,162,FALSE))<=-0.5,(VLOOKUP($C13,objectifs!$C$3:$ZZ$559,162,FALSE))*-0.5,VLOOKUP($C13,'Indicateurs Cumulés'!$C$3:$HN$560,190,FALSE)))) -> -49 | JS13: 0 | JT13: 0 | JV13: 6 | JW13: 11 | JX13: 2 | JY13: -1 | JZ13: 19 | KA13: -2 | KB13: 0 | KC13: -1 | KD13: 0 | KE13: 0 | KF13: 0 | KG13: -3 | KH13: 0 | KI13: -1 | KJ13: 0 | KK13: 0 | KL13: 0 | KM13: 1 | KN13: 3 | KR13: 2.59 | KS13: -3 | KT13: -44 | KU13: 0 | KV13: 6 | KW13: 1 | KX13: 0 | KY13: 22 | KZ13: 15 | LA13: 0 | LB13: 0 | LC13: 163 | LD13: 44 | LE13: 0 | LF13: 0 | LG13: 0 | LH13: 0 | LI13: 4 | LJ13: 0 | LK13: 162 | LL13: 25.2 | LM13: -3 | LN13: 164 | LO13: -14 | LP13: 0 | LQ13: 25.33 | LR13: 126 | LS13: 84 | LT13: 290 | LU13: 13 | LV13: -13 | LW13: 12 | LX13: 9.5 | LY13: 0.8 | LZ13: 0.9 | MA13: 0.7 | MB13: 0.0 | MC13: 0.1 | MD13: 175
A14: 105006 | B14: 200262 | C14: 23 | D14: STRASBOURG VOSGES | E14: 2019-04-30 | F14: 35 | G14: 4.32% | H14: 1.57 | I14: 2019-04-30 | J14: 317 | K14: 3.77% | L14: 2.00 | M14: 3.47 | N14: 523 | O14: 0 | P14: -0.09% | Q14: 7.39 | R14: 11.64 | S14: -18 | T14: 1.80% | U14: 1.74 | V14: 0 | W14: 0.00% | X14: 0 | Y14: 178 | Z14: 0.15% | AA14: 4.38 | AB14: 1.5 | AC14: 3.6 | AD14: 0.7 | AE14: 28.8 | AF14: 4.7 | AG14: 0.9 | AH14: 201904 | AI14: 3.00 | AJ14: 0.07 | AK14: 2.40% | AL14: 118.07 | AM14: 15.73 | AN14: 13% | AO14: 1.08 | AP14: 0.91% | AQ14: 275.40 | AR14: 59.19 | AS14: 21.5% | AT14: 0.03 | AU14: 0.01% | AV14: 20.93 | AW14: 0.81 | AX14: 3.88% | AY14: 0.32 | AZ14: 1.55% | BA14: 417.40 | BB14: 75.73 | BC14: 18.1% | BD14: 1.51 | BE14: 0.36% | BG14: -1 | BH14: 0 | BI14: 32 | BJ14: 22 | BK14: 3 | BL14: 1.66% | BM14: 0.00% | BN14: 23 | BO14: 21 | BP14: 0 | BQ14: 83 | BR14: 2 | BS14: 0 | BT14: 1 | BU14: -7 | BX14: 0 | BY14: 0 | BZ14: 0 | CA14: 0 | CB14: 0 | CC14: 0 | CD14: 0 | CE14: 4 | CF14: 0.8 | CG14: -3 | CH14: -1 | CI14: 0 | CJ14: 0 | CK14: 100.00% | CL14: 100.00% | CM14: -0 | CN14: 0.00% | CO14: -0 | CP14: 0 | CQ14: 0.7 | CR14: 0 | CS14: 0.00 | CT14: 0 | CU14: 1 | CV14: 0 | CW14: 1 | CX14: 100.00% | CY14: 154.55% | CZ14: 23 | DA14: 100.00% | DB14: 114.38% | DC14: 5 | DE14: 100.00% | DF14: 100.00% | DG14: 1 | DH14: 357 | DI14: 0.70% | DJ14: 5.33 | DK14: 13 | DL14: 263 | DM14: 0.79% | DN14: 5.33 | DO14: 11 | DP14: -20 | DQ14: 0.90% | DR14: 5.33 | DS14: -1 | DT14: 1,528 | DU14: 0.40% | DV14: 2.67 | DW14: 16 | DX14: -175 | DY14: 0.20% | DZ14: 5.37 | EA14: -2 | EB14: 85 | EC14: 0.20% | ED14: 5.37 | EE14: 1 | EF14: -34 | EG14: 0.20% | EH14: 5.37 | EI14: -0 | EJ14: 35 | EK14: 0.46% | EL14: 5.33 | EM14: 1 | EN14: -7 | EO14: 0.10% | EP14: 6.57 | EQ14: -0 | ER14: -246 | ES14: 0.20% | ET14: 9.00 | EU14: -4 | EV14: -20 | EW14: 0.00% | EX14: 8.59 | EY14: 0 | EZ14: 0 | FA14: -0.37% | FB14: 0.08 | FC14: 0 | FD14: -403 | FE14: 0.45% | FF14: 8.00 | FG14: -14 | FH14: 270 | FI14: 0.36% | FJ14: 1.00 | FK14: 1 | FL14: -115 | FM14: 0.65% | FN14: 5.00 | FO14: -4 | FP14: 2 | FQ14: 0.40% | FR14: 1.00 | FS14: 0 | FT14: -266 | FU14: 0.20% | FV14: 8.00 | FW14: -4 | FX14: 62 | FY14: 1.00% | FZ14: 5.00 | GA14: 3 | GB14: 1,612 | GC14: 35 | GD14: -151 | GE14: -1 | GF14: -587 | GG14: 1.00% | GH14: 5.37 | GI14: -32 | GJ14: -61 | GK14: 0 | GL14: 0 | GN14: 0 | GO14: 0.00% | GP14: 0 | GQ14: 0 | GR14: 500 | GS14: 0.45% | GT14: 8.00 | GU14: 18 | GV14: 500 | GW14: 0.36% | GX14: 1.00 | GY14: 2 | GZ14: 0 | HA14: 0.65% | HB14: 5.00 | HC14: 0 | HD14: 0 | HE14: 0.40% | HF14: 1.00 | HG14: 0 | HH14: -134 | HI14: 1.00% | HJ14: 5.00 | HK14: -7 | HL14: -7 | HM14: 109 | HO14: =IF(ISERROR(IF(VLOOKUP($C14,'Indicateurs Cumulés'!$C$3:$HN$560,186,FALSE)/(VLOOKUP($C14,objectifs!$C$3:$ZZ$559,158,FALSE))>=1.5,(VLOOKUP($C14,objectifs!$C$3:$ZZ$559,158,FALSE))*1.5,IF(VLOOKUP($C14,'Indicateurs Cumulés'!$C$3:$HN$560,186,FALSE)/(VLOOKUP($C14,objectifs!$C$3:$ZZ$559,158,FALSE))<=-0.5,(VLOOKUP($C14,objectifs!$C$3:$ZZ$559,158,FALSE))*-0.5,VLOOKUP($C14,'Indicateurs Cumulés'!$C$3:$HN$560,186,FALSE)))),VLOOKUP($C14,'Indicateurs Cumulés'!$C$3:$HN$560,186,FALSE),IF(VLOOKUP($C14,'Indicateurs Cumulés'!$C$3:$HN$560,186,FALSE)/(VLOOKUP($C14,objectifs!$C$3:$ZZ$559,158,FALSE))>=1.5,(VLOOKUP($C14,objectifs!$C$3:$ZZ$559,158,FALSE))*1.5,IF(VLOOKUP($C14,'Indicateurs Cumulés'!$C$3:$HN$560,186,FALSE)/(VLOOKUP($C14,objectifs!$C$3:$ZZ$559,158,FALSE))<=-0.5,(VLOOKUP($C14,objectifs!$C$3:$ZZ$559,158,FALSE))*-0.5,VLOOKUP($C14,'Indicateurs Cumulés'!$C$3:$HN$560,186,FALSE)))) -> -201 | HP14: 0 | HR14: 3.4 | HT14: 4.61% | HU14: 0.58% | HV14: 0.37% | HW14: 0 | HX14: 4 | HY14: 1 | HZ14: -4 | IA14: -7 | IB14: 0 | IC14: -8 | ID14: 10 | IE14: -1 | IF14: -2 | IG14: 0 | IH14: 0 | II14: -1 | IJ14: -17 | IK14: 4 | IL14: 1 | IM14: 0 | IN14: 0 | IO14: 0 | IP14: -0 | IQ14: -0 | IR14: 0 | IS14: -1 | IT14: 4 | IU14: -0 | IV14: -1 | IW14: 0 | IX14: 0 | IY14: -1 | IZ14: -11 | JA14: 1 | JB14: 0 | JC14: -23 | JD14: 2 | JE14: 0 | JF14: -38 | JG14: 5.61 | JH14: 108.96 | JI14: 0 | JJ14: 0 | JK14: -88 | JL14: 0.20% | JM14: 0 | JO14: 9 | JP14: 49 | JQ14: -57 | JR14: =IF(ISERROR(IF(VLOOKUP($C14,'Indicateurs Cumulés'!$C$3:$HN$560,190,FALSE)/(VLOOKUP($C14,objectifs!$C$3:$ZZ$559,162,FALSE))>=1.5,(VLOOKUP($C14,objectifs!$C$3:$ZZ$559,162,FALSE))*1.5,IF(VLOOKUP($C14,'Indicateurs Cumulés'!$C$3:$HN$560,190,FALSE)/(VLOOKUP($C14,objectifs!$C$3:$ZZ$559,162,FALSE))<=-0.5,(VLOOKUP($C14,objectifs!$C$3:$ZZ$559,162,FALSE))*-0.5,VLOOKUP($C14,'Indicateurs Cumulés'!$C$3:$HN$560,190,FALSE)))),VLOOKUP($C14,'Indicateurs Cumulés'!$C$3:$HN$560,190,FALSE),IF(VLOOKUP($C14,'Indicateurs Cumulés'!$C$3:$HN$560,190,FALSE)/(VLOOKUP($C14,objectifs!$C$3:$ZZ$559,162,FALSE))>=1.5,(VLOOKUP($C14,objectifs!$C$3:$ZZ$559,162,FALSE))*1.5,IF(VLOOKUP($C14,'Indicateurs Cumulés'!$C$3:$HN$560,190,FALSE)/(VLOOKUP($C14,objectifs!$C$3:$ZZ$559,162,FALSE))<=-0.5,(VLOOKUP($C14,objectifs!$C$3:$ZZ$559,162,FALSE))*-0.5,VLOOKUP($C14,'Indicateurs Cumulés'!$C$3:$HN$560,190,FALSE)))) -> -30 | JS14: -2 | JT14: 0 | JV14: 0 | JW14: 2 | JX14: -2 | JY14: -1 | JZ14: -2 | KA14: 3 | KB14: 0 | KC14: 0 | KD14: 4 | KE14: 0 | KF14: 0 | KG14: 4 | KH14: 0 | KI14: 0 | KJ14: 1 | KK14: 0 | KL14: 0 | KM14: 7 | KN14: 1 | KR14: 6.65 | KS14: 7 | KT14: 2 | KU14: 0 | KV14: -14 | KW14: -3 | KX14: 0 | KY14: -18 | KZ14: -13 | LA14: 0 | LB14: 0 | LC14: 52 | LD14: 2 | LE14: -1 | LF14: -1 | LG14: -3 | LH14: -4 | LI14: 0 | LJ14: 0 | LK14: 54 | LL14: 15.9 | LM14: 30 | LN14: 58 | LO14: -7 | LP14: -5 | LQ14: 15.57 | LR14: 72 | LS14: 46 | LT14: 230 | LU14: 0 | LV14: 3 | LW14: 3 | LX14: 5.4 | LY14: 0.5 | LZ14: 0.7 | MA14: 0.0 | MB14: 0.0 | MC14: 0.0 | MD14: 59
A15: 105006 | B15: 200262 | C15: 24 | D15: STRASBOURG AUSTERLITZ | E15: 2019-04-30 | F15: 39 | G15: 4.32% | H15: 1.57 | I15: 2019-04-30 | J15: 210 | K15: 4.47% | L15: 2.16 | M15: 3.77 | N15: 631 | O15: 0 | P15: -0.01% | Q15: 7.49 | R15: 11.71 | S15: 0 | T15: 0.00% | U15: 0 | V15: 113 | W15: 0.06% | X15: 4.38 | Y15: 0 | Z15: 0.00% | AA15: 0 | AB15: 2.1 | AC15: 2.9 | AD15: 0 | AE15: 19.2 | AF15: 4.0 | AG15: 1.0 | AH15: 201904 | AI15: 0 | AJ15: 0 | AK15: 0.00% | AL15: 87.46 | AM15: 19.88 | AN15: 23% | AO15: 1.13 | AP15: 1.29% | AQ15: 497.29 | AR15: 70.25 | AS15: 14.1% | AT15: 0.83 | AU15: 0.17% | AV15: 13.12 | AW15: 0.83 | AX15: 6.34% | AY15: 0.27 | AZ15: 2.03% | BA15: 597.87 | BB15: 90.96 | BC15: 15.2% | BD15: 2.23 | BE15: 0.37% | BG15: 0 | BH15: 1 | BI15: 28 | BJ15: 19 | BK15: 0 | BL15: 1.57% | BM15: 0.00% | BN15: 24 | BO15: 21 | BP15: 0 | BQ15: 84 | BR15: 2 | BS15: -1 | BT15: 1 | BU15: -1 | BX15: 0 | BY15: 0 | BZ15: 0 | CA15: 1 | CB15: 0 | CC15: 0 | CD15: 0 | CE15: 5 | CF15: 1.0 | CG15: -13 | CH15: -3 | CI15: 0 | CJ15: 0 | CK15: 0.00% | CL15: 0.00% | CM15: 0 | CN15: 0.00% | CO15: 0 | CP15: 0 | CQ15: 0 | CR15: 0 | CS15: 0.00 | CT15: 0 | CU15: 2 | CV15: 1 | CW15: 2 | CX15: 65.99% | CY15: 168.99% | CZ15: 16 | DA15: 98.33% | DB15: 124.24% | DC15: 4 | DE15: 0.00% | DF15: 0.00% | DG15: 0 | DH15: 79 | DI15: 0.70% | DJ15: 5.33 | DK15: 3 | DL15: 74 | DM15: 0.79% | DN15: 5.33 | DO15: 3 | DP15: 44 | DQ15: 0.90% | DR15: 5.33 | DS15: 2 | DT15: -13 | DU15: 0.40% | DV15: 2.67 | DW15: -0 | DX15: -112 | DY15: 0.20% | DZ15: 5.37 | EA15: -1 | EB15: 48 | EC15: 0.20% | ED15: 5.37 | EE15: 1 | EF15: -22 | EG15: 0.20% | EH15: 5.37 | EI15: -0 | EJ15: 37 | EK15: 0.46% | EL15: 5.33 | EM15: 1 | EN15: 2 | EO15: 0.10% | EP15: 9.30 | EQ15: 0 | ER15: -105 | ES15: 0.20% | ET15: 9.00 | EU15: -2 | EV15: -376 | EW15: 0.00% | EX15: 8.59 | EY15: 0 | EZ15: 0 | FA15: -0.37% | FB15: 0.08 | FC15: 0 | FD15: 63 | FE15: 0.45% | FF15: 8.00 | FG15: 2 | FH15: 570 | FI15: 0.37% | FJ15: 1.00 | FK15: 2 | FL15: 1 | FM15: 0.65% | FN15: 5.00 | FO15: 0 | FP15: 3 | FQ15: 0.40% | FR15: 1.00 | FS15: 0 | FT15: -100 | FU15: 0.20% | FV15: 8.00 | FW15: -2 | FX15: 62 | FY15: 1.00% | FZ15: 5.00 | GA15: 3 | GB15: -669 | GC15: -2 | GD15: 354 | GE15: 18 | GF15: 112 | GG15: 1.00% | GH15: 5.37 | GI15: 6 | GJ15: -94 | GK15: 0 | GL15: 0 | GN15: 0 | GO15: 0.00% | GP15: 0 | GQ15: 0 | GR15: 320 | GS15: 0.45% | GT15: 8.00 | GU15: 12 | GV15: 320 | GW15: 0.37% | GX15: 1.00 | GY15: 1 | GZ15: 0 | HA15: 0.65% | HB15: 5.00 | HC15: 0 | HD15: 0 | HE15: 0.40% | HF15: 1.00 | HG15: 0 | HH15: -30 | HI15: 1.00% | HJ15: 5.00 | HK15: -1 | HL15: -4 | HM15: 111 | HO15: =IF(ISERROR(IF(VLOOKUP($C15,'Indicateurs Cumulés'!$C$3:$HN$560,186,FALSE)/(VLOOKUP($C15,objectifs!$C$3:$ZZ$559,158,FALSE))>=1.5,(VLOOKUP($C15,objectifs!$C$3:$ZZ$559,158,FALSE))*1.5,IF(VLOOKUP($C15,'Indicateurs Cumulés'!$C$3:$HN$560,186,FALSE)/(VLOOKUP($C15,objectifs!$C$3:$ZZ$559,158,FALSE))<=-0.5,(VLOOKUP($C15,objectifs!$C$3:$ZZ$559,158,FALSE))*-0.5,VLOOKUP($C15,'Indicateurs Cumulés'!$C$3:$HN$560,186,FALSE)))),VLOOKUP($C15,'Indicateurs Cumulés'!$C$3:$HN$560,186,FALSE),IF(VLOOKUP($C15,'Indicateurs Cumulés'!$C$3:$HN$560,186,FALSE)/(VLOOKUP($C15,objectifs!$C$3:$ZZ$559,158,FALSE))>=1.5,(VLOOKUP($C15,objectifs!$C$3:$ZZ$559,158,FALSE))*1.5,IF(VLOOKUP($C15,'Indicateurs Cumulés'!$C$3:$HN$560,186,FALSE)/(VLOOKUP($C15,objectifs!$C$3:$ZZ$559,158,FALSE))<=-0.5,(VLOOKUP($C15,objectifs!$C$3:$ZZ$559,158,FALSE))*-0.5,VLOOKUP($C15,'Indicateurs Cumulés'!$C$3:$HN$560,186,FALSE)))) -> 112 | HP15: 0 | HR15: 2.9 | HT15: 5.23% | HU15: 0.40% | HV15: 0.00% | HW15: -3 | HX15: 3 | HY15: 0 | HZ15: 3 | IA15: 2 | IB15: 5 | IC15: 5 | ID15: 6 | IE15: 1 | IF15: -7 | IG15: -3 | IH15: -1 | II15: 2 | IJ15: -7 | IK15: -1 | IL15: 0 | IM15: -0 | IN15: 0 | IO15: 0 | IP15: 0 | IQ15: 0 | IR15: 0 | IS15: 1 | IT15: 3 | IU15: 0 | IV15: -4 | IW15: -3 | IX15: -2 | IY15: 2 | IZ15: -5 | JA15: -0 | JB15: 0 | JC15: -11 | JD15: 1 | JE15: 0 | JF15: -1 | JG15: -17.12 | JH15: -644.41 | JI15: 0 | JJ15: 0 | JK15: 0 | JL15: 0.20% | JM15: 3 | JO15: -31 | JP15: -287 | JQ15: -19 | JR15: =IF(ISERROR(IF(VLOOKUP($C15,'Indicateurs Cumulés'!$C$3:$HN$560,190,FALSE)/(VLOOKUP($C15,objectifs!$C$3:$ZZ$559,162,FALSE))>=1.5,(VLOOKUP($C15,objectifs!$C$3:$ZZ$559,162,FALSE))*1.5,IF(VLOOKUP($C15,'Indicateurs Cumulés'!$C$3:$HN$560,190,FALSE)/(VLOOKUP($C15,objectifs!$C$3:$ZZ$559,162,FALSE))<=-0.5,(VLOOKUP($C15,objectifs!$C$3:$ZZ$559,162,FALSE))*-0.5,VLOOKUP($C15,'Indicateurs Cumulés'!$C$3:$HN$560,190,FALSE)))),VLOOKUP($C15,'Indicateurs Cumulés'!$C$3:$HN$560,190,FALSE),IF(VLOOKUP($C15,'Indicateurs Cumulés'!$C$3:$HN$560,190,FALSE)/(VLOOKUP($C15,objectifs!$C$3:$ZZ$559,162,FALSE))>=1.5,(VLOOKUP($C15,objectifs!$C$3:$ZZ$559,162,FALSE))*1.5,IF(VLOOKUP($C15,'Indicateurs Cumulés'!$C$3:$HN$560,190,FALSE)/(VLOOKUP($C15,objectifs!$C$3:$ZZ$559,162,FALSE))<=-0.5,(VLOOKUP($C15,objectifs!$C$3:$ZZ$559,162,FALSE))*-0.5,VLOOKUP($C15,'Indicateurs Cumulés'!$C$3:$HN$560,190,FALSE)))) -> -29 | JS15: 0 | JT15: 0 | JV15: -1 | JW15: -9 | JX15: -1 | JY15: -1 | JZ15: -11 | KA15: -3 | KB15: 0 | KC15: 0 | KD15: -4 | KE15: 1 | KF15: 0 | KG15: -4 | KH15: 0 | KI15: 0 | KJ15: -1 | KK15: 1 | KL15: 0 | KM15: -3 | KN15: 1 | KR15: 6.47 | KS15: -6 | KT15: -63 | KU15: 0 | KV15: 14 | KW15: 3 | KX15: 0 | KY15: -6 | KZ15: -4 | LA15: 0 | LB15: 0 | LC15: 40 | LD15: -20 | LE15: -3 | LF15: -2 | LG15: -3 | LH15: -4 | LI15: -1 | LJ15: -0 | LK15: 36 | LL15: 12.4 | LM15: 19 | LN15: 47 | LO15: -4 | LP15: -6 | LQ15: 13.75 | LR15: 84 | LS15: 49 | LT15: 368 | LU15: 2 | LV15: 4 | LW15: 8 | LX15: 6.3 | LY15: 0.5 | LZ15: 1.1 | MA15: 0.1 | MB15: 0.1 | MC15: 0.0 | MD15: 48
A16: 105006 | B16: 200262 | C16: 25 | D16: STRASBOURG ESPLANADE | E16: 2019-04-30 | F16: 54 | G16: 4.32% | H16: 1.57 | I16: 2019-04-30 | J16: 281 | K16: 3.61% | L16: 2.22 | M16: 3.79 | N16: 1,300 | O16: 0 | P16: -0.09% | Q16: 6.60 | R16: 10.16 | S16: 1 | T16: 2.75% | U16: 0.85 | V16: 146 | W16: 0.01% | X16: 8.80 | Y16: 0 | Z16: 0.00% | AA16: 0 | AB16: 4.0 | AC16: 2.7 | AD16: 0 | AE16: 17.5 | AF16: 3.6 | AG16: 0.7 | AH16: 201904 | AI16: 0 | AJ16: 0 | AK16: 0.00% | AL16: 91.49 | AM16: 51.66 | AN16: 56% | AO16: 0.80 | AP16: 0.88% | AQ16: 443.46 | AR16: 98.76 | AS16: 22.3% | AT16: 0.80 | AU16: 0.18% | AV16: 12.21 | AW16: 0.93 | AX16: 7.65% | AY16: 0.22 | AZ16: 1.77% | BA16: 547.16 | BB16: 151.36 | BC16: 27.7% | BD16: 1.82 | BE16: 0.33% | BG16: 0 | BH16: 7 | BI16: 33 | BJ16: 9 | BK16: 1 | BL16: 1.56% | BM16: 0.00% | BN16: 25 | BO16: 170 | BP16: 3 | BQ16: 63 | BR16: 2 | BS16: -2 | BT16: -5 | BU16: 0 | BX16: 0 | BY16: 0 | BZ16: 0 | CA16: 0 | CB16: 0 | CC16: -4 | CD16: -2 | CE16: 0 | CF16: 0 | CG16: -7 | CH16: -1 | CI16: 0 | CJ16: 0 | CK16: 100.00% | CL16: 200.00% | CM16: 0 | CN16: 200.00% | CO16: 0 | CP16: 6 | CQ16: 0 | CR16: 0 | CS16: 0.00 | CT16: 0 | CU16: 2 | CV16: 0 | CW16: 4 | CX16: 37.61% | CY16: 129.62% | CZ16: 12 | DA16: 79.34% | DB16: 145.15% | DC16: 5 | DE16: 100.00% | DF16: 200.00% | DG16: 1 | DH16: -45 | DI16: 0.70% | DJ16: 5.33 | DK16: -2 | DL16: 4 | DM16: 0.79% | DN16: 5.33 | DO16: 0 | DP16: -2 | DQ16: 0.90% | DR16: 5.33 | DS16: -0 | DT16: 21 | DU16: 0.40% | DV16: 2.67 | DW16: 0 | DX16: -134 | DY16: 0.20% | DZ16: 5.37 | EA16: -1 | EB16: -108 | EC16: 0.20% | ED16: 5.37 | EE16: -1 | EF16: -23 | EG16: 0.20% | EH16: 5.37 | EI16: -0 | EJ16: 1 | EK16: 0.46% | EL16: 5.33 | EM16: 0 | EN16: -2 | EO16: 0.10% | EP16: 9.49 | EQ16: -0 | ER16: -17 | ES16: 0.20% | ET16: 9.00 | EU16: -0 | EV16: 6 | EW16: 0.00% | EX16: 8.59 | EY16: 0 | EZ16: 0 | FA16: -0.37% | FB16: 0.08 | FC16: 0 | FD16: 162 | FE16: 0.45% | FF16: 8.00 | FG16: 6 | FH16: 510 | FI16: 0.33% | FJ16: 1.00 | FK16: 2 | FL16: -80 | FM16: 0.65% | FN16: 5.00 | FO16: -3 | FP16: 3 | FQ16: 0.40% | FR16: 1.00 | FS16: 0 | FT16: -358 | FU16: 0.20% | FV16: 8.00 | FW16: -6 | FX16: 3 | FY16: 1.00% | FZ16: 5.00 | GA16: 0 | GB16: -663 | GC16: -10 | GD16: 271 | GE16: 17 | GF16: -98 | GG16: 1.00% | GH16: 5.37 | GI16: -5 | GJ16: -32 | GK16: 0 | GL16: 0 | GN16: 0 | GO16: 0.00% | GP16: 0 | GQ16: 0 | GR16: 269 | GS16: 0.45% | GT16: 8.00 | GU16: 10 | GV16: 271 | GW16: 0.33% | GX16: 1.00 | GY16: 1 | GZ16: 0 | HA16: 0.65% | HB16: 5.00 | HC16: 0 | HD16: 0 | HE16: 0.40% | HF16: 1.00 | HG16: 0 | HH16: -80 | HI16: 1.00% | HJ16: 5.00 | HK16: -4 | HL16: -8 | HM16: 159 | HO16: =IF(ISERROR(IF(VLOOKUP($C16,'Indicateurs Cumulés'!$C$3:$HN$560,186,FALSE)/(VLOOKUP($C16,objectifs!$C$3:$ZZ$559,158,FALSE))>=1.5,(VLOOKUP($C16,objectifs!$C$3:$ZZ$559,158,FALSE))*1.5,IF(VLOOKUP($C16,'Indicateurs Cumulés'!$C$3:$HN$560,186,FALSE)/(VLOOKUP($C16,objectifs!$C$3:$ZZ$559,158,FALSE))<=-0.5,(VLOOKUP($C16,objectifs!$C$3:$ZZ$559,158,FALSE))*-0.5,VLOOKUP($C16,'Indicateurs Cumulés'!$C$3:$HN$560,186,FALSE)))),VLOOKUP($C16,'Indicateurs Cumulés'!$C$3:$HN$560,186,FALSE),IF(VLOOKUP($C16,'Indicateurs Cumulés'!$C$3:$HN$560,186,FALSE)/(VLOOKUP($C16,objectifs!$C$3:$ZZ$559,158,FALSE))>=1.5,(VLOOKUP($C16,objectifs!$C$3:$ZZ$559,158,FALSE))*1.5,IF(VLOOKUP($C16,'Indicateurs Cumulés'!$C$3:$HN$560,186,FALSE)/(VLOOKUP($C16,objectifs!$C$3:$ZZ$559,158,FALSE))<=-0.5,(VLOOKUP($C16,objectifs!$C$3:$ZZ$559,158,FALSE))*-0.5,VLOOKUP($C16,'Indicateurs Cumulés'!$C$3:$HN$560,186,FALSE)))) -> -98 | HP16: 0 | HR16: 4.0 | HT16: 4.49% | HU16: 0.11% | HV16: 0.00% | HW16: -8 | HX16: -24 | HY16: 2 | HZ16: -4 | IA16: -5 | IB16: -2 | IC16: -11 | ID16: -12 | IE16: -1 | IF16: -5 | IG16: -1 | IH16: 1 | II16: 1 | IJ16: -2 | IK16: -6 | IL16: 0 | IM16: -1 | IN16: -2 | IO16: 1 | IP16: -0 | IQ16: -0 | IR16: -0 | IS16: -1 | IT16: -5 | IU16: -0 | IV16: -3 | IW16: -1 | IX16: 2 | IY16: 1 | IZ16: -1 | JA16: -1 | JB16: 0 | JC16: -22 | JD16: 8 | JE16: 0 | JF16: -77 | JG16: 4.76 | JH16: 60.73 | JI16: 0 | JJ16: 0 | JK16: -1 | JL16: 0.20% | JM16: 0 | JO16: -3 | JP16: -9 | JQ16: -16 | JR16: =IF(ISERROR(IF(VLOOKUP($C16,'Indicateurs Cumulés'!$C$3:$HN$560,190,FALSE)/(VLOOKUP($C16,objectifs!$C$3:$ZZ$559,162,FALSE))>=1.5,(VLOOKUP($C16,objectifs!$C$3:$ZZ$559,162,FALSE))*1.5,IF(VLOOKUP($C16,'Indicateurs Cumulés'!$C$3:$HN$560,190,FALSE)/(VLOOKUP($C16,objectifs!$C$3:$ZZ$559,162,FALSE))<=-0.5,(VLOOKUP($C16,objectifs!$C$3:$ZZ$559,162,FALSE))*-0.5,VLOOKUP($C16,'Indicateurs Cumulés'!$C$3:$HN$560,190,FALSE)))),VLOOKUP($C16,'Indicateurs Cumulés'!$C$3:$HN$560,190,FALSE),IF(VLOOKUP($C16,'Indicateurs Cumulés'!$C$3:$HN$560,190,FALSE)/(VLOOKUP($C16,objectifs!$C$3:$ZZ$559,162,FALSE))>=1.5,(VLOOKUP($C16,objectifs!$C$3:$ZZ$559,162,FALSE))*1.5,IF(VLOOKUP($C16,'Indicateurs Cumulés'!$C$3:$HN$560,190,FALSE)/(VLOOKUP($C16,objectifs!$C$3:$ZZ$559,162,FALSE))<=-0.5,(VLOOKUP($C16,objectifs!$C$3:$ZZ$559,162,FALSE))*-0.5,VLOOKUP($C16,'Indicateurs Cumulés'!$C$3:$HN$560,190,FALSE)))) -> -32 | JS16: -0 | JT16: 0 | JV16: -0 | JW16: -0 | JX16: -1 | JY16: -1 | JZ16: -1 | KA16: -3 | KB16: -2 | KC16: 0 | KD16: -1 | KE16: 0 | KF16: 0 | KG16: -4 | KH16: -2 | KI16: 0 | KJ16: -0 | KK16: 0 | KL16: 0 | KM16: -6 | KN16: 3 | KR16: 4.65 | KS16: -6 | KT16: 5 | KU16: 0 | KV16: -1 | KW16: -0 | KX16: 0 | KY16: 0 | KZ16: 0 | LA16: 0 | LB16: 0 | LC16: 3 | LD16: -8 | LE16: -2 | LF16: -1 | LG16: -5 | LH16: -7 | LI16: -1 | LJ16: -0 | LK16: 10 | LL16: 2.5 | LM16: 5 | LN16: 43 | LO16: -8 | LP16: -9 | LQ16: 0.82 | LR16: 123 | LS16: 27 | LT16: 325 | LU16: -9 | LV16: -31 | LW16: 7 | LX16: 9.2 | LY16: 0.3 | LZ16: 1.0 | MA16: 0.0 | MB16: 0.0 | MC16: 0.0 | MD16: 14
A17: 105006 | B17: 200262 | C17: 26 | D17: STRASBOURG DANUBE | E17: 2019-04-30 | F17: 22 | G17: 4.32% | H17: 1.57 | I17: 2019-04-30 | J17: 136 | K17: 2.48% | L17: 2.58 | M17: 4.35 | N17: 960 | O17: 0 | P17: -0.09% | Q17: 8.17 | R17: 12.57 | S17: 0 | T17: 0.00% | U17: 0 | V17: 222 | W17: -0.04% | X17: 7.56 | Y17: 0 | Z17: 0.00% | AA17: 0 | AB17: 2.3 | AC17: 2.7 | AD17: 0 | AE17: 37.0 | AF17: 2.3 | AG17: 1.0 | AH17: 201904 | AI17: 0 | AJ17: 0 | AK17: 0.00% | AL17: 53.15 | AM17: 15.79 | AN17: 30% | AO17: 0.43 | AP17: 0.81% | AQ17: 62.66 | AR17: 32.00 | AS17: 51.1% | AT17: 0.05 | AU17: 0.08% | AV17: 9.89 | AW17: 1.71 | AX17: 17.25% | AY17: 0.20 | AZ17: 2.00% | BA17: 125.70 | BB17: 49.50 | BC17: 39.4% | BD17: 0.68 | BE17: 0.54% | BG17: 0 | BH17: 10 | BI17: 16 | BJ17: -3 | BK17: 0 | BL17: 1.72% | BM17: 0.00% | BN17: 26 | BO17: 0 | BP17: 0 | BQ17: 9 | BR17: 0 | BS17: 1 | BT17: -1 | BU17: -2 | BX17: 0 | BY17: 0 | BZ17: 0 | CA17: 0 | CB17: 0 | CC17: 0 | CD17: 0 | CE17: 7 | CF17: 1.4 | CG17: -3 | CH17: -1 | CI17: 0 | CJ17: 0 | CK17: 0.00% | CL17: 0.00% | CM17: 0 | CN17: 200.00% | CO17: 0 | CP17: 11 | CQ17: 0 | CR17: 0 | CS17: 0.00 | CT17: 0 | CU17: 1 | CV17: 0 | CW17: 2 | CX17: 68.21% | CY17: 200.00% | CZ17: 0 | DA17: 88.24% | DB17: 238.51% | DC17: 5 | DE17: 0.00% | DF17: 0.00% | DG17: 0 | DH17: 231 | DI17: 0.70% | DJ17: 5.33 | DK17: 9 | DL17: 110 | DM17: 0.79% | DN17: 5.33 | DO17: 5 | DP17: -2 | DQ17: 0.90% | DR17: 5.33 | DS17: -0 | DT17: 94 | DU17: 0.40% | DV17: 2.67 | DW17: 1 | DX17: -35 | DY17: 0.20% | DZ17: 5.37 | EA17: -0 | EB17: 40 | EC17: 0.20% | ED17: 5.37 | EE17: 0 | EF17: -17 | EG17: 0.20% | EH17: 5.37 | EI17: -0 | EJ17: 43 | EK17: 0.46% | EL17: 5.33 | EM17: 1 | EN17: 2 | EO17: 0.10% | EP17: 7.30 | EQ17: 0 | ER17: -46 | ES17: 0.20% | ET17: 9.00 | EU17: -1 | EV17: 129 | EW17: 0.00% | EX17: 3.56 | EY17: 0 | EZ17: 0 | FA17: -0.37% | FB17: 0.08 | FC17: 0 | FD17: -93 | FE17: 0.45% | FF17: 8.00 | FG17: -3 | FH17: 75 | FI17: 0.54% | FJ17: 1.00 | FK17: 0 | FL17: -13 | FM17: 0.65% | FN17: 5.00 | FO17: -0 | FP17: 3 | FQ17: 0.40% | FR17: 1.00 | FS17: 0 | FT17: -59 | FU17: 0.20% | FV17: 8.00 | FW17: -1 | FX17: 33 | FY17: 1.00% | FZ17: 5.00 | GA17: 2 | GB17: 513 | GC17: 15 | GD17: -118 | GE17: -4 | GF17: -412 | GG17: 1.00% | GH17: 5.37 | GI17: -22 | GJ17: -26 | GK17: 0 | GL17: 0 | GN17: 0 | GO17: 0.00% | GP17: 0 | GQ17: 0 | GR17: 0 | GS17: 0.45% | GT17: 8.00 | GU17: 0 | GV17: 0 | GW17: 0.54% | GX17: 1.00 | GY17: 0 | GZ17: 0 | HA17: 0.65% | HB17: 5.00 | HC17: 0 | HD17: 0 | HE17: 0.40% | HF17: 1.00 | HG17: 0 | HH17: -11 | HI17: 1.00% | HJ17: 5.00 | HK17: -1 | HL17: -5 | HM17: 62 | HO17: =IF(ISERROR(IF(VLOOKUP($C17,'Indicateurs Cumulés'!$C$3:$HN$560,186,FALSE)/(VLOOKUP($C17,objectifs!$C$3:$ZZ$559,158,FALSE))>=1.5,(VLOOKUP($C17,objectifs!$C$3:$ZZ$559,158,FALSE))*1.5,IF(VLOOKUP($C17,'Indicateurs Cumulés'!$C$3:$HN$560,186,FALSE)/(VLOOKUP($C17,objectifs!$C$3:$ZZ$559,158,FALSE))<=-0.5,(VLOOKUP($C17,objectifs!$C$3:$ZZ$559,158,FALSE))*-0.5,VLOOKUP($C17,'Indicateurs Cumulés'!$C$3:$HN$560,186,FALSE)))),VLOOKUP($C17,'Indicateurs Cumulés'!$C$3:$HN$560,186,FALSE),IF(VLOOKUP($C17,'Indicateurs Cumulés'!$C$3:$HN$560,186,FALSE)/(VLOOKUP($C17,objectifs!$C$3:$ZZ$559,158,FALSE))>=1.5,(VLOOKUP($C17,objectifs!$C$3:$ZZ$559,158,FALSE))*1.5,IF(VLOOKUP($C17,'Indicateurs Cumulés'!$C$3:$HN$560,186,FALSE)/(VLOOKUP($C17,objectifs!$C$3:$ZZ$559,158,FALSE))<=-0.5,(VLOOKUP($C17,objectifs!$C$3:$ZZ$559,158,FALSE))*-0.5,VLOOKUP($C17,'Indicateurs Cumulés'!$C$3:$HN$560,186,FALSE)))) -> -100 | HP17: 0 | HR17: 1.7 | HT17: 3.83% | HU17: -0.04% | HV17: 0.00% | HW17: 5 | HX17: -6 | HY17: 1 | HZ17: -4 | IA17: -5 | IB17: 0 | IC17: 1 | ID17: -11 | IE17: -1 | IF17: -1 | IG17: 0 | IH17: 1 | II17: 0 | IJ17: -2 | IK17: -11 | IL17: 3 | IM17: 1 | IN17: -1 | IO17: 0 | IP17: -0 | IQ17: -0 | IR17: 0 | IS17: 0 | IT17: -5 | IU17: -0 | IV17: -1 | IW17: 0 | IX17: 2 | IY17: 0 | IZ17: -1 | JA17: -2 | JB17: 0 | JC17: -8 | JD17: 10 | JE17: 0 | JF17: -31 | JG17: 5.40 | JH17: 48.86 | JI17: 0 | JJ17: 0 | JK17: 0 | JL17: 0.20% | JM17: -0 | JO17: 0 | JP17: -10 | JQ17: -3 | JR17: =IF(ISERROR(IF(VLOOKUP($C17,'Indicateurs Cumulés'!$C$3:$HN$560,190,FALSE)/(VLOOKUP($C17,objectifs!$C$3:$ZZ$559,162,FALSE))>=1.5,(VLOOKUP($C17,objectifs!$C$3:$ZZ$559,162,FALSE))*1.5,IF(VLOOKUP($C17,'Indicateurs Cumulés'!$C$3:$HN$560,190,FALSE)/(VLOOKUP($C17,objectifs!$C$3:$ZZ$559,162,FALSE))<=-0.5,(VLOOKUP($C17,objectifs!$C$3:$ZZ$559,162,FALSE))*-0.5,VLOOKUP($C17,'Indicateurs Cumulés'!$C$3:$HN$560,190,FALSE)))),VLOOKUP($C17,'Indicateurs Cumulés'!$C$3:$HN$560,190,FALSE),IF(VLOOKUP($C17,'Indicateurs Cumulés'!$C$3:$HN$560,190,FALSE)/(VLOOKUP($C17,objectifs!$C$3:$ZZ$559,162,FALSE))>=1.5,(VLOOKUP($C17,objectifs!$C$3:$ZZ$559,162,FALSE))*1.5,IF(VLOOKUP($C17,'Indicateurs Cumulés'!$C$3:$HN$560,190,FALSE)/(VLOOKUP($C17,objectifs!$C$3:$ZZ$559,162,FALSE))<=-0.5,(VLOOKUP($C17,objectifs!$C$3:$ZZ$559,162,FALSE))*-0.5,VLOOKUP($C17,'Indicateurs Cumulés'!$C$3:$HN$560,190,FALSE)))) -> -21 | JS17: 0 | JT17: -0 | JV17: 0 | JW17: -0 | JX17: -0 | JY17: -0 | JZ17: -1 | KA17: 1 | KB17: 0 | KC17: -1 | KD17: 0 | KE17: 0 | KF17: 0 | KG17: 1 | KH17: 0 | KI17: -1 | KJ17: 0 | KK17: 0 | KL17: 0 | KM17: 1 | KN17: 0 | KR17: 6.56 | KS17: 0 | KT17: 0 | KU17: 0 | KV17: -3 | KW17: -1 | KX17: 0 | KY17: -1 | KZ17: -1 | LA17: 0 | LB17: 0 | LC17: 3 | LD17: 7 | LE17: -1 | LF17: -1 | LG17: -2 | LH17: -3 | LI17: -1 | LJ17: -0 | LK17: 3 | LL17: 1.7 | LM17: 9 | LN17: 12 | LO17: -5 | LP17: -4 | LQ17: 2.08 | LR17: 48 | LS17: 41 | LT17: 70 | LU17: -3 | LV17: -44 | LW17: 1 | LX17: 3.6 | LY17: 0.4 | LZ17: 0.2 | MA17: 0.0 | MB17: 0.0 | MC17: 0.0 | MD17: 8
A18: 105006 | B18: 200262 | C18: 27 | D18: SCHILTIGHEIM CENTRE | E18: 2019-04-30 | F18: 57 | G18: 4.32% | H18: 1.57 | I18: 2019-04-30 | J18: 756 | K18: 3.19% | L18: 2.34 | M18: 4.01 | N18: 1,773 | O18: 0 | P18: -0.03% | Q18: 9.00 | R18: 14.13 | S18: 145 | T18: 2.45% | U18: 2.81 | V18: 67 | W18: -0.12% | X18: 6.10 | Y18: 878 | Z18: 0.58% | AA18: 3.74 | AB18: 10.7 | AC18: 5.2 | AD18: 3.1 | AE18: 57.5 | AF18: 9.6 | AG18: 4.9 | AH18: 201904 | AI18: 20.00 | AJ18: 0.48 | AK18: 2.40% | AL18: 116.39 | AM18: 33.38 | AN18: 29% | AO18: 1.53 | AP18: 1.31% | AQ18: 949.91 | AR18: 105.42 | AS18: 11.1% | AT18: 1.53 | AU18: 0.16% | AV18: 14.21 | AW18: 1.06 | AX18: 7.48% | AY18: 0.27 | AZ18: 1.87% | BA18: 1,100.51 | BB18: 139.86 | BC18: 12.7% | BD18: 3.80 | BE18: 0.34% | BG18: 13 | BH18: 1 | BI18: 74 | BJ18: 54 | BK18: 24 | BL18: 1.58% | BM18: 0.00% | BN18: 27 | BO18: 50 | BP18: 1 | BQ18: 114 | BR18: 3 | BS18: 0 | BT18: 1 | BU18: -9 | BX18: 0 | BY18: 0 | BZ18: 0 | CA18: 2 | CB18: 0 | CC18: 2 | CD18: 1 | CE18: 14 | CF18: 2.8 | CG18: -5 | CH18: -1 | CI18: 1 | CJ18: 1 | CK18: 100.00% | CL18: 106.90% | CM18: 3 | CN18: 100.00% | CO18: 3 | CP18: 1 | CQ18: 3.1 | CR18: 0 | CS18: 0.00 | CT18: 0 | CU18: 2 | CV18: 0 | CW18: 11 | CX18: 35.12% | CY18: 215.05% | CZ18: 42 | DA18: 91.66% | DB18: 114.15% | DC18: 12 | DE18: 100.00% | DF18: 100.00% | DG18: 2 | DH18: 281 | DI18: 0.70% | DJ18: 5.33 | DK18: 10 | DL18: 21 | DM18: 0.79% | DN18: 5.33 | DO18: 1 | DP18: 4 | DQ18: 0.90% | DR18: 5.33 | DS18: 0 | DT18: 278 | DU18: 0.40% | DV18: 2.67 | DW18: 3 | DX18: -215 | DY18: 0.20% | DZ18: 5.37 | EA18: -2 | EB18: -87 | EC18: 0.20% | ED18: 5.37 | EE18: -1 | EF18: -21 | EG18: 0.20% | EH18: 5.37 | EI18: -0 | EJ18: -2 | EK18: 0.46% | EL18: 5.33 | EM18: -0 | EN18: -18 | EO18: 0.10% | EP18: 10.08 | EQ18: -0 | ER18: -15 | ES18: 0.20% | ET18: 9.00 | EU18: -0 | EV18: -325 | EW18: 0.00% | EX18: 8.59 | EY18: 0 | EZ18: 0 | FA18: -0.37% | FB18: 0.08 | FC18: 0 | FD18: 131 | FE18: 0.45% | FF18: 8.00 | FG18: 5 | FH18: 1,190 | FI18: 0.34% | FJ18: 1.00 | FK18: 4 | FL18: -22 | FM18: 0.65% | FN18: 5.00 | FO18: -1 | FP18: 1 | FQ18: 0.40% | FR18: 1.00 | FS18: 0 | FT18: -235 | FU18: 0.20% | FV18: 8.00 | FW18: -4 | FX18: 120 | FY18: 1.00% | FZ18: 5.00 | GA18: 6 | GB18: -76 | GC18: 17 | GD18: 137 | GE18: 14 | GF18: -15 | GG18: 1.00% | GH18: 5.37 | GI18: -1 | GJ18: 216 | GK18: 0 | GL18: 0 | GN18: 0 | GO18: 0.00% | GP18: 0 | GQ18: 0 | GR18: 0 | GS18: 0.45% | GT18: 8.00 | GU18: 0 | GV18: 0 | GW18: 0.34% | GX18: 1.00 | GY18: 0 | GZ18: 0 | HA18: 0.65% | HB18: 5.00 | HC18: 0 | HD18: 0 | HE18: 0.40% | HF18: 1.00 | HG18: 0 | HH18: 28 | HI18: 1.00% | HJ18: 5.00 | HK18: 1 | HL18: -10 | HM18: 175 | HO18: =IF(ISERROR(IF(VLOOKUP($C18,'Indicateurs Cumulés'!$C$3:$HN$560,186,FALSE)/(VLOOKUP($C18,objectifs!$C$3:$ZZ$559,158,FALSE))>=1.5,(VLOOKUP($C18,objectifs!$C$3:$ZZ$559,158,FALSE))*1.5,IF(VLOOKUP($C18,'Indicateurs Cumulés'!$C$3:$HN$560,186,FALSE)/(VLOOKUP($C18,objectifs!$C$3:$ZZ$559,158,FALSE))<=-0.5,(VLOOKUP($C18,objectifs!$C$3:$ZZ$559,158,FALSE))*-0.5,VLOOKUP($C18,'Indicateurs Cumulés'!$C$3:$HN$560,186,FALSE)))),VLOOKUP($C18,'Indicateurs Cumulés'!$C$3:$HN$560,186,FALSE),IF(VLOOKUP($C18,'Indicateurs Cumulés'!$C$3:$HN$560,186,FALSE)/(VLOOKUP($C18,objectifs!$C$3:$ZZ$559,158,FALSE))>=1.5,(VLOOKUP($C18,objectifs!$C$3:$ZZ$559,158,FALSE))*1.5,IF(VLOOKUP($C18,'Indicateurs Cumulés'!$C$3:$HN$560,186,FALSE)/(VLOOKUP($C18,objectifs!$C$3:$ZZ$559,158,FALSE))<=-0.5,(VLOOKUP($C18,objectifs!$C$3:$ZZ$559,158,FALSE))*-0.5,VLOOKUP($C18,'Indicateurs Cumulés'!$C$3:$HN$560,186,FALSE)))) -> -15 | HP18: 0 | HR18: 4.8 | HT18: 3.88% | HU18: 0.33% | HV18: 0.74% | HW18: 0 | HX18: 3 | HY18: -7 | HZ18: -9 | IA18: -12 | IB18: 6 | IC18: -16 | ID18: -24 | IE18: 0 | IF18: -3 | IG18: 0 | IH18: 0 | II18: -2 | IJ18: 12 | IK18: -27 | IL18: 0 | IM18: 0 | IN18: 0 | IO18: -2 | IP18: -1 | IQ18: -0 | IR18: 1 | IS18: -2 | IT18: -10 | IU18: 0 | IV18: -2 | IW18: 0 | IX18: 0 | IY18: -2 | IZ18: 8 | JA18: -6 | JB18: 0 | JC18: -6 | JD18: 38 | JE18: 0 | JF18: -69 | JG18: 5.25 | JH18: 15.87 | JI18: 0 | JJ18: 0 | JK18: 0 | JL18: 0.20% | JM18: 50 | JO18: 15 | JP18: 138 | JQ18: 45 | JR18: =IF(ISERROR(IF(VLOOKUP($C18,'Indicateurs Cumulés'!$C$3:$HN$560,190,FALSE)/(VLOOKUP($C18,objectifs!$C$3:$ZZ$559,162,FALSE))>=1.5,(VLOOKUP($C18,objectifs!$C$3:$ZZ$559,162,FALSE))*1.5,IF(VLOOKUP($C18,'Indicateurs Cumulés'!$C$3:$HN$560,190,FALSE)/(VLOOKUP($C18,objectifs!$C$3:$ZZ$559,162,FALSE))<=-0.5,(VLOOKUP($C18,objectifs!$C$3:$ZZ$559,162,FALSE))*-0.5,VLOOKUP($C18,'Indicateurs Cumulés'!$C$3:$HN$560,190,FALSE)))),VLOOKUP($C18,'Indicateurs Cumulés'!$C$3:$HN$560,190,FALSE),IF(VLOOKUP($C18,'Indicateurs Cumulés'!$C$3:$HN$560,190,FALSE)/(VLOOKUP($C18,objectifs!$C$3:$ZZ$559,162,FALSE))>=1.5,(VLOOKUP($C18,objectifs!$C$3:$ZZ$559,162,FALSE))*1.5,IF(VLOOKUP($C18,'Indicateurs Cumulés'!$C$3:$HN$560,190,FALSE)/(VLOOKUP($C18,objectifs!$C$3:$ZZ$559,162,FALSE))<=-0.5,(VLOOKUP($C18,objectifs!$C$3:$ZZ$559,162,FALSE))*-0.5,VLOOKUP($C18,'Indicateurs Cumulés'!$C$3:$HN$560,190,FALSE)))) -> 118 | JS18: 0 | JT18: 3 | JV18: 1 | JW18: 4 | JX18: 1 | JY18: 2 | JZ18: 11 | KA18: 4 | KB18: 0 | KC18: 2 | KD18: 1 | KE18: 1 | KF18: 2 | KG18: 6 | KH18: 0 | KI18: 1 | KJ18: 0 | KK18: 1 | KL18: 0 | KM18: 15 | KN18: 6 | KR18: 5.49 | KS18: 10 | KT18: 21 | KU18: 0 | KV18: 5 | KW18: 1 | KX18: 0 | KY18: 10 | KZ18: 7 | LA18: 0 | LB18: 0 | LC18: 191 | LD18: 82 | LE18: 8 | LF18: 5 | LG18: 8 | LH18: 12 | LI18: 5 | LJ18: 1 | LK18: 186 | LL18: 38.5 | LM18: 31 | LN18: 152 | LO18: -10 | LP18: 18 | LQ18: 39.62 | LR18: 145 | LS18: 48 | LT18: 327 | LU18: 30 | LV18: 31 | LW18: 17 | LX18: 10.9 | LY18: 0.5 | LZ18: 1.0 | MA18: 1.5 | MB18: 0.5 | MC18: 0.1 | MD18: 206
A19: 105006 | B19: 200262 | C19: 28 | D19: BISCHHEIM | E19: 2019-04-30 | F19: 67 | G19: 4.32% | H19: 1.57 | I19: 2019-04-30 | J19: 375 | K19: 3.61% | L19: 2.25 | M19: 3.88 | N19: 2,065 | O19: 0 | P19: 0.06% | Q19: 7.13 | R19: 10.73 | S19: 12 | T19: 1.97% | U19: 3.43 | V19: 0 | W19: 0.00% | X19: 0 | Y19: 50 | Z19: 1.01% | AA19: 1.94 | AB19: 6.3 | AC19: 3.2 | AD19: 0.2 | AE19: 60.9 | AF19: 7.9 | AG19: 3.2 | AH19: 201904 | AI19: 1.50 | AJ19: 0.04 | AK19: 2.40% | AL19: 145.34 | AM19: 36.42 | AN19: 25% | AO19: 1.71 | AP19: 1.18% | AQ19: 907.81 | AR19: 91.66 | AS19: 10.1% | AT19: 0.76 | AU19: 0.08% | AV19: 57.21 | AW19: 12.70 | AX19: 22.20% | AY19: 1.00 | AZ19: 1.75% | BA19: 1,111.85 | BB19: 140.77 | BC19: 12.7% | BD19: 3.51 | BE19: 0.32% | BG19: 1 | BH19: 0 | BI19: 44 | BJ19: 86 | BK19: 2 | BL19: 1.57% | BM19: 0.00% | BN19: 28 | BO19: 198 | BP19: 4 | BQ19: 71 | BR19: 2 | BS19: 2 | BT19: 2 | BU19: -2 | BX19: 0 | BY19: -1 | BZ19: -0 | CA19: -2 | CB19: -0 | CC19: 0 | CD19: 0 | CE19: 3 | CF19: 0.6 | CG19: 1 | CH19: 0 | CI19: 2 | CJ19: 2 | CK19: 100.00% | CL19: 200.00% | CM19: 0 | CN19: 0.00% | CO19: 0 | CP19: 0 | CQ19: 0.2 | CR19: 0 | CS19: 0.20 | CT19: 0 | CU19: 2 | CV19: 0 | CW19: 6 | CX19: 78.82% | CY19: 164.19% | CZ19: 65 | DA19: 98.77% | DB19: 134.10% | DC19: 7 | DE19: 100.00% | DF19: 100.00% | DG19: 0 | DH19: 40 | DI19: 0.70% | DJ19: 5.33 | DK19: 1 | DL19: -28 | DM19: 0.79% | DN19: 5.33 | DO19: -1 | DP19: -19 | DQ19: 0.90% | DR19: 5.33 | DS19: -1 | DT19: 97 | DU19: 0.40% | DV19: 2.67 | DW19: 1 | DX19: -198 | DY19: 0.20% | DZ19: 5.37 | EA19: -2 | EB19: 33 | EC19: 0.20% | ED19: 5.37 | EE19: 0 | EF19: -35 | EG19: 0.20% | EH19: 5.37 | EI19: -0 | EJ19: 33 | EK19: 0.46% | EL19: 5.33 | EM19: 1 | EN19: 3 | EO19: 0.10% | EP19: 6.08 | EQ19: 0 | ER19: -55 | ES19: 0.20% | ET19: 9.00 | EU19: -1 | EV19: 124 | EW19: 0.00% | EX19: 8.59 | EY19: 0 | EZ19: 0 | FA19: -0.37% | FB19: 0.08 | FC19: 0 | FD19: 643 | FE19: 0.45% | FF19: 8.00 | FG19: 23 | FH19: 1,315 | FI19: 0.32% | FJ19: 1.00 | FK19: 4 | FL19: -56 | FM19: 0.65% | FN19: 5.00 | FO19: -2 | FP19: 7 | FQ19: 0.40% | FR19: 1.00 | FS19: 0 | FT19: -331 | FU19: 0.20% | FV19: 8.00 | FW19: -5 | FX19: 84 | FY19: 1.00% | FZ19: 5.00 | GA19: 4 | GB19: -45 | GC19: 4 | GD19: 532 | GE19: 29 | GF19: 221 | GG19: 1.00% | GH19: 5.37 | GI19: 12 | GJ19: 55 | GK19: 0 | GL19: 0 | GN19: 18 | GO19: 1.95% | GP19: 1.93 | GQ19: 1 | GR19: 0 | GS19: 0.45% | GT19: 8.00 | GU19: 0 | GV19: 0 | GW19: 0.32% | GX19: 1.00 | GY19: 0 | GZ19: 0 | HA19: 0.65% | HB19: 5.00 | HC19: 0 | HD19: 0 | HE19: 0.40% | HF19: 1.00 | HG19: 0 | HH19: -55 | HI19: 1.00% | HJ19: 5.00 | HK19: -3 | HL19: -8 | HM19: 148 | HO19: =IF(ISERROR(IF(VLOOKUP($C19,'Indicateurs Cumulés'!$C$3:$HN$560,186,FALSE)/(VLOOKUP($C19,objectifs!$C$3:$ZZ$559,158,FALSE))>=1.5,(VLOOKUP($C19,objectifs!$C$3:$ZZ$559,158,FALSE))*1.5,IF(VLOOKUP($C19,'Indicateurs Cumulés'!$C$3:$HN$560,186,FALSE)/(VLOOKUP($C19,objectifs!$C$3:$ZZ$559,158,FALSE))<=-0.5,(VLOOKUP($C19,objectifs!$C$3:$ZZ$559,158,FALSE))*-0.5,VLOOKUP($C19,'Indicateurs Cumulés'!$C$3:$HN$560,186,FALSE)))),VLOOKUP($C19,'Indicateurs Cumulés'!$C$3:$HN$560,186,FALSE),IF(VLOOKUP($C19,'Indicateurs Cumulés'!$C$3:$HN$560,186,FALSE)/(VLOOKUP($C19,objectifs!$C$3:$ZZ$559,158,FALSE))>=1.5,(VLOOKUP($C19,objectifs!$C$3:$ZZ$559,158,FALSE))*1.5,IF(VLOOKUP($C19,'Indicateurs Cumulés'!$C$3:$HN$560,186,FALSE)/(VLOOKUP($C19,objectifs!$C$3:$ZZ$559,158,FALSE))<=-0.5,(VLOOKUP($C19,objectifs!$C$3:$ZZ$559,158,FALSE))*-0.5,VLOOKUP($C19,'Indicateurs Cumulés'!$C$3:$HN$560,186,FALSE)))) -> 221 | HP19: 0 | HR19: 3.8 | HT19: 4.47% | HU19: 0.57% | HV19: 1.46% | HW19: 12 | HX19: 10 | HY19: -1 | HZ19: 4 | IA19: -1 | IB19: 3 | IC19: 15 | ID19: -11 | IE19: 0 | IF19: -8 | IG19: -3 | IH19: 0 | II19: 1 | IJ19: 12 | IK19: -28 | IL19: 0 | IM19: 1 | IN19: 1 | IO19: -0 | IP19: 0 | IQ19: -0 | IR19: 0 | IS19: 2 | IT19: -5 | IU19: 0 | IV19: -5 | IW19: -3 | IX19: 0 | IY19: 1 | IZ19: 8 | JA19: -6 | JB19: 0 | JC19: 8 | JD19: 3 | JE19: 0 | JF19: 18 | JG19: 4.16 | JH19: 112.16 | JI19: 0 | JJ19: 0 | JK19: -44 | JL19: 0.20% | JM19: 35 | JO19: -0 | JP19: 208 | JQ19: -60 | JR19: =IF(ISERROR(IF(VLOOKUP($C19,'Indicateurs Cumulés'!$C$3:$HN$560,190,FALSE)/(VLOOKUP($C19,objectifs!$C$3:$ZZ$559,162,FALSE))>=1.5,(VLOOKUP($C19,objectifs!$C$3:$ZZ$559,162,FALSE))*1.5,IF(VLOOKUP($C19,'Indicateurs Cumulés'!$C$3:$HN$560,190,FALSE)/(VLOOKUP($C19,objectifs!$C$3:$ZZ$559,162,FALSE))<=-0.5,(VLOOKUP($C19,objectifs!$C$3:$ZZ$559,162,FALSE))*-0.5,VLOOKUP($C19,'Indicateurs Cumulés'!$C$3:$HN$560,190,FALSE)))),VLOOKUP($C19,'Indicateurs Cumulés'!$C$3:$HN$560,190,FALSE),IF(VLOOKUP($C19,'Indicateurs Cumulés'!$C$3:$HN$560,190,FALSE)/(VLOOKUP($C19,objectifs!$C$3:$ZZ$559,162,FALSE))>=1.5,(VLOOKUP($C19,objectifs!$C$3:$ZZ$559,162,FALSE))*1.5,IF(VLOOKUP($C19,'Indicateurs Cumulés'!$C$3:$HN$560,190,FALSE)/(VLOOKUP($C19,objectifs!$C$3:$ZZ$559,162,FALSE))<=-0.5,(VLOOKUP($C19,objectifs!$C$3:$ZZ$559,162,FALSE))*-0.5,VLOOKUP($C19,'Indicateurs Cumulés'!$C$3:$HN$560,190,FALSE)))) -> 55 | JS19: -1 | JT19: 2 | JV19: -0 | JW19: 7 | JX19: -2 | JY19: 1 | JZ19: 7 | KA19: 0 | KB19: 0 | KC19: 0 | KD19: -1 | KE19: -1 | KF19: 0 | KG19: 0 | KH19: 0 | KI19: 0 | KJ19: -0 | KK19: -1 | KL19: 0 | KM19: 1 | KN19: 2 | KR19: 4.64 | KS19: -2 | KT19: 1 | KU19: 0 | KV19: -1 | KW19: -0 | KX19: 0 | KY19: 13 | KZ19: 9 | LA19: 0 | LB19: 0 | LC19: 160 | LD19: 3 | LE19: -4 | LF19: -3 | LG19: -4 | LH19: -6 | LI19: 0 | LJ19: 0 | LK19: 153 | LL19: 40.1 | LM19: 36 | LN19: 132 | LO19: -8 | LP19: -9 | LQ19: 41.87 | LR19: 114 | LS19: 45 | LT19: 385 | LU19: 5 | LV19: 69 | LW19: 10 | LX19: 8.6 | LY19: 0.5 | LZ19: 1.2 | MA19: 0.3 | MB19: 1.0 | MC19: 0.1 | MD19: 171
A20: 105006 | B20: 200262 | C20: 29 | D20: SCHILTIGHEIM KLEBER | E20: 2019-04-30 | F20: 57 | G20: 4.32% | H20: 1.57 | I20: 2019-04-30 | J20: 457 | K20: 3.50% | L20: 2.31 | M20: 3.98 | N20: 779 | O20: 0 | P20: -0.07% | Q20: 8.52 | R20: 12.45 | S20: 22 | T20: 2.79% | U20: 2.08 | V20: 0 | W20: 0.00% | X20: 0 | Y20: 117 | Z20: 1.92% | AA20: 2.37 | AB20: 2.0 | AC20: 4.6 | AD20: 1.2 | AE20: 27.9 | AF20: 8.0 | AG20: 1.7 | AH20: 201904 | AI20: 0 | AJ20: 0 | AK20: 0.00% | AL20: 199.01 | AM20: 15.65 | AN20: 8% | AO20: 0.67 | AP20: 0.34% | AQ20: 576.76 | AR20: 87.45 | AS20: 15.2% | AT20: 0.78 | AU20: 0.14% | AV20: 11.50 | AW20: 1.71 | AX20: 14.86% | AY20: 0.21 | AZ20: 1.84% | BA20: 787.27 | BB20: 104.80 | BC20: 13.3% | BD20: 1.67 | BE20: 0.21% | BG20: 2 | BH20: 0 | BI20: 49 | BJ20: 18 | BK20: 7 | BL20: 1.70% | BM20: 0.00% | BN20: 29 | BO20: 112 | BP20: 2 | BQ20: 60 | BR20: 2 | BS20: 2 | BT20: 2 | BU20: 0 | BX20: 0 | BY20: 0 | BZ20: 0 | CA20: 1 | CB20: 0 | CC20: 0 | CD20: 0 | CE20: 5 | CF20: 1.0 | CG20: 15 | CH20: 3 | CI20: 1 | CJ20: 1 | CK20: 100.00% | CL20: 100.00% | CM20: 0 | CN20: 0.00% | CO20: 0 | CP20: 0 | CQ20: 1.2 | CR20: 0 | CS20: 0.00 | CT20: 0 | CU20: 0 | CV20: 0 | CW20: 2 | CX20: 100.00% | CY20: 200.00% | CZ20: 18 | DA20: 97.37% | DB20: 116.69% | DC20: 8 | DE20: 100.00% | DF20: 100.00% | DG20: 0 | DH20: 25 | DI20: 0.70% | DJ20: 5.33 | DK20: 1 | DL20: 172 | DM20: 0.79% | DN20: 5.33 | DO20: 7 | DP20: -25 | DQ20: 0.90% | DR20: 5.33 | DS20: -1 | DT20: 165 | DU20: 0.40% | DV20: 2.67 | DW20: 2 | DX20: -87 | DY20: 0.20% | DZ20: 5.37 | EA20: -1 | EB20: -11 | EC20: 0.20% | ED20: 5.37 | EE20: -0 | EF20: -19 | EG20: 0.20% | EH20: 5.37 | EI20: -0 | EJ20: 7 | EK20: 0.46% | EL20: 5.33 | EM20: 0 | EN20: 0 | EO20: 0.10% | EP20: 7.91 | EQ20: 0 | ER20: -3 | ES20: 0.20% | ET20: 9.00 | EU20: -0 | EV20: -80 | EW20: 0.00% | EX20: 8.50 | EY20: 0 | EZ20: 0 | FA20: -0.37% | FB20: 0.08 | FC20: 0 | FD20: 534 | FE20: 0.45% | FF20: 8.00 | FG20: 19 | FH20: 751 | FI20: 0.21% | FJ20: 1.00 | FK20: 2 | FL20: -17 | FM20: 0.65% | FN20: 5.00 | FO20: -1 | FP20: 2 | FQ20: 0.40% | FR20: 1.00 | FS20: 0 | FT20: -271 | FU20: 0.20% | FV20: 8.00 | FW20: -4 | FX20: 95 | FY20: 1.00% | FZ20: 5.00 | GA20: 5 | GB20: 261 | GC20: 17 | GD20: 615 | GE20: 28 | GF20: 77 | GG20: 1.00% | GH20: 5.37 | GI20: 4 | GJ20: 77 | GK20: 0 | GL20: 0 | GN20: 0 | GO20: 0.00% | GP20: 0 | GQ20: 0 | GR20: 100 | GS20: 0.45% | GT20: 8.00 | GU20: 4 | GV20: 100 | GW20: 0.21% | GX20: 1.00 | GY20: 0 | GZ20: 0 | HA20: 0.65% | HB20: 5.00 | HC20: 0 | HD20: 0 | HE20: 0.40% | HF20: 1.00 | HG20: 0 | HH20: -2 | HI20: 1.00% | HJ20: 5.00 | HK20: -0 | HL20: -6 | HM20: 98 | HO20: =IF(ISERROR(IF(VLOOKUP($C20,'Indicateurs Cumulés'!$C$3:$HN$560,186,FALSE)/(VLOOKUP($C20,objectifs!$C$3:$ZZ$559,158,FALSE))>=1.5,(VLOOKUP($C20,objectifs!$C$3:$ZZ$559,158,FALSE))*1.5,IF(VLOOKUP($C20,'Indicateurs Cumulés'!$C$3:$HN$560,186,FALSE)/(VLOOKUP($C20,objectifs!$C$3:$ZZ$559,158,FALSE))<=-0.5,(VLOOKUP($C20,objectifs!$C$3:$ZZ$559,158,FALSE))*-0.5,VLOOKUP($C20,'Indicateurs Cumulés'!$C$3:$HN$560,186,FALSE)))),VLOOKUP($C20,'Indicateurs Cumulés'!$C$3:$HN$560,186,FALSE),IF(VLOOKUP($C20,'Indicateurs Cumulés'!$C$3:$HN$560,186,FALSE)/(VLOOKUP($C20,objectifs!$C$3:$ZZ$559,158,FALSE))>=1.5,(VLOOKUP($C20,objectifs!$C$3:$ZZ$559,158,FALSE))*1.5,IF(VLOOKUP($C20,'Indicateurs Cumulés'!$C$3:$HN$560,186,FALSE)/(VLOOKUP($C20,objectifs!$C$3:$ZZ$559,158,FALSE))<=-0.5,(VLOOKUP($C20,objectifs!$C$3:$ZZ$559,158,FALSE))*-0.5,VLOOKUP($C20,'Indicateurs Cumulés'!$C$3:$HN$560,186,FALSE)))) -> 77 | HP20: 0 | HR20: 3.9 | HT20: 4.13% | HU20: 0.25% | HV20: 2.46% | HW20: 10 | HX20: 8 | HY20: 1 | HZ20: -4 | IA20: 2 | IB20: 2 | IC20: 10 | ID20: 2 | IE20: -3 | IF20: -5 | IG20: 0 | IH20: 0 | II20: 0 | IJ20: 10 | IK20: -14 | IL20: -2 | IM20: 1 | IN20: 1 | IO20: 0 | IP20: -0 | IQ20: 0 | IR20: 0 | IS20: 1 | IT20: 1 | IU20: -0 | IV20: -3 | IW20: 0 | IX20: 0 | IY20: 0 | IZ20: 7 | JA20: -3 | JB20: -0 | JC20: 21 | JD20: 8 | JE20: 0 | JF20: 28 | JG20: 4.38 | JH20: 175.36 | JI20: 0 | JJ20: 0 | JK20: 0 | JL20: 0.20% | JM20: 10 | JO20: 100 | JP20: 292 | JQ20: 18 | JR20: =IF(ISERROR(IF(VLOOKUP($C20,'Indicateurs Cumulés'!$C$3:$HN$560,190,FALSE)/(VLOOKUP($C20,objectifs!$C$3:$ZZ$559,162,FALSE))>=1.5,(VLOOKUP($C20,objectifs!$C$3:$ZZ$559,162,FALSE))*1.5,IF(VLOOKUP($C20,'Indicateurs Cumulés'!$C$3:$HN$560,190,FALSE)/(VLOOKUP($C20,objectifs!$C$3:$ZZ$559,162,FALSE))<=-0.5,(VLOOKUP($C20,objectifs!$C$3:$ZZ$559,162,FALSE))*-0.5,VLOOKUP($C20,'Indicateurs Cumulés'!$C$3:$HN$560,190,FALSE)))),VLOOKUP($C20,'Indicateurs Cumulés'!$C$3:$HN$560,190,FALSE),IF(VLOOKUP($C20,'Indicateurs Cumulés'!$C$3:$HN$560,190,FALSE)/(VLOOKUP($C20,objectifs!$C$3:$ZZ$559,162,FALSE))>=1.5,(VLOOKUP($C20,objectifs!$C$3:$ZZ$559,162,FALSE))*1.5,IF(VLOOKUP($C20,'Indicateurs Cumulés'!$C$3:$HN$560,190,FALSE)/(VLOOKUP($C20,objectifs!$C$3:$ZZ$559,162,FALSE))<=-0.5,(VLOOKUP($C20,objectifs!$C$3:$ZZ$559,162,FALSE))*-0.5,VLOOKUP($C20,'Indicateurs Cumulés'!$C$3:$HN$560,190,FALSE)))) -> 73 | JS20: 0 | JT20: 1 | JV20: 4 | JW20: 9 | JX20: 1 | JY20: 1 | JZ20: 15 | KA20: -1 | KB20: 1 | KC20: 0 | KD20: -2 | KE20: 1 | KF20: 0 | KG20: -1 | KH20: 1 | KI20: 0 | KJ20: -0 | KK20: 1 | KL20: 0 | KM20: 2 | KN20: 2 | KR20: 4.41 | KS20: -1 | KT20: 11 | KU20: 0 | KV20: 12 | KW20: 2 | KX20: 0 | KY20: 10 | KZ20: 7 | LA20: 1 | LB20: 0 | LC20: 134 | LD20: 21 | LE20: -2 | LF20: -1 | LG20: -2 | LH20: -3 | LI20: -1 | LJ20: -0 | LK20: 126 | LL20: 32.0 | LM20: 47 | LN20: 74 | LO20: -6 | LP20: -4 | LQ20: 34.06 | LR20: 66 | LS20: 77 | LT20: 291 | LU20: 20 | LV20: 40 | LW20: 11 | LX20: 5.0 | LY20: 0.8 | LZ20: 0.9 | MA20: 1.0 | MB20: 0.6 | MC20: 0.1 | MD20: 142
A21: 105060 | B21: 200262 | C21: 30 | D21: BRUMATH | E21: 2019-04-30 | F21: 52 | G21: 4.32% | H21: 1.57 | I21: 2019-04-30 | J21: 725 | K21: 3.11% | L21: 2.40 | M21: 4.10 | N21: 2,481 | O21: 0 | P21: -0.03% | Q21: 8.11 | R21: 12.51 | S21: 53 | T21: 2.49% | U21: 2.40 | V21: 358 | W21: 0.04% | X21: 6.80 | Y21: 776 | Z21: 0.34% | AA21: 5.12 | AB21: 10.6 | AC21: 7.0 | AD21: 1.9 | AE21: 77.4 | AF21: 12.5 | AG21: 5.5 | AH21: 201904 | AI21: 0 | AJ21: 0 | AK21: 0.00% | AL21: 263.32 | AM21: 34.12 | AN21: 13% | AO21: 2.74 | AP21: 1.04% | AQ21: 1,225.21 | AR21: 38.94 | AS21: 3.2% | AT21: 2.67 | AU21: 0.22% | AV21: 55.24 | AW21: 6.59 | AX21: 11.93% | AY21: 0.76 | AZ21: 1.38% | BA21: 1,543.77 | BB21: 79.66 | BC21: 5.2% | BD21: 6.18 | BE21: 0.40% | BG21: 4 | BH21: 11 | BI21: 76 | BJ21: 75 | BK21: 18 | BL21: 1.60% | BM21: 0.00% | BN21: 30 | BO21: 107 | BP21: 2 | BQ21: 170 | BR21: 5 | BS21: 2 | BT21: 2 | BU21: -13 | BX21: 0 | BY21: 1 | BZ21: 0 | CA21: 0 | CB21: 0 | CC21: -2 | CD21: -1 | CE21: 5 | CF21: 1.0 | CG21: 6 | CH21: 1 | CI21: 2 | CJ21: 2 | CK21: 100.00% | CL21: 100.00% | CM21: 0 | CN21: 200.00% | CO21: 0 | CP21: 8 | CQ21: 1.9 | CR21: 1 | CS21: 0.13 | CT21: 0 | CU21: 3 | CV21: 1 | CW21: 11 | CX21: 67.89% | CY21: 152.27% | CZ21: 62 | DA21: 96.65% | DB21: 133.46% | DC21: 16 | DE21: 100.00% | DF21: 200.00% | DG21: 2 | DH21: 235 | DI21: 0.70% | DJ21: 5.33 | DK21: 9 | DL21: -176 | DM21: 0.79% | DN21: 5.33 | DO21: -7 | DP21: -24 | DQ21: 0.90% | DR21: 5.33 | DS21: -1 | DT21: 346 | DU21: 0.40% | DV21: 2.67 | DW21: 4 | DX21: -166 | DY21: 0.20% | DZ21: 5.37 | EA21: -2 | EB21: 153 | EC21: 0.20% | ED21: 5.37 | EE21: 2 | EF21: -34 | EG21: 0.20% | EH21: 5.37 | EI21: -0 | EJ21: -24 | EK21: 0.46% | EL21: 5.33 | EM21: -1 | EN21: -6 | EO21: 0.10% | EP21: 8.20 | EQ21: -0 | ER21: -26 | ES21: 0.20% | ET21: 9.00 | EU21: -0 | EV21: -148 | EW21: 0.00% | EX21: 8.59 | EY21: 0 | EZ21: -5 | FA21: -0.37% | FB21: 0.08 | FC21: 0 | FD21: 51 | FE21: 0.45% | FF21: 8.00 | FG21: 2 | FH21: 1,470 | FI21: 0.40% | FJ21: 1.00 | FK21: 6 | FL21: -69 | FM21: 0.65% | FN21: 5.00 | FO21: -2 | FP21: 61 | FQ21: 0.40% | FR21: 1.00 | FS21: 0 | FT21: -282 | FU21: 0.20% | FV21: 8.00 | FW21: -5 | FX21: 227 | FY21: 1.00% | FZ21: 5.00 | GA21: 11 | GB21: 233 | GC21: 14 | GD21: 43 | GE21: 16 | GF21: -462 | GG21: 1.00% | GH21: 5.37 | GI21: -25 | GJ21: -175 | GK21: 0 | GL21: 0 | GN21: 13 | GO21: 2.90% | GP21: 2.37 | GQ21: 1 | GR21: 0 | GS21: 0.45% | GT21: 8.00 | GU21: 0 | GV21: 0 | GW21: 0.40% | GX21: 1.00 | GY21: 0 | GZ21: 0 | HA21: 0.65% | HB21: 5.00 | HC21: 0 | HD21: 0 | HE21: 0.40% | HF21: 1.00 | HG21: 0 | HH21: 62 | HI21: 1.00% | HJ21: 5.00 | HK21: 3 | HL21: -12 | HM21: 173 | HO21: =IF(ISERROR(IF(VLOOKUP($C21,'Indicateurs Cumulés'!$C$3:$HN$560,186,FALSE)/(VLOOKUP($C21,objectifs!$C$3:$ZZ$559,158,FALSE))>=1.5,(VLOOKUP($C21,objectifs!$C$3:$ZZ$559,158,FALSE))*1.5,IF(VLOOKUP($C21,'Indicateurs Cumulés'!$C$3:$HN$560,186,FALSE)/(VLOOKUP($C21,objectifs!$C$3:$ZZ$559,158,FALSE))<=-0.5,(VLOOKUP($C21,objectifs!$C$3:$ZZ$559,158,FALSE))*-0.5,VLOOKUP($C21,'Indicateurs Cumulés'!$C$3:$HN$560,186,FALSE)))),VLOOKUP($C21,'Indicateurs Cumulés'!$C$3:$HN$560,186,FALSE),IF(VLOOKUP($C21,'Indicateurs Cumulés'!$C$3:$HN$560,186,FALSE)/(VLOOKUP($C21,objectifs!$C$3:$ZZ$559,158,FALSE))>=1.5,(VLOOKUP($C21,objectifs!$C$3:$ZZ$559,158,FALSE))*1.5,IF(VLOOKUP($C21,'Indicateurs Cumulés'!$C$3:$HN$560,186,FALSE)/(VLOOKUP($C21,objectifs!$C$3:$ZZ$559,158,FALSE))<=-0.5,(VLOOKUP($C21,objectifs!$C$3:$ZZ$559,158,FALSE))*-0.5,VLOOKUP($C21,'Indicateurs Cumulés'!$C$3:$HN$560,186,FALSE)))) -> -323 | HP21: 0 | HR21: 7.2 | HT21: 4.10% | HU21: 0.36% | HV21: 0.44% | HW21: 12 | HX21: 10 | HY21: 0 | HZ21: 2 | IA21: -4 | IB21: 3 | IC21: 19 | ID21: -2 | IE21: -5 | IF21: -19 | IG21: -5 | IH21: 0 | II21: -1 | IJ21: 27 | IK21: -43 | IL21: 2 | IM21: 1 | IN21: 1 | IO21: 0 | IP21: 0 | IQ21: -0 | IR21: 0 | IS21: 2 | IT21: -1 | IU21: -0 | IV21: -12 | IW21: -5 | IX21: 0 | IY21: -1 | IZ21: 18 | JA21: -9 | JB21: 0 | JC21: 23 | JD21: 32 | JE21: 14 | JF21: 22 | JG21: 4.25 | JH21: 240.76 | JI21: 0 | JJ21: 0 | JK21: -11 | JL21: 0.20% | JM21: 6 | JO21: -6 | JP21: 163 | JQ21: -61 | JR21: =IF(ISERROR(IF(VLOOKUP($C21,'Indicateurs Cumulés'!$C$3:$HN$560,190,FALSE)/(VLOOKUP($C21,objectifs!$C$3:$ZZ$559,162,FALSE))>=1.5,(VLOOKUP($C21,objectifs!$C$3:$ZZ$559,162,FALSE))*1.5,IF(VLOOKUP($C21,'Indicateurs Cumulés'!$C$3:$HN$560,190,FALSE)/(VLOOKUP($C21,objectifs!$C$3:$ZZ$559,162,FALSE))<=-0.5,(VLOOKUP($C21,objectifs!$C$3:$ZZ$559,162,FALSE))*-0.5,VLOOKUP($C21,'Indicateurs Cumulés'!$C$3:$HN$560,190,FALSE)))),VLOOKUP($C21,'Indicateurs Cumulés'!$C$3:$HN$560,190,FALSE),IF(VLOOKUP($C21,'Indicateurs Cumulés'!$C$3:$HN$560,190,FALSE)/(VLOOKUP($C21,objectifs!$C$3:$ZZ$559,162,FALSE))>=1.5,(VLOOKUP($C21,objectifs!$C$3:$ZZ$559,162,FALSE))*1.5,IF(VLOOKUP($C21,'Indicateurs Cumulés'!$C$3:$HN$560,190,FALSE)/(VLOOKUP($C21,objectifs!$C$3:$ZZ$559,162,FALSE))<=-0.5,(VLOOKUP($C21,objectifs!$C$3:$ZZ$559,162,FALSE))*-0.5,VLOOKUP($C21,'Indicateurs Cumulés'!$C$3:$HN$560,190,FALSE)))) -> -49 | JS21: -0 | JT21: 0 | JV21: -0 | JW21: 5 | JX21: -2 | JY21: -1 | JZ21: 2 | KA21: 4 | KB21: 0 | KC21: -1 | KD21: 4 | KE21: -2 | KF21: 3 | KG21: 6 | KH21: 0 | KI21: -1 | KJ21: 1 | KK21: -1 | KL21: 0 | KM21: 12 | KN21: 7 | KR21: 4.61 | KS21: 8 | KT21: 3 | KU21: 0 | KV21: 18 | KW21: 4 | KX21: 0 | KY21: 26 | KZ21: 18 | LA21: 0 | LB21: 0 | LC21: 215 | LD21: 57 | LE21: 4 | LF21: 3 | LG21: 5 | LH21: 7 | LI21: 9 | LJ21: 1 | LK21: 204 | LL21: 28.3 | LM21: 24 | LN21: 170 | LO21: -11 | LP21: 11 | LQ21: 29.85 | LR21: 137 | LS21: 121 | LT21: 475 | LU21: 9 | LV21: 11 | LW21: 5 | LX21: 10.3 | LY21: 1.2 | LZ21: 1.4 | MA21: 0.5 | MB21: 0.2 | MC21: 0.0 | MD21: 229
A22: 105060 | B22: 200262 | C22: 31 | D22: TRUCHTERSHEIM | E22: 2019-04-30 | F22: 25 | G22: 4.32% | H22: 1.57 | I22: 2019-04-30 | J22: 406 | K22: 2.80% | L22: 2.14 | M22: 3.74 | N22: 2,037 | O22: 0 | P22: -0.04% | Q22: 7.78 | R22: 12.10 | S22: 40 | T22: 2.06% | U22: 1.85 | V22: 298 | W22: -0.04% | X22: 5.15 | Y22: -28 | Z22: 0.04% | AA22: 23.38 | AB22: 4.8 | AC22: 3.3 | AD22: 0.6 | AE22: 55.9 | AF22: 4.7 | AG22: 4.2 | AH22: 201904 | AI22: 0 | AJ22: 0 | AK22: 0.00% | AL22: 109.68 | AM22: 15.84 | AN22: 14% | AO22: 0.95 | AP22: 0.86% | AQ22: 269.72 | AR22: 27.90 | AS22: 10.3% | AT22: 0.19 | AU22: 0.07% | AV22: 11.17 | AW22: 1.66 | AX22: 14.91% | AY22: 0.26 | AZ22: 2.33% | BA22: 390.57 | BB22: 45.41 | BC22: 11.6% | BD22: 1.40 | BE22: 0.36% | BG22: 3 | BH22: 2 | BI22: 33 | BJ22: 41 | BK22: 0 | BL22: 1.61% | BM22: 0.00% | BN22: 31 | BO22: 47 | BP22: 1 | BQ22: 78 | BR22: 2 | BS22: 2 | BT22: 0 | BU22: -4 | BX22: 0 | BY22: 0 | BZ22: 0 | CA22: 1 | CB22: 0 | CC22: 0 | CD22: 0 | CE22: 8 | CF22: 1.6 | CG22: 4 | CH22: 1 | CI22: 2 | CJ22: 2 | CK22: 112.66% | CL22: 212.36% | CM22: 1 | CN22: 100.00% | CO22: 1 | CP22: 1 | CQ22: 0.6 | CR22: 0 | CS22: 0.00 | CT22: 0 | CU22: 1 | CV22: 1 | CW22: 5 | CX22: 46.39% | CY22: 126.13% | CZ22: 37 | DA22: 82.28% | DB22: 140.23% | DC22: 6 | DE22: 55.78% | DF22: 100.00% | DG22: 0 | DH22: 429 | DI22: 0.70% | DJ22: 5.33 | DK22: 16 | DL22: 362 | DM22: 0.79% | DN22: 5.33 | DO22: 15 | DP22: -17 | DQ22: 0.90% | DR22: 5.33 | DS22: -1 | DT22: 483 | DU22: 0.40% | DV22: 2.67 | DW22: 5 | DX22: -175 | DY22: 0.20% | DZ22: 5.37 | EA22: -2 | EB22: 156 | EC22: 0.20% | ED22: 5.37 | EE22: 2 | EF22: -32 | EG22: 0.20% | EH22: 5.37 | EI22: -0 | EJ22: -29 | EK22: 0.46% | EL22: 5.33 | EM22: -1 | EN22: -0 | EO22: 0.10% | EP22: 7.98 | EQ22: -0 | ER22: -76 | ES22: 0.20% | ET22: 9.00 | EU22: -1 | EV22: 329 | EW22: 0.00% | EX22: 8.50 | EY22: 0 | EZ22: 0 | FA22: -0.37% | FB22: 0.08 | FC22: 0 | FD22: -399 | FE22: 0.45% | FF22: 8.00 | FG22: -14 | FH22: 381 | FI22: 0.36% | FJ22: 1.00 | FK22: 1 | FL22: 2 | FM22: 0.65% | FN22: 5.00 | FO22: 0 | FP22: 3 | FQ22: 0.40% | FR22: 1.00 | FS22: 0 | FT22: -156 | FU22: 0.20% | FV22: 8.00 | FW22: -2 | FX22: 226 | FY22: 1.00% | FZ22: 5.00 | GA22: 11 | GB22: 1,803 | GC22: 52 | GD22: -347 | GE22: -7 | GF22: -358 | GG22: 1.00% | GH22: 5.37 | GI22: -19 | GJ22: -154 | GK22: 0 | GL22: 0 | GN22: 0 | GO22: 0.00% | GP22: 0 | GQ22: 0 | GR22: 0 | GS22: 0.45% | GT22: 8.00 | GU22: 0 | GV22: 0 | GW22: 0.36% | GX22: 1.00 | GY22: 0 | GZ22: 0 | HA22: 0.65% | HB22: 5.00 | HC22: 0 | HD22: 0 | HE22: 0.40% | HF22: 1.00 | HG22: 0 | HH22: 51 | HI22: 1.00% | HJ22: 5.00 | HK22: 3 | HL22: -6 | HM22: 96 | HO22: =IF(ISERROR(IF(VLOOKUP($C22,'Indicateurs Cumulés'!$C$3:$HN$560,186,FALSE)/(VLOOKUP($C22,objectifs!$C$3:$ZZ$559,158,FALSE))>=1.5,(VLOOKUP($C22,objectifs!$C$3:$ZZ$559,158,FALSE))*1.5,IF(VLOOKUP($C22,'Indicateurs Cumulés'!$C$3:$HN$560,186,FALSE)/(VLOOKUP($C22,objectifs!$C$3:$ZZ$559,158,FALSE))<=-0.5,(VLOOKUP($C22,objectifs!$C$3:$ZZ$559,158,FALSE))*-0.5,VLOOKUP($C22,'Indicateurs Cumulés'!$C$3:$HN$560,186,FALSE)))),VLOOKUP($C22,'Indicateurs Cumulés'!$C$3:$HN$560,186,FALSE),IF(VLOOKUP($C22,'Indicateurs Cumulés'!$C$3:$HN$560,186,FALSE)/(VLOOKUP($C22,objectifs!$C$3:$ZZ$559,158,FALSE))>=1.5,(VLOOKUP($C22,objectifs!$C$3:$ZZ$559,158,FALSE))*1.5,IF(VLOOKUP($C22,'Indicateurs Cumulés'!$C$3:$HN$560,186,FALSE)/(VLOOKUP($C22,objectifs!$C$3:$ZZ$559,158,FALSE))<=-0.5,(VLOOKUP($C22,objectifs!$C$3:$ZZ$559,158,FALSE))*-0.5,VLOOKUP($C22,'Indicateurs Cumulés'!$C$3:$HN$560,186,FALSE)))) -> -185 | HP22: 0 | HR22: 3.8 | HT22: 3.61% | HU22: 0.25% | HV22: -0.07% | HW22: 8 | HX22: 2 | HY22: 2 | HZ22: 1 | IA22: 0 | IB22: 2 | IC22: 9 | ID22: 0 | IE22: -3 | IF22: -3 | IG22: 0 | IH22: 1 | II22: -1 | IJ22: 13 | IK22: -14 | IL22: -2 | IM22: 1 | IN22: 0 | IO22: 1 | IP22: 0 | IQ22: 0 | IR22: 0 | IS22: 1 | IT22: 0 | IU22: -0 | IV22: -2 | IW22: 0 | IX22: 2 | IY22: -1 | IZ22: 8 | JA22: -3 | JB22: -0 | JC22: 20 | JD22: 6 | JE22: 0 | JF22: 28 | JG22: 4.68 | JH22: 150.42 | JI22: 0 | JJ22: 0 | JK22: -1 | JL22: 0.20% | JM22: 0 | JO22: 0 | JP22: 303 | JQ22: -15 | JR22: =IF(ISERROR(IF(VLOOKUP($C22,'Indicateurs Cumulés'!$C$3:$HN$560,190,FALSE)/(VLOOKUP($C22,objectifs!$C$3:$ZZ$559,162,FALSE))>=1.5,(VLOOKUP($C22,objectifs!$C$3:$ZZ$559,162,FALSE))*1.5,IF(VLOOKUP($C22,'Indicateurs Cumulés'!$C$3:$HN$560,190,FALSE)/(VLOOKUP($C22,objectifs!$C$3:$ZZ$559,162,FALSE))<=-0.5,(VLOOKUP($C22,objectifs!$C$3:$ZZ$559,162,FALSE))*-0.5,VLOOKUP($C22,'Indicateurs Cumulés'!$C$3:$HN$560,190,FALSE)))),VLOOKUP($C22,'Indicateurs Cumulés'!$C$3:$HN$560,190,FALSE),IF(VLOOKUP($C22,'Indicateurs Cumulés'!$C$3:$HN$560,190,FALSE)/(VLOOKUP($C22,objectifs!$C$3:$ZZ$559,162,FALSE))>=1.5,(VLOOKUP($C22,objectifs!$C$3:$ZZ$559,162,FALSE))*1.5,IF(VLOOKUP($C22,'Indicateurs Cumulés'!$C$3:$HN$560,190,FALSE)/(VLOOKUP($C22,objectifs!$C$3:$ZZ$559,162,FALSE))<=-0.5,(VLOOKUP($C22,objectifs!$C$3:$ZZ$559,162,FALSE))*-0.5,VLOOKUP($C22,'Indicateurs Cumulés'!$C$3:$HN$560,190,FALSE)))) -> -31 | JS22: -0 | JT22: 0 | JV22: 0 | JW22: 10 | JX22: -0 | JY22: -1 | JZ22: 9 | KA22: 2 | KB22: 0 | KC22: 0 | KD22: 2 | KE22: 1 | KF22: 0 | KG22: 3 | KH22: 0 | KI22: 0 | KJ22: 0 | KK22: 1 | KL22: 0 | KM22: 6 | KN22: 2 | KR22: 4.63 | KS22: 5 | KT22: 10 | KU22: 0 | KV22: -3 | KW22: -1 | KX22: 0 | KY22: 13 | KZ22: 9 | LA22: 0 | LB22: 0 | LC22: 142 | LD22: 31 | LE22: 5 | LF22: 3 | LG22: 5 | LH22: 7 | LI22: 0 | LJ22: 0 | LK22: 137 | LL22: 35.7 | LM22: 41 | LN22: 75 | LO22: -6 | LP22: 11 | LQ22: 37.00 | LR22: 92 | LS22: 41 | LT22: 297 | LU22: 10 | LV22: 5 | LW22: 5 | LX22: 6.9 | LY22: 0.4 | LZ22: 0.9 | MA22: 0.5 | MB22: 0.1 | MC22: 0.0 | MD22: 151
A23: 105006 | B23: 200262 | C23: 33 | D23: LA WANTZENAU | E23: 2019-04-30 | F23: 19 | G23: 4.32% | H23: 1.57 | I23: 2019-04-30 | J23: 375 | K23: 3.25% | L23: 2.24 | M23: 3.84 | N23: 1,821 | O23: 0 | P23: -0.07% | Q23: 6.44 | R23: 10.11 | S23: 35 | T23: 2.46% | U23: 2.40 | V23: 0 | W23: 0.00% | X23: 0 | Y23: 5 | Z23: 0.43% | AA23: 6.54 | AB23: 3.7 | AC23: 3.7 | AD23: 2.1 | AE23: 34.5 | AF23: 6.8 | AG23: 1.3 | AH23: 201904 | AI23: 0 | AJ23: 0 | AK23: 0.00% | AL23: 116.66 | AM23: 36.25 | AN23: 31% | AO23: 0.96 | AP23: 0.82% | AQ23: 708.14 | AR23: 4.04 | AS23: 0.6% | AT23: 0.74 | AU23: 0.10% | AV23: 21.38 | AW23: 4.87 | AX23: 22.79% | AY23: 0.31 | AZ23: 1.46% | BA23: 846.17 | BB23: 45.16 | BC23: 5.3% | BD23: 2.01 | BE23: 0.24% | BG23: 3 | BH23: 0 | BI23: 38 | BJ23: 23 | BK23: 3 | BL23: 1.46% | BM23: 0.00% | BN23: 33 | BO23: 17 | BP23: 0 | BQ23: 94 | BR23: 3 | BS23: 0 | BT23: 2 | BU23: -2 | BX23: 0 | BY23: 0 | BZ23: 0 | CA23: 0 | CB23: 0 | CC23: 2 | CD23: 1 | CE23: 6 | CF23: 1.2 | CG23: -6 | CH23: -1 | CI23: 3 | CJ23: 3 | CK23: 100.00% | CL23: 200.00% | CM23: 1 | CN23: 0.00% | CO23: 1 | CP23: 0 | CQ23: 2.1 | CR23: 0 | CS23: 0.00 | CT23: 0 | CU23: 2 | CV23: 0 | CW23: 4 | CX23: 78.50% | CY23: 77.49% | CZ23: 24 | DA23: 94.14% | DB23: 139.89% | DC23: 8 | DE23: 100.00% | DF23: 100.00% | DG23: 1 | DH23: 172 | DI23: 0.70% | DJ23: 5.33 | DK23: 6 | DL23: 30 | DM23: 0.79% | DN23: 5.33 | DO23: 1 | DP23: -80 | DQ23: 0.90% | DR23: 5.33 | DS23: -4 | DT23: 183 | DU23: 0.40% | DV23: 2.67 | DW23: 2 | DX23: -90 | DY23: 0.20% | DZ23: 5.37 | EA23: -1 | EB23: 86 | EC23: 0.20% | ED23: 5.37 | EE23: 1 | EF23: -27 | EG23: 0.20% | EH23: 5.37 | EI23: -0 | EJ23: 22 | EK23: 0.46% | EL23: 5.33 | EM23: 1 | EN23: -6 | EO23: 0.10% | EP23: 7.37 | EQ23: -0 | ER23: -185 | ES23: 0.20% | ET23: 9.00 | EU23: -3 | EV23: 147 | EW23: 0.00% | EX23: 8.59 | EY23: 0 | EZ23: 0 | FA23: -0.37% | FB23: 0.08 | FC23: 0 | FD23: 506 | FE23: 0.45% | FF23: 8.00 | FG23: 18 | FH23: 863 | FI23: 0.24% | FJ23: 1.00 | FK23: 2 | FL23: 9 | FM23: 0.65% | FN23: 5.00 | FO23: 0 | FP23: 17 | FQ23: 0.40% | FR23: 1.00 | FS23: 0 | FT23: -155 | FU23: 0.20% | FV23: 8.00 | FW23: -2 | FX23: 225 | FY23: 1.00% | FZ23: 5.00 | GA23: 11 | GB23: 351 | GC23: 12 | GD23: 468 | GE23: 21 | GF23: -996 | GG23: 1.00% | GH23: 5.37 | GI23: -53 | GJ23: -29 | GK23: 0 | GL23: 0 | GN23: 0 | GO23: 0.00% | GP23: 0 | GQ23: 0 | GR23: 0 | GS23: 0.45% | GT23: 8.00 | GU23: 0 | GV23: 0 | GW23: 0.24% | GX23: 1.00 | GY23: 0 | GZ23: 0 | HA23: 0.65% | HB23: 5.00 | HC23: 0 | HD23: 0 | HE23: 0.40% | HF23: 1.00 | HG23: 0 | HH23: -47 | HI23: 1.00% | HJ23: 5.00 | HK23: -2 | HL23: -4 | HM23: 68 | HO23: =IF(ISERROR(IF(VLOOKUP($C23,'Indicateurs Cumulés'!$C$3:$HN$560,186,FALSE)/(VLOOKUP($C23,objectifs!$C$3:$ZZ$559,158,FALSE))>=1.5,(VLOOKUP($C23,objectifs!$C$3:$ZZ$559,158,FALSE))*1.5,IF(VLOOKUP($C23,'Indicateurs Cumulés'!$C$3:$HN$560,186,FALSE)/(VLOOKUP($C23,objectifs!$C$3:$ZZ$559,158,FALSE))<=-0.5,(VLOOKUP($C23,objectifs!$C$3:$ZZ$559,158,FALSE))*-0.5,VLOOKUP($C23,'Indicateurs Cumulés'!$C$3:$HN$560,186,FALSE)))),VLOOKUP($C23,'Indicateurs Cumulés'!$C$3:$HN$560,186,FALSE),IF(VLOOKUP($C23,'Indicateurs Cumulés'!$C$3:$HN$560,186,FALSE)/(VLOOKUP($C23,objectifs!$C$3:$ZZ$559,158,FALSE))>=1.5,(VLOOKUP($C23,objectifs!$C$3:$ZZ$559,158,FALSE))*1.5,IF(VLOOKUP($C23,'Indicateurs Cumulés'!$C$3:$HN$560,186,FALSE)/(VLOOKUP($C23,objectifs!$C$3:$ZZ$559,158,FALSE))<=-0.5,(VLOOKUP($C23,objectifs!$C$3:$ZZ$559,158,FALSE))*-0.5,VLOOKUP($C23,'Indicateurs Cumulés'!$C$3:$HN$560,186,FALSE)))) -> -146 | HP23: 0 | HR23: 2.9 | HT23: 4.35% | HU23: 0.17% | HV23: 9.60% | HW23: 2 | HX23: 8 | HY23: -1 | HZ23: 2 | IA23: 9 | IB23: 1 | IC23: 13 | ID23: -23 | IE23: -3 | IF23: -1 | IG23: -3 | IH23: 1 | II23: -4 | IJ23: 22 | IK23: -29 | IL23: 0 | IM23: 0 | IN23: 1 | IO23: -0 | IP23: 0 | IQ23: 0 | IR23: 0 | IS23: 1 | IT23: -10 | IU23: -0 | IV23: -1 | IW23: -3 | IX23: 2 | IY23: -4 | IZ23: 14 | JA23: -6 | JB23: 0 | JC23: 9 | JD23: 7 | JE23: 0 | JF23: 13 | JG23: 6.13 | JH23: 112.45 | JI23: 0 | JJ23: 0 | JK23: 0 | JL23: 0.20% | JM23: 0 | JO23: 6 | JP23: 29 | JQ23: 9 | JR23: =IF(ISERROR(IF(VLOOKUP($C23,'Indicateurs Cumulés'!$C$3:$HN$560,190,FALSE)/(VLOOKUP($C23,objectifs!$C$3:$ZZ$559,162,FALSE))>=1.5,(VLOOKUP($C23,objectifs!$C$3:$ZZ$559,162,FALSE))*1.5,IF(VLOOKUP($C23,'Indicateurs Cumulés'!$C$3:$HN$560,190,FALSE)/(VLOOKUP($C23,objectifs!$C$3:$ZZ$559,162,FALSE))<=-0.5,(VLOOKUP($C23,objectifs!$C$3:$ZZ$559,162,FALSE))*-0.5,VLOOKUP($C23,'Indicateurs Cumulés'!$C$3:$HN$560,190,FALSE)))),VLOOKUP($C23,'Indicateurs Cumulés'!$C$3:$HN$560,190,FALSE),IF(VLOOKUP($C23,'Indicateurs Cumulés'!$C$3:$HN$560,190,FALSE)/(VLOOKUP($C23,objectifs!$C$3:$ZZ$559,162,FALSE))>=1.5,(VLOOKUP($C23,objectifs!$C$3:$ZZ$559,162,FALSE))*1.5,IF(VLOOKUP($C23,'Indicateurs Cumulés'!$C$3:$HN$560,190,FALSE)/(VLOOKUP($C23,objectifs!$C$3:$ZZ$559,162,FALSE))<=-0.5,(VLOOKUP($C23,objectifs!$C$3:$ZZ$559,162,FALSE))*-0.5,VLOOKUP($C23,'Indicateurs Cumulés'!$C$3:$HN$560,190,FALSE)))) -> -22 | JS23: 0 | JT23: 0 | JV23: 0 | JW23: 1 | JX23: 0 | JY23: -0 | JZ23: 1 | KA23: -1 | KB23: 0 | KC23: 0 | KD23: 0 | KE23: -1 | KF23: 0 | KG23: -1 | KH23: 0 | KI23: 0 | KJ23: 0 | KK23: -1 | KL23: 0 | KM23: -0 | KN23: 1 | KR23: 5.43 | KS23: -2 | KT23: 2 | KU23: 0 | KV23: -3 | KW23: -1 | KX23: 0 | KY23: 19 | KZ23: 13 | LA23: 0 | LB23: 0 | LC23: 100 | LD23: 8 | LE23: 0 | LF23: 0 | LG23: 0 | LH23: 0 | LI23: 1 | LJ23: 0 | LK23: 94 | LL23: 33.0 | LM23: 31 | LN23: 65 | LO23: -4 | LP23: 0 | LQ23: 34.96 | LR23: 62 | LS23: 26 | LT23: 307 | LU23: 15 | LV23: -4 | LW23: 4 | LX23: 4.7 | LY23: 0.3 | LZ23: 0.9 | MA23: 0.8 | MB23: 0.0 | MC23: 0.0 | MD23: 106
A24: 105006 | B24: 200262 | C24: 34 | D24: VENDENHEIM | E24: 2019-04-30 | F24: 14 | G24: 4.32% | H24: 1.57 | I24: 2019-04-30 | J24: 143 | K24: 4.34% | L24: 2.28 | M24: 3.94 | N24: 301 | O24: 0 | P24: -0.47% | Q24: 8.36 | R24: 12.32 | S24: 6 | T24: 4.35% | U24: 2.42 | V24: 0 | W24: 0.00% | X24: 0 | Y24: 13 | Z24: 1.47% | AA24: 1.02 | AB24: 2.2 | AC24: 1.4 | AD24: 0.2 | AE24: 11.4 | AF24: 3.7 | AG24: 1.2 | AH24: 201904 | AI24: 53.74 | AJ24: 0 | AK24: 0.00% | AL24: 85.87 | AM24: 17.37 | AN24: 20% | AO24: 0.55 | AP24: 0.64% | AQ24: 228.13 | AR24: 0 | AS24: 0.0% | AT24: 0.68 | AU24: 0.30% | AV24: 16.45 | AW24: 1.02 | AX24: 6.20% | AY24: 0.33 | AZ24: 1.98% | BA24: 388.19 | BB24: 18.39 | BC24: 4.7% | BD24: 1.65 | BE24: 0.43% | BG24: 1 | BH24: 0 | BI24: 19 | BJ24: -7 | BK24: 0 | BL24: 1.62% | BM24: 0.00% | BN24: 34 | BO24: 29 | BP24: 1 | BQ24: 35 | BR24: 1 | BS24: 1 | BT24: -0 | BU24: 0 | BX24: 0 | BY24: 0 | BZ24: 0 | CA24: 0 | CB24: 0 | CC24: 2 | CD24: 1 | CE24: 2 | CF24: 0.4 | CG24: -8 | CH24: -2 | CI24: 0 | CJ24: 0 | CK24: 100.00% | CL24: 200.00% | CM24: 0 | CN24: 0.00% | CO24: 0 | CP24: 0 | CQ24: 0.2 | CR24: 0 | CS24: 0.00 | CT24: 0 | CU24: 1 | CV24: 0 | CW24: 2 | CX24: 2.73% | CY24: 200.00% | CZ24: 2 | DA24: 100.00% | DB24: 138.06% | DC24: 3 | DE24: 100.00% | DF24: 100.00% | DG24: 0 | DH24: 278 | DI24: =DI$374 -> 0.70% | DJ24: 5.33 | DK24: 10 | DL24: 105 | DM24: =DM$374 -> 0.79% | DN24: 5.33 | DO24: 4 | DP24: -7 | DQ24: =DQ$374 -> 0.90% | DR24: 5.33 | DS24: -0 | DT24: 129 | DU24: =DU$374 -> 0.40% | DV24: 2.67 | DW24: 1 | DX24: -115 | DY24: =DY$374 -> 0.20% | DZ24: 5.37 | EA24: -1 | EB24: 66 | EC24: =EC$374 -> 0.20% | ED24: 5.37 | EE24: 1 | EF24: -25 | EG24: =EG$374 -> 0.20% | EH24: 5.37 | EI24: -0 | EJ24: 22 | EK24: =EK$374 -> 0.46% | EL24: 5.33 | EM24: 1 | EN24: -8 | EO24: 0.10% | EP24: 5.12 | EQ24: -0 | ER24: -19 | ES24: =ES$374 -> 0.20% | ET24: 9.00 | EU24: -0 | EV24: 356 | EW24: 0.00% | EX24: 8.59 | EY24: 0 | EZ24: 0 | FA24: =FA$374 -> -0.37% | FB24: 0.08 | FC24: 0 | FD24: 104 | FE24: =FE$374 -> 0.45% | FF24: 8.00 | FG24: 4 | FH24: 393 | FI24: 0.43% | FJ24: 1.00 | FK24: 2 | FL24: -106 | FM24: =FM$374 -> 0.65% | FN24: 5.00 | FO24: -3 | FP24: 3 | FQ24: =FQ$374 -> 0.40% | FR24: 1.00 | FS24: 0 | FT24: -148 | FU24: =FU$374 -> 0.20% | FV24: 8.00 | FW24: -2 | FX24: 232 | FY24: =FY$374 -> 1.00% | FZ24: 5.00 | GA24: 12 | GB24: 880 | GC24: 25 | GD24: -6 | GE24: 3 | GF24: 50 | GG24: =GG$374 -> 1.00% | GH24: 5.37 | GI24: 3 | GJ24: 4 | GK24: 0 | GL24: 0 | GN24: 0 | GO24: 0.00% | GP24: 0 | GQ24: 0 | GR24: 0 | GS24: =GS$374 -> 0.45% | GT24: 8.00 | GU24: 0 | GV24: 0 | GW24: 0.43% | GX24: 1.00 | GY24: 0 | GZ24: 0 | HA24: =HA$374 -> 0.65% | HB24: 5.00 | HC24: 0 | HD24: 0 | HE24: 0.40% | HF24: 1.00 | HG24: 0 | HH24: -4 | HI24: =HI$374 -> 1.00% | HJ24: 5.00 | HK24: -0 | HL24: -5 | HM24: 62 | HO24: =IF(ISERROR(IF(VLOOKUP($C24,'Indicateurs Cumulés'!$C$3:$HN$560,186,FALSE)/(VLOOKUP($C24,objectifs!$C$3:$ZZ$559,158,FALSE))>=1.5,(VLOOKUP($C24,objectifs!$C$3:$ZZ$559,158,FALSE))*1.5,IF(VLOOKUP($C24,'Indicateurs Cumulés'!$C$3:$HN$560,186,FALSE)/(VLOOKUP($C24,objectifs!$C$3:$ZZ$559,158,FALSE))<=-0.5,(VLOOKUP($C24,objectifs!$C$3:$ZZ$559,158,FALSE))*-0.5,VLOOKUP($C24,'Indicateurs Cumulés'!$C$3:$HN$560,186,FALSE)))),VLOOKUP($C24,'Indicateurs Cumulés'!$C$3:$HN$560,186,FALSE),IF(VLOOKUP($C24,'Indicateurs Cumulés'!$C$3:$HN$560,186,FALSE)/(VLOOKUP($C24,objectifs!$C$3:$ZZ$559,158,FALSE))>=1.5,(VLOOKUP($C24,objectifs!$C$3:$ZZ$559,158,FALSE))*1.5,IF(VLOOKUP($C24,'Indicateurs Cumulés'!$C$3:$HN$560,186,FALSE)/(VLOOKUP($C24,objectifs!$C$3:$ZZ$559,158,FALSE))<=-0.5,(VLOOKUP($C24,objectifs!$C$3:$ZZ$559,158,FALSE))*-0.5,VLOOKUP($C24,'Indicateurs Cumulés'!$C$3:$HN$560,186,FALSE)))) -> 50 | HP24: 0 | HR24: 1.9 | HT24: 5.23% | HU24: -0.27% | HV24: 3.06% | HW24: 4 | HX24: -2 | HY24: -2 | HZ24: -3 | IA24: -2 | IB24: 0 | IC24: 2 | ID24: -17 | IE24: -1 | IF24: -2 | IG24: -1 | IH24: 0 | II24: 0 | IJ24: 15 | IK24: -17 | IL24: 0 | IM24: 0 | IN24: -0 | IO24: -1 | IP24: -0 | IQ24: -0 | IR24: 0 | IS24: 0 | IT24: -7 | IU24: -0 | IV24: -1 | IW24: -1 | IX24: 0 | IY24: 0 | IZ24: 10 | JA24: -4 | JB24: 0 | JC24: 6 | JD24: 1 | JE24: 0 | JF24: -11 | JG24: 5.57 | JH24: -104.39 | JI24: 0 | JJ24: 0 | JK24: -2 | JL24: 0.20% | JM24: 13 | JO24: -2 | JP24: 14 | JQ24: 35 | JR24: =IF(ISERROR(IF(VLOOKUP($C24,'Indicateurs Cumulés'!$C$3:$HN$560,190,FALSE)/(VLOOKUP($C24,objectifs!$C$3:$ZZ$559,162,FALSE))>=1.5,(VLOOKUP($C24,objectifs!$C$3:$ZZ$559,162,FALSE))*1.5,IF(VLOOKUP($C24,'Indicateurs Cumulés'!$C$3:$HN$560,190,FALSE)/(VLOOKUP($C24,objectifs!$C$3:$ZZ$559,162,FALSE))<=-0.5,(VLOOKUP($C24,objectifs!$C$3:$ZZ$559,162,FALSE))*-0.5,VLOOKUP($C24,'Indicateurs Cumulés'!$C$3:$HN$560,190,FALSE)))),VLOOKUP($C24,'Indicateurs Cumulés'!$C$3:$HN$560,190,FALSE),IF(VLOOKUP($C24,'Indicateurs Cumulés'!$C$3:$HN$560,190,FALSE)/(VLOOKUP($C24,objectifs!$C$3:$ZZ$559,162,FALSE))>=1.5,(VLOOKUP($C24,objectifs!$C$3:$ZZ$559,162,FALSE))*1.5,IF(VLOOKUP($C24,'Indicateurs Cumulés'!$C$3:$HN$560,190,FALSE)/(VLOOKUP($C24,objectifs!$C$3:$ZZ$559,162,FALSE))<=-0.5,(VLOOKUP($C24,objectifs!$C$3:$ZZ$559,162,FALSE))*-0.5,VLOOKUP($C24,'Indicateurs Cumulés'!$C$3:$HN$560,190,FALSE)))) -> 4 | JS24: -0 | JT24: 1 | JV24: -0 | JW24: 0 | JX24: 1 | JY24: 0 | JZ24: 2 | KA24: 1 | KB24: 0 | KC24: 0 | KD24: 2 | KE24: 0 | KF24: 2 | KG24: 1 | KH24: 0 | KI24: 0 | KJ24: 0 | KK24: 0 | KL24: 0 | KM24: 5 | KN24: 2 | KR24: 7.10 | KS24: 5 | KT24: -24 | KU24: 0 | KV24: 4 | KW24: 1 | KX24: 0 | KY24: 15 | KZ24: 10 | LA24: 0 | LB24: 0 | LC24: 55 | LD24: 15 | LE24: 2 | LF24: 1 | LG24: 4 | LH24: 6 | LI24: -4 | LJ24: -0 | LK24: 54 | LL24: 28.5 | LM24: 29 | LN24: 12 | LO24: -5 | LP24: 7 | LQ24: 29.33 | LR24: 55 | LS24: 21 | LT24: 194 | LU24: 6 | LV24: 21 | LW24: 0 | LX24: 4.1 | LY24: 0.2 | LZ24: 0.6 | MA24: 0.3 | MB24: 0.3 | MC24: 0.0 | MD24: 61
A25: 105006 | B25: 200262 | C25: 37 | D25: MUNDOLSHEIM | E25: 2019-04-30 | F25: 24 | G25: 4.32% | H25: 1.57 | I25: 2019-04-30 | J25: 525 | K25: 3.31% | L25: 2.68 | M25: 4.51 | N25: 1,283 | O25: 0 | P25: 0.04% | Q25: 8.66 | R25: 12.92 | S25: 160 | T25: 3.73% | U25: 2.85 | V25: 0 | W25: 0.00% | X25: 0 | Y25: 250 | Z25: 0.45% | AA25: 4.61 | AB25: 8.6 | AC25: 7.1 | AD25: 0.8 | AE25: 29.7 | AF25: 7.5 | AG25: 3.1 | AH25: 201904 | AI25: 0 | AJ25: 0 | AK25: 0.00% | AL25: 133.05 | AM25: 53.23 | AN25: 40% | AO25: 0.46 | AP25: 0.34% | AQ25: 781.75 | AR25: 54.28 | AS25: 6.9% | AT25: 0.56 | AU25: 0.07% | AV25: 15.35 | AW25: 2.87 | AX25: 18.67% | AY25: 0.25 | AZ25: 1.66% | BA25: 930.16 | BB25: 110.38 | BC25: 11.9% | BD25: 1.27 | BE25: 0.14% | BG25: 21 | BH25: 0 | BI25: 63 | BJ25: 42 | BK25: 8 | BL25: 1.68% | BM25: 0.00% | BN25: 37 | BO25: 3 | BP25: 0 | BQ25: 90 | BR25: 3 | BS25: 0 | BT25: 2 | BU25: 0 | BX25: 0 | BY25: 0 | BZ25: 0 | CA25: 1 | CB25: 0 | CC25: -1 | CD25: -1 | CE25: 10 | CF25: 2.0 | CG25: -1 | CH25: -0 | CI25: 0 | CJ25: 0 | CK25: 100.00% | CL25: 120.83% | CM25: 3 | CN25: 0.00% | CO25: 3 | CP25: 0 | CQ25: 0.8 | CR25: 0 | CS25: 0.00 | CT25: 1 | CU25: 3 | CV25: 0 | CW25: 9 | CX25: 52.26% | CY25: 120.38% | CZ25: 26 | DA25: 97.15% | DB25: 137.62% | DC25: 12 | DE25: 100.00% | DF25: 100.00% | DG25: 2 | DH25: 376 | DI25: 0.70% | DJ25: 5.33 | DK25: 14 | DL25: 205 | DM25: 0.79% | DN25: 5.33 | DO25: 9 | DP25: -6 | DQ25: 0.90% | DR25: 5.33 | DS25: -0 | DT25: 376 | DU25: 0.40% | DV25: 2.67 | DW25: 4 | DX25: -160 | DY25: 0.20% | DZ25: 5.37 | EA25: -2 | EB25: 131 | EC25: 0.20% | ED25: 5.37 | EE25: 1 | EF25: -22 | EG25: 0.20% | EH25: 5.37 | EI25: -0 | EJ25: 44 | EK25: 0.46% | EL25: 5.33 | EM25: 1 | EN25: 2 | EO25: 0.10% | EP25: 8.83 | EQ25: 0 | ER25: -135 | ES25: 0.20% | ET25: 9.00 | EU25: -2 | EV25: -241 | EW25: 0.00% | EX25: 8.50 | EY25: 0 | EZ25: 0 | FA25: -0.37% | FB25: 0.08 | FC25: 0 | FD25: 569 | FE25: 0.45% | FF25: 8.00 | FG25: 20 | FH25: 783 | FI25: 0.14% | FJ25: 1.00 | FK25: 1 | FL25: -3 | FM25: 0.65% | FN25: 5.00 | FO25: -0 | FP25: 3 | FQ25: 0.40% | FR25: 1.00 | FS25: 0 | FT25: -225 | FU25: 0.20% | FV25: 8.00 | FW25: -4 | FX25: 174 | FY25: 1.00% | FZ25: 5.00 | GA25: 9 | GB25: 484 | GC25: 28 | GD25: 448 | GE25: 18 | GF25: 120 | GG25: 1.00% | GH25: 5.37 | GI25: 6 | GJ25: 30 | GK25: 0 | GL25: 0 | GN25: 0 | GO25: 0.00% | GP25: 0 | GQ25: 0 | GR25: 0 | GS25: 0.45% | GT25: 8.00 | GU25: 0 | GV25: 0 | GW25: 0.14% | GX25: 1.00 | GY25: 0 | GZ25: 0 | HA25: 0.65% | HB25: 5.00 | HC25: 0 | HD25: 0 | HE25: 0.40% | HF25: 1.00 | HG25: 0 | HH25: -118 | HI25: 1.00% | HJ25: 5.00 | HK25: -6 | HL25: -6 | HM25: 76 | HO25: =IF(ISERROR(IF(VLOOKUP($C25,'Indicateurs Cumulés'!$C$3:$HN$560,186,FALSE)/(VLOOKUP($C25,objectifs!$C$3:$ZZ$559,158,FALSE))>=1.5,(VLOOKUP($C25,objectifs!$C$3:$ZZ$559,158,FALSE))*1.5,IF(VLOOKUP($C25,'Indicateurs Cumulés'!$C$3:$HN$560,186,FALSE)/(VLOOKUP($C25,objectifs!$C$3:$ZZ$559,158,FALSE))<=-0.5,(VLOOKUP($C25,objectifs!$C$3:$ZZ$559,158,FALSE))*-0.5,VLOOKUP($C25,'Indicateurs Cumulés'!$C$3:$HN$560,186,FALSE)))),VLOOKUP($C25,'Indicateurs Cumulés'!$C$3:$HN$560,186,FALSE),IF(VLOOKUP($C25,'Indicateurs Cumulés'!$C$3:$HN$560,186,FALSE)/(VLOOKUP($C25,objectifs!$C$3:$ZZ$559,158,FALSE))>=1.5,(VLOOKUP($C25,objectifs!$C$3:$ZZ$559,158,FALSE))*1.5,IF(VLOOKUP($C25,'Indicateurs Cumulés'!$C$3:$HN$560,186,FALSE)/(VLOOKUP($C25,objectifs!$C$3:$ZZ$559,158,FALSE))<=-0.5,(VLOOKUP($C25,objectifs!$C$3:$ZZ$559,158,FALSE))*-0.5,VLOOKUP($C25,'Indicateurs Cumulés'!$C$3:$HN$560,186,FALSE)))) -> 120 | HP25: 0 | HR25: 2.9 | HT25: 4.30% | HU25: 0.38% | HV25: 0.69% | HW25: 0 | HX25: 12 | HY25: -3 | HZ25: 4 | IA25: 3 | IB25: 1 | IC25: 12 | ID25: -2 | IE25: -4 | IF25: -9 | IG25: 0 | IH25: 0 | II25: -1 | IJ25: 22 | IK25: -18 | IL25: -1 | IM25: 0 | IN25: 1 | IO25: -1 | IP25: 0 | IQ25: 0 | IR25: 0 | IS25: 1 | IT25: -1 | IU25: -0 | IV25: -6 | IW25: 0 | IX25: 0 | IY25: -1 | IZ25: 14 | JA25: -4 | JB25: -0 | JC25: 25 | JD25: 29 | JE25: 0 | JF25: 38 | JG25: 5.24 | JH25: 127.76 | JI25: 0 | JJ25: 0 | JK25: -0 | JL25: 0.20% | JM25: 0 | JO25: 0 | JP25: -34 | JQ25: 49 | JR25: =IF(ISERROR(IF(VLOOKUP($C25,'Indicateurs Cumulés'!$C$3:$HN$560,190,FALSE)/(VLOOKUP($C25,objectifs!$C$3:$ZZ$559,162,FALSE))>=1.5,(VLOOKUP($C25,objectifs!$C$3:$ZZ$559,162,FALSE))*1.5,IF(VLOOKUP($C25,'Indicateurs Cumulés'!$C$3:$HN$560,190,FALSE)/(VLOOKUP($C25,objectifs!$C$3:$ZZ$559,162,FALSE))<=-0.5,(VLOOKUP($C25,objectifs!$C$3:$ZZ$559,162,FALSE))*-0.5,VLOOKUP($C25,'Indicateurs Cumulés'!$C$3:$HN$560,190,FALSE)))),VLOOKUP($C25,'Indicateurs Cumulés'!$C$3:$HN$560,190,FALSE),IF(VLOOKUP($C25,'Indicateurs Cumulés'!$C$3:$HN$560,190,FALSE)/(VLOOKUP($C25,objectifs!$C$3:$ZZ$559,162,FALSE))>=1.5,(VLOOKUP($C25,objectifs!$C$3:$ZZ$559,162,FALSE))*1.5,IF(VLOOKUP($C25,'Indicateurs Cumulés'!$C$3:$HN$560,190,FALSE)/(VLOOKUP($C25,objectifs!$C$3:$ZZ$559,162,FALSE))<=-0.5,(VLOOKUP($C25,objectifs!$C$3:$ZZ$559,162,FALSE))*-0.5,VLOOKUP($C25,'Indicateurs Cumulés'!$C$3:$HN$560,190,FALSE)))) -> 30 | JS25: -0 | JT25: 0 | JV25: 0 | JW25: -1 | JX25: 2 | JY25: 1 | JZ25: 1 | KA25: 2 | KB25: 0 | KC25: 0 | KD25: 2 | KE25: 0 | KF25: 2 | KG25: 3 | KH25: 0 | KI25: 0 | KJ25: 0 | KK25: 0 | KL25: 0 | KM25: 4 | KN25: 1 | KR25: 5.34 | KS25: 6 | KT25: 2 | KU25: 0 | KV25: 8 | KW25: 2 | KX25: 0 | KY25: 21 | KZ25: 15 | LA25: 1 | LB25: 0 | LC25: 191 | LD25: 38 | LE25: 2 | LF25: 1 | LG25: 2 | LH25: 3 | LI25: 3 | LJ25: 0 | LK25: 185 | LL25: 64.1 | LM25: 49 | LN25: 113 | LO25: -6 | LP25: 5 | LQ25: 66.20 | LR25: 66 | LS25: 61 | LT25: 288 | LU25: 15 | LV25: 67 | LW25: 4 | LX25: 5.0 | LY25: 0.6 | LZ25: 0.9 | MA25: 0.8 | MB25: 1.0 | MC25: 0.0 | MD25: 199
A26: 105006 | B26: 200262 | C26: 38 | D26: OBERHAUSBERGEN | E26: 2019-04-30 | F26: 56 | G26: 4.32% | H26: 1.57 | I26: 2019-04-30 | J26: 671 | K26: 3.53% | L26: 2.50 | M26: 4.22 | N26: 2,478 | O26: 0 | P26: -0.08% | Q26: 7.27 | R26: 11.38 | S26: 20 | T26: 4.57% | U26: 2.10 | V26: 31 | W26: 0.11% | X26: 8.80 | Y26: 125 | Z26: 0.19% | AA26: 3.98 | AB26: 5.7 | AC26: 7.5 | AD26: 0.6 | AE26: 73.9 | AF26: 9.6 | AG26: 4.7 | AH26: 201904 | AI26: 3.00 | AJ26: 0.07 | AK26: 2.40% | AL26: 71.37 | AM26: 5.16 | AN26: 7% | AO26: 1.21 | AP26: 1.70% | AQ26: 780.59 | AR26: 29.82 | AS26: 3.8% | AT26: 1.91 | AU26: 0.24% | AV26: 18.76 | AW26: 0.66 | AX26: 3.54% | AY26: 0.39 | AZ26: 2.09% | BA26: 873.72 | BB26: 35.65 | BC26: 4.1% | BD26: 3.58 | BE26: 0.41% | BG26: 2 | BH26: 1 | BI26: 78 | BJ26: 53 | BK26: 2 | BL26: 1.57% | BM26: 0.00% | BN26: 38 | BO26: 184 | BP26: 4 | BQ26: 53 | BR26: 1 | BS26: 5 | BT26: 4 | BU26: -3 | BX26: 0 | BY26: 0 | BZ26: 0 | CA26: 0 | CB26: 0 | CC26: -5 | CD26: -3 | CE26: 5 | CF26: 1.0 | CG26: -3 | CH26: -1 | CI26: 3 | CJ26: 3 | CK26: 100.00% | CL26: 100.00% | CM26: 0 | CN26: 100.00% | CO26: 0 | CP26: 1 | CQ26: 0.6 | CR26: 0 | CS26: 0.00 | CT26: 0 | CU26: 2 | CV26: 0 | CW26: 6 | CX26: 72.11% | CY26: 143.40% | CZ26: 53 | DA26: 96.94% | DB26: 123.68% | DC26: 13 | DE26: 100.00% | DF26: 100.00% | DG26: 0 | DH26: 152 | DI26: 0.70% | DJ26: 5.33 | DK26: 6 | DL26: 343 | DM26: 0.79% | DN26: 5.33 | DO26: 14 | DP26: -40 | DQ26: 0.90% | DR26: 5.33 | DS26: -2 | DT26: 348 | DU26: 0.40% | DV26: 2.67 | DW26: 4 | DX26: -135 | DY26: 0.20% | DZ26: 5.37 | EA26: -1 | EB26: -37 | EC26: 0.20% | ED26: 5.37 | EE26: -0 | EF26: -16 | EG26: 0.20% | EH26: 5.37 | EI26: -0 | EJ26: -16 | EK26: 0.46% | EL26: 5.33 | EM26: -0 | EN26: 1 | EO26: 0.10% | EP26: 9.45 | EQ26: 0 | ER26: -16 | ES26: 0.20% | ET26: 9.00 | EU26: -0 | EV26: 54 | EW26: 0.00% | EX26: 8.59 | EY26: 0 | EZ26: 0 | FA26: -0.37% | FB26: 0.08 | FC26: 0 | FD26: 639 | FE26: 0.45% | FF26: 8.00 | FG26: 23 | FH26: 886 | FI26: 0.41% | FJ26: 1.00 | FK26: 4 | FL26: -26 | FM26: 0.65% | FN26: 5.00 | FO26: -1 | FP26: 4 | FQ26: 0.40% | FR26: 1.00 | FS26: 0 | FT26: -325 | FU26: 0.20% | FV26: 8.00 | FW26: -5 | FX26: 595 | FY26: 1.00% | FZ26: 5.00 | GA26: 30 | GB26: 1,020 | GC26: 47 | GD26: 527 | GE26: 27 | GF26: -366 | GG26: 1.00% | GH26: 5.37 | GI26: -20 | GJ26: -57 | GK26: 0 | GL26: 0 | GN26: 0 | GO26: 0.00% | GP26: 0 | GQ26: 0 | GR26: 0 | GS26: 0.45% | GT26: 8.00 | GU26: 0 | GV26: 0 | GW26: 0.41% | GX26: 1.00 | GY26: 0 | GZ26: 0 | HA26: 0.65% | HB26: 5.00 | HC26: 0 | HD26: 0 | HE26: 0.40% | HF26: 1.00 | HG26: 0 | HH26: -86 | HI26: 1.00% | HJ26: 5.00 | HK26: -4 | HL26: -13 | HM26: 122 | HO26: =IF(ISERROR(IF(VLOOKUP($C26,'Indicateurs Cumulés'!$C$3:$HN$560,186,FALSE)/(VLOOKUP($C26,objectifs!$C$3:$ZZ$559,158,FALSE))>=1.5,(VLOOKUP($C26,objectifs!$C$3:$ZZ$559,158,FALSE))*1.5,IF(VLOOKUP($C26,'Indicateurs Cumulés'!$C$3:$HN$560,186,FALSE)/(VLOOKUP($C26,objectifs!$C$3:$ZZ$559,158,FALSE))<=-0.5,(VLOOKUP($C26,objectifs!$C$3:$ZZ$559,158,FALSE))*-0.5,VLOOKUP($C26,'Indicateurs Cumulés'!$C$3:$HN$560,186,FALSE)))),VLOOKUP($C26,'Indicateurs Cumulés'!$C$3:$HN$560,186,FALSE),IF(VLOOKUP($C26,'Indicateurs Cumulés'!$C$3:$HN$560,186,FALSE)/(VLOOKUP($C26,objectifs!$C$3:$ZZ$559,158,FALSE))>=1.5,(VLOOKUP($C26,objectifs!$C$3:$ZZ$559,158,FALSE))*1.5,IF(VLOOKUP($C26,'Indicateurs Cumulés'!$C$3:$HN$560,186,FALSE)/(VLOOKUP($C26,objectifs!$C$3:$ZZ$559,158,FALSE))<=-0.5,(VLOOKUP($C26,objectifs!$C$3:$ZZ$559,158,FALSE))*-0.5,VLOOKUP($C26,'Indicateurs Cumulés'!$C$3:$HN$560,186,FALSE)))) -> -210 | HP26: 179 | HR26: 3.6 | HT26: 4.27% | HU26: 0.28% | HV26: 0.33% | HW26: 25 | HX26: 21 | HY26: 2 | HZ26: 2 | IA26: 5 | IB26: 1 | IC26: 10 | ID26: -1 | IE26: -1 | IF26: -2 | IG26: -2 | IH26: 0 | II26: 1 | IJ26: 10 | IK26: -10 | IL26: 0 | IM26: 3 | IN26: 2 | IO26: 1 | IP26: 0 | IQ26: 0 | IR26: 0 | IS26: 1 | IT26: -0 | IU26: -0 | IV26: -1 | IW26: -2 | IX26: 0 | IY26: 1 | IZ26: 7 | JA26: -2 | JB26: 0 | JC26: 26 | JD26: 5 | JE26: 0 | JF26: 72 | JG26: 4.15 | JH26: 85.77 | JI26: 0 | JJ26: 0 | JK26: 0 | JL26: 0.20% | JM26: 150 | JO26: 6 | JP26: 112 | JQ26: -37 | JR26: =IF(ISERROR(IF(VLOOKUP($C26,'Indicateurs Cumulés'!$C$3:$HN$560,190,FALSE)/(VLOOKUP($C26,objectifs!$C$3:$ZZ$559,162,FALSE))>=1.5,(VLOOKUP($C26,objectifs!$C$3:$ZZ$559,162,FALSE))*1.5,IF(VLOOKUP($C26,'Indicateurs Cumulés'!$C$3:$HN$560,190,FALSE)/(VLOOKUP($C26,objectifs!$C$3:$ZZ$559,162,FALSE))<=-0.5,(VLOOKUP($C26,objectifs!$C$3:$ZZ$559,162,FALSE))*-0.5,VLOOKUP($C26,'Indicateurs Cumulés'!$C$3:$HN$560,190,FALSE)))),VLOOKUP($C26,'Indicateurs Cumulés'!$C$3:$HN$560,190,FALSE),IF(VLOOKUP($C26,'Indicateurs Cumulés'!$C$3:$HN$560,190,FALSE)/(VLOOKUP($C26,objectifs!$C$3:$ZZ$559,162,FALSE))>=1.5,(VLOOKUP($C26,objectifs!$C$3:$ZZ$559,162,FALSE))*1.5,IF(VLOOKUP($C26,'Indicateurs Cumulés'!$C$3:$HN$560,190,FALSE)/(VLOOKUP($C26,objectifs!$C$3:$ZZ$559,162,FALSE))<=-0.5,(VLOOKUP($C26,objectifs!$C$3:$ZZ$559,162,FALSE))*-0.5,VLOOKUP($C26,'Indicateurs Cumulés'!$C$3:$HN$560,190,FALSE)))) -> -34 | JS26: 0 | JT26: 8 | JV26: 0 | JW26: 4 | JX26: -1 | JY26: -1 | JZ26: 10 | KA26: 2 | KB26: 0 | KC26: -1 | KD26: 0 | KE26: 1 | KF26: 0 | KG26: 3 | KH26: 0 | KI26: -1 | KJ26: 0 | KK26: 1 | KL26: 0 | KM26: 4 | KN26: 3 | KR26: 4.07 | KS26: 2 | KT26: 11 | KU26: 0 | KV26: -1 | KW26: -0 | KX26: 0 | KY26: 11 | KZ26: 8 | LA26: 0 | LB26: 0 | LC26: 217 | LD26: 12 | LE26: -3 | LF26: -2 | LG26: -3 | LH26: -4 | LI26: 6 | LJ26: 1 | LK26: 204 | LL26: 57.4 | LM26: 70 | LN26: 132 | LO26: -6 | LP26: -6 | LQ26: 61.07 | LR26: 94 | LS26: 58 | LT26: 380 | LU26: 16 | LV26: 63 | LW26: 4 | LX26: 7.1 | LY26: 0.6 | LZ26: 1.1 | MA26: 0.8 | MB26: 0.9 | MC26: 0.0 | MD26: 228
A27: 105006 | B27: 200262 | C27: 39 | D27: REICHSTETT | E27: 2019-04-30 | F27: 23 | G27: 4.32% | H27: 1.57 | I27: 2019-04-30 | J27: 415 | K27: 3.39% | L27: 2.80 | M27: 4.63 | N27: 329 | O27: 0 | P27: 0.13% | Q27: 8.47 | R27: 12.90 | S27: 20 | T27: 3.63% | U27: 3.43 | V27: 0 | W27: 0.00% | X27: 0 | Y27: 238 | Z27: 0.23% | AA27: 6.10 | AB27: 0.9 | AC27: 3.6 | AD27: 1.0 | AE27: 24.2 | AF27: 7.6 | AG27: 0.6 | AH27: 201904 | AI27: 0 | AJ27: 0 | AK27: 0.00% | AL27: 32.35 | AM27: 6.53 | AN27: 20% | AO27: 0.54 | AP27: 1.67% | AQ27: 87.56 | AR27: 16.60 | AS27: 19.0% | AT27: 0.12 | AU27: 0.14% | AV27: 11.74 | AW27: 1.21 | AX27: 10.34% | AY27: 0.20 | AZ27: 1.67% | BA27: 131.65 | BB27: 24.34 | BC27: 18.5% | BD27: 0.86 | BE27: 0.65% | BG27: 3 | BH27: 0 | BI27: 52 | BJ27: 25 | BK27: 9 | BL27: 1.59% | BM27: 0.00% | BN27: 39 | BO27: 2 | BP27: 0 | BQ27: 24 | BR27: 1 | BS27: 1 | BT27: 0 | BU27: -2 | BX27: 0 | BY27: 0 | BZ27: 0 | CA27: -1 | CB27: -0 | CC27: 0 | CD27: 0 | CE27: 1 | CF27: 0.2 | CG27: 3 | CH27: 1 | CI27: 0 | CJ27: 0 | CK27: 100.00% | CL27: 100.00% | CM27: 0 | CN27: 0.00% | CO27: 0 | CP27: 0 | CQ27: 1.0 | CR27: 0 | CS27: 0.00 | CT27: 0 | CU27: 2 | CV27: 0 | CW27: 1 | CX27: 100.00% | CY27: 173.11% | CZ27: 20 | DA27: 97.59% | DB27: 127.05% | DC27: 9 | DE27: 100.00% | DF27: 99.55% | DG27: 4 | DH27: 67 | DI27: 0.70% | DJ27: 5.33 | DK27: 3 | DL27: -131 | DM27: 0.79% | DN27: 5.33 | DO27: -6 | DP27: -1 | DQ27: 0.90% | DR27: 5.33 | DS27: -0 | DT27: 2 | DU27: 0.40% | DV27: 2.67 | DW27: 0 | DX27: -93 | DY27: 0.20% | DZ27: 5.37 | EA27: -1 | EB27: -18 | EC27: 0.20% | ED27: 5.37 | EE27: -0 | EF27: -5 | EG27: 0.20% | EH27: 5.37 | EI27: -0 | EJ27: -20 | EK27: 0.46% | EL27: 5.33 | EM27: -0 | EN27: -0 | EO27: 0.10% | EP27: 9.55 | EQ27: -0 | ER27: -2 | ES27: 0.20% | ET27: 9.00 | EU27: -0 | EV27: 65 | EW27: 0.00% | EX27: 8.59 | EY27: 0 | EZ27: 5 | FA27: -0.37% | FB27: 0.08 | FC27: -0 | FD27: -119 | FE27: 0.45% | FF27: 8.00 | FG27: -4 | FH27: 122 | FI27: 0.65% | FJ27: 1.00 | FK27: 1 | FL27: -4 | FM27: 0.65% | FN27: 5.00 | FO27: -0 | FP27: 2 | FQ27: 0.40% | FR27: 1.00 | FS27: 0 | FT27: -124 | FU27: 0.20% | FV27: 8.00 | FW27: -2 | FX27: 47 | FY27: 1.00% | FZ27: 5.00 | GA27: 2 | GB27: -198 | GC27: -4 | GD27: -108 | GE27: -2 | GF27: 113 | GG27: 1.00% | GH27: 5.37 | GI27: 6 | GJ27: -18 | GK27: 0 | GL27: 0 | GN27: 0 | GO27: 0.00% | GP27: 0 | GQ27: 0 | GR27: 0 | GS27: 0.45% | GT27: 8.00 | GU27: 0 | GV27: 0 | GW27: 0.65% | GX27: 1.00 | GY27: 0 | GZ27: 0 | HA27: 0.65% | HB27: 5.00 | HC27: 0 | HD27: 0 | HE27: 0.40% | HF27: 1.00 | HG27: 0 | HH27: 15 | HI27: 1.00% | HJ27: 5.00 | HK27: 1 | HL27: -6 | HM27: 63 | HO27: =IF(ISERROR(IF(VLOOKUP($C27,'Indicateurs Cumulés'!$C$3:$HN$560,186,FALSE)/(VLOOKUP($C27,objectifs!$C$3:$ZZ$559,158,FALSE))>=1.5,(VLOOKUP($C27,objectifs!$C$3:$ZZ$559,158,FALSE))*1.5,IF(VLOOKUP($C27,'Indicateurs Cumulés'!$C$3:$HN$560,186,FALSE)/(VLOOKUP($C27,objectifs!$C$3:$ZZ$559,158,FALSE))<=-0.5,(VLOOKUP($C27,objectifs!$C$3:$ZZ$559,158,FALSE))*-0.5,VLOOKUP($C27,'Indicateurs Cumulés'!$C$3:$HN$560,186,FALSE)))),VLOOKUP($C27,'Indicateurs Cumulés'!$C$3:$HN$560,186,FALSE),IF(VLOOKUP($C27,'Indicateurs Cumulés'!$C$3:$HN$560,186,FALSE)/(VLOOKUP($C27,objectifs!$C$3:$ZZ$559,158,FALSE))>=1.5,(VLOOKUP($C27,objectifs!$C$3:$ZZ$559,158,FALSE))*1.5,IF(VLOOKUP($C27,'Indicateurs Cumulés'!$C$3:$HN$560,186,FALSE)/(VLOOKUP($C27,objectifs!$C$3:$ZZ$559,158,FALSE))<=-0.5,(VLOOKUP($C27,objectifs!$C$3:$ZZ$559,158,FALSE))*-0.5,VLOOKUP($C27,'Indicateurs Cumulés'!$C$3:$HN$560,186,FALSE)))) -> 113 | HP27: 0 | HR27: 2.0 | HT27: 4.25% | HU27: 0.91% | HV27: 0.59% | HW27: 3 | HX27: 2 | HY27: 1 | HZ27: 2 | IA27: -2 | IB27: -1 | IC27: 6 | ID27: -11 | IE27: 0 | IF27: -1 | IG27: 0 | IH27: 0 | II27: -1 | IJ27: 12 | IK27: -33 | IL27: 1 | IM27: 0 | IN27: 0 | IO27: 0 | IP27: 0 | IQ27: -0 | IR27: -0 | IS27: 1 | IT27: -5 | IU27: 0 | IV27: -1 | IW27: 0 | IX27: 0 | IY27: -1 | IZ27: 8 | JA27: -7 | JB27: 0 | JC27: 5 | JD27: 12 | JE27: 0 | JF27: -11 | JG27: 5.68 | JH27: -86.09 | JI27: 0 | JJ27: 0 | JK27: 0 | JL27: 0.20% | JM27: 0 | JO27: 1 | JP27: 10 | JQ27: 11 | JR27: =IF(ISERROR(IF(VLOOKUP($C27,'Indicateurs Cumulés'!$C$3:$HN$560,190,FALSE)/(VLOOKUP($C27,objectifs!$C$3:$ZZ$559,162,FALSE))>=1.5,(VLOOKUP($C27,objectifs!$C$3:$ZZ$559,162,FALSE))*1.5,IF(VLOOKUP($C27,'Indicateurs Cumulés'!$C$3:$HN$560,190,FALSE)/(VLOOKUP($C27,objectifs!$C$3:$ZZ$559,162,FALSE))<=-0.5,(VLOOKUP($C27,objectifs!$C$3:$ZZ$559,162,FALSE))*-0.5,VLOOKUP($C27,'Indicateurs Cumulés'!$C$3:$HN$560,190,FALSE)))),VLOOKUP($C27,'Indicateurs Cumulés'!$C$3:$HN$560,190,FALSE),IF(VLOOKUP($C27,'Indicateurs Cumulés'!$C$3:$HN$560,190,FALSE)/(VLOOKUP($C27,objectifs!$C$3:$ZZ$559,162,FALSE))>=1.5,(VLOOKUP($C27,objectifs!$C$3:$ZZ$559,162,FALSE))*1.5,IF(VLOOKUP($C27,'Indicateurs Cumulés'!$C$3:$HN$560,190,FALSE)/(VLOOKUP($C27,objectifs!$C$3:$ZZ$559,162,FALSE))<=-0.5,(VLOOKUP($C27,objectifs!$C$3:$ZZ$559,162,FALSE))*-0.5,VLOOKUP($C27,'Indicateurs Cumulés'!$C$3:$HN$560,190,FALSE)))) -> -18 | JS27: 0 | JT27: 0 | JV27: 0 | JW27: 0 | JX27: 0 | JY27: -0 | JZ27: 0 | KA27: 0 | KB27: 0 | KC27: 0 | KD27: -2 | KE27: 0 | KF27: 0 | KG27: 0 | KH27: 0 | KI27: 0 | KJ27: -0 | KK27: 0 | KL27: 0 | KM27: 0 | KN27: 1 | KR27: 4.32 | KS27: -2 | KT27: 2 | KU27: 0 | KV27: 0 | KW27: 0 | KX27: 0 | KY27: 11 | KZ27: 8 | LA27: 0 | LB27: 0 | LC27: 80 | LD27: 12 | LE27: 0 | LF27: 0 | LG27: 0 | LH27: 0 | LI27: 0 | LJ27: 0 | LK27: 78 | LL27: 40.2 | LM27: -4 | LN27: 86 | LO27: -6 | LP27: 0 | LQ27: 40.82 | LR27: 49 | LS27: 29 | LT27: 43 | LU27: 4 | LV27: 0 | LW27: 3 | LX27: 3.7 | LY27: 0.3 | LZ27: 0.1 | MA27: 0.2 | MB27: 0.0 | MC27: 0.0 | MD27: 84
A28: 105006 | B28: 200262 | C28: 40 | D28: ECKBOLSHEIM | E28: 2019-04-30 | F28: 20 | G28: 4.32% | H28: 1.57 | I28: 2019-04-30 | J28: 303 | K28: 2.45% | L28: 3.34 | M28: 5.15 | N28: 920 | O28: 0 | P28: -0.05% | Q28: 5.38 | R28: 8.93 | S28: 163 | T28: 2.05% | U28: 4.34 | V28: 0 | W28: 0.00% | X28: 0 | Y28: 0 | Z28: 0.00% | AA28: 0 | AB28: 3.1 | AC28: 2.2 | AD28: 0 | AE28: 13.7 | AF28: 6.5 | AG28: 1.4 | AH28: 201904 | AI28: 0 | AJ28: 0 | AK28: 0.00% | AL28: 66.11 | AM28: 7.32 | AN28: 11% | AO28: 1.12 | AP28: 1.69% | AQ28: 560.36 | AR28: 30.34 | AS28: 5.4% | AT28: 0.06 | AU28: 0.01% | AV28: 28.92 | AW28: 0.22 | AX28: 0.77% | AY28: 0.72 | AZ28: 2.48% | BA28: 655.39 | BB28: 37.89 | BC28: 5.8% | BD28: 1.89 | BE28: 0.29% | BG28: 19 | BH28: 0 | BI28: 35 | BJ28: 12 | BK28: 1 | BL28: 1.26% | BM28: 0.00% | BN28: 40 | BO28: 80 | BP28: 2 | BQ28: 36 | BR28: 1 | BS28: 1 | BT28: -0 | BU28: -2 | BX28: 0 | BY28: 0 | BZ28: 0 | CA28: 0 | CB28: 0 | CC28: -2 | CD28: -1 | CE28: 1 | CF28: 0.2 | CG28: -3 | CH28: -1 | CI28: 0 | CJ28: 0 | CK28: 100.00% | CL28: 100.00% | CM28: 4 | CN28: 0.00% | CO28: 4 | CP28: 0 | CQ28: 0 | CR28: 0 | CS28: 0.31 | CT28: 1 | CU28: 1 | CV28: 0 | CW28: 3 | CX28: 36.60% | CY28: 100.00% | CZ28: 9 | DA28: 100.00% | DB28: 143.64% | DC28: 8 | DE28: 0.00% | DF28: 0.00% | DG28: 0 | DH28: -96 | DI28: 0.70% | DJ28: 5.33 | DK28: -4 | DL28: 83 | DM28: 0.79% | DN28: 5.33 | DO28: 3 | DP28: 16 | DQ28: 0.90% | DR28: 5.33 | DS28: 1 | DT28: 429 | DU28: 0.40% | DV28: 2.67 | DW28: 5 | DX28: -136 | DY28: 0.20% | DZ28: 5.37 | EA28: -1 | EB28: 55 | EC28: 0.20% | ED28: 5.37 | EE28: 1 | EF28: -20 | EG28: 0.20% | EH28: 5.37 | EI28: -0 | EJ28: -3 | EK28: 0.46% | EL28: 5.33 | EM28: -0 | EN28: -3 | EO28: 0.10% | EP28: 9.97 | EQ28: -0 | ER28: -146 | ES28: 0.20% | ET28: 9.00 | EU28: -3 | EV28: 187 | EW28: 0.00% | EX28: 8.59 | EY28: 0 | EZ28: 0 | FA28: -0.37% | FB28: 0.08 | FC28: 0 | FD28: 338 | FE28: 0.45% | FF28: 8.00 | FG28: 12 | FH28: 622 | FI28: 0.29% | FJ28: 1.00 | FK28: 2 | FL28: 4 | FM28: 0.65% | FN28: 5.00 | FO28: 0 | FP28: 4 | FQ28: 0.40% | FR28: 1.00 | FS28: 0 | FT28: -288 | FU28: 0.20% | FV28: 8.00 | FW28: -5 | FX28: 142 | FY28: 1.00% | FZ28: 5.00 | GA28: 7 | GB28: 203 | GC28: 3 | GD28: 465 | GE28: 21 | GF28: -11 | GG28: 1.00% | GH28: 5.37 | GI28: -1 | GJ28: -36 | GK28: 0 | GL28: 0 | GN28: 31 | GO28: 1.20% | GP28: 1.93 | GQ28: 1 | GR28: 150 | GS28: 0.45% | GT28: 8.00 | GU28: 5 | GV28: 150 | GW28: 0.29% | GX28: 1.00 | GY28: 0 | GZ28: 0 | HA28: 0.65% | HB28: 5.00 | HC28: 0 | HD28: 0 | HE28: 0.40% | HF28: 1.00 | HG28: 0 | HH28: -27 | HI28: 1.00% | HJ28: 5.00 | HK28: -1 | HL28: -5 | HM28: 70 | HO28: =IF(ISERROR(IF(VLOOKUP($C28,'Indicateurs Cumulés'!$C$3:$HN$560,186,FALSE)/(VLOOKUP($C28,objectifs!$C$3:$ZZ$559,158,FALSE))>=1.5,(VLOOKUP($C28,objectifs!$C$3:$ZZ$559,158,FALSE))*1.5,IF(VLOOKUP($C28,'Indicateurs Cumulés'!$C$3:$HN$560,186,FALSE)/(VLOOKUP($C28,objectifs!$C$3:$ZZ$559,158,FALSE))<=-0.5,(VLOOKUP($C28,objectifs!$C$3:$ZZ$559,158,FALSE))*-0.5,VLOOKUP($C28,'Indicateurs Cumulés'!$C$3:$HN$560,186,FALSE)))),VLOOKUP($C28,'Indicateurs Cumulés'!$C$3:$HN$560,186,FALSE),IF(VLOOKUP($C28,'Indicateurs Cumulés'!$C$3:$HN$560,186,FALSE)/(VLOOKUP($C28,objectifs!$C$3:$ZZ$559,158,FALSE))>=1.5,(VLOOKUP($C28,objectifs!$C$3:$ZZ$559,158,FALSE))*1.5,IF(VLOOKUP($C28,'Indicateurs Cumulés'!$C$3:$HN$560,186,FALSE)/(VLOOKUP($C28,objectifs!$C$3:$ZZ$559,158,FALSE))<=-0.5,(VLOOKUP($C28,objectifs!$C$3:$ZZ$559,158,FALSE))*-0.5,VLOOKUP($C28,'Indicateurs Cumulés'!$C$3:$HN$560,186,FALSE)))) -> -11 | HP28: 0 | HR28: 1.8 | HT28: 3.29% | HU28: 0.23% | HV28: 1.20% | HW28: 5 | HX28: -1 | HY28: 1 | HZ28: 1 | IA28: 10 | IB28: 0 | IC28: 7 | ID28: -11 | IE28: -2 | IF28: -6 | IG28: 0 | IH28: 0 | II28: 4 | IJ28: -3 | IK28: -23 | IL28: -1 | IM28: 1 | IN28: -0 | IO28: 0 | IP28: 0 | IQ28: 0 | IR28: 0 | IS28: 1 | IT28: -5 | IU28: -0 | IV28: -4 | IW28: 0 | IX28: 0 | IY28: 4 | IZ28: -2 | JA28: -5 | JB28: -0 | JC28: -9 | JD28: 20 | JE28: 0 | JF28: -18 | JG28: 4.56 | JH28: 108.68 | JI28: 0 | JJ28: 0 | JK28: 0 | JL28: 0.20% | JM28: 0 | JO28: -5 | JP28: -14 | JQ28: 19 | JR28: =IF(ISERROR(IF(VLOOKUP($C28,'Indicateurs Cumulés'!$C$3:$HN$560,190,FALSE)/(VLOOKUP($C28,objectifs!$C$3:$ZZ$559,162,FALSE))>=1.5,(VLOOKUP($C28,objectifs!$C$3:$ZZ$559,162,FALSE))*1.5,IF(VLOOKUP($C28,'Indicateurs Cumulés'!$C$3:$HN$560,190,FALSE)/(VLOOKUP($C28,objectifs!$C$3:$ZZ$559,162,FALSE))<=-0.5,(VLOOKUP($C28,objectifs!$C$3:$ZZ$559,162,FALSE))*-0.5,VLOOKUP($C28,'Indicateurs Cumulés'!$C$3:$HN$560,190,FALSE)))),VLOOKUP($C28,'Indicateurs Cumulés'!$C$3:$HN$560,190,FALSE),IF(VLOOKUP($C28,'Indicateurs Cumulés'!$C$3:$HN$560,190,FALSE)/(VLOOKUP($C28,objectifs!$C$3:$ZZ$559,162,FALSE))>=1.5,(VLOOKUP($C28,objectifs!$C$3:$ZZ$559,162,FALSE))*1.5,IF(VLOOKUP($C28,'Indicateurs Cumulés'!$C$3:$HN$560,190,FALSE)/(VLOOKUP($C28,objectifs!$C$3:$ZZ$559,162,FALSE))<=-0.5,(VLOOKUP($C28,objectifs!$C$3:$ZZ$559,162,FALSE))*-0.5,VLOOKUP($C28,'Indicateurs Cumulés'!$C$3:$HN$560,190,FALSE)))) -> -17 | JS28: 0 | JT28: 0 | JV28: -0 | JW28: -0 | JX28: 1 | JY28: -0 | JZ28: -0 | KA28: -1 | KB28: 0 | KC28: 0 | KD28: -1 | KE28: 0 | KF28: 0 | KG28: -1 | KH28: 0 | KI28: 0 | KJ28: -0 | KK28: 0 | KL28: 0 | KM28: -2 | KN28: 1 | KR28: 5.35 | KS28: -2 | KT28: 1 | KU28: 0 | KV28: -1 | KW28: -0 | KX28: 0 | KY28: 1 | KZ28: 1 | LA28: 0 | LB28: 0 | LC28: 54 | LD28: 18 | LE28: 0 | LF28: 0 | LG28: 0 | LH28: 0 | LI28: 0 | LJ28: 0 | LK28: 53 | LL28: 30.1 | LM28: 24 | LN28: 48 | LO28: -5 | LP28: 0 | LQ28: 30.52 | LR28: 42 | LS28: 24 | LT28: 235 | LU28: -2 | LV28: 16 | LW28: 15 | LX28: 3.2 | LY28: 0.2 | LZ28: 0.7 | MA28: 0.0 | MB28: 0.2 | MC28: 0.1 | MD28: 58
A29: 105060 | B29: 200262 | C29: 41 | D29: HOERDT | E29: 2019-04-30 | F29: 54 | G29: 4.32% | H29: 1.57 | I29: 2019-04-30 | J29: 248 | K29: 3.33% | L29: 2.73 | M29: 4.54 | N29: 2,063 | O29: 0 | P29: -0.00% | Q29: 6.65 | R29: 10.19 | S29: 0 | T29: 0.00% | U29: 0 | V29: 0 | W29: 0.00% | X29: 0 | Y29: 60 | Z29: 1.48% | AA29: 2.38 | AB29: 4.2 | AC29: 1.9 | AD29: 0.5 | AE29: 55.1 | AF29: 3.3 | AG29: 3.3 | AH29: 201904 | AI29: 23.00 | AJ29: 0.55 | AK29: 2.40% | AL29: 45.61 | AM29: 6.97 | AN29: 15% | AO29: 0.51 | AP29: 1.11% | AQ29: 443.52 | AR29: 6.83 | AS29: 1.5% | AT29: 0.16 | AU29: 0.04% | AV29: 11.34 | AW29: 0.31 | AX29: 2.71% | AY29: 0.20 | AZ29: 1.72% | BA29: 523.47 | BB29: 14.11 | BC29: 2.7% | BD29: 1.42 | BE29: 0.27% | BG29: -0 | BH29: 0 | BI29: 32 | BJ29: 59 | BK29: 3 | BL29: 1.58% | BM29: 0.00% | BN29: 41 | BO29: 23 | BP29: 0 | BQ29: 49 | BR29: 1 | BS29: 3 | BT29: 2 | BU29: -3 | BX29: 0 | BY29: 0 | BZ29: 0 | CA29: 1 | CB29: 0 | CC29: 4 | CD29: 2 | CE29: 5 | CF29: 1.0 | CG29: -2 | CH29: -0 | CI29: 0 | CJ29: 0 | CK29: 100.00% | CL29: 100.00% | CM29: -0 | CN29: 0.00% | CO29: -0 | CP29: 0 | CQ29: 0.5 | CR29: 0 | CS29: 0.00 | CT29: 0 | CU29: 1 | CV29: 0 | CW29: 4 | CX29: 58.85% | CY29: 183.37% | CZ29: 52 | DA29: 100.00% | DB29: 117.73% | DC29: 5 | DE29: 100.00% | DF29: 100.00% | DG29: 0 | DH29: 117 | DI29: 0.70% | DJ29: 5.33 | DK29: 4 | DL29: -105 | DM29: 0.79% | DN29: 5.33 | DO29: -4 | DP29: 4 | DQ29: 0.90% | DR29: 5.33 | DS29: 0 | DT29: 63 | DU29: 0.40% | DV29: 2.67 | DW29: 1 | DX29: -91 | DY29: 0.20% | DZ29: 5.37 | EA29: -1 | EB29: 49 | EC29: 0.20% | ED29: 5.37 | EE29: 1 | EF29: -8 | EG29: 0.20% | EH29: 5.37 | EI29: -0 | EJ29: -2 | EK29: 0.46% | EL29: 5.33 | EM29: -0 | EN29: -12 | EO29: 0.10% | EP29: 7.26 | EQ29: -0 | ER29: -51 | ES29: 0.20% | ET29: 9.00 | EU29: -1 | EV29: 88 | EW29: 0.00% | EX29: 8.59 | EY29: 0 | EZ29: 0 | FA29: -0.37% | FB29: 0.08 | FC29: 0 | FD29: 215 | FE29: 0.45% | FF29: 8.00 | FG29: 8 | FH29: 530 | FI29: 0.27% | FJ29: 1.00 | FK29: 1 | FL29: 3 | FM29: 0.65% | FN29: 5.00 | FO29: 0 | FP29: 3 | FQ29: 0.40% | FR29: 1.00 | FS29: 0 | FT29: -152 | FU29: 0.20% | FV29: 8.00 | FW29: -2 | FX29: 125 | FY29: 1.00% | FZ29: 5.00 | GA29: 6 | GB29: 76 | GC29: 5 | GD29: 216 | GE29: 11 | GF29: -104 | GG29: 1.00% | GH29: 5.37 | GI29: -6 | GJ29: -5 | GK29: 0 | GL29: 0 | GN29: 0 | GO29: 0.00% | GP29: 0 | GQ29: 0 | GR29: 0 | GS29: 0.45% | GT29: 8.00 | GU29: 0 | GV29: 0 | GW29: 0.27% | GX29: 1.00 | GY29: 0 | GZ29: 0 | HA29: 0.65% | HB29: 5.00 | HC29: 0 | HD29: 0 | HE29: 0.40% | HF29: 1.00 | HG29: 0 | HH29: -1 | HI29: 1.00% | HJ29: 5.00 | HK29: -0 | HL29: -6 | HM29: 72 | HO29: =IF(ISERROR(IF(VLOOKUP($C29,'Indicateurs Cumulés'!$C$3:$HN$560,186,FALSE)/(VLOOKUP($C29,objectifs!$C$3:$ZZ$559,158,FALSE))>=1.5,(VLOOKUP($C29,objectifs!$C$3:$ZZ$559,158,FALSE))*1.5,IF(VLOOKUP($C29,'Indicateurs Cumulés'!$C$3:$HN$560,186,FALSE)/(VLOOKUP($C29,objectifs!$C$3:$ZZ$559,158,FALSE))<=-0.5,(VLOOKUP($C29,objectifs!$C$3:$ZZ$559,158,FALSE))*-0.5,VLOOKUP($C29,'Indicateurs Cumulés'!$C$3:$HN$560,186,FALSE)))),VLOOKUP($C29,'Indicateurs Cumulés'!$C$3:$HN$560,186,FALSE),IF(VLOOKUP($C29,'Indicateurs Cumulés'!$C$3:$HN$560,186,FALSE)/(VLOOKUP($C29,objectifs!$C$3:$ZZ$559,158,FALSE))>=1.5,(VLOOKUP($C29,objectifs!$C$3:$ZZ$559,158,FALSE))*1.5,IF(VLOOKUP($C29,'Indicateurs Cumulés'!$C$3:$HN$560,186,FALSE)/(VLOOKUP($C29,objectifs!$C$3:$ZZ$559,158,FALSE))<=-0.5,(VLOOKUP($C29,objectifs!$C$3:$ZZ$559,158,FALSE))*-0.5,VLOOKUP($C29,'Indicateurs Cumulés'!$C$3:$HN$560,186,FALSE)))) -> -104 | HP29: 0 | HR29: 2.9 | HT29: 3.91% | HU29: 0.43% | HV29: 1.83% | HW29: 17 | HX29: 12 | HY29: 3 | HZ29: 4 | IA29: 9 | IB29: 1 | IC29: 2 | ID29: 4 | IE29: -1 | IF29: -2 | IG29: -6 | IH29: 0 | II29: 1 | IJ29: 1 | IK29: -4 | IL29: 4 | IM29: 2 | IN29: 1 | IO29: 1 | IP29: 0 | IQ29: 0 | IR29: 0 | IS29: 0 | IT29: 2 | IU29: -0 | IV29: -1 | IW29: -6 | IX29: 0 | IY29: 1 | IZ29: 1 | JA29: -1 | JB29: 0 | JC29: 8 | JD29: 3 | JE29: 0 | JF29: 47 | JG29: 4.20 | JH29: 41.25 | JI29: 0 | JJ29: 0 | JK29: -20 | JL29: 0.20% | JM29: 0 | JO29: 1 | JP29: 50 | JQ29: -42 | JR29: =IF(ISERROR(IF(VLOOKUP($C29,'Indicateurs Cumulés'!$C$3:$HN$560,190,FALSE)/(VLOOKUP($C29,objectifs!$C$3:$ZZ$559,162,FALSE))>=1.5,(VLOOKUP($C29,objectifs!$C$3:$ZZ$559,162,FALSE))*1.5,IF(VLOOKUP($C29,'Indicateurs Cumulés'!$C$3:$HN$560,190,FALSE)/(VLOOKUP($C29,objectifs!$C$3:$ZZ$559,162,FALSE))<=-0.5,(VLOOKUP($C29,objectifs!$C$3:$ZZ$559,162,FALSE))*-0.5,VLOOKUP($C29,'Indicateurs Cumulés'!$C$3:$HN$560,190,FALSE)))),VLOOKUP($C29,'Indicateurs Cumulés'!$C$3:$HN$560,190,FALSE),IF(VLOOKUP($C29,'Indicateurs Cumulés'!$C$3:$HN$560,190,FALSE)/(VLOOKUP($C29,objectifs!$C$3:$ZZ$559,162,FALSE))>=1.5,(VLOOKUP($C29,objectifs!$C$3:$ZZ$559,162,FALSE))*1.5,IF(VLOOKUP($C29,'Indicateurs Cumulés'!$C$3:$HN$560,190,FALSE)/(VLOOKUP($C29,objectifs!$C$3:$ZZ$559,162,FALSE))<=-0.5,(VLOOKUP($C29,objectifs!$C$3:$ZZ$559,162,FALSE))*-0.5,VLOOKUP($C29,'Indicateurs Cumulés'!$C$3:$HN$560,190,FALSE)))) -> -5 | JS29: -0 | JT29: 0 | JV29: 0 | JW29: 2 | JX29: -1 | JY29: -0 | JZ29: -0 | KA29: 1 | KB29: 0 | KC29: 1 | KD29: 2 | KE29: 0 | KF29: 0 | KG29: 1 | KH29: 0 | KI29: 1 | KJ29: 0 | KK29: 0 | KL29: 0 | KM29: 6 | KN29: 2 | KR29: 4.21 | KS29: 4 | KT29: 1 | KU29: 0 | KV29: 2 | KW29: 0 | KX29: 0 | KY29: 2 | KZ29: 1 | LA29: 0 | LB29: 0 | LC29: 113 | LD29: 8 | LE29: 1 | LF29: 1 | LG29: -1 | LH29: -1 | LI29: 2 | LJ29: 0 | LK29: 106 | LL29: 36.9 | LM29: 14 | LN29: 94 | LO29: -6 | LP29: -1 | LQ29: 39.36 | LR29: 70 | LS29: 38 | LT29: 220 | LU29: 2 | LV29: 0 | LW29: 5 | LX29: 5.3 | LY29: 0.4 | LZ29: 0.7 | MA29: 0.1 | MB29: 0.0 | MC29: 0.0 | MD29: 120
A30: 105006 | B30: 200262 | C30: 43 | D30: STRASBOURG HALLES (yc Mésange) | E30: 2019-04-30 | F30: 60 | G30: 4.32% | H30: 1.57 | I30: 2019-04-30 | J30: 1,820 | K30: 2.33% | L30: 1.80 | M30: 2.74 | N30: 5,244 | O30: 0 | P30: -0.11% | Q30: 6.75 | R30: 10.56 | S30: 265 | T30: 2.26% | U30: 2.35 | V30: 243 | W30: -0.10% | X30: 5.84 | Y30: 3,188 | Z30: 0.57% | AA30: 4.75 | AB30: 18.0 | AC30: 10.9 | AD30: 15.2 | AE30: 115.2 | AF30: 18.9 | AG30: 7.7 | AH30: 201904 | AI30: 0 | AJ30: 0 | AK30: 0.00% | AL30: 169.73 | AM30: 40.75 | AN30: 24% | AO30: 1.98 | AP30: 1.16% | AQ30: 1,058.88 | AR30: 121.57 | AS30: 11.5% | AT30: 2.19 | AU30: 0.21% | AV30: 33.67 | AW30: 2.45 | AX30: 7.28% | AY30: 0.62 | AZ30: 1.84% | BA30: 1,262.28 | BB30: 164.77 | BC30: 13.1% | BD30: 4.79 | BE30: 0.38% | BG30: 19 | BH30: -0 | BI30: 107 | BJ30: 83 | BK30: 121 | BL30: 0.00% | BM30: 0.00% | BN30: 43 | BO30: 2 | BP30: 0 | BQ30: 36 | BR30: 1 | BS30: 1 | BT30: -1 | BU30: -9 | BX30: 0 | BY30: 1 | BZ30: 0 | CA30: 2 | CB30: 0 | CC30: 1 | CD30: 1 | CE30: 16 | CF30: 3.2 | CG30: 26 | CH30: 6 | CI30: 4 | CJ30: 4 | CK30: 100.00% | CL30: 100.00% | CM30: 4 | CN30: 100.00% | CO30: 4 | CP30: 1 | CQ30: 15.2 | CR30: -0 | CS30: 0.30 | CT30: 1 | CU30: 6 | CV30: 1 | CW30: 18 | CX30: 71.18% | CY30: 128.66% | CZ30: 93 | DA30: 51.91% | DB30: 126.15% | DC30: 21 | DE30: 90.00% | DF30: 100.00% | DG30: 18 | DH30: -423 | DI30: 0.70% | DJ30: 5.33 | DK30: -16 | DL30: -321 | DM30: 0.79% | DN30: 5.33 | DO30: -14 | DP30: -8 | DQ30: 0.90% | DR30: 5.33 | DS30: -0 | DT30: 623 | DU30: 0.40% | DV30: 2.67 | DW30: 7 | DX30: -154 | DY30: 0.20% | DZ30: 5.37 | EA30: -2 | EB30: 10 | EC30: 0.20% | ED30: 5.37 | EE30: 0 | EF30: -35 | EG30: 0.20% | EH30: 5.37 | EI30: -0 | EJ30: 24 | EK30: 0.46% | EL30: 5.33 | EM30: 1 | EN30: -1 | EO30: 0.10% | EP30: 7.77 | EQ30: -0 | ER30: -472 | ES30: 0.20% | ET30: 9.00 | EU30: -8 | EV30: -248 | EW30: 0.00% | EX30: 8.59 | EY30: 0 | EZ30: 0 | FA30: -0.37% | FB30: 0.08 | FC30: 0 | FD30: -710 | FE30: 0.45% | FF30: 8.00 | FG30: -26 | FH30: 1,217 | FI30: 0.38% | FJ30: 1.00 | FK30: 5 | FL30: -41 | FM30: 0.65% | FN30: 5.00 | FO30: -1 | FP30: 139 | FQ30: 0.40% | FR30: 1.00 | FS30: 1 | FT30: -482 | FU30: 0.20% | FV30: 8.00 | FW30: -8 | FX30: 108 | FY30: 1.00% | FZ30: 5.00 | GA30: 5 | GB30: -537 | GC30: -8 | GD30: -554 | GE30: -12 | GF30: -8,991 | GG30: 1.00% | GH30: 5.37 | GI30: -483 | GJ30: 8 | GK30: 0 | GL30: 0 | GN30: 61 | GO30: 0.74% | GP30: 2.37 | GQ30: 1 | GR30: 289 | GS30: 0.45% | GT30: 8.00 | GU30: 10 | GV30: 324 | GW30: 0.38% | GX30: 1.00 | GY30: 1 | GZ30: -89 | HA30: 0.65% | HB30: 5.00 | HC30: -3 | HD30: 10 | HE30: 0.40% | HF30: 1.00 | HG30: 0 | HH30: -3 | HI30: 1.00% | HJ30: 5.00 | HK30: -0 | HL30: -20 | HM30: 328 | HO30: =IF(ISERROR(IF(VLOOKUP($C30,'Indicateurs Cumulés'!$C$3:$HN$560,186,FALSE)/(VLOOKUP($C30,objectifs!$C$3:$ZZ$559,158,FALSE))>=1.5,(VLOOKUP($C30,objectifs!$C$3:$ZZ$559,158,FALSE))*1.5,IF(VLOOKUP($C30,'Indicateurs Cumulés'!$C$3:$HN$560,186,FALSE)/(VLOOKUP($C30,objectifs!$C$3:$ZZ$559,158,FALSE))<=-0.5,(VLOOKUP($C30,objectifs!$C$3:$ZZ$559,158,FALSE))*-0.5,VLOOKUP($C30,'Indicateurs Cumulés'!$C$3:$HN$560,186,FALSE)))),VLOOKUP($C30,'Indicateurs Cumulés'!$C$3:$HN$560,186,FALSE),IF(VLOOKUP($C30,'Indicateurs Cumulés'!$C$3:$HN$560,186,FALSE)/(VLOOKUP($C30,objectifs!$C$3:$ZZ$559,158,FALSE))>=1.5,(VLOOKUP($C30,objectifs!$C$3:$ZZ$559,158,FALSE))*1.5,IF(VLOOKUP($C30,'Indicateurs Cumulés'!$C$3:$HN$560,186,FALSE)/(VLOOKUP($C30,objectifs!$C$3:$ZZ$559,158,FALSE))<=-0.5,(VLOOKUP($C30,objectifs!$C$3:$ZZ$559,158,FALSE))*-0.5,VLOOKUP($C30,'Indicateurs Cumulés'!$C$3:$HN$560,186,FALSE)))) -> -312 | HP30: 436 | HR30: 8.5 | HT30: 3.18% | HU30: 0.22% | HV30: 0.79% | HW30: 5 | HX30: -4 | HY30: -1 | HZ30: 14 | IA30: 14 | IB30: 1 | IC30: 4 | ID30: 10 | IE30: 55 | IF30: -5 | IG30: -3 | IH30: 1 | II30: 0 | IJ30: 14 | IK30: 1 | IL30: -2 | IM30: 1 | IN30: -0 | IO30: -0 | IP30: 1 | IQ30: 0 | IR30: 0 | IS30: 0 | IT30: 4 | IU30: 3 | IV30: -3 | IW30: -3 | IX30: 2 | IY30: 0 | IZ30: 9 | JA30: 0 | JB30: -0 | JC30: 34 | JD30: 140 | JE30: 0 | JF30: 118 | JG30: 5.19 | JH30: 55.17 | JI30: 0 | JJ30: 0 | JK30: -120 | JL30: 0.20% | JM30: 0 | JO30: -1 | JP30: 843 | JQ30: -17 | JR30: =IF(ISERROR(IF(VLOOKUP($C30,'Indicateurs Cumulés'!$C$3:$HN$560,190,FALSE)/(VLOOKUP($C30,objectifs!$C$3:$ZZ$559,162,FALSE))>=1.5,(VLOOKUP($C30,objectifs!$C$3:$ZZ$559,162,FALSE))*1.5,IF(VLOOKUP($C30,'Indicateurs Cumulés'!$C$3:$HN$560,190,FALSE)/(VLOOKUP($C30,objectifs!$C$3:$ZZ$559,162,FALSE))<=-0.5,(VLOOKUP($C30,objectifs!$C$3:$ZZ$559,162,FALSE))*-0.5,VLOOKUP($C30,'Indicateurs Cumulés'!$C$3:$HN$560,190,FALSE)))),VLOOKUP($C30,'Indicateurs Cumulés'!$C$3:$HN$560,190,FALSE),IF(VLOOKUP($C30,'Indicateurs Cumulés'!$C$3:$HN$560,190,FALSE)/(VLOOKUP($C30,objectifs!$C$3:$ZZ$559,162,FALSE))>=1.5,(VLOOKUP($C30,objectifs!$C$3:$ZZ$559,162,FALSE))*1.5,IF(VLOOKUP($C30,'Indicateurs Cumulés'!$C$3:$HN$560,190,FALSE)/(VLOOKUP($C30,objectifs!$C$3:$ZZ$559,162,FALSE))<=-0.5,(VLOOKUP($C30,objectifs!$C$3:$ZZ$559,162,FALSE))*-0.5,VLOOKUP($C30,'Indicateurs Cumulés'!$C$3:$HN$560,190,FALSE)))) -> 8 | JS30: -2 | JT30: 0 | JV30: -0 | JW30: 27 | JX30: -1 | JY30: 0 | JZ30: 25 | KA30: 26 | KB30: 0 | KC30: 0 | KD30: 13 | KE30: 2 | KF30: 2 | KG30: 37 | KH30: 0 | KI30: 0 | KJ30: 3 | KK30: 1 | KL30: 0 | KM30: 61 | KN30: 18 | KR30: 5.66 | KS30: 43 | KT30: -53 | KU30: 0 | KV30: 2 | KW30: 0 | KX30: 0 | KY30: 15 | KZ30: 10 | LA30: -1 | LB30: -0 | LC30: 379 | LD30: 236 | LE30: 3 | LF30: 2 | LG30: 5 | LH30: 7 | LI30: 1 | LJ30: 0 | LK30: 371 | LL30: 43.8 | LM30: -26 | LN30: 312 | LO30: -2 | LP30: 9 | LQ30: 44.67 | LR30: 164 | LS30: 88 | LT30: 388 | LU30: 38 | LV30: 40 | LW30: 27 | LX30: 12.3 | LY30: 0.9 | LZ30: 1.2 | MA30: 1.9 | MB30: 0.6 | MC30: 0.1 | MD30: 396
A31: 105006 | B31: 200262 | C31: 45 | D31: STRASBOURG FRANCS BOURGEOIS | E31: 2019-04-30 | F31: 54 | G31: 4.32% | H31: 1.57 | I31: 2019-04-30 | J31: 709 | K31: 3.54% | L31: 2.47 | M31: 4.17 | N31: 2,306 | O31: 0 | P31: -0.17% | Q31: 7.71 | R31: 12.14 | S31: 82 | T31: 2.95% | U31: 2.67 | V31: 888 | W31: -0.15% | X31: 7.96 | Y31: 387 | Z31: 0.68% | AA31: 3.58 | AB31: 7.1 | AC31: 14.7 | AD31: 1.1 | AE31: 59.6 | AF31: 16.1 | AG31: 4.3 | AH31: 201904 | AI31: 44.81 | AJ31: 0 | AK31: 0.00% | AL31: 221.77 | AM31: 59.30 | AN31: 27% | AO31: 3.50 | AP31: 1.58% | AQ31: 794.99 | AR31: 96.84 | AS31: 12.2% | AT31: 2.06 | AU31: 0.26% | AV31: 34.36 | AW31: 3.73 | AX31: 10.85% | AY31: 0.68 | AZ31: 1.99% | BA31: 1,095.93 | BB31: 159.87 | BC31: 14.6% | BD31: 6.24 | BE31: 0.57% | BG31: 9 | BH31: -3 | BI31: 88 | BJ31: 18 | BK31: 12 | BL31: 1.56% | BM31: 0.00% | BN31: 45 | BO31: 68 | BP31: 1 | BQ31: 94 | BR31: 3 | BS31: 2 | BT31: 1 | BU31: -3 | BX31: 0 | BY31: -1 | BZ31: -0 | CA31: 1 | CB31: 0 | CC31: 4 | CD31: 2 | CE31: 5 | CF31: 1.0 | CG31: 6 | CH31: 1 | CI31: 3 | CJ31: 3 | CK31: 100.00% | CL31: 148.78% | CM31: 2 | CN31: 0.00% | CO31: 2 | CP31: 5 | CQ31: 1.1 | CR31: 2 | CS31: 0.00 | CT31: 0 | CU31: 5 | CV31: 1 | CW31: 7 | CX31: 32.49% | CY31: 145.55% | CZ31: 34 | DA31: 98.55% | DB31: 149.28% | DC31: 17 | DE31: 100.00% | DF31: 100.00% | DG31: 2 | DH31: 345 | DI31: 0.70% | DJ31: 5.33 | DK31: 13 | DL31: 147 | DM31: 0.79% | DN31: 5.33 | DO31: 6 | DP31: 2 | DQ31: 0.90% | DR31: 5.33 | DS31: 0 | DT31: 173 | DU31: 0.40% | DV31: 2.67 | DW31: 2 | DX31: -188 | DY31: 0.20% | DZ31: 5.37 | EA31: -2 | EB31: -5 | EC31: 0.20% | ED31: 5.37 | EE31: -0 | EF31: -40 | EG31: 0.20% | EH31: 5.37 | EI31: -0 | EJ31: 9 | EK31: 0.46% | EL31: 5.33 | EM31: 0 | EN31: -4 | EO31: 0.10% | EP31: 9.51 | EQ31: -0 | ER31: -551 | ES31: 0.20% | ET31: 9.00 | EU31: -10 | EV31: -174 | EW31: 0.00% | EX31: 8.59 | EY31: 0 | EZ31: 0 | FA31: -0.37% | FB31: 0.08 | FC31: 0 | FD31: 220 | FE31: 0.45% | FF31: 8.00 | FG31: 8 | FH31: 1,014 | FI31: 0.57% | FJ31: 1.00 | FK31: 6 | FL31: -12 | FM31: 0.65% | FN31: 5.00 | FO31: -0 | FP31: 10 | FQ31: 0.40% | FR31: 1.00 | FS31: 0 | FT31: -251 | FU31: 0.20% | FV31: 8.00 | FW31: -4 | FX31: 281 | FY31: 1.00% | FZ31: 5.00 | GA31: 14 | GB31: 73 | GC31: 29 | GD31: 349 | GE31: 25 | GF31: -636 | GG31: 1.00% | GH31: 5.37 | GI31: -34 | GJ31: -556 | GK31: 10 | GL31: 1 | GN31: 0 | GO31: 0.00% | GP31: 0 | GQ31: 0 | GR31: -10 | GS31: 0.45% | GT31: 8.00 | GU31: -0 | GV31: 0 | GW31: 0.57% | GX31: 1.00 | GY31: 0 | GZ31: 0 | HA31: 0.65% | HB31: 5.00 | HC31: 0 | HD31: 0 | HE31: 0.40% | HF31: 1.00 | HG31: 0 | HH31: 151 | HI31: 1.00% | HJ31: 5.00 | HK31: 8 | HL31: -14 | HM31: 251 | HO31: =IF(ISERROR(IF(VLOOKUP($C31,'Indicateurs Cumulés'!$C$3:$HN$560,186,FALSE)/(VLOOKUP($C31,objectifs!$C$3:$ZZ$559,158,FALSE))>=1.5,(VLOOKUP($C31,objectifs!$C$3:$ZZ$559,158,FALSE))*1.5,IF(VLOOKUP($C31,'Indicateurs Cumulés'!$C$3:$HN$560,186,FALSE)/(VLOOKUP($C31,objectifs!$C$3:$ZZ$559,158,FALSE))<=-0.5,(VLOOKUP($C31,objectifs!$C$3:$ZZ$559,158,FALSE))*-0.5,VLOOKUP($C31,'Indicateurs Cumulés'!$C$3:$HN$560,186,FALSE)))),VLOOKUP($C31,'Indicateurs Cumulés'!$C$3:$HN$560,186,FALSE),IF(VLOOKUP($C31,'Indicateurs Cumulés'!$C$3:$HN$560,186,FALSE)/(VLOOKUP($C31,objectifs!$C$3:$ZZ$559,158,FALSE))>=1.5,(VLOOKUP($C31,objectifs!$C$3:$ZZ$559,158,FALSE))*1.5,IF(VLOOKUP($C31,'Indicateurs Cumulés'!$C$3:$HN$560,186,FALSE)/(VLOOKUP($C31,objectifs!$C$3:$ZZ$559,158,FALSE))<=-0.5,(VLOOKUP($C31,objectifs!$C$3:$ZZ$559,158,FALSE))*-0.5,VLOOKUP($C31,'Indicateurs Cumulés'!$C$3:$HN$560,186,FALSE)))) -> -317 | HP31: 0 | HR31: 6.9 | HT31: 4.66% | HU31: 0.09% | HV31: 0.90% | HW31: 11 | HX31: 5 | HY31: 1 | HZ31: 11 | IA31: 6 | IB31: 6 | IC31: 7 | ID31: -1 | IE31: 7 | IF31: -9 | IG31: -2 | IH31: -1 | II31: -2 | IJ31: 14 | IK31: -20 | IL31: -1 | IM31: 1 | IN31: 0 | IO31: 0 | IP31: 1 | IQ31: 0 | IR31: 1 | IS31: 1 | IT31: -0 | IU31: 0 | IV31: -6 | IW31: -2 | IX31: -2 | IY31: -2 | IZ31: 9 | JA31: -4 | JB31: -0 | JC31: 13 | JD31: 19 | JE31: 0 | JF31: 54 | JG31: 4.98 | JH31: 48.71 | JI31: 0 | JJ31: 0 | JK31: -500 | JL31: 0.20% | JM31: 3 | JO31: 39 | JP31: 330 | JQ31: 120 | JR31: =IF(ISERROR(IF(VLOOKUP($C31,'Indicateurs Cumulés'!$C$3:$HN$560,190,FALSE)/(VLOOKUP($C31,objectifs!$C$3:$ZZ$559,162,FALSE))>=1.5,(VLOOKUP($C31,objectifs!$C$3:$ZZ$559,162,FALSE))*1.5,IF(VLOOKUP($C31,'Indicateurs Cumulés'!$C$3:$HN$560,190,FALSE)/(VLOOKUP($C31,objectifs!$C$3:$ZZ$559,162,FALSE))<=-0.5,(VLOOKUP($C31,objectifs!$C$3:$ZZ$559,162,FALSE))*-0.5,VLOOKUP($C31,'Indicateurs Cumulés'!$C$3:$HN$560,190,FALSE)))),VLOOKUP($C31,'Indicateurs Cumulés'!$C$3:$HN$560,190,FALSE),IF(VLOOKUP($C31,'Indicateurs Cumulés'!$C$3:$HN$560,190,FALSE)/(VLOOKUP($C31,objectifs!$C$3:$ZZ$559,162,FALSE))>=1.5,(VLOOKUP($C31,objectifs!$C$3:$ZZ$559,162,FALSE))*1.5,IF(VLOOKUP($C31,'Indicateurs Cumulés'!$C$3:$HN$560,190,FALSE)/(VLOOKUP($C31,objectifs!$C$3:$ZZ$559,162,FALSE))<=-0.5,(VLOOKUP($C31,objectifs!$C$3:$ZZ$559,162,FALSE))*-0.5,VLOOKUP($C31,'Indicateurs Cumulés'!$C$3:$HN$560,190,FALSE)))) -> -55 | JS31: -9 | JT31: 0 | JV31: 1 | JW31: 11 | JX31: 4 | JY31: -1 | JZ31: 6 | KA31: 5 | KB31: 0 | KC31: 0 | KD31: -1 | KE31: 0 | KF31: 0 | KG31: 7 | KH31: 0 | KI31: 0 | KJ31: -0 | KK31: 0 | KL31: 0 | KM31: 20 | KN31: 11 | KR31: 4.98 | KS31: 4 | KT31: -91 | KU31: 0 | KV31: 6 | KW31: 1 | KX31: 0 | KY31: 11 | KZ31: 8 | LA31: 1 | LB31: 0 | LC31: 182 | LD31: 45 | LE31: 0 | LF31: 0 | LG31: 0 | LH31: 0 | LI31: 5 | LJ31: 1 | LK31: 174 | LL31: 25.2 | LM31: 48 | LN31: 118 | LO31: -14 | LP31: 1 | LQ31: 26.44 | LR31: 165 | LS31: 94 | LT31: 397 | LU31: 11 | LV31: -67 | LW31: 9 | LX31: 12.4 | LY31: 0.9 | LZ31: 1.2 | MA31: 0.6 | MB31: 0.0 | MC31: 0.0 | MD31: 198
